Workbook

Sheet S1 List of Genomes Used
A1: Species | B1: Origin | C1: Accession Number (NCBI) and/or GOLD analysis project ID (JGI)
A2: E. casseliflavus B72 | B2: Wastewater (BAF FE) | C2: SAMN11029932, Ga0242489
A3: E. casseliflavus B79 | B3: Wastewater (BAF FE) | C3: SAMN11029903, Ga0242492
A4: E. casseliflavus F1129E | B4: Bovine | C4: SAMN05735029
A5: E. casseliflavus F1129F | B5: Bovine | C5: SAMN05735030
A6: E. gallinarum FDAARGOS 375 | B6: Human Commensal | C6: chromosome: NZ_CP023515.1/CP023515.1
C7: plasmid unnamed1: NZ_CP023514.1/CP023514.1
C8: plasmid unnamed2: NZ_CP023513.1/CP023513.1
A9: E. gallinarum FDAARGOS 163 | B9: Human Commensal | C9: chromosome: NZ_CP014067.2/CP014067.2
C10: plasmid unnamed: NZ_CP014068.2/CP014068.2
A11: E. casseliflavus EC20 | B11: Human Clinical | C11: chromosome: NC_020995.1/CP004856.1
A12: E. casseliflavus NBRC 100478 | B12: Plant Material | C12: SAMD00045727
A13: E. casseliflavus NLAE-zl-C414 | B13: Bovine | C13: SAMN05216513
A14: E. casseliflavus NLAE-zl-G268 | B14: Bovine | C14: SAMN04487887
A15: E. casseliflavus EC30 | B15: Human Clinical | C15: SAMN02595253
A16: E. casseliflavus EC10 | B16: Human Clinical | C16: SAMN02595257
A17: E. casseliflavus ATCC 12755 | B17: Human Commensal | C17: SAMN00253302
A18: E. casseliflavus DSM 20680 | B18: Plant Material | C18: SAMN03267167
A19: E. casseliflavus 14-MB-W-14 | B19: Water | C19: SAMN02436705
A20: E. casseliflavus PAVET15 | B20: Human Commensal | C20: SAMN06275556
A21: E. faecium Aus0004 | B21: Human Clinical | C21: chromosome: NC_017022.1/CP003351.1
C22: plasmid AUS0004_p1: NC_017032.1/CP003352.1
C23: plasmid AUS0004_p2: NC_017023.1/CP003353.1
C24: plasmid AUS0004_p3: NC_017024.1/CP003354.1
A25: E. faecium Aus0085 | B25: Human Clinical | C25: chromosome: NC_021994.1/CP006620.1
C26: plasmid p1: NC_021987.1/CP006621.1
C27: plasmid p2: NC_021995.1/CP006622.1
C28: plasmid p3: NC_021988.1/CP006623.1
C29: plasmid p4: NC_021989.1/CP006624.1
C30: plasmid p5: NC_021996.1/CP006625.1
C31: plasmid p6: NC_021990.1/CP006626.1
A32: E. faecium B466 | B32: Wastewater (BAF FE) | C32: SAMN11025820, Ga0242495
A33: E. faecium B492 | B33: Wastewater (BAF FE) | C33: SAMN11029791, Ga0242496
A34: E. faecium C12D | B34: Wastewater (CAS PE) | C34: SAMN11029416, Ga0242497
A35: E. faecium C329 | B35: Wastewater (CAS FE) | C35: SAMN11025818, Ga0242501
A36: E. faecium C567 | B36: Wastewater (CAS FE) | C36: SAMN11026090, Ga0242503
A37: E. faecium DO | B37: Human Clinical | C37: chromosome: NC_017960.1/CP003583.1
C38: plasmid 1: NC_017961.1/CP003584.1
C39: plasmid 2: NC_017962.1/CP003585.1
C40: plasmid 3: NC_017963.1/CP003586.1
A41: E. faecium F1129D | B41: Bovine | C41: SAMN05735022
A42: E. faecium F1129F | B42: Bovine | C42: SAMN05735021
A43: E. faecium H101S2 | B43: Wastewater (BAF PE) | C43: SAMN11029457, Ga0242507
A44: E. faecium H123S2 | B44: Wastewater (BAF PE) | C44: SAMN11029491, Ga0242510
A45: E. faecium H53S1 | B45: Wastewater (CAS PE) | C45: SAMN11029590, Ga0242506
A46: E. faecium ISMMS VRE 12 | B46: Human Clinical | C46: chromosome: NZ_CP018828.1/CP018828.1
C47: plasmid p1_ISMMS_VRE12: NZ_CP018827.1/CP018827.1
C48: plasmid p2_ISMMS_VRE12: NZ_CP018825.1/CP018825.1
C49: plasmid p3_ISMMS_VRE12: NZ_CP018829.1/CP018829.1
C50: plasmid p4_ISMMS_VRE12: NZ_CP018826.1/CP018826.1
A51: E. faecium 2014-VREF-114 | B51: Human Clinical | C51: chromosome: NZ_CP019970.1/CP019970.1
C52: plasmid p114-1: NZ_CP019971.1/CP019971.1
C53: plasmid p114-2: NZ_CP019972.1/CP019972.1
C54: plasmid p114-3: NZ_CP019973.1/CP019973.1
C55: plasmid p114-4: NZ_CP019974.1/CP019974.1
C56: plasmid p114-5: NZ_CP019975.1/CP019975.1
C57: plasmid p114-6: NZ_CP019976.1/CP019976.1
A58: E. faecium 2014-VREF-268 | B58: Human Clinical | C58: chromosome: NZ_CP019992.1/CP019992.1
C59: plasmid p268-1: NZ_CP019993.1/CP019993.1
C60: plasmid p268-2: NZ_CP019994.1/CP019994.1
C61: plasmid p268-3: NZ_CP019995.1/CP019995.1
A62: E. faecium 2014-VREF-63 | B62: Human Clinical | C62: chromosome: NZ_CP019988.1/CP019988.1
C63: plasmid p63-1:NZ_CP019989.1/CP019989.1
C64: plasmid p63-2: NZ_CP019990.1/CP019990.1
C65: plasmid p63-3: NZ_CP019991.1/CP019991.1
A66: E. faecium NRRL B-2354 | B66: Food | C66: chromosome: NC_020207.1/CP004063.1
C67: plasmid pNB2354_1: NC_020208.1/CP004064.1
A68: E. faecium R337 | B68: Wastewater (BAF PE) | C68: SAMN11029844, Ga0242514
A69: E. faecium R407 | B69: Wastewater (BAF PE) | C69: SAMN11029776, Ga0242517
A70: E. faecium 2014-VREF-41 | B70: Human Clinical | C70: chromosome: NZ_CP019208.1/CP019208.1
C71: plasmid unnamed1: NZ_CP019209.1/CP019209.1
C72: plasmid unnamed2: NZ_CP019210.1/CP019210.1
C73: plasmid unnamed3: NZ_CP019211.1/CP019211.1
C74: plasmid unnamed4: NZ_CP019212.1/CP019212.1
A75: E. faecium 6E6 | B75: Human Clinical | C75: chromosome: NZ_CP013994.1/CP013994.1
C76: plasmid unnamed1: NZ_CP013995.1/CP013995.1
C77: plasmid unnamed2: NZ_CP013996.1/CP013996.1
A78: E. faecium A_020709_82 | B78: Human Commensal | C78: chromosome: NZ_CP018128.1/CP018128.1
C79: plasmid unnamed1: NZ_CP018129.1/CP018129.1
C80: plasmid unnamed2: NZ_CP018130.1/CP018130.1
C81: plasmid unnamed3: NZ_CP018131.1/CP018131.1
C82: plasmid unnamed4: NZ_CP018132.1/CP018132.1
A83: E. faecium E1 | B83: Human Clinical | C83: chromosome: NZ_CP018065.1/CP018065.1
C84: plasmid pE1_13: NZ_CP018068.1/CP018068.1
C85: plasmid pE1_230: NZ_CP018066.1/CP018066.1
C86: plasmid pE1_29: NZ_CP018067.1/CP018067.1
C87: plasmid pE1_3: NZ_CP018069.1/CP018069.1
A88: E. faecium E39 | B88: Human Clinical | C88: chromosome: NZ_CP011281.1/CP011281.1
C89: plasmid p1: NZ_CP011282.1/CP011282.1
C90: plasmid p2: NZ_CP011283.1/CP011283.1
C91: plasmid p3: NZ_CP015123.1/CP015123.1
C92: plasmid p4: NZ_CP011284.1/CP011284.1
C93: plasmid p5: NZ_CP011285.1/CP011285.1
A94: E. faecium E745 | B94: Human Clinical | C94: chromosome: NZ_CP014529.1/CP014529.1
C95: plasmid pl1: NZ_CP014530.1/CP014530.1
C96: plasmid pl2: NZ_CP014531.1/CP014531.1
C97: plasmid pl3: NZ_CP014532.1/CP014532.1
C98: plasmid pl4: NZ_CP014533.1/CP014533.1
C99: plasmid pl5: NZ_CP014534.1/CP014534.1
C100: plasmid pl6: NZ_CP014535.1/CP014535.1
A101: E. faecium F1213D | B101: Bovine | C101: SAMN05735023
A102: E. faecium ISMMS VRE 7 | B102: Human Clinical | C102: chromosome: NZ_CP012460.1/CP012460.1
C103: plasmid ISMMS_VRE7_p1: NZ_CP012461.1/CP012461.1
C104: plasmid ISMMS_VRE7_p2: NZ_CP012462.1/CP012462.1
C105: plasmid ISMMS_VRE7_p3: NZ_CP012463.1/CP012463.1
C106: plasmid ISMMS_VRE7_p4: NZ_CP012464.1/CP012464.1
A107: E. faecium ISMMS VRE 1 | B107: Human Clinical | C107: chromosome: NZ_CP012430.1/CP012430.1
C108: plasmid ISMMS_VRE_p1: NZ_CP012432.1/CP012432.1
C109: plasmid ISMMS_VRE_p2: NZ_CP012431.1/CP012431.1
C110: plasmid ISMMS_VRE_p3: NZ_CP012435.1/CP012435.1
C111: plasmid ISMMS_VRE_p4: NZ_CP012434.1/CP012434.1
C112: plasmid ISMMS_VRE_p5: NZ_CP012433.1/CP012433.1
A113: E. faecium ISMMS VRE 10 | B113: Human Clinical | C113: chromosome: NZ_CP012471.1/CP012471.1
C114: plasmid ISMMS_VRE10_p1: NZ_CP012472.1/CP012472.1
C115: plasmid ISMMS_VRE10_p2: NZ_CP012473.1/CP012473.1
C116: plasmid ISMMS_VRE10_p3: NZ_CP012474.1/CP012474.1
A117: E. faecium ISMMS VRE 11 | B117: Human Clinical | C117: chromosome: NZ_CP016163.1/CP016163.1
C118: plasmid ISMMS_VRE11_p1: NZ_CP016164.1/CP016164.1
C119: plasmid ISMMS_VRE11_p2: NZ_CP016165.1/CP016165.1
C120: plasmid ISMMS_VRE11_p3: NZ_CP016166.1/CP016166.1
C121: plasmid ISMMS_VRE11_p4: NZ_CP016167.1/CP016167.1
C122: plasmid ISMMS_VRE11_p5: NZ_CP016168.1/CP016168.1
C123: plasmid ISMMS_VRE11_p6: NZ_CP016169.1/CP016169.1
A124: E. faecium ISMMS VRE 2 | B124: Human Clinical | C124: chromosome:NZ_CP012436.1/CP012436.1
C125: plasmid ISMMS_VRE2_p1: NZ_CP012437.1/CP012437.1
C126: plasmid ISMMS_VRE2_p2: NZ_CP012439.1/CP012439.1
C127: plasmid ISMMS_VRE2_p3: NZ_CP012438.1/CP012438.1
A128: E. faecium ISMMS VRE 3 | B128: Human Clinical | C128: chromosome:NZ_CP012440.1/CP012440.1
C129: plasmid ISMMS_VRE3_p1: NZ_CP012441.1/CP012441.1
C130: plasmid ISMMS_VRE3_p2: NZ_CP012442.1/CP012442.1
C131: plasmid ISMMS_VRE3_p3: NZ_CP012443.1/CP012443.1
C132: plasmid ISMMS_VRE3_p4: NZ_CP012444.1/CP012444.1
C133: plasmid ISMMS_VRE3_p5: NZ_CP012445.1/CP012445.1
C134: plasmid ISMMS_VRE3_p6: NZ_CP012446.1/CP012446.1
A135: E. faecium ISMMS VRE 4 | B135: Human Clinical | C135: chromosome: NZ_CP012447.1/CP012447.1
C136: plasmid ISMMS_VRE4_p1: NZ_CP012450.1/CP012450.1
C137: plasmid ISMMS_VRE4_p2: NZ_CP012448.1/CP012448.1
C138: plasmid ISMMS_VRE4_p3: NZ_CP012449.1/CP012449.1
C139: plasmid ISMMS_VRE4_p4: NZ_CP012451.1/CP012451.1
C140: plasmid ISMMS_VRE4_p5: NZ_CP012452.1/CP012452.1
C141: plasmid ISMMS_VRE4_p6: NZ_CP012453.1/CP012453.1
A142: E. faecium ISMMS VRE 5 | B142: Human Clinical | C142: chromosome:NZ_CP012454.1/CP012454.1
C143: plasmid ISMMS_VRE5_p1: NZ_CP012455.1/CP012455.1
C144: plasmid ISMMS_VRE5_p2: NZ_CP012458.1/CP012458.1
C145: plasmid ISMMS_VRE5_p3: NZ_CP012456.1/CP012456.1
C146: plasmid ISMMS_VRE5_p4: NZ_CP012457.1/CP012457.1
C147: plasmid ISMMS_VRE5_p5: NZ_CP012459.1/CP012459.1
A148: E. faecium ISMMS VRE 8 | B148: Human Clinical | C148: chromosome: NZ_CP012465.1/CP012465.1
C149: plasmid ISMMS_VRE8_p1: NZ_CP012467.1/CP012467.1
C150: plasmid ISMMS_VRE8_p2: NZ_CP012468.1/CP012468.1
C151: plasmid ISMMS_VRE8_p3: NZ_CP012466.1/CP012466.1
C152: plasmid ISMMS_VRE8_p4: NZ_CP012469.1/CP012469.1
C153: plasmid ISMMS_VRE8_p5: NZ_CP012470.1/CP012470.1
A154: E. faecium ISMMS VRE 9 | B154: Human Clinical | C154: chromosome: NZ_CP018830.1/CP018830.1
C155: plasmid p1_ISMMS_VRE9: NZ_CP018832.1/CP018832.1
C156: plasmid p2_ISMMS_VRE9: NZ_CP018831.1/CP018831.1
C157: plasmid p3_ISMMS_VRE9: NZ_CP018834.1/CP018834.1
C158: plasmid p4_ISMMS_VRE9: NZ_CP018833.1/CP018833.1
A159: E. faecium K60-39 | B159: Human Clinical | C159: chromosome: NZ_CP023423.1/CP023423.1
C160: plasmid pTT39_p1: NZ_CP023424.1/CP023424.1
C161: plasmid pTT39_p2: NZ_CP023425.1/CP023425.1
C162: plasmid pTT39_p3: NZ_CP023426.1/CP023426.1
C163: plasmid pTT39_p4: NZ_CP023427.1/CP023427.1
A164: E. faecium UW7606x64/3 TC1 | B164: Human Commensal/Laboratory | C164: chromosome: NZ_CP013009.1/CP013009.1
C165: plasmid pWCF-TC1: NZ_CP013010.1/CP013010.1
A166: E. faecium VRE001 | B166: Human Clinical | C166: chromosome: NZ_CP018071.1/CP018071.1
C167: plasmid unnamed1: NZ_CP018070.1/CP018070.1
C168: plasmid unnamed2: NZ_CP018072.1/CP018072.1
C169: plasmid unnamed3: NZ_CP018073.1/CP018073.1
A170: E. faecium T110 | B170: Probiotic | C170: chromosome: NZ_CP006030.1/CP006030.1
C171: plasmid pEFT110: NZ_CP006031.1/CP006031.1
A172: E. faecium F11J | B172: Wastewater (CAS PE) | C172: SAMN11029604, Ga0242504
A173: E. faecium UW8175 | B173: Human Clinical | C173: chromosome:NZ_CP011828.1/CP011828.1
C174: plasmid unnamed1: NZ_CP011829.1/CP011829.1
C175: plasmid unnamed2: NZ_CP011830.1/CP011830.1
C176: plasmid unnamed3: NZ_CP011831.1/CP011831.1
A177: E. faecalis AMB05 | B177: Water | C177: chromosome: NZ_CP015998.1/CP015998.1
A178: E. faecalis B139 | B178: Wastewater (BAF FE) | C178: SAMN11025911, Ga0242493
A179: E. faecalis B150 | B179: Wastewater (BAF FE) | C179: SAMN11029803, Ga0242490
A180: E. faecalis B168 | B180: Wastewater (BAF PE) | C180: SAMN11026137, Ga0242494
A181: E. faecalis B48 | B181: Wastewater (BAF PE) | C181: SAMN11026136, Ga0242491
A182: E. faecalis B6 | B182: Wastewater (BAF FE) | C182: SAMN11029490, Ga0242487
A183: E. faecalis H114S2 | B183: Wastewater (BAF PE) | C183: SAMN11029619, Ga0242508
A184: E. faecalis H120S2 | B184: Wastewater (BAF PE) | C184: SAMN11026373, Ga0242509
A185: E. faecalis R378 | B185: Wastewater (BAF FE) | C185: SAMN11029461, Ga0242515
A186: E. faecalis R395 | B186: Wastewater (BAF PE) | C186: SAMN11029578, Ga0242516
A187: E. faecalis R61 | B187: Wastewater (BAF FE) | C187: SAMN11029667, Ga0242511
A188: E. faecalis R76 | B188: Wastewater (BAF FE) | C188: SAMN11026108, Ga0242512
A189: E. faecalis R95 | B189: Wastewater (BAF PE) | C189: SAMN11026089, Ga0242513
A190: E. faecalis C106 | B190: Wastewater (CAS PE) | C190: SAMN11026135, Ga0242500
A191: E. faecalis C33 | B191: Wastewater (CAS PE) | C191: SAMN11026374, Ga0242498
A192: E. faecalis C34 | B192: Wastewater (CAS PE) | C192: SAMN11025913, Ga0242499
A193: E. faecalis C379 | B193: Wastewater (CAS FE) | C193: SAMN11029655, Ga0242502
A194: E. faecalis W191 | B194: Wastewater (CAS FE) | C194: SAMN11026349, Ga0242522
A195: E. faecalis W195 | B195: Wastewater (CAS FE) | C195: SAMN11029611, Ga0242523
A196: E. faecalis W314 | B196: Wastewater (CAS PE) | C196: SAMN11025912, Ga0242524
A197: E. faecalis W350 | B197: Wastewater (CAS FE) | C197: SAMN11026091, Ga0242525
A198: E. faecalis W37 | B198: Wastewater (CAS PE) | C198: SAMN11029865, Ga0242519
A199: E. faecalis W41 | B199: Wastewater (CAS PE) | C199: SAMN11025910, Ga0242520
A200: E. faecalis W460 | B200: Wastewater (CAS FE) | C200: SAMN11026372, Ga0242526
... 34 more rows

Sheet S2 Genome Characteristics
A1: Strain | B1: Location | C1: Species | D1: # of contigs | E1: Size (bp) | F1: %GC | G1: Genes | H1: CDSs
A2: C329 | B2: CAS FE | C2: E. faecium | D2: 63 | E2: 2480628 | F2: 38.1 | G2: 2374 | H2: 2305
A3: B466 | B3: BAF FE | C3: E. faecium | D3: 71 | E3: 2553406 | F3: 38.1 | G3: 2512 | H3: 2443
A4: W41 | B4: CAS PE | C4: E. faecalis | D4: 21 | E4: 2693209 | F4: 37.7 | G4: 2528 | H4: 2471
A5: B139 | B5: BAF FE | C5: E. faecalis | D5: 30 | E5: 2720730 | F5: 37.7 | G5: 2553 | H5: 2496
A6: W314 | B6: CAS PE | C6: E. faecalis | D6: 11 | E6: 2721427 | F6: 37.6 | G6: 2583 | H6: 2524
A7: C34 | B7: CAS PE | C7: E. faecalis | D7: 13 | E7: 2731087 | F7: 37.6 | G7: 2615 | H7: 2556
A8: R95 | B8: BAF PE | C8: E. faecalis | D8: 38 | E8: 2761310 | F8: 37.6 | G8: 2596 | H8: 2538
A9: C567 | B9: CAS FE | C9: E. faecium | D9: 21 | E9: 2778016 | F9: 37.9 | G9: 2714 | H9: 2644
A10: W350 | B10: CAS FE | C10: E. faecalis | D10: 28 | E10: 2789796 | F10: 37.6 | G10: 2731 | H10: 2673
A11: R76 | B11: BAF FE | C11: E. faecalis | D11: 51 | E11: 2800339 | F11: 37.6 | G11: 2690 | H11: 2627
A12: C106 | B12: CAS PE | C12: E. faecalis | D12: 24 | E12: 2817683 | F12: 37.4 | G12: 2670 | H12: 2610
A13: B48 | B13: BAF PE | C13: E. faecalis | D13: 29 | E13: 2822491 | F13: 37.5 | G13: 2701 | H13: 2641
A14: B168 | B14: BAF PE | C14: E. faecalis | D14: 39 | E14: 2834215 | F14: 37.5 | G14: 2725 | H14: 2667
A15: W191 | B15: CAS FE | C15: E. faecalis | D15: 22 | E15: 2839739 | F15: 37.6 | G15: 2745 | H15: 2684
A16: W460 | B16: CAS FE | C16: E. faecalis | D16: 27 | E16: 2848194 | F16: 37.4 | G16: 2733 | H16: 2674
A17: H120S2 | B17: BAF PE | C17: E. faecalis | D17: 21 | E17: 2853021 | F17: 37.4 | G17: 2731 | H17: 2670
A18: C33 | B18: CAS PE | C18: E. faecalis | D18: 19 | E18: 2860595 | F18: 37.3 | G18: 2722 | H18: 2662
A19: C12d | B19: CAS PE | C19: E. faecium | D19: 169 | E19: 2879332 | F19: 37.7 | G19: 2823 | H19: 2755
A20: H101S2 | B20: BAF PE | C20: E. faecium | D20: 177 | E20: 2884826 | F20: 37.8 | G20: 2836 | H20: 2770
A21: R378 | B21: BAF FE | C21: E. faecalis | D21: 50 | E21: 2892126 | F21: 37.5 | G21: 2858 | H21: 2796
A22: W75 | B22: CAS FE | C22: E. faecalis | D22: 59 | E22: 2901424 | F22: 37.5 | G22: 2838 | H22: 2776
A23: B6 | B23: BAF FE | C23: E. faecalis | D23: 48 | E23: 2906126 | F23: 37.5 | G23: 2796 | H23: 2738
A24: H123S2 | B24: BAF PE | C24: E. faecium | D24: 170 | E24: 2912775 | F24: 37.7 | G24: 2871 | H24: 2803
A25: R395 | B25: BAF PE | C25: E. faecalis | D25: 35 | E25: 2951239 | F25: 37.5 | G25: 2844 | H25: 2785
A26: H53S1 | B26: CAS PE | C26: E. faecium | D26: 165 | E26: 2959005 | F26: 37.6 | G26: 2915 | H26: 2847
A27: F11j | B27: CAS PE | C27: E. faecium | D27: 181 | E27: 2964368 | F27: 37.6 | G27: 2916 | H27: 2848
A28: W195 | B28: CAS FE | C28: E. faecalis | D28: 30 | E28: 2970793 | F28: 37.5 | G28: 2865 | H28: 2806
A29: H114S2 | B29: BAF PE | C29: E. faecalis | D29: 35 | E29: 2979979 | F29: 37.4 | G29: 2881 | H29: 2822
A30: C379 | B30: CAS FE | C30: E. faecalis | D30: 42 | E30: 2988783 | F30: 37.5 | G30: 2902 | H30: 2844
A31: R61 | B31: BAF FE | C31: E. faecalis | D31: 37 | E31: 3004659 | F31: 37.3 | G31: 2969 | H31: 2907
A32: R407 | B32: BAF PE | C32: E. faecium | D32: 176 | E32: 3005175 | F32: 37.5 | G32: 2955 | H32: 2887
A33: B492 | B33: BAF FE | C33: E. faecium | D33: 189 | E33: 3008305 | F33: 37.5 | G33: 2961 | H33: 2893
A34: B150 | B34: BAF FE | C34: E. faecalis | D34: 41 | E34: 3012117 | F34: 37.3 | G34: 2955 | H34: 2893
A35: R337 | B35: BAF PE | C35: E. faecium | D35: 195 | E35: 3023784 | F35: 37.5 | G35: 2992 | H35: 2924
A36: W37 | B36: CAS PE | C36: E. faecalis | D36: 68 | E36: 3088982 | F36: 37.3 | G36: 3051 | H36: 2990
A37: W17 | B37: CAS FE | C37: E. gallinarum | D37: 14 | E37: 3367806 | F37: 40.5 | G37: 3161 | H37: 3102
A38: G12s | B38: CAS PE | C38: E. gallinarum | D38: 30 | E38: 3442529 | F38: 40.4 | G38: 3303 | H38: 3244
A39: B79 | B39: BAF FE | C39: E.casseliflavus | D39: 49 | E39: 3527325 | F39: 42.9 | G39: 3327 | H39: 3268
A40: B72 | B40: BAF FE | C40: E. casseliflavus | D40: 32 | E40: 3538396 | F40: 42.8 | G40: 3344 | H40: 3283
A41: W193 | B41: CAS FE | C41: E. cassseliflavus/mundtii* | D41: n/a | E41: n/a | F41: n/a | G41: n/a | H41: n/a
C42: *groEL ID

Sheet S3 COG Analysis
A2: Function ID | B2: Name | C2: Function Code | D2: Ent cas B72 2767802419 | E2: Ent cas B79 2767802416 | F2: Ent fae B19 2767802415 | G2: Ent fae B10 2767802418 | H2: Ent fae B18 2767802414 | I2: Ent fae B46 2767802413 | J2: Ent fae B48 2767802417 | K2: Ent fae B66 2767802420 | L2: Ent fae C16 2767802408 | M2: Ent fae C33 2767802410 | N2: Ent fae C34 2767802409 | O2: Ent fae C39 2767802406 | P2: Ent fae R38 2767802393 | Q2: Ent fae R35 2767802392 | R2: Ent fae R61 2767802397 | S2: Ent fae R76 2767802396 | T2: Ent fae R95 2767802395 | U2: Ent fae W11 2767802386 | V2: Ent fae W15 2767802385 | W2: Ent fae W34 2767802384 | X2: Ent fae W30 2767802383 | Y2: Ent fae W37 2767802389 | Z2: Ent fae W41 2767802388 | AA2: Ent fae W40 2767802382 | AB2: Ent fae W75 2767802387 | AC2: Ent fae B42 2767802412 | AD2: Ent fae C1D 2767802411 | AE2: Ent fae C39 2767802407 | AF2: Ent fae C57 2767802405 | AG2: Ent fae F1J 2767802404 | AH2: Ent fae H12 2767802401 | AI2: Ent fae H12 2767802400 | AJ2: Ent fae H12 2767802398 | AK2: Ent fae H51 2767802402 | AL2: Ent fae R37 2767802394 | AM2: Ent fae R47 2767802391 | AN2: Ent gal G1S 2767802403 | AO2: Ent faecalis H12 2767802399 | AP2: Ent gal W17 2767802390 | AQ2: COUNT
A3: COG0001 | B3: Glutamate-1-semialdehyde aminotransferase | C3: H | D3: 0 | E3: 0 | F3: 0 | G3: 0 | H3: 0 | I3: 0 | J3: 0 | K3: 0 | L3: 0 | M3: 0 | N3: 0 | O3: 0 | P3: 0 | Q3: 0 | R3: 0 | S3: 0 | T3: 0 | U3: 0 | V3: 0 | W3: 0 | X3: 0 | Y3: 0 | Z3: 0 | AA3: 0 | AB3: 0 | AC3: 0 | AD3: 0 | AE3: 0 | AF3: 0 | AG3: 0 | AH3: 0 | AI3: 0 | AJ3: 0 | AK3: 0 | AL3: 0 | AM3: 0 | AN3: 0 | AO3: 0 | AP3: 0
A4: COG0002 | B4: N-acetyl-gamma-glutamylphosphate reductase | C4: E | D4: 1 | E4: 1 | F4: 0 | G4: 0 | H4: 0 | I4: 0 | J4: 0 | K4: 0 | L4: 0 | M4: 0 | N4: 0 | O4: 0 | P4: 0 | Q4: 0 | R4: 0 | S4: 0 | T4: 0 | U4: 0 | V4: 0 | W4: 0 | X4: 0 | Y4: 0 | Z4: 0 | AA4: 0 | AB4: 0 | AC4: 0 | AD4: 0 | AE4: 0 | AF4: 0 | AG4: 0 | AH4: 0 | AI4: 0 | AJ4: 0 | AK4: 0 | AL4: 0 | AM4: 0 | AN4: 1 | AO4: 0 | AP4: 1
A5: COG0003 | B5: Anion-transporting ATPase, ArsA/GET3 family | C5: P | D5: 0 | E5: 0 | F5: 0 | G5: 0 | H5: 0 | I5: 0 | J5: 0 | K5: 0 | L5: 0 | M5: 0 | N5: 0 | O5: 0 | P5: 0 | Q5: 0 | R5: 0 | S5: 0 | T5: 0 | U5: 0 | V5: 0 | W5: 0 | X5: 0 | Y5: 0 | Z5: 0 | AA5: 0 | AB5: 0 | AC5: 0 | AD5: 0 | AE5: 0 | AF5: 1 | AG5: 0 | AH5: 0 | AI5: 0 | AJ5: 0 | AK5: 0 | AL5: 0 | AM5: 0 | AN5: 0 | AO5: 0 | AP5: 0
A6: COG0004 | B6: Ammonia channel protein AmtB | C6: P | D6: 1 | E6: 1 | F6: 0 | G6: 1 | H6: 0 | I6: 1 | J6: 0 | K6: 1 | L6: 1 | M6: 1 | N6: 0 | O6: 0 | P6: 0 | Q6: 0 | R6: 0 | S6: 0 | T6: 0 | U6: 0 | V6: 1 | W6: 0 | X6: 0 | Y6: 0 | Z6: 0 | AA6: 0 | AB6: 0 | AC6: 1 | AD6: 1 | AE6: 1 | AF6: 1 | AG6: 1 | AH6: 1 | AI6: 1 | AJ6: 1 | AK6: 1 | AL6: 1 | AM6: 1 | AN6: 1 | AO6: 1 | AP6: 1
A7: COG0005 | B7: Purine nucleoside phosphorylase | C7: F | D7: 1 | E7: 1 | F7: 1 | G7: 1 | H7: 1 | I7: 1 | J7: 1 | K7: 1 | L7: 1 | M7: 1 | N7: 1 | O7: 1 | P7: 1 | Q7: 1 | R7: 1 | S7: 1 | T7: 1 | U7: 1 | V7: 1 | W7: 1 | X7: 1 | Y7: 1 | Z7: 1 | AA7: 1 | AB7: 1 | AC7: 1 | AD7: 1 | AE7: 1 | AF7: 1 | AG7: 1 | AH7: 1 | AI7: 1 | AJ7: 1 | AK7: 1 | AL7: 1 | AM7: 1 | AN7: 1 | AO7: 1 | AP7: 1
A8: COG0006 | B8: Xaa-Pro aminopeptidase | C8: E | D8: 3 | E8: 3 | F8: 3 | G8: 3 | H8: 3 | I8: 2 | J8: 3 | K8: 3 | L8: 3 | M8: 3 | N8: 3 | O8: 3 | P8: 3 | Q8: 3 | R8: 3 | S8: 3 | T8: 3 | U8: 3 | V8: 3 | W8: 3 | X8: 3 | Y8: 3 | Z8: 3 | AA8: 3 | AB8: 3 | AC8: 2 | AD8: 2 | AE8: 2 | AF8: 2 | AG8: 2 | AH8: 2 | AI8: 3 | AJ8: 2 | AK8: 2 | AL8: 2 | AM8: 2 | AN8: 4 | AO8: 3 | AP8: 4
A9: COG0007 | B9: Uroporphyrinogen-III methylase (siroheme synthase) | C9: H | D9: 0 | E9: 0 | F9: 0 | G9: 0 | H9: 0 | I9: 0 | J9: 0 | K9: 0 | L9: 0 | M9: 0 | N9: 0 | O9: 0 | P9: 0 | Q9: 0 | R9: 0 | S9: 0 | T9: 0 | U9: 0 | V9: 0 | W9: 0 | X9: 0 | Y9: 0 | Z9: 0 | AA9: 0 | AB9: 0 | AC9: 0 | AD9: 0 | AE9: 0 | AF9: 0 | AG9: 0 | AH9: 0 | AI9: 0 | AJ9: 0 | AK9: 0 | AL9: 0 | AM9: 0 | AN9: 0 | AO9: 0 | AP9: 0
A10: COG0008 | B10: Glutamyl- or glutaminyl-tRNA synthetase | C10: J | D10: 1 | E10: 1 | F10: 1 | G10: 1 | H10: 1 | I10: 1 | J10: 1 | K10: 1 | L10: 1 | M10: 1 | N10: 1 | O10: 1 | P10: 1 | Q10: 1 | R10: 1 | S10: 1 | T10: 1 | U10: 1 | V10: 1 | W10: 1 | X10: 1 | Y10: 1 | Z10: 1 | AA10: 1 | AB10: 1 | AC10: 1 | AD10: 1 | AE10: 1 | AF10: 1 | AG10: 1 | AH10: 1 | AI10: 1 | AJ10: 1 | AK10: 1 | AL10: 1 | AM10: 1 | AN10: 1 | AO10: 1 | AP10: 1
A11: COG0009 | B11: tRNA A37 threonylcarbamoyladenosine synthetase subunit TsaC/SUA5/YrdC | C11: J | D11: 2 | E11: 2 | F11: 1 | G11: 1 | H11: 1 | I11: 1 | J11: 1 | K11: 1 | L11: 1 | M11: 1 | N11: 1 | O11: 1 | P11: 1 | Q11: 1 | R11: 1 | S11: 1 | T11: 1 | U11: 1 | V11: 1 | W11: 1 | X11: 1 | Y11: 1 | Z11: 1 | AA11: 1 | AB11: 1 | AC11: 1 | AD11: 1 | AE11: 1 | AF11: 1 | AG11: 1 | AH11: 1 | AI11: 1 | AJ11: 1 | AK11: 1 | AL11: 1 | AM11: 1 | AN11: 2 | AO11: 1 | AP11: 2
A12: COG0010 | B12: Arginase family enzyme | C12: E | D12: 0 | E12: 0 | F12: 0 | G12: 0 | H12: 0 | I12: 0 | J12: 0 | K12: 0 | L12: 0 | M12: 0 | N12: 0 | O12: 0 | P12: 0 | Q12: 0 | R12: 0 | S12: 0 | T12: 0 | U12: 0 | V12: 0 | W12: 0 | X12: 0 | Y12: 0 | Z12: 0 | AA12: 0 | AB12: 0 | AC12: 0 | AD12: 0 | AE12: 0 | AF12: 0 | AG12: 0 | AH12: 0 | AI12: 0 | AJ12: 0 | AK12: 0 | AL12: 0 | AM12: 0 | AN12: 0 | AO12: 0 | AP12: 0
A13: COG0011 | B13: Uncharacterized conserved protein YqgV, UPF0045/DUF77 family | C13: S | D13: 0 | E13: 0 | F13: 0 | G13: 0 | H13: 0 | I13: 0 | J13: 0 | K13: 0 | L13: 0 | M13: 0 | N13: 0 | O13: 0 | P13: 0 | Q13: 0 | R13: 0 | S13: 0 | T13: 0 | U13: 0 | V13: 0 | W13: 0 | X13: 0 | Y13: 0 | Z13: 0 | AA13: 0 | AB13: 0 | AC13: 0 | AD13: 0 | AE13: 0 | AF13: 0 | AG13: 0 | AH13: 0 | AI13: 0 | AJ13: 0 | AK13: 0 | AL13: 0 | AM13: 0 | AN13: 0 | AO13: 0 | AP13: 0
A14: COG0012 | B14: Ribosome-binding ATPase YchF, GTP1/OBG family | C14: J | D14: 1 | E14: 1 | F14: 1 | G14: 1 | H14: 1 | I14: 1 | J14: 1 | K14: 1 | L14: 1 | M14: 1 | N14: 1 | O14: 1 | P14: 1 | Q14: 1 | R14: 1 | S14: 1 | T14: 1 | U14: 1 | V14: 1 | W14: 1 | X14: 1 | Y14: 1 | Z14: 1 | AA14: 1 | AB14: 1 | AC14: 1 | AD14: 1 | AE14: 1 | AF14: 1 | AG14: 1 | AH14: 1 | AI14: 1 | AJ14: 1 | AK14: 1 | AL14: 1 | AM14: 1 | AN14: 1 | AO14: 1 | AP14: 1
A15: COG0013 | B15: Alanyl-tRNA synthetase | C15: J | D15: 1 | E15: 1 | F15: 1 | G15: 1 | H15: 1 | I15: 1 | J15: 1 | K15: 1 | L15: 1 | M15: 1 | N15: 1 | O15: 1 | P15: 1 | Q15: 1 | R15: 1 | S15: 1 | T15: 1 | U15: 1 | V15: 1 | W15: 1 | X15: 1 | Y15: 1 | Z15: 1 | AA15: 1 | AB15: 1 | AC15: 1 | AD15: 1 | AE15: 1 | AF15: 1 | AG15: 1 | AH15: 1 | AI15: 1 | AJ15: 1 | AK15: 1 | AL15: 1 | AM15: 1 | AN15: 1 | AO15: 1 | AP15: 1
A16: COG0014 | B16: Gamma-glutamyl phosphate reductase | C16: E | D16: 1 | E16: 1 | F16: 1 | G16: 1 | H16: 1 | I16: 1 | J16: 1 | K16: 1 | L16: 1 | M16: 1 | N16: 1 | O16: 1 | P16: 1 | Q16: 1 | R16: 1 | S16: 1 | T16: 1 | U16: 1 | V16: 1 | W16: 1 | X16: 1 | Y16: 1 | Z16: 1 | AA16: 1 | AB16: 1 | AC16: 1 | AD16: 1 | AE16: 1 | AF16: 1 | AG16: 1 | AH16: 1 | AI16: 1 | AJ16: 1 | AK16: 1 | AL16: 1 | AM16: 1 | AN16: 1 | AO16: 1 | AP16: 1
A17: COG0015 | B17: Adenylosuccinate lyase | C17: F | D17: 1 | E17: 1 | F17: 1 | G17: 1 | H17: 1 | I17: 1 | J17: 1 | K17: 1 | L17: 1 | M17: 1 | N17: 1 | O17: 1 | P17: 1 | Q17: 1 | R17: 1 | S17: 1 | T17: 1 | U17: 1 | V17: 1 | W17: 1 | X17: 1 | Y17: 1 | Z17: 1 | AA17: 1 | AB17: 1 | AC17: 1 | AD17: 1 | AE17: 1 | AF17: 1 | AG17: 1 | AH17: 1 | AI17: 1 | AJ17: 1 | AK17: 1 | AL17: 1 | AM17: 1 | AN17: 1 | AO17: 1 | AP17: 1
A18: COG0016 | B18: Phenylalanyl-tRNA synthetase alpha subunit | C18: J | D18: 1 | E18: 1 | F18: 1 | G18: 1 | H18: 1 | I18: 1 | J18: 1 | K18: 1 | L18: 1 | M18: 1 | N18: 1 | O18: 1 | P18: 1 | Q18: 1 | R18: 1 | S18: 1 | T18: 1 | U18: 1 | V18: 1 | W18: 1 | X18: 1 | Y18: 1 | Z18: 1 | AA18: 1 | AB18: 1 | AC18: 1 | AD18: 1 | AE18: 1 | AF18: 1 | AG18: 1 | AH18: 1 | AI18: 1 | AJ18: 1 | AK18: 1 | AL18: 1 | AM18: 1 | AN18: 1 | AO18: 1 | AP18: 1
A19: COG0017 | B19: Aspartyl/asparaginyl-tRNA synthetase | C19: J | D19: 1 | E19: 1 | F19: 1 | G19: 1 | H19: 1 | I19: 1 | J19: 1 | K19: 1 | L19: 1 | M19: 1 | N19: 1 | O19: 1 | P19: 1 | Q19: 1 | R19: 1 | S19: 1 | T19: 1 | U19: 1 | V19: 1 | W19: 1 | X19: 1 | Y19: 1 | Z19: 1 | AA19: 1 | AB19: 1 | AC19: 1 | AD19: 1 | AE19: 1 | AF19: 1 | AG19: 1 | AH19: 1 | AI19: 1 | AJ19: 1 | AK19: 1 | AL19: 1 | AM19: 1 | AN19: 1 | AO19: 1 | AP19: 1
A20: COG0018 | B20: Arginyl-tRNA synthetase | C20: J | D20: 1 | E20: 1 | F20: 1 | G20: 1 | H20: 1 | I20: 1 | J20: 1 | K20: 1 | L20: 1 | M20: 1 | N20: 1 | O20: 1 | P20: 1 | Q20: 1 | R20: 1 | S20: 1 | T20: 1 | U20: 1 | V20: 1 | W20: 1 | X20: 1 | Y20: 1 | Z20: 1 | AA20: 1 | AB20: 1 | AC20: 1 | AD20: 1 | AE20: 1 | AF20: 1 | AG20: 1 | AH20: 1 | AI20: 1 | AJ20: 1 | AK20: 1 | AL20: 1 | AM20: 1 | AN20: 1 | AO20: 1 | AP20: 1
A21: COG0019 | B21: Diaminopimelate decarboxylase | C21: E | D21: 1 | E21: 1 | F21: 1 | G21: 1 | H21: 1 | I21: 1 | J21: 1 | K21: 1 | L21: 1 | M21: 1 | N21: 1 | O21: 1 | P21: 1 | Q21: 1 | R21: 1 | S21: 1 | T21: 1 | U21: 1 | V21: 1 | W21: 1 | X21: 1 | Y21: 1 | Z21: 1 | AA21: 1 | AB21: 1 | AC21: 1 | AD21: 1 | AE21: 1 | AF21: 1 | AG21: 1 | AH21: 1 | AI21: 1 | AJ21: 1 | AK21: 1 | AL21: 1 | AM21: 1 | AN21: 1 | AO21: 1 | AP21: 1
A22: COG0020 | B22: Undecaprenyl pyrophosphate synthase | C22: I | D22: 1 | E22: 1 | F22: 1 | G22: 1 | H22: 1 | I22: 1 | J22: 1 | K22: 1 | L22: 1 | M22: 1 | N22: 1 | O22: 1 | P22: 1 | Q22: 1 | R22: 1 | S22: 1 | T22: 1 | U22: 1 | V22: 1 | W22: 1 | X22: 1 | Y22: 1 | Z22: 1 | AA22: 1 | AB22: 1 | AC22: 1 | AD22: 1 | AE22: 1 | AF22: 1 | AG22: 1 | AH22: 1 | AI22: 1 | AJ22: 1 | AK22: 1 | AL22: 1 | AM22: 1 | AN22: 1 | AO22: 1 | AP22: 1
A23: COG0021 | B23: Transketolase | C23: G | D23: 1 | E23: 1 | F23: 1 | G23: 1 | H23: 1 | I23: 1 | J23: 1 | K23: 1 | L23: 1 | M23: 1 | N23: 1 | O23: 1 | P23: 1 | Q23: 1 | R23: 1 | S23: 1 | T23: 1 | U23: 1 | V23: 1 | W23: 1 | X23: 1 | Y23: 1 | Z23: 1 | AA23: 1 | AB23: 1 | AC23: 1 | AD23: 1 | AE23: 1 | AF23: 1 | AG23: 1 | AH23: 1 | AI23: 1 | AJ23: 1 | AK23: 1 | AL23: 1 | AM23: 1 | AN23: 1 | AO23: 1 | AP23: 0
A24: COG0022 | B24: Pyruvate/2-oxoglutarate/acetoin dehydrogenase complex, dehydrogenase (E1) component | C24: C | D24: 1 | E24: 1 | F24: 2 | G24: 2 | H24: 2 | I24: 1 | J24: 1 | K24: 2 | L24: 2 | M24: 2 | N24: 2 | O24: 2 | P24: 2 | Q24: 2 | R24: 2 | S24: 1 | T24: 2 | U24: 2 | V24: 2 | W24: 2 | X24: 2 | Y24: 2 | Z24: 2 | AA24: 2 | AB24: 2 | AC24: 1 | AD24: 1 | AE24: 1 | AF24: 2 | AG24: 1 | AH24: 1 | AI24: 2 | AJ24: 1 | AK24: 1 | AL24: 1 | AM24: 1 | AN24: 1 | AO24: 1 | AP24: 1
A25: COG0023 | B25: Translation initiation factor 1 (eIF-1/SUI1) | C25: J | D25: 0 | E25: 0 | F25: 0 | G25: 0 | H25: 0 | I25: 0 | J25: 0 | K25: 0 | L25: 0 | M25: 0 | N25: 0 | O25: 0 | P25: 0 | Q25: 0 | R25: 0 | S25: 0 | T25: 0 | U25: 0 | V25: 0 | W25: 0 | X25: 0 | Y25: 0 | Z25: 0 | AA25: 0 | AB25: 0 | AC25: 0 | AD25: 0 | AE25: 0 | AF25: 0 | AG25: 0 | AH25: 0 | AI25: 0 | AJ25: 0 | AK25: 0 | AL25: 0 | AM25: 0 | AN25: 0 | AO25: 0 | AP25: 0
A26: COG0024 | B26: Methionine aminopeptidase | C26: P | D26: 2 | E26: 2 | F26: 1 | G26: 1 | H26: 1 | I26: 1 | J26: 1 | K26: 1 | L26: 1 | M26: 1 | N26: 1 | O26: 1 | P26: 1 | Q26: 1 | R26: 1 | S26: 1 | T26: 1 | U26: 1 | V26: 1 | W26: 1 | X26: 1 | Y26: 1 | Z26: 1 | AA26: 1 | AB26: 1 | AC26: 1 | AD26: 1 | AE26: 1 | AF26: 1 | AG26: 1 | AH26: 1 | AI26: 1 | AJ26: 1 | AK26: 1 | AL26: 1 | AM26: 1 | AN26: 1 | AO26: 1 | AP26: 1
A27: COG0025 | B27: NhaP-type Na+/H+ or K+/H+ antiporter | C27: P | D27: 1 | E27: 1 | F27: 1 | G27: 1 | H27: 1 | I27: 1 | J27: 1 | K27: 1 | L27: 1 | M27: 1 | N27: 1 | O27: 1 | P27: 1 | Q27: 1 | R27: 1 | S27: 1 | T27: 1 | U27: 1 | V27: 1 | W27: 1 | X27: 1 | Y27: 1 | Z27: 1 | AA27: 1 | AB27: 1 | AC27: 1 | AD27: 1 | AE27: 1 | AF27: 1 | AG27: 1 | AH27: 1 | AI27: 1 | AJ27: 1 | AK27: 1 | AL27: 1 | AM27: 1 | AN27: 1 | AO27: 1 | AP27: 1
A28: COG0026 | B28: Phosphoribosylaminoimidazole carboxylase (NCAIR synthetase) | C28: F | D28: 1 | E28: 1 | F28: 2 | G28: 2 | H28: 2 | I28: 1 | J28: 2 | K28: 2 | L28: 2 | M28: 2 | N28: 2 | O28: 2 | P28: 2 | Q28: 2 | R28: 2 | S28: 2 | T28: 2 | U28: 2 | V28: 2 | W28: 2 | X28: 2 | Y28: 2 | Z28: 2 | AA28: 2 | AB28: 2 | AC28: 1 | AD28: 1 | AE28: 1 | AF28: 1 | AG28: 1 | AH28: 1 | AI28: 2 | AJ28: 1 | AK28: 1 | AL28: 1 | AM28: 1 | AN28: 1 | AO28: 2 | AP28: 1
A29: COG0027 | B29: Formate-dependent phosphoribosylglycinamide formyltransferase (GAR transformylase) | C29: F | D29: 0 | E29: 0 | F29: 0 | G29: 0 | H29: 0 | I29: 0 | J29: 0 | K29: 0 | L29: 0 | M29: 0 | N29: 0 | O29: 0 | P29: 0 | Q29: 0 | R29: 0 | S29: 0 | T29: 0 | U29: 0 | V29: 0 | W29: 0 | X29: 0 | Y29: 0 | Z29: 0 | AA29: 0 | AB29: 0 | AC29: 0 | AD29: 0 | AE29: 0 | AF29: 0 | AG29: 0 | AH29: 0 | AI29: 0 | AJ29: 0 | AK29: 0 | AL29: 0 | AM29: 0 | AN29: 0 | AO29: 0 | AP29: 0
A30: COG0028 | B30: Acetolactate synthase large subunit or other thiamine pyrophosphate-requiring enzyme | C30: EH | D30: 3 | E30: 3 | F30: 1 | G30: 1 | H30: 1 | I30: 2 | J30: 1 | K30: 1 | L30: 1 | M30: 1 | N30: 1 | O30: 1 | P30: 1 | Q30: 1 | R30: 1 | S30: 1 | T30: 1 | U30: 1 | V30: 1 | W30: 1 | X30: 1 | Y30: 1 | Z30: 1 | AA30: 1 | AB30: 1 | AC30: 2 | AD30: 2 | AE30: 2 | AF30: 2 | AG30: 2 | AH30: 2 | AI30: 1 | AJ30: 2 | AK30: 2 | AL30: 2 | AM30: 2 | AN30: 3 | AO30: 1 | AP30: 3
A31: COG0029 | B31: Aspartate oxidase | C31: H | D31: 0 | E31: 0 | F31: 0 | G31: 0 | H31: 0 | I31: 0 | J31: 0 | K31: 0 | L31: 0 | M31: 0 | N31: 0 | O31: 0 | P31: 0 | Q31: 0 | R31: 0 | S31: 0 | T31: 0 | U31: 0 | V31: 0 | W31: 0 | X31: 0 | Y31: 0 | Z31: 0 | AA31: 0 | AB31: 0 | AC31: 0 | AD31: 0 | AE31: 0 | AF31: 0 | AG31: 0 | AH31: 0 | AI31: 0 | AJ31: 0 | AK31: 0 | AL31: 0 | AM31: 0 | AN31: 0 | AO31: 0 | AP31: 0
A32: COG0030 | B32: 16S rRNA A1518 and A1519 N6-dimethyltransferase RsmA/KsgA/DIM1 (may also have DNA glycosylase/AP lyase activity) | C32: J | D32: 1 | E32: 1 | F32: 1 | G32: 2 | H32: 1 | I32: 2 | J32: 2 | K32: 1 | L32: 2 | M32: 1 | N32: 1 | O32: 1 | P32: 1 | Q32: 1 | R32: 2 | S32: 2 | T32: 1 | U32: 1 | V32: 1 | W32: 1 | X32: 1 | Y32: 2 | Z32: 1 | AA32: 1 | AB32: 1 | AC32: 2 | AD32: 1 | AE32: 1 | AF32: 1 | AG32: 2 | AH32: 2 | AI32: 1 | AJ32: 2 | AK32: 2 | AL32: 2 | AM32: 2 | AN32: 1 | AO32: 2 | AP32: 1
A33: COG0031 | B33: Cysteine synthase | C33: E | D33: 2 | E33: 2 | F33: 2 | G33: 2 | H33: 2 | I33: 2 | J33: 2 | K33: 2 | L33: 2 | M33: 2 | N33: 2 | O33: 2 | P33: 2 | Q33: 2 | R33: 2 | S33: 2 | T33: 1 | U33: 2 | V33: 2 | W33: 2 | X33: 2 | Y33: 2 | Z33: 2 | AA33: 2 | AB33: 2 | AC33: 2 | AD33: 2 | AE33: 2 | AF33: 2 | AG33: 2 | AH33: 2 | AI33: 2 | AJ33: 2 | AK33: 2 | AL33: 2 | AM33: 2 | AN33: 2 | AO33: 2 | AP33: 2
A34: COG0033 | B34: Phosphoglucomutase | C34: G | D34: 0 | E34: 0 | F34: 0 | G34: 0 | H34: 0 | I34: 0 | J34: 0 | K34: 0 | L34: 0 | M34: 0 | N34: 0 | O34: 0 | P34: 0 | Q34: 0 | R34: 0 | S34: 0 | T34: 0 | U34: 0 | V34: 0 | W34: 0 | X34: 0 | Y34: 0 | Z34: 0 | AA34: 0 | AB34: 0 | AC34: 0 | AD34: 0 | AE34: 0 | AF34: 0 | AG34: 0 | AH34: 0 | AI34: 0 | AJ34: 0 | AK34: 0 | AL34: 0 | AM34: 0 | AN34: 0 | AO34: 0 | AP34: 0
A35: COG0034 | B35: Glutamine phosphoribosylpyrophosphate amidotransferase | C35: F | D35: 1 | E35: 1 | F35: 1 | G35: 1 | H35: 1 | I35: 1 | J35: 1 | K35: 1 | L35: 1 | M35: 1 | N35: 1 | O35: 1 | P35: 1 | Q35: 1 | R35: 1 | S35: 1 | T35: 1 | U35: 1 | V35: 1 | W35: 1 | X35: 1 | Y35: 1 | Z35: 1 | AA35: 1 | AB35: 1 | AC35: 1 | AD35: 1 | AE35: 1 | AF35: 1 | AG35: 1 | AH35: 1 | AI35: 1 | AJ35: 1 | AK35: 1 | AL35: 1 | AM35: 1 | AN35: 1 | AO35: 1 | AP35: 1
A36: COG0035 | B36: Uracil phosphoribosyltransferase | C36: F | D36: 1 | E36: 1 | F36: 1 | G36: 1 | H36: 1 | I36: 1 | J36: 1 | K36: 1 | L36: 1 | M36: 1 | N36: 1 | O36: 1 | P36: 1 | Q36: 1 | R36: 1 | S36: 1 | T36: 1 | U36: 1 | V36: 1 | W36: 1 | X36: 1 | Y36: 1 | Z36: 1 | AA36: 1 | AB36: 1 | AC36: 1 | AD36: 1 | AE36: 1 | AF36: 1 | AG36: 1 | AH36: 1 | AI36: 1 | AJ36: 1 | AK36: 1 | AL36: 1 | AM36: 1 | AN36: 1 | AO36: 1 | AP36: 1
A37: COG0036 | B37: Pentose-5-phosphate-3-epimerase | C37: G | D37: 1 | E37: 1 | F37: 2 | G37: 4 | H37: 2 | I37: 2 | J37: 2 | K37: 2 | L37: 2 | M37: 2 | N37: 1 | O37: 2 | P37: 2 | Q37: 2 | R37: 4 | S37: 2 | T37: 1 | U37: 1 | V37: 2 | W37: 1 | X37: 2 | Y37: 2 | Z37: 2 | AA37: 2 | AB37: 2 | AC37: 2 | AD37: 2 | AE37: 1 | AF37: 2 | AG37: 2 | AH37: 2 | AI37: 2 | AJ37: 2 | AK37: 2 | AL37: 1 | AM37: 2 | AN37: 1 | AO37: 2 | AP37: 2
A38: COG0037 | B38: tRNA(Ile)-lysidine synthase TilS/MesJ | C38: J | D38: 1 | E38: 1 | F38: 1 | G38: 1 | H38: 1 | I38: 1 | J38: 1 | K38: 1 | L38: 1 | M38: 1 | N38: 1 | O38: 1 | P38: 1 | Q38: 1 | R38: 1 | S38: 1 | T38: 1 | U38: 1 | V38: 1 | W38: 1 | X38: 1 | Y38: 1 | Z38: 1 | AA38: 1 | AB38: 1 | AC38: 1 | AD38: 1 | AE38: 1 | AF38: 1 | AG38: 1 | AH38: 1 | AI38: 1 | AJ38: 1 | AK38: 1 | AL38: 1 | AM38: 1 | AN38: 1 | AO38: 1 | AP38: 1
A39: COG0038 | B39: H+/Cl- antiporter ClcA | C39: P | D39: 1 | E39: 1 | F39: 2 | G39: 2 | H39: 2 | I39: 2 | J39: 2 | K39: 2 | L39: 2 | M39: 2 | N39: 2 | O39: 2 | P39: 2 | Q39: 2 | R39: 2 | S39: 2 | T39: 2 | U39: 2 | V39: 2 | W39: 2 | X39: 2 | Y39: 2 | Z39: 2 | AA39: 2 | AB39: 2 | AC39: 2 | AD39: 2 | AE39: 2 | AF39: 2 | AG39: 2 | AH39: 2 | AI39: 2 | AJ39: 2 | AK39: 2 | AL39: 2 | AM39: 2 | AN39: 1 | AO39: 2 | AP39: 1
A40: COG0039 | B40: Malate/lactate dehydrogenase | C40: C | D40: 2 | E40: 2 | F40: 2 | G40: 2 | H40: 2 | I40: 2 | J40: 2 | K40: 2 | L40: 2 | M40: 2 | N40: 2 | O40: 2 | P40: 2 | Q40: 2 | R40: 2 | S40: 2 | T40: 2 | U40: 2 | V40: 2 | W40: 2 | X40: 2 | Y40: 2 | Z40: 2 | AA40: 2 | AB40: 2 | AC40: 2 | AD40: 2 | AE40: 2 | AF40: 2 | AG40: 2 | AH40: 2 | AI40: 2 | AJ40: 2 | AK40: 2 | AL40: 2 | AM40: 2 | AN40: 3 | AO40: 2 | AP40: 3
A41: COG0040 | B41: ATP phosphoribosyltransferase | C41: E | D41: 1 | E41: 1 | F41: 0 | G41: 0 | H41: 0 | I41: 0 | J41: 0 | K41: 0 | L41: 0 | M41: 0 | N41: 0 | O41: 0 | P41: 0 | Q41: 0 | R41: 0 | S41: 0 | T41: 0 | U41: 0 | V41: 0 | W41: 0 | X41: 0 | Y41: 0 | Z41: 0 | AA41: 0 | AB41: 0 | AC41: 0 | AD41: 0 | AE41: 0 | AF41: 0 | AG41: 0 | AH41: 0 | AI41: 0 | AJ41: 0 | AK41: 0 | AL41: 0 | AM41: 0 | AN41: 0 | AO41: 0 | AP41: 0
A42: COG0041 | B42: Phosphoribosylcarboxyaminoimidazole (NCAIR) mutase | C42: F | D42: 1 | E42: 1 | F42: 1 | G42: 1 | H42: 1 | I42: 1 | J42: 1 | K42: 1 | L42: 1 | M42: 1 | N42: 1 | O42: 1 | P42: 1 | Q42: 1 | R42: 1 | S42: 1 | T42: 1 | U42: 1 | V42: 1 | W42: 1 | X42: 1 | Y42: 1 | Z42: 1 | AA42: 1 | AB42: 1 | AC42: 1 | AD42: 1 | AE42: 1 | AF42: 1 | AG42: 1 | AH42: 1 | AI42: 1 | AJ42: 1 | AK42: 1 | AL42: 1 | AM42: 1 | AN42: 1 | AO42: 1 | AP42: 1
A43: COG0042 | B43: tRNA-dihydrouridine synthase | C43: J | D43: 2 | E43: 2 | F43: 2 | G43: 2 | H43: 2 | I43: 2 | J43: 2 | K43: 2 | L43: 2 | M43: 2 | N43: 2 | O43: 2 | P43: 2 | Q43: 2 | R43: 2 | S43: 2 | T43: 2 | U43: 2 | V43: 2 | W43: 2 | X43: 2 | Y43: 2 | Z43: 2 | AA43: 2 | AB43: 2 | AC43: 2 | AD43: 2 | AE43: 2 | AF43: 2 | AG43: 2 | AH43: 2 | AI43: 2 | AJ43: 2 | AK43: 2 | AL43: 2 | AM43: 2 | AN43: 2 | AO43: 2 | AP43: 2
A44: COG0043 | B44: 3-polyprenyl-4-hydroxybenzoate decarboxylase | C44: H | D44: 0 | E44: 0 | F44: 0 | G44: 0 | H44: 0 | I44: 1 | J44: 0 | K44: 0 | L44: 0 | M44: 0 | N44: 0 | O44: 0 | P44: 0 | Q44: 0 | R44: 0 | S44: 0 | T44: 0 | U44: 0 | V44: 0 | W44: 0 | X44: 0 | Y44: 0 | Z44: 0 | AA44: 0 | AB44: 0 | AC44: 1 | AD44: 1 | AE44: 1 | AF44: 1 | AG44: 1 | AH44: 1 | AI44: 0 | AJ44: 1 | AK44: 1 | AL44: 1 | AM44: 1 | AN44: 0 | AO44: 0 | AP44: 0
A45: COG0044 | B45: Dihydroorotase or related cyclic amidohydrolase | C45: F | D45: 2 | E45: 2 | F45: 3 | G45: 3 | H45: 3 | I45: 1 | J45: 3 | K45: 3 | L45: 3 | M45: 3 | N45: 3 | O45: 3 | P45: 3 | Q45: 3 | R45: 3 | S45: 3 | T45: 3 | U45: 3 | V45: 3 | W45: 3 | X45: 3 | Y45: 3 | Z45: 3 | AA45: 3 | AB45: 3 | AC45: 1 | AD45: 1 | AE45: 1 | AF45: 1 | AG45: 1 | AH45: 1 | AI45: 3 | AJ45: 1 | AK45: 1 | AL45: 1 | AM45: 1 | AN45: 2 | AO45: 3 | AP45: 2
A46: COG0045 | B46: Succinyl-CoA synthetase, beta subunit | C46: C | D46: 0 | E46: 0 | F46: 0 | G46: 0 | H46: 0 | I46: 0 | J46: 0 | K46: 0 | L46: 0 | M46: 0 | N46: 0 | O46: 0 | P46: 0 | Q46: 0 | R46: 0 | S46: 0 | T46: 0 | U46: 0 | V46: 0 | W46: 0 | X46: 0 | Y46: 0 | Z46: 0 | AA46: 0 | AB46: 0 | AC46: 0 | AD46: 0 | AE46: 0 | AF46: 0 | AG46: 0 | AH46: 0 | AI46: 0 | AJ46: 0 | AK46: 0 | AL46: 0 | AM46: 0 | AN46: 0 | AO46: 0 | AP46: 0
A47: COG0046 | B47: Phosphoribosylformylglycinamidine (FGAM) synthase, synthetase domain | C47: F | D47: 1 | E47: 1 | F47: 1 | G47: 0 | H47: 1 | I47: 1 | J47: 1 | K47: 1 | L47: 1 | M47: 1 | N47: 1 | O47: 1 | P47: 1 | Q47: 1 | R47: 0 | S47: 1 | T47: 1 | U47: 1 | V47: 1 | W47: 1 | X47: 1 | Y47: 1 | Z47: 1 | AA47: 1 | AB47: 1 | AC47: 1 | AD47: 1 | AE47: 1 | AF47: 1 | AG47: 1 | AH47: 1 | AI47: 1 | AJ47: 1 | AK47: 1 | AL47: 1 | AM47: 1 | AN47: 1 | AO47: 1 | AP47: 1
A48: COG0047 | B48: Phosphoribosylformylglycinamidine (FGAM) synthase, glutamine amidotransferase domain | C48: F | D48: 1 | E48: 1 | F48: 1 | G48: 1 | H48: 1 | I48: 1 | J48: 1 | K48: 1 | L48: 1 | M48: 1 | N48: 1 | O48: 1 | P48: 1 | Q48: 1 | R48: 1 | S48: 1 | T48: 1 | U48: 1 | V48: 1 | W48: 1 | X48: 1 | Y48: 1 | Z48: 1 | AA48: 1 | AB48: 1 | AC48: 1 | AD48: 1 | AE48: 1 | AF48: 1 | AG48: 1 | AH48: 1 | AI48: 1 | AJ48: 1 | AK48: 1 | AL48: 1 | AM48: 1 | AN48: 1 | AO48: 1 | AP48: 1
A49: COG0048 | B49: Ribosomal protein S12 | C49: J | D49: 1 | E49: 1 | F49: 1 | G49: 1 | H49: 1 | I49: 1 | J49: 1 | K49: 1 | L49: 1 | M49: 1 | N49: 1 | O49: 1 | P49: 1 | Q49: 1 | R49: 1 | S49: 1 | T49: 1 | U49: 1 | V49: 1 | W49: 1 | X49: 1 | Y49: 1 | Z49: 1 | AA49: 1 | AB49: 1 | AC49: 1 | AD49: 1 | AE49: 1 | AF49: 1 | AG49: 1 | AH49: 1 | AI49: 1 | AJ49: 1 | AK49: 1 | AL49: 1 | AM49: 1 | AN49: 1 | AO49: 1 | AP49: 1
A50: COG0049 | B50: Ribosomal protein S7 | C50: J | D50: 1 | E50: 1 | F50: 1 | G50: 1 | H50: 1 | I50: 1 | J50: 1 | K50: 1 | L50: 1 | M50: 1 | N50: 1 | O50: 1 | P50: 1 | Q50: 1 | R50: 1 | S50: 1 | T50: 1 | U50: 1 | V50: 1 | W50: 1 | X50: 1 | Y50: 1 | Z50: 1 | AA50: 1 | AB50: 1 | AC50: 1 | AD50: 1 | AE50: 1 | AF50: 1 | AG50: 1 | AH50: 1 | AI50: 1 | AJ50: 1 | AK50: 1 | AL50: 1 | AM50: 1 | AN50: 1 | AO50: 1 | AP50: 1
A51: COG0050 | B51: Translation elongation factor EF-Tu, a GTPase | C51: J | D51: 2 | E51: 2 | F51: 1 | G51: 1 | H51: 1 | I51: 2 | J51: 1 | K51: 1 | L51: 1 | M51: 1 | N51: 1 | O51: 1 | P51: 1 | Q51: 1 | R51: 1 | S51: 1 | T51: 1 | U51: 1 | V51: 1 | W51: 1 | X51: 1 | Y51: 1 | Z51: 1 | AA51: 1 | AB51: 1 | AC51: 2 | AD51: 2 | AE51: 2 | AF51: 2 | AG51: 2 | AH51: 2 | AI51: 1 | AJ51: 2 | AK51: 2 | AL51: 2 | AM51: 2 | AN51: 2 | AO51: 1 | AP51: 2
A52: COG0051 | B52: Ribosomal protein S10 | C52: J | D52: 1 | E52: 1 | F52: 1 | G52: 1 | H52: 1 | I52: 1 | J52: 1 | K52: 1 | L52: 1 | M52: 1 | N52: 1 | O52: 1 | P52: 1 | Q52: 1 | R52: 1 | S52: 1 | T52: 1 | U52: 1 | V52: 1 | W52: 1 | X52: 1 | Y52: 1 | Z52: 1 | AA52: 1 | AB52: 1 | AC52: 1 | AD52: 1 | AE52: 1 | AF52: 1 | AG52: 1 | AH52: 1 | AI52: 1 | AJ52: 1 | AK52: 1 | AL52: 1 | AM52: 1 | AN52: 1 | AO52: 1 | AP52: 1
A53: COG0052 | B53: Ribosomal protein S2 | C53: J | D53: 1 | E53: 1 | F53: 1 | G53: 1 | H53: 1 | I53: 1 | J53: 1 | K53: 1 | L53: 1 | M53: 1 | N53: 1 | O53: 1 | P53: 1 | Q53: 1 | R53: 1 | S53: 1 | T53: 1 | U53: 1 | V53: 1 | W53: 1 | X53: 1 | Y53: 1 | Z53: 1 | AA53: 1 | AB53: 1 | AC53: 1 | AD53: 1 | AE53: 1 | AF53: 1 | AG53: 1 | AH53: 1 | AI53: 1 | AJ53: 1 | AK53: 1 | AL53: 1 | AM53: 1 | AN53: 1 | AO53: 1 | AP53: 1
A54: COG0053 | B54: Divalent metal cation (Fe/Co/Zn/Cd) transporter | C54: P | D54: 4 | E54: 4 | F54: 2 | G54: 2 | H54: 1 | I54: 2 | J54: 2 | K54: 2 | L54: 2 | M54: 2 | N54: 2 | O54: 2 | P54: 2 | Q54: 2 | R54: 2 | S54: 2 | T54: 2 | U54: 2 | V54: 2 | W54: 2 | X54: 2 | Y54: 2 | Z54: 2 | AA54: 2 | AB54: 2 | AC54: 2 | AD54: 2 | AE54: 2 | AF54: 2 | AG54: 2 | AH54: 2 | AI54: 2 | AJ54: 2 | AK54: 2 | AL54: 2 | AM54: 2 | AN54: 4 | AO54: 2 | AP54: 4
A55: COG0054 | B55: 6,7-dimethyl-8-ribityllumazine synthase (Riboflavin synthase beta chain) | C55: H | D55: 1 | E55: 1 | F55: 0 | G55: 0 | H55: 0 | I55: 0 | J55: 0 | K55: 0 | L55: 0 | M55: 0 | N55: 0 | O55: 0 | P55: 0 | Q55: 0 | R55: 0 | S55: 0 | T55: 0 | U55: 0 | V55: 0 | W55: 0 | X55: 0 | Y55: 0 | Z55: 0 | AA55: 0 | AB55: 0 | AC55: 0 | AD55: 0 | AE55: 0 | AF55: 0 | AG55: 0 | AH55: 0 | AI55: 0 | AJ55: 0 | AK55: 0 | AL55: 0 | AM55: 0 | AN55: 1 | AO55: 0 | AP55: 1
A56: COG0055 | B56: FoF1-type ATP synthase, beta subunit | C56: C | D56: 1 | E56: 1 | F56: 1 | G56: 1 | H56: 1 | I56: 1 | J56: 1 | K56: 1 | L56: 1 | M56: 1 | N56: 1 | O56: 1 | P56: 1 | Q56: 1 | R56: 1 | S56: 1 | T56: 1 | U56: 1 | V56: 1 | W56: 1 | X56: 1 | Y56: 1 | Z56: 1 | AA56: 1 | AB56: 1 | AC56: 1 | AD56: 1 | AE56: 1 | AF56: 1 | AG56: 1 | AH56: 1 | AI56: 1 | AJ56: 1 | AK56: 1 | AL56: 1 | AM56: 1 | AN56: 1 | AO56: 1 | AP56: 1
A57: COG0056 | B57: FoF1-type ATP synthase, alpha subunit | C57: C | D57: 1 | E57: 1 | F57: 1 | G57: 1 | H57: 1 | I57: 1 | J57: 1 | K57: 1 | L57: 1 | M57: 1 | N57: 1 | O57: 1 | P57: 1 | Q57: 1 | R57: 1 | S57: 1 | T57: 1 | U57: 1 | V57: 1 | W57: 1 | X57: 1 | Y57: 1 | Z57: 1 | AA57: 1 | AB57: 1 | AC57: 1 | AD57: 1 | AE57: 1 | AF57: 1 | AG57: 1 | AH57: 1 | AI57: 1 | AJ57: 1 | AK57: 1 | AL57: 1 | AM57: 1 | AN57: 1 | AO57: 1 | AP57: 1
A58: COG0057 | B58: Glyceraldehyde-3-phosphate dehydrogenase/erythrose-4-phosphate dehydrogenase | C58: G | D58: 2 | E58: 2 | F58: 2 | G58: 2 | H58: 2 | I58: 2 | J58: 2 | K58: 2 | L58: 2 | M58: 2 | N58: 2 | O58: 2 | P58: 2 | Q58: 2 | R58: 2 | S58: 2 | T58: 2 | U58: 2 | V58: 2 | W58: 2 | X58: 2 | Y58: 2 | Z58: 2 | AA58: 2 | AB58: 2 | AC58: 2 | AD58: 2 | AE58: 2 | AF58: 2 | AG58: 2 | AH58: 2 | AI58: 2 | AJ58: 2 | AK58: 2 | AL58: 2 | AM58: 2 | AN58: 2 | AO58: 2 | AP58: 2
A59: COG0058 | B59: Glucan phosphorylase | C59: G | D59: 1 | E59: 1 | F59: 0 | G59: 0 | H59: 0 | I59: 0 | J59: 0 | K59: 0 | L59: 0 | M59: 0 | N59: 0 | O59: 0 | P59: 0 | Q59: 0 | R59: 0 | S59: 0 | T59: 0 | U59: 0 | V59: 0 | W59: 0 | X59: 0 | Y59: 0 | Z59: 0 | AA59: 0 | AB59: 0 | AC59: 0 | AD59: 0 | AE59: 0 | AF59: 0 | AG59: 0 | AH59: 0 | AI59: 0 | AJ59: 0 | AK59: 0 | AL59: 0 | AM59: 0 | AN59: 1 | AO59: 0 | AP59: 1
A60: COG0059 | B60: Ketol-acid reductoisomerase | C60: EH | D60: 1 | E60: 1 | F60: 0 | G60: 0 | H60: 0 | I60: 0 | J60: 0 | K60: 0 | L60: 0 | M60: 0 | N60: 0 | O60: 0 | P60: 0 | Q60: 0 | R60: 0 | S60: 0 | T60: 0 | U60: 0 | V60: 0 | W60: 0 | X60: 0 | Y60: 0 | Z60: 0 | AA60: 0 | AB60: 0 | AC60: 0 | AD60: 0 | AE60: 0 | AF60: 0 | AG60: 0 | AH60: 0 | AI60: 0 | AJ60: 0 | AK60: 0 | AL60: 0 | AM60: 0 | AN60: 1 | AO60: 0 | AP60: 1
A61: COG0060 | B61: Isoleucyl-tRNA synthetase | C61: J | D61: 1 | E61: 1 | F61: 1 | G61: 1 | H61: 1 | I61: 1 | J61: 1 | K61: 1 | L61: 1 | M61: 1 | N61: 1 | O61: 1 | P61: 1 | Q61: 1 | R61: 1 | S61: 1 | T61: 1 | U61: 1 | V61: 1 | W61: 1 | X61: 1 | Y61: 1 | Z61: 1 | AA61: 1 | AB61: 1 | AC61: 1 | AD61: 1 | AE61: 1 | AF61: 1 | AG61: 1 | AH61: 1 | AI61: 1 | AJ61: 1 | AK61: 1 | AL61: 1 | AM61: 1 | AN61: 1 | AO61: 1 | AP61: 1
A62: COG0061 | B62: NAD kinase | C62: F | D62: 1 | E62: 1 | F62: 1 | G62: 1 | H62: 1 | I62: 1 | J62: 1 | K62: 1 | L62: 1 | M62: 1 | N62: 1 | O62: 1 | P62: 1 | Q62: 1 | R62: 1 | S62: 1 | T62: 1 | U62: 1 | V62: 1 | W62: 1 | X62: 1 | Y62: 1 | Z62: 1 | AA62: 1 | AB62: 1 | AC62: 1 | AD62: 1 | AE62: 1 | AF62: 1 | AG62: 1 | AH62: 1 | AI62: 1 | AJ62: 1 | AK62: 1 | AL62: 1 | AM62: 1 | AN62: 1 | AO62: 1 | AP62: 1
A63: COG0062 | B63: NAD(P)H-hydrate repair enzyme Nnr, NAD(P)H-hydrate epimerase domain | C63: F | D63: 0 | E63: 0 | F63: 0 | G63: 0 | H63: 0 | I63: 0 | J63: 0 | K63: 0 | L63: 0 | M63: 0 | N63: 0 | O63: 0 | P63: 0 | Q63: 0 | R63: 0 | S63: 0 | T63: 0 | U63: 0 | V63: 0 | W63: 0 | X63: 0 | Y63: 0 | Z63: 0 | AA63: 0 | AB63: 0 | AC63: 0 | AD63: 0 | AE63: 0 | AF63: 0 | AG63: 0 | AH63: 0 | AI63: 0 | AJ63: 0 | AK63: 0 | AL63: 0 | AM63: 0 | AN63: 0 | AO63: 0 | AP63: 0
A64: COG0063 | B64: NAD(P)H-hydrate repair enzyme Nnr, NAD(P)H-hydrate dehydratase domain | C64: F | D64: 1 | E64: 1 | F64: 1 | G64: 1 | H64: 1 | I64: 1 | J64: 1 | K64: 1 | L64: 1 | M64: 1 | N64: 1 | O64: 1 | P64: 1 | Q64: 1 | R64: 1 | S64: 1 | T64: 1 | U64: 1 | V64: 1 | W64: 1 | X64: 1 | Y64: 1 | Z64: 1 | AA64: 1 | AB64: 1 | AC64: 1 | AD64: 1 | AE64: 1 | AF64: 1 | AG64: 1 | AH64: 1 | AI64: 1 | AJ64: 1 | AK64: 1 | AL64: 1 | AM64: 1 | AN64: 1 | AO64: 1 | AP64: 1
A65: COG0064 | B65: Asp-tRNAAsn/Glu-tRNAGln amidotransferase B subunit | C65: J | D65: 1 | E65: 1 | F65: 1 | G65: 1 | H65: 1 | I65: 1 | J65: 1 | K65: 1 | L65: 1 | M65: 1 | N65: 1 | O65: 1 | P65: 1 | Q65: 1 | R65: 1 | S65: 1 | T65: 1 | U65: 1 | V65: 1 | W65: 1 | X65: 1 | Y65: 1 | Z65: 1 | AA65: 1 | AB65: 1 | AC65: 1 | AD65: 1 | AE65: 1 | AF65: 1 | AG65: 1 | AH65: 1 | AI65: 1 | AJ65: 1 | AK65: 1 | AL65: 1 | AM65: 1 | AN65: 1 | AO65: 1 | AP65: 1
A66: COG0065 | B66: Homoaconitase/3-isopropylmalate dehydratase large subunit | C66: E | D66: 1 | E66: 1 | F66: 0 | G66: 0 | H66: 0 | I66: 0 | J66: 0 | K66: 0 | L66: 0 | M66: 0 | N66: 0 | O66: 0 | P66: 0 | Q66: 0 | R66: 0 | S66: 0 | T66: 0 | U66: 0 | V66: 0 | W66: 0 | X66: 0 | Y66: 0 | Z66: 0 | AA66: 0 | AB66: 0 | AC66: 0 | AD66: 0 | AE66: 0 | AF66: 0 | AG66: 0 | AH66: 0 | AI66: 0 | AJ66: 0 | AK66: 0 | AL66: 0 | AM66: 0 | AN66: 1 | AO66: 0 | AP66: 1
A67: COG0066 | B67: 3-isopropylmalate dehydratase small subunit | C67: E | D67: 1 | E67: 1 | F67: 0 | G67: 0 | H67: 0 | I67: 0 | J67: 0 | K67: 0 | L67: 0 | M67: 0 | N67: 0 | O67: 0 | P67: 0 | Q67: 0 | R67: 0 | S67: 0 | T67: 0 | U67: 0 | V67: 0 | W67: 0 | X67: 0 | Y67: 0 | Z67: 0 | AA67: 0 | AB67: 0 | AC67: 0 | AD67: 0 | AE67: 0 | AF67: 0 | AG67: 0 | AH67: 0 | AI67: 0 | AJ67: 0 | AK67: 0 | AL67: 0 | AM67: 0 | AN67: 1 | AO67: 0 | AP67: 1
A68: COG0067 | B68: Glutamate synthase domain 1 | C68: E | D68: 0 | E68: 0 | F68: 0 | G68: 0 | H68: 0 | I68: 0 | J68: 0 | K68: 0 | L68: 0 | M68: 0 | N68: 0 | O68: 0 | P68: 0 | Q68: 0 | R68: 0 | S68: 0 | T68: 0 | U68: 0 | V68: 0 | W68: 0 | X68: 0 | Y68: 0 | Z68: 0 | AA68: 0 | AB68: 0 | AC68: 0 | AD68: 0 | AE68: 0 | AF68: 0 | AG68: 0 | AH68: 0 | AI68: 0 | AJ68: 0 | AK68: 0 | AL68: 0 | AM68: 0 | AN68: 0 | AO68: 0 | AP68: 0
A69: COG0068 | B69: Hydrogenase maturation factor HypF (carbamoyltransferase) | C69: O | D69: 0 | E69: 0 | F69: 0 | G69: 0 | H69: 0 | I69: 0 | J69: 0 | K69: 0 | L69: 0 | M69: 0 | N69: 0 | O69: 0 | P69: 0 | Q69: 0 | R69: 0 | S69: 0 | T69: 0 | U69: 0 | V69: 0 | W69: 0 | X69: 0 | Y69: 0 | Z69: 0 | AA69: 0 | AB69: 0 | AC69: 0 | AD69: 0 | AE69: 0 | AF69: 0 | AG69: 0 | AH69: 0 | AI69: 0 | AJ69: 0 | AK69: 0 | AL69: 0 | AM69: 0 | AN69: 0 | AO69: 0 | AP69: 0
A70: COG0069 | B70: Glutamate synthase domain 2 | C70: E | D70: 1 | E70: 1 | F70: 0 | G70: 0 | H70: 0 | I70: 0 | J70: 0 | K70: 0 | L70: 0 | M70: 0 | N70: 0 | O70: 0 | P70: 0 | Q70: 0 | R70: 0 | S70: 0 | T70: 0 | U70: 0 | V70: 0 | W70: 0 | X70: 0 | Y70: 0 | Z70: 0 | AA70: 0 | AB70: 0 | AC70: 0 | AD70: 0 | AE70: 0 | AF70: 0 | AG70: 0 | AH70: 0 | AI70: 0 | AJ70: 0 | AK70: 0 | AL70: 0 | AM70: 0 | AN70: 1 | AO70: 0 | AP70: 1
A71: COG0070 | B71: Glutamate synthase domain 3 | C71: E | D71: 0 | E71: 0 | F71: 0 | G71: 0 | H71: 0 | I71: 0 | J71: 0 | K71: 0 | L71: 0 | M71: 0 | N71: 0 | O71: 0 | P71: 0 | Q71: 0 | R71: 0 | S71: 0 | T71: 0 | U71: 0 | V71: 0 | W71: 0 | X71: 0 | Y71: 0 | Z71: 0 | AA71: 0 | AB71: 0 | AC71: 0 | AD71: 0 | AE71: 0 | AF71: 0 | AG71: 0 | AH71: 0 | AI71: 0 | AJ71: 0 | AK71: 0 | AL71: 0 | AM71: 0 | AN71: 0 | AO71: 0 | AP71: 0
A72: COG0071 | B72: Molecular chaperone IbpA, HSP20 family | C72: O | D72: 2 | E72: 2 | F72: 0 | G72: 0 | H72: 0 | I72: 1 | J72: 0 | K72: 0 | L72: 0 | M72: 0 | N72: 0 | O72: 0 | P72: 0 | Q72: 0 | R72: 0 | S72: 0 | T72: 0 | U72: 0 | V72: 0 | W72: 0 | X72: 0 | Y72: 0 | Z72: 0 | AA72: 0 | AB72: 0 | AC72: 1 | AD72: 1 | AE72: 1 | AF72: 1 | AG72: 1 | AH72: 1 | AI72: 0 | AJ72: 1 | AK72: 1 | AL72: 1 | AM72: 1 | AN72: 2 | AO72: 0 | AP72: 2
A73: COG0072 | B73: Phenylalanyl-tRNA synthetase beta subunit | C73: J | D73: 1 | E73: 1 | F73: 1 | G73: 1 | H73: 1 | I73: 1 | J73: 1 | K73: 1 | L73: 1 | M73: 1 | N73: 1 | O73: 1 | P73: 1 | Q73: 1 | R73: 1 | S73: 1 | T73: 1 | U73: 1 | V73: 1 | W73: 1 | X73: 1 | Y73: 1 | Z73: 1 | AA73: 1 | AB73: 1 | AC73: 1 | AD73: 1 | AE73: 1 | AF73: 1 | AG73: 1 | AH73: 1 | AI73: 1 | AJ73: 1 | AK73: 1 | AL73: 1 | AM73: 1 | AN73: 1 | AO73: 1 | AP73: 1
A74: COG0073 | B74: tRNA-binding EMAP/Myf domain | C74: J | D74: 1 | E74: 1 | F74: 1 | G74: 1 | H74: 1 | I74: 1 | J74: 1 | K74: 1 | L74: 1 | M74: 1 | N74: 1 | O74: 1 | P74: 1 | Q74: 1 | R74: 1 | S74: 1 | T74: 1 | U74: 1 | V74: 1 | W74: 1 | X74: 1 | Y74: 1 | Z74: 1 | AA74: 1 | AB74: 1 | AC74: 1 | AD74: 1 | AE74: 1 | AF74: 1 | AG74: 1 | AH74: 1 | AI74: 1 | AJ74: 1 | AK74: 1 | AL74: 1 | AM74: 1 | AN74: 1 | AO74: 1 | AP74: 1
A75: COG0074 | B75: Succinyl-CoA synthetase, alpha subunit | C75: C | D75: 2 | E75: 2 | F75: 1 | G75: 1 | H75: 1 | I75: 0 | J75: 1 | K75: 1 | L75: 1 | M75: 1 | N75: 1 | O75: 1 | P75: 1 | Q75: 1 | R75: 1 | S75: 1 | T75: 1 | U75: 1 | V75: 1 | W75: 1 | X75: 1 | Y75: 1 | Z75: 1 | AA75: 1 | AB75: 1 | AC75: 0 | AD75: 0 | AE75: 0 | AF75: 0 | AG75: 0 | AH75: 0 | AI75: 1 | AJ75: 0 | AK75: 0 | AL75: 0 | AM75: 0 | AN75: 0 | AO75: 1 | AP75: 0
A76: COG0075 | B76: Archaeal aspartate aminotransferase or a related aminotransferase, includes purine catabolism protein PucG | C76: EF | D76: 1 | E76: 1 | F76: 1 | G76: 1 | H76: 1 | I76: 0 | J76: 1 | K76: 1 | L76: 1 | M76: 1 | N76: 1 | O76: 1 | P76: 1 | Q76: 1 | R76: 1 | S76: 1 | T76: 1 | U76: 1 | V76: 1 | W76: 1 | X76: 1 | Y76: 1 | Z76: 1 | AA76: 1 | AB76: 1 | AC76: 1 | AD76: 1 | AE76: 1 | AF76: 1 | AG76: 1 | AH76: 1 | AI76: 1 | AJ76: 1 | AK76: 1 | AL76: 1 | AM76: 1 | AN76: 0 | AO76: 1 | AP76: 0
A77: COG0076 | B77: Glutamate or tyrosine decarboxylase or a related PLP-dependent protein | C77: E | D77: 1 | E77: 1 | F77: 1 | G77: 1 | H77: 1 | I77: 2 | J77: 1 | K77: 1 | L77: 1 | M77: 1 | N77: 1 | O77: 1 | P77: 1 | Q77: 1 | R77: 1 | S77: 1 | T77: 1 | U77: 1 | V77: 1 | W77: 1 | X77: 1 | Y77: 1 | Z77: 1 | AA77: 1 | AB77: 1 | AC77: 2 | AD77: 2 | AE77: 3 | AF77: 2 | AG77: 2 | AH77: 2 | AI77: 1 | AJ77: 2 | AK77: 2 | AL77: 2 | AM77: 2 | AN77: 2 | AO77: 1 | AP77: 2
A78: COG0077 | B78: Prephenate dehydratase | C78: E | D78: 1 | E78: 1 | F78: 1 | G78: 1 | H78: 1 | I78: 1 | J78: 1 | K78: 1 | L78: 1 | M78: 1 | N78: 1 | O78: 1 | P78: 1 | Q78: 1 | R78: 1 | S78: 1 | T78: 1 | U78: 1 | V78: 1 | W78: 1 | X78: 1 | Y78: 1 | Z78: 1 | AA78: 1 | AB78: 1 | AC78: 1 | AD78: 1 | AE78: 1 | AF78: 1 | AG78: 1 | AH78: 1 | AI78: 1 | AJ78: 1 | AK78: 1 | AL78: 1 | AM78: 1 | AN78: 1 | AO78: 1 | AP78: 1
A79: COG0078 | B79: Ornithine carbamoyltransferase | C79: E | D79: 2 | E79: 2 | F79: 3 | G79: 3 | H79: 3 | I79: 1 | J79: 3 | K79: 3 | L79: 3 | M79: 3 | N79: 3 | O79: 3 | P79: 3 | Q79: 3 | R79: 3 | S79: 3 | T79: 3 | U79: 3 | V79: 3 | W79: 3 | X79: 3 | Y79: 3 | Z79: 3 | AA79: 3 | AB79: 3 | AC79: 1 | AD79: 1 | AE79: 2 | AF79: 1 | AG79: 1 | AH79: 1 | AI79: 3 | AJ79: 1 | AK79: 1 | AL79: 1 | AM79: 1 | AN79: 4 | AO79: 3 | AP79: 3
A80: COG0079 | B80: Histidinol-phosphate/aromatic aminotransferase or cobyric acid decarboxylase | C80: E | D80: 1 | E80: 1 | F80: 0 | G80: 0 | H80: 0 | I80: 0 | J80: 0 | K80: 0 | L80: 0 | M80: 0 | N80: 0 | O80: 0 | P80: 0 | Q80: 0 | R80: 0 | S80: 0 | T80: 0 | U80: 0 | V80: 0 | W80: 0 | X80: 0 | Y80: 0 | Z80: 0 | AA80: 0 | AB80: 0 | AC80: 0 | AD80: 0 | AE80: 0 | AF80: 0 | AG80: 0 | AH80: 0 | AI80: 0 | AJ80: 0 | AK80: 0 | AL80: 0 | AM80: 0 | AN80: 0 | AO80: 0 | AP80: 0
A81: COG0080 | B81: Ribosomal protein L11 | C81: J | D81: 1 | E81: 1 | F81: 1 | G81: 1 | H81: 1 | I81: 1 | J81: 1 | K81: 1 | L81: 1 | M81: 1 | N81: 1 | O81: 1 | P81: 1 | Q81: 1 | R81: 1 | S81: 1 | T81: 1 | U81: 1 | V81: 1 | W81: 1 | X81: 1 | Y81: 1 | Z81: 1 | AA81: 1 | AB81: 1 | AC81: 1 | AD81: 1 | AE81: 1 | AF81: 1 | AG81: 1 | AH81: 1 | AI81: 1 | AJ81: 1 | AK81: 1 | AL81: 1 | AM81: 1 | AN81: 1 | AO81: 1 | AP81: 1
A82: COG0081 | B82: Ribosomal protein L1 | C82: J | D82: 1 | E82: 1 | F82: 1 | G82: 1 | H82: 1 | I82: 1 | J82: 1 | K82: 1 | L82: 1 | M82: 1 | N82: 1 | O82: 1 | P82: 1 | Q82: 1 | R82: 1 | S82: 1 | T82: 1 | U82: 1 | V82: 1 | W82: 1 | X82: 1 | Y82: 1 | Z82: 1 | AA82: 1 | AB82: 1 | AC82: 1 | AD82: 1 | AE82: 1 | AF82: 1 | AG82: 1 | AH82: 1 | AI82: 1 | AJ82: 1 | AK82: 1 | AL82: 1 | AM82: 1 | AN82: 1 | AO82: 1 | AP82: 1
A83: COG0082 | B83: Chorismate synthase | C83: E | D83: 1 | E83: 1 | F83: 1 | G83: 1 | H83: 1 | I83: 1 | J83: 1 | K83: 1 | L83: 1 | M83: 1 | N83: 1 | O83: 1 | P83: 1 | Q83: 1 | R83: 1 | S83: 1 | T83: 1 | U83: 1 | V83: 1 | W83: 1 | X83: 1 | Y83: 1 | Z83: 1 | AA83: 1 | AB83: 1 | AC83: 1 | AD83: 1 | AE83: 1 | AF83: 1 | AG83: 1 | AH83: 1 | AI83: 1 | AJ83: 1 | AK83: 1 | AL83: 1 | AM83: 1 | AN83: 1 | AO83: 1 | AP83: 1
A84: COG0083 | B84: Homoserine kinase | C84: E | D84: 1 | E84: 1 | F84: 1 | G84: 1 | H84: 1 | I84: 0 | J84: 1 | K84: 1 | L84: 1 | M84: 1 | N84: 1 | O84: 1 | P84: 1 | Q84: 1 | R84: 1 | S84: 1 | T84: 1 | U84: 1 | V84: 1 | W84: 1 | X84: 1 | Y84: 1 | Z84: 1 | AA84: 1 | AB84: 1 | AC84: 0 | AD84: 0 | AE84: 0 | AF84: 0 | AG84: 0 | AH84: 0 | AI84: 1 | AJ84: 0 | AK84: 0 | AL84: 0 | AM84: 0 | AN84: 1 | AO84: 1 | AP84: 1
A85: COG0084 | B85: Tat protein secretion system quality control protein TatD (DNase activity) | C85: N | D85: 1 | E85: 1 | F85: 1 | G85: 1 | H85: 1 | I85: 2 | J85: 1 | K85: 1 | L85: 1 | M85: 1 | N85: 1 | O85: 1 | P85: 1 | Q85: 1 | R85: 1 | S85: 1 | T85: 1 | U85: 1 | V85: 1 | W85: 1 | X85: 1 | Y85: 1 | Z85: 1 | AA85: 1 | AB85: 1 | AC85: 2 | AD85: 2 | AE85: 2 | AF85: 2 | AG85: 2 | AH85: 2 | AI85: 1 | AJ85: 2 | AK85: 2 | AL85: 2 | AM85: 2 | AN85: 1 | AO85: 1 | AP85: 1
A86: COG0085 | B86: DNA-directed RNA polymerase, beta subunit/140 kD subunit | C86: K | D86: 1 | E86: 1 | F86: 1 | G86: 1 | H86: 1 | I86: 1 | J86: 1 | K86: 1 | L86: 1 | M86: 1 | N86: 1 | O86: 1 | P86: 1 | Q86: 1 | R86: 1 | S86: 1 | T86: 1 | U86: 1 | V86: 1 | W86: 1 | X86: 1 | Y86: 1 | Z86: 1 | AA86: 1 | AB86: 1 | AC86: 1 | AD86: 1 | AE86: 1 | AF86: 1 | AG86: 1 | AH86: 1 | AI86: 1 | AJ86: 1 | AK86: 1 | AL86: 1 | AM86: 1 | AN86: 1 | AO86: 1 | AP86: 1
A87: COG0086 | B87: DNA-directed RNA polymerase, beta' subunit/160 kD subunit | C87: K | D87: 1 | E87: 1 | F87: 1 | G87: 1 | H87: 1 | I87: 1 | J87: 1 | K87: 1 | L87: 1 | M87: 1 | N87: 1 | O87: 1 | P87: 1 | Q87: 1 | R87: 1 | S87: 1 | T87: 1 | U87: 1 | V87: 1 | W87: 1 | X87: 1 | Y87: 1 | Z87: 1 | AA87: 1 | AB87: 1 | AC87: 1 | AD87: 1 | AE87: 1 | AF87: 1 | AG87: 1 | AH87: 1 | AI87: 1 | AJ87: 1 | AK87: 1 | AL87: 1 | AM87: 1 | AN87: 1 | AO87: 1 | AP87: 1
A88: COG0087 | B88: Ribosomal protein L3 | C88: J | D88: 1 | E88: 1 | F88: 1 | G88: 1 | H88: 1 | I88: 1 | J88: 1 | K88: 1 | L88: 1 | M88: 1 | N88: 1 | O88: 1 | P88: 1 | Q88: 1 | R88: 1 | S88: 1 | T88: 1 | U88: 1 | V88: 1 | W88: 1 | X88: 1 | Y88: 1 | Z88: 1 | AA88: 1 | AB88: 1 | AC88: 1 | AD88: 1 | AE88: 1 | AF88: 1 | AG88: 1 | AH88: 1 | AI88: 1 | AJ88: 1 | AK88: 1 | AL88: 1 | AM88: 1 | AN88: 1 | AO88: 1 | AP88: 1
A89: COG0088 | B89: Ribosomal protein L4 | C89: J | D89: 1 | E89: 1 | F89: 1 | G89: 1 | H89: 1 | I89: 1 | J89: 1 | K89: 1 | L89: 1 | M89: 1 | N89: 1 | O89: 1 | P89: 1 | Q89: 1 | R89: 1 | S89: 1 | T89: 1 | U89: 1 | V89: 1 | W89: 1 | X89: 1 | Y89: 1 | Z89: 1 | AA89: 1 | AB89: 1 | AC89: 1 | AD89: 1 | AE89: 1 | AF89: 1 | AG89: 1 | AH89: 1 | AI89: 1 | AJ89: 1 | AK89: 1 | AL89: 1 | AM89: 1 | AN89: 1 | AO89: 1 | AP89: 1
A90: COG0089 | B90: Ribosomal protein L23 | C90: J | D90: 1 | E90: 1 | F90: 1 | G90: 1 | H90: 1 | I90: 1 | J90: 1 | K90: 1 | L90: 1 | M90: 1 | N90: 1 | O90: 1 | P90: 1 | Q90: 1 | R90: 1 | S90: 1 | T90: 1 | U90: 1 | V90: 1 | W90: 1 | X90: 1 | Y90: 1 | Z90: 1 | AA90: 1 | AB90: 1 | AC90: 1 | AD90: 1 | AE90: 1 | AF90: 1 | AG90: 1 | AH90: 1 | AI90: 1 | AJ90: 1 | AK90: 1 | AL90: 1 | AM90: 1 | AN90: 1 | AO90: 1 | AP90: 1
A91: COG0090 | B91: Ribosomal protein L2 | C91: J | D91: 1 | E91: 1 | F91: 1 | G91: 1 | H91: 1 | I91: 1 | J91: 1 | K91: 1 | L91: 1 | M91: 1 | N91: 1 | O91: 1 | P91: 1 | Q91: 1 | R91: 1 | S91: 1 | T91: 1 | U91: 1 | V91: 1 | W91: 1 | X91: 1 | Y91: 1 | Z91: 1 | AA91: 1 | AB91: 1 | AC91: 1 | AD91: 1 | AE91: 1 | AF91: 1 | AG91: 1 | AH91: 1 | AI91: 1 | AJ91: 1 | AK91: 1 | AL91: 1 | AM91: 1 | AN91: 1 | AO91: 1 | AP91: 1
A92: COG0091 | B92: Ribosomal protein L22 | C92: J | D92: 1 | E92: 1 | F92: 1 | G92: 1 | H92: 1 | I92: 1 | J92: 1 | K92: 1 | L92: 1 | M92: 1 | N92: 1 | O92: 1 | P92: 1 | Q92: 1 | R92: 1 | S92: 1 | T92: 1 | U92: 1 | V92: 1 | W92: 1 | X92: 1 | Y92: 1 | Z92: 1 | AA92: 1 | AB92: 1 | AC92: 1 | AD92: 1 | AE92: 1 | AF92: 1 | AG92: 1 | AH92: 1 | AI92: 1 | AJ92: 1 | AK92: 1 | AL92: 1 | AM92: 1 | AN92: 1 | AO92: 1 | AP92: 1
A93: COG0092 | B93: Ribosomal protein S3 | C93: J | D93: 1 | E93: 1 | F93: 1 | G93: 1 | H93: 1 | I93: 1 | J93: 1 | K93: 1 | L93: 1 | M93: 1 | N93: 1 | O93: 1 | P93: 1 | Q93: 1 | R93: 1 | S93: 1 | T93: 1 | U93: 1 | V93: 1 | W93: 1 | X93: 1 | Y93: 1 | Z93: 1 | AA93: 1 | AB93: 1 | AC93: 1 | AD93: 1 | AE93: 1 | AF93: 1 | AG93: 1 | AH93: 1 | AI93: 1 | AJ93: 1 | AK93: 1 | AL93: 1 | AM93: 1 | AN93: 1 | AO93: 1 | AP93: 1
A94: COG0093 | B94: Ribosomal protein L14 | C94: J | D94: 1 | E94: 1 | F94: 1 | G94: 1 | H94: 1 | I94: 1 | J94: 1 | K94: 1 | L94: 1 | M94: 1 | N94: 1 | O94: 1 | P94: 1 | Q94: 1 | R94: 1 | S94: 1 | T94: 1 | U94: 1 | V94: 1 | W94: 1 | X94: 1 | Y94: 1 | Z94: 1 | AA94: 1 | AB94: 1 | AC94: 1 | AD94: 1 | AE94: 1 | AF94: 1 | AG94: 1 | AH94: 1 | AI94: 1 | AJ94: 1 | AK94: 1 | AL94: 1 | AM94: 1 | AN94: 1 | AO94: 1 | AP94: 1
A95: COG0094 | B95: Ribosomal protein L5 | C95: J | D95: 1 | E95: 1 | F95: 1 | G95: 1 | H95: 1 | I95: 1 | J95: 1 | K95: 1 | L95: 1 | M95: 1 | N95: 1 | O95: 1 | P95: 1 | Q95: 1 | R95: 1 | S95: 1 | T95: 1 | U95: 1 | V95: 1 | W95: 1 | X95: 1 | Y95: 1 | Z95: 1 | AA95: 1 | AB95: 1 | AC95: 1 | AD95: 1 | AE95: 1 | AF95: 1 | AG95: 1 | AH95: 1 | AI95: 1 | AJ95: 1 | AK95: 1 | AL95: 1 | AM95: 1 | AN95: 1 | AO95: 1 | AP95: 1
A96: COG0095 | B96: Lipoate-protein ligase A | C96: H | D96: 3 | E96: 3 | F96: 3 | G96: 3 | H96: 3 | I96: 2 | J96: 3 | K96: 3 | L96: 3 | M96: 3 | N96: 3 | O96: 3 | P96: 3 | Q96: 3 | R96: 3 | S96: 3 | T96: 3 | U96: 3 | V96: 3 | W96: 3 | X96: 3 | Y96: 3 | Z96: 3 | AA96: 3 | AB96: 3 | AC96: 2 | AD96: 2 | AE96: 2 | AF96: 2 | AG96: 2 | AH96: 2 | AI96: 3 | AJ96: 2 | AK96: 2 | AL96: 2 | AM96: 2 | AN96: 3 | AO96: 3 | AP96: 3
A97: COG0096 | B97: Ribosomal protein S8 | C97: J | D97: 1 | E97: 1 | F97: 1 | G97: 1 | H97: 1 | I97: 1 | J97: 1 | K97: 1 | L97: 1 | M97: 1 | N97: 1 | O97: 1 | P97: 1 | Q97: 1 | R97: 1 | S97: 1 | T97: 1 | U97: 1 | V97: 1 | W97: 1 | X97: 1 | Y97: 1 | Z97: 1 | AA97: 1 | AB97: 1 | AC97: 1 | AD97: 1 | AE97: 1 | AF97: 1 | AG97: 1 | AH97: 1 | AI97: 1 | AJ97: 1 | AK97: 1 | AL97: 1 | AM97: 1 | AN97: 1 | AO97: 1 | AP97: 1
A98: COG0097 | B98: Ribosomal protein L6P/L9E | C98: J | D98: 1 | E98: 1 | F98: 1 | G98: 1 | H98: 1 | I98: 1 | J98: 1 | K98: 1 | L98: 1 | M98: 1 | N98: 1 | O98: 1 | P98: 1 | Q98: 1 | R98: 1 | S98: 1 | T98: 1 | U98: 1 | V98: 1 | W98: 1 | X98: 1 | Y98: 1 | Z98: 1 | AA98: 1 | AB98: 1 | AC98: 1 | AD98: 1 | AE98: 1 | AF98: 1 | AG98: 1 | AH98: 1 | AI98: 1 | AJ98: 1 | AK98: 1 | AL98: 1 | AM98: 1 | AN98: 1 | AO98: 1 | AP98: 1
A99: COG0098 | B99: Ribosomal protein S5 | C99: J | D99: 1 | E99: 1 | F99: 1 | G99: 1 | H99: 1 | I99: 1 | J99: 1 | K99: 1 | L99: 1 | M99: 1 | N99: 1 | O99: 1 | P99: 1 | Q99: 1 | R99: 1 | S99: 1 | T99: 1 | U99: 1 | V99: 1 | W99: 1 | X99: 1 | Y99: 1 | Z99: 1 | AA99: 1 | AB99: 1 | AC99: 1 | AD99: 1 | AE99: 1 | AF99: 1 | AG99: 1 | AH99: 1 | AI99: 1 | AJ99: 1 | AK99: 1 | AL99: 1 | AM99: 1 | AN99: 1 | AO99: 1 | AP99: 1
A100: COG0099 | B100: Ribosomal protein S13 | C100: J | D100: 1 | E100: 1 | F100: 1 | G100: 1 | H100: 1 | I100: 1 | J100: 1 | K100: 1 | L100: 1 | M100: 1 | N100: 1 | O100: 1 | P100: 1 | Q100: 1 | R100: 1 | S100: 1 | T100: 1 | U100: 1 | V100: 1 | W100: 1 | X100: 1 | Y100: 1 | Z100: 1 | AA100: 1 | AB100: 1 | AC100: 1 | AD100: 1 | AE100: 1 | AF100: 1 | AG100: 1 | AH100: 1 | AI100: 1 | AJ100: 1 | AK100: 1 | AL100: 1 | AM100: 1 | AN100: 1 | AO100: 1 | AP100: 1
A101: COG0100 | B101: Ribosomal protein S11 | C101: J | D101: 1 | E101: 1 | F101: 1 | G101: 1 | H101: 1 | I101: 1 | J101: 1 | K101: 1 | L101: 1 | M101: 1 | N101: 1 | O101: 1 | P101: 1 | Q101: 1 | R101: 1 | S101: 1 | T101: 1 | U101: 1 | V101: 1 | W101: 1 | X101: 1 | Y101: 1 | Z101: 1 | AA101: 1 | AB101: 1 | AC101: 1 | AD101: 1 | AE101: 1 | AF101: 1 | AG101: 1 | AH101: 1 | AI101: 1 | AJ101: 1 | AK101: 1 | AL101: 1 | AM101: 1 | AN101: 1 | AO101: 1 | AP101: 1
A102: COG0101 | B102: tRNA U38,U39,U40 pseudouridine synthase TruA | C102: J | D102: 2 | E102: 2 | F102: 2 | G102: 2 | H102: 2 | I102: 2 | J102: 2 | K102: 2 | L102: 2 | M102: 2 | N102: 2 | O102: 2 | P102: 2 | Q102: 2 | R102: 2 | S102: 2 | T102: 2 | U102: 2 | V102: 2 | W102: 2 | X102: 2 | Y102: 2 | Z102: 2 | AA102: 2 | AB102: 2 | AC102: 2 | AD102: 2 | AE102: 2 | AF102: 2 | AG102: 2 | AH102: 2 | AI102: 2 | AJ102: 2 | AK102: 2 | AL102: 2 | AM102: 2 | AN102: 2 | AO102: 2 | AP102: 2
A103: COG0102 | B103: Ribosomal protein L13 | C103: J | D103: 1 | E103: 1 | F103: 1 | G103: 1 | H103: 1 | I103: 1 | J103: 1 | K103: 1 | L103: 1 | M103: 1 | N103: 1 | O103: 1 | P103: 1 | Q103: 1 | R103: 1 | S103: 1 | T103: 1 | U103: 1 | V103: 1 | W103: 1 | X103: 1 | Y103: 1 | Z103: 1 | AA103: 1 | AB103: 1 | AC103: 1 | AD103: 1 | AE103: 1 | AF103: 1 | AG103: 1 | AH103: 1 | AI103: 1 | AJ103: 1 | AK103: 1 | AL103: 1 | AM103: 1 | AN103: 1 | AO103: 1 | AP103: 1
A104: COG0103 | B104: Ribosomal protein S9 | C104: J | D104: 1 | E104: 1 | F104: 1 | G104: 1 | H104: 1 | I104: 1 | J104: 1 | K104: 1 | L104: 1 | M104: 1 | N104: 1 | O104: 1 | P104: 1 | Q104: 1 | R104: 1 | S104: 1 | T104: 1 | U104: 1 | V104: 1 | W104: 1 | X104: 1 | Y104: 1 | Z104: 1 | AA104: 1 | AB104: 1 | AC104: 1 | AD104: 1 | AE104: 1 | AF104: 1 | AG104: 1 | AH104: 1 | AI104: 1 | AJ104: 1 | AK104: 1 | AL104: 1 | AM104: 1 | AN104: 1 | AO104: 1 | AP104: 1
A105: COG0104 | B105: Adenylosuccinate synthase | C105: F | D105: 1 | E105: 1 | F105: 1 | G105: 1 | H105: 1 | I105: 1 | J105: 1 | K105: 1 | L105: 1 | M105: 1 | N105: 1 | O105: 1 | P105: 1 | Q105: 1 | R105: 1 | S105: 1 | T105: 1 | U105: 1 | V105: 1 | W105: 1 | X105: 1 | Y105: 1 | Z105: 1 | AA105: 1 | AB105: 1 | AC105: 1 | AD105: 1 | AE105: 1 | AF105: 1 | AG105: 1 | AH105: 1 | AI105: 1 | AJ105: 1 | AK105: 1 | AL105: 1 | AM105: 1 | AN105: 1 | AO105: 1 | AP105: 1
A106: COG0105 | B106: Nucleoside diphosphate kinase | C106: F | D106: 0 | E106: 0 | F106: 1 | G106: 1 | H106: 1 | I106: 1 | J106: 1 | K106: 1 | L106: 1 | M106: 1 | N106: 1 | O106: 1 | P106: 1 | Q106: 1 | R106: 1 | S106: 1 | T106: 1 | U106: 1 | V106: 1 | W106: 1 | X106: 1 | Y106: 1 | Z106: 1 | AA106: 1 | AB106: 1 | AC106: 1 | AD106: 1 | AE106: 1 | AF106: 1 | AG106: 1 | AH106: 1 | AI106: 1 | AJ106: 1 | AK106: 1 | AL106: 1 | AM106: 1 | AN106: 0 | AO106: 1 | AP106: 0
A107: COG0106 | B107: Phosphoribosylformimino-5-aminoimidazole carboxamide ribonucleotide (ProFAR) isomerase | C107: E | D107: 1 | E107: 1 | F107: 0 | G107: 0 | H107: 0 | I107: 0 | J107: 0 | K107: 0 | L107: 0 | M107: 0 | N107: 0 | O107: 0 | P107: 0 | Q107: 0 | R107: 0 | S107: 0 | T107: 0 | U107: 0 | V107: 0 | W107: 0 | X107: 0 | Y107: 0 | Z107: 0 | AA107: 0 | AB107: 0 | AC107: 0 | AD107: 0 | AE107: 0 | AF107: 0 | AG107: 0 | AH107: 0 | AI107: 0 | AJ107: 0 | AK107: 0 | AL107: 0 | AM107: 0 | AN107: 0 | AO107: 0 | AP107: 0
A108: COG0107 | B108: Imidazole glycerol phosphate synthase subunit HisF | C108: E | D108: 1 | E108: 1 | F108: 0 | G108: 0 | H108: 0 | I108: 0 | J108: 0 | K108: 0 | L108: 0 | M108: 0 | N108: 0 | O108: 0 | P108: 0 | Q108: 0 | R108: 0 | S108: 0 | T108: 0 | U108: 0 | V108: 0 | W108: 0 | X108: 0 | Y108: 0 | Z108: 0 | AA108: 0 | AB108: 0 | AC108: 0 | AD108: 0 | AE108: 0 | AF108: 0 | AG108: 0 | AH108: 0 | AI108: 0 | AJ108: 0 | AK108: 0 | AL108: 0 | AM108: 0 | AN108: 0 | AO108: 0 | AP108: 0
A109: COG0108 | B109: 3,4-dihydroxy-2-butanone 4-phosphate synthase | C109: H | D109: 1 | E109: 1 | F109: 0 | G109: 0 | H109: 0 | I109: 0 | J109: 0 | K109: 0 | L109: 0 | M109: 0 | N109: 0 | O109: 0 | P109: 0 | Q109: 0 | R109: 0 | S109: 0 | T109: 0 | U109: 0 | V109: 0 | W109: 0 | X109: 0 | Y109: 0 | Z109: 0 | AA109: 0 | AB109: 0 | AC109: 0 | AD109: 0 | AE109: 0 | AF109: 0 | AG109: 0 | AH109: 0 | AI109: 0 | AJ109: 0 | AK109: 0 | AL109: 0 | AM109: 0 | AN109: 1 | AO109: 0 | AP109: 1
A110: COG0109 | B110: Polyprenyltransferase (heme O synthase) | C110: HI | D110: 0 | E110: 0 | F110: 0 | G110: 0 | H110: 0 | I110: 0 | J110: 0 | K110: 0 | L110: 0 | M110: 0 | N110: 0 | O110: 0 | P110: 0 | Q110: 0 | R110: 0 | S110: 0 | T110: 0 | U110: 0 | V110: 0 | W110: 0 | X110: 0 | Y110: 0 | Z110: 0 | AA110: 0 | AB110: 0 | AC110: 0 | AD110: 0 | AE110: 0 | AF110: 0 | AG110: 0 | AH110: 0 | AI110: 0 | AJ110: 0 | AK110: 0 | AL110: 0 | AM110: 0 | AN110: 0 | AO110: 0 | AP110: 0
A111: COG0110 | B111: Acetyltransferase (isoleucine patch superfamily) | C111: R | D111: 2 | E111: 2 | F111: 3 | G111: 3 | H111: 3 | I111: 2 | J111: 3 | K111: 3 | L111: 3 | M111: 3 | N111: 4 | O111: 3 | P111: 3 | Q111: 3 | R111: 3 | S111: 3 | T111: 3 | U111: 3 | V111: 3 | W111: 3 | X111: 3 | Y111: 3 | Z111: 3 | AA111: 4 | AB111: 3 | AC111: 2 | AD111: 2 | AE111: 2 | AF111: 3 | AG111: 2 | AH111: 2 | AI111: 3 | AJ111: 2 | AK111: 2 | AL111: 2 | AM111: 2 | AN111: 3 | AO111: 3 | AP111: 2
A112: COG0111 | B112: Phosphoglycerate dehydrogenase or related dehydrogenase | C112: HR | D112: 4 | E112: 4 | F112: 1 | G112: 1 | H112: 1 | I112: 2 | J112: 1 | K112: 1 | L112: 1 | M112: 1 | N112: 1 | O112: 1 | P112: 1 | Q112: 1 | R112: 1 | S112: 1 | T112: 1 | U112: 1 | V112: 1 | W112: 1 | X112: 1 | Y112: 1 | Z112: 1 | AA112: 1 | AB112: 1 | AC112: 2 | AD112: 2 | AE112: 2 | AF112: 2 | AG112: 2 | AH112: 2 | AI112: 1 | AJ112: 2 | AK112: 2 | AL112: 2 | AM112: 2 | AN112: 4 | AO112: 1 | AP112: 4
A113: COG0112 | B113: Glycine/serine hydroxymethyltransferase | C113: E | D113: 1 | E113: 1 | F113: 1 | G113: 1 | H113: 1 | I113: 1 | J113: 1 | K113: 1 | L113: 1 | M113: 1 | N113: 1 | O113: 1 | P113: 1 | Q113: 1 | R113: 1 | S113: 1 | T113: 1 | U113: 1 | V113: 1 | W113: 1 | X113: 1 | Y113: 1 | Z113: 1 | AA113: 1 | AB113: 1 | AC113: 1 | AD113: 1 | AE113: 1 | AF113: 1 | AG113: 1 | AH113: 1 | AI113: 1 | AJ113: 1 | AK113: 1 | AL113: 1 | AM113: 1 | AN113: 1 | AO113: 1 | AP113: 1
A114: COG0113 | B114: Delta-aminolevulinic acid dehydratase, porphobilinogen synthase | C114: H | D114: 0 | E114: 0 | F114: 0 | G114: 0 | H114: 0 | I114: 0 | J114: 0 | K114: 0 | L114: 0 | M114: 0 | N114: 0 | O114: 0 | P114: 0 | Q114: 0 | R114: 0 | S114: 0 | T114: 0 | U114: 0 | V114: 0 | W114: 0 | X114: 0 | Y114: 0 | Z114: 0 | AA114: 0 | AB114: 0 | AC114: 0 | AD114: 0 | AE114: 0 | AF114: 0 | AG114: 0 | AH114: 0 | AI114: 0 | AJ114: 0 | AK114: 0 | AL114: 0 | AM114: 0 | AN114: 0 | AO114: 0 | AP114: 0
A115: COG0114 | B115: Fumarate hydratase class II | C115: C | D115: 0 | E115: 0 | F115: 0 | G115: 0 | H115: 0 | I115: 0 | J115: 0 | K115: 0 | L115: 0 | M115: 0 | N115: 0 | O115: 0 | P115: 0 | Q115: 0 | R115: 0 | S115: 0 | T115: 0 | U115: 0 | V115: 0 | W115: 0 | X115: 0 | Y115: 0 | Z115: 0 | AA115: 0 | AB115: 0 | AC115: 0 | AD115: 0 | AE115: 0 | AF115: 0 | AG115: 0 | AH115: 0 | AI115: 0 | AJ115: 0 | AK115: 0 | AL115: 0 | AM115: 0 | AN115: 0 | AO115: 0 | AP115: 0
A116: COG0115 | B116: Branched-chain amino acid aminotransferase/4-amino-4-deoxychorismate lyase | C116: EH | D116: 2 | E116: 2 | F116: 1 | G116: 1 | H116: 1 | I116: 1 | J116: 1 | K116: 1 | L116: 1 | M116: 1 | N116: 1 | O116: 1 | P116: 1 | Q116: 1 | R116: 1 | S116: 1 | T116: 1 | U116: 1 | V116: 1 | W116: 1 | X116: 1 | Y116: 1 | Z116: 1 | AA116: 1 | AB116: 1 | AC116: 1 | AD116: 1 | AE116: 1 | AF116: 1 | AG116: 1 | AH116: 1 | AI116: 1 | AJ116: 1 | AK116: 1 | AL116: 1 | AM116: 1 | AN116: 2 | AO116: 1 | AP116: 2
A117: COG0116 | B117: 23S rRNA G2445 N2-methylase RlmL | C117: J | D117: 1 | E117: 1 | F117: 1 | G117: 1 | H117: 1 | I117: 1 | J117: 1 | K117: 1 | L117: 1 | M117: 1 | N117: 1 | O117: 1 | P117: 1 | Q117: 1 | R117: 1 | S117: 1 | T117: 1 | U117: 1 | V117: 1 | W117: 1 | X117: 1 | Y117: 1 | Z117: 1 | AA117: 1 | AB117: 1 | AC117: 1 | AD117: 1 | AE117: 1 | AF117: 1 | AG117: 1 | AH117: 1 | AI117: 1 | AJ117: 1 | AK117: 1 | AL117: 1 | AM117: 1 | AN117: 1 | AO117: 1 | AP117: 1
A118: COG0117 | B118: Pyrimidine deaminase domain of riboflavin biosynthesis protein RibD | C118: H | D118: 1 | E118: 1 | F118: 0 | G118: 0 | H118: 0 | I118: 0 | J118: 0 | K118: 0 | L118: 0 | M118: 0 | N118: 0 | O118: 0 | P118: 0 | Q118: 0 | R118: 0 | S118: 0 | T118: 0 | U118: 0 | V118: 0 | W118: 0 | X118: 0 | Y118: 0 | Z118: 0 | AA118: 0 | AB118: 0 | AC118: 0 | AD118: 0 | AE118: 0 | AF118: 0 | AG118: 0 | AH118: 0 | AI118: 0 | AJ118: 0 | AK118: 0 | AL118: 0 | AM118: 0 | AN118: 1 | AO118: 0 | AP118: 1
A119: COG0118 | B119: Imidazoleglycerol phosphate synthase glutamine amidotransferase subunit HisH | C119: E | D119: 1 | E119: 1 | F119: 0 | G119: 0 | H119: 0 | I119: 0 | J119: 0 | K119: 0 | L119: 0 | M119: 0 | N119: 0 | O119: 0 | P119: 0 | Q119: 0 | R119: 0 | S119: 0 | T119: 0 | U119: 0 | V119: 0 | W119: 0 | X119: 0 | Y119: 0 | Z119: 0 | AA119: 0 | AB119: 0 | AC119: 0 | AD119: 0 | AE119: 0 | AF119: 0 | AG119: 0 | AH119: 0 | AI119: 0 | AJ119: 0 | AK119: 0 | AL119: 0 | AM119: 0 | AN119: 0 | AO119: 0 | AP119: 0
A120: COG0119 | B120: Isopropylmalate/homocitrate/citramalate synthases | C120: E | D120: 1 | E120: 1 | F120: 0 | G120: 0 | H120: 0 | I120: 0 | J120: 0 | K120: 0 | L120: 0 | M120: 0 | N120: 0 | O120: 0 | P120: 0 | Q120: 0 | R120: 0 | S120: 0 | T120: 0 | U120: 0 | V120: 0 | W120: 0 | X120: 0 | Y120: 0 | Z120: 0 | AA120: 0 | AB120: 0 | AC120: 0 | AD120: 0 | AE120: 0 | AF120: 0 | AG120: 0 | AH120: 0 | AI120: 0 | AJ120: 0 | AK120: 0 | AL120: 0 | AM120: 0 | AN120: 1 | AO120: 0 | AP120: 1
A121: COG0120 | B121: Ribose 5-phosphate isomerase | C121: G | D121: 1 | E121: 1 | F121: 1 | G121: 1 | H121: 1 | I121: 1 | J121: 1 | K121: 1 | L121: 1 | M121: 1 | N121: 1 | O121: 1 | P121: 1 | Q121: 1 | R121: 1 | S121: 1 | T121: 1 | U121: 1 | V121: 1 | W121: 1 | X121: 1 | Y121: 1 | Z121: 1 | AA121: 1 | AB121: 1 | AC121: 1 | AD121: 1 | AE121: 1 | AF121: 1 | AG121: 1 | AH121: 1 | AI121: 1 | AJ121: 1 | AK121: 1 | AL121: 1 | AM121: 1 | AN121: 1 | AO121: 1 | AP121: 1
A122: COG0121 | B122: Predicted glutamine amidotransferase | C122: R | D122: 0 | E122: 0 | F122: 0 | G122: 0 | H122: 0 | I122: 0 | J122: 0 | K122: 0 | L122: 0 | M122: 0 | N122: 0 | O122: 0 | P122: 0 | Q122: 0 | R122: 0 | S122: 0 | T122: 0 | U122: 0 | V122: 0 | W122: 0 | X122: 0 | Y122: 0 | Z122: 0 | AA122: 0 | AB122: 0 | AC122: 0 | AD122: 0 | AE122: 0 | AF122: 0 | AG122: 0 | AH122: 0 | AI122: 0 | AJ122: 0 | AK122: 0 | AL122: 0 | AM122: 0 | AN122: 0 | AO122: 0 | AP122: 0
A123: COG0122 | B123: 3-methyladenine DNA glycosylase/8-oxoguanine DNA glycosylase | C123: L | D123: 0 | E123: 0 | F123: 0 | G123: 0 | H123: 0 | I123: 0 | J123: 0 | K123: 0 | L123: 0 | M123: 0 | N123: 0 | O123: 0 | P123: 0 | Q123: 0 | R123: 0 | S123: 0 | T123: 0 | U123: 0 | V123: 0 | W123: 0 | X123: 0 | Y123: 0 | Z123: 0 | AA123: 0 | AB123: 0 | AC123: 0 | AD123: 0 | AE123: 0 | AF123: 0 | AG123: 0 | AH123: 0 | AI123: 0 | AJ123: 0 | AK123: 0 | AL123: 0 | AM123: 0 | AN123: 0 | AO123: 0 | AP123: 0
A124: COG0123 | B124: Acetoin utilization deacetylase AcuC or a related deacetylase | C124: BQ | D124: 0 | E124: 0 | F124: 0 | G124: 0 | H124: 0 | I124: 0 | J124: 0 | K124: 0 | L124: 0 | M124: 0 | N124: 0 | O124: 0 | P124: 0 | Q124: 0 | R124: 0 | S124: 0 | T124: 0 | U124: 0 | V124: 0 | W124: 0 | X124: 0 | Y124: 0 | Z124: 0 | AA124: 0 | AB124: 0 | AC124: 0 | AD124: 0 | AE124: 0 | AF124: 0 | AG124: 0 | AH124: 0 | AI124: 0 | AJ124: 0 | AK124: 0 | AL124: 0 | AM124: 0 | AN124: 0 | AO124: 0 | AP124: 0
A125: COG0124 | B125: Histidyl-tRNA synthetase | C125: J | D125: 1 | E125: 1 | F125: 1 | G125: 1 | H125: 1 | I125: 1 | J125: 1 | K125: 1 | L125: 1 | M125: 1 | N125: 1 | O125: 1 | P125: 1 | Q125: 1 | R125: 1 | S125: 1 | T125: 1 | U125: 1 | V125: 1 | W125: 1 | X125: 1 | Y125: 1 | Z125: 1 | AA125: 1 | AB125: 1 | AC125: 1 | AD125: 1 | AE125: 1 | AF125: 1 | AG125: 1 | AH125: 1 | AI125: 1 | AJ125: 1 | AK125: 1 | AL125: 1 | AM125: 1 | AN125: 1 | AO125: 1 | AP125: 1
A126: COG0125 | B126: Thymidylate kinase | C126: F | D126: 1 | E126: 1 | F126: 1 | G126: 1 | H126: 1 | I126: 1 | J126: 1 | K126: 1 | L126: 1 | M126: 1 | N126: 1 | O126: 1 | P126: 1 | Q126: 1 | R126: 1 | S126: 1 | T126: 1 | U126: 1 | V126: 1 | W126: 1 | X126: 1 | Y126: 1 | Z126: 1 | AA126: 1 | AB126: 1 | AC126: 1 | AD126: 1 | AE126: 1 | AF126: 1 | AG126: 1 | AH126: 1 | AI126: 1 | AJ126: 1 | AK126: 1 | AL126: 1 | AM126: 1 | AN126: 1 | AO126: 1 | AP126: 1
A127: COG0126 | B127: 3-phosphoglycerate kinase | C127: G | D127: 1 | E127: 1 | F127: 1 | G127: 1 | H127: 1 | I127: 1 | J127: 1 | K127: 1 | L127: 1 | M127: 1 | N127: 1 | O127: 1 | P127: 1 | Q127: 1 | R127: 1 | S127: 1 | T127: 1 | U127: 1 | V127: 1 | W127: 1 | X127: 1 | Y127: 1 | Z127: 1 | AA127: 1 | AB127: 1 | AC127: 1 | AD127: 1 | AE127: 1 | AF127: 1 | AG127: 1 | AH127: 1 | AI127: 1 | AJ127: 1 | AK127: 1 | AL127: 1 | AM127: 1 | AN127: 1 | AO127: 1 | AP127: 1
A128: COG0127 | B128: Inosine/xanthosine triphosphate pyrophosphatase, all-alpha NTP-PPase family | C128: F | D128: 1 | E128: 1 | F128: 1 | G128: 1 | H128: 1 | I128: 0 | J128: 1 | K128: 1 | L128: 1 | M128: 1 | N128: 1 | O128: 1 | P128: 1 | Q128: 1 | R128: 1 | S128: 1 | T128: 1 | U128: 1 | V128: 1 | W128: 1 | X128: 1 | Y128: 1 | Z128: 1 | AA128: 1 | AB128: 1 | AC128: 0 | AD128: 0 | AE128: 0 | AF128: 0 | AG128: 0 | AH128: 0 | AI128: 1 | AJ128: 0 | AK128: 0 | AL128: 0 | AM128: 0 | AN128: 0 | AO128: 1 | AP128: 0
A129: COG0128 | B129: 5-enolpyruvylshikimate-3-phosphate synthase | C129: E | D129: 1 | E129: 1 | F129: 1 | G129: 1 | H129: 1 | I129: 1 | J129: 1 | K129: 1 | L129: 1 | M129: 1 | N129: 1 | O129: 1 | P129: 1 | Q129: 1 | R129: 1 | S129: 1 | T129: 1 | U129: 1 | V129: 1 | W129: 1 | X129: 1 | Y129: 1 | Z129: 1 | AA129: 1 | AB129: 1 | AC129: 1 | AD129: 1 | AE129: 1 | AF129: 1 | AG129: 1 | AH129: 1 | AI129: 1 | AJ129: 1 | AK129: 1 | AL129: 1 | AM129: 1 | AN129: 1 | AO129: 1 | AP129: 1
A130: COG0129 | B130: Dihydroxyacid dehydratase/phosphogluconate dehydratase | C130: EG | D130: 1 | E130: 1 | F130: 0 | G130: 0 | H130: 0 | I130: 0 | J130: 0 | K130: 0 | L130: 0 | M130: 0 | N130: 0 | O130: 0 | P130: 0 | Q130: 0 | R130: 0 | S130: 0 | T130: 0 | U130: 0 | V130: 0 | W130: 0 | X130: 0 | Y130: 0 | Z130: 0 | AA130: 0 | AB130: 0 | AC130: 0 | AD130: 0 | AE130: 0 | AF130: 0 | AG130: 0 | AH130: 0 | AI130: 0 | AJ130: 0 | AK130: 0 | AL130: 0 | AM130: 0 | AN130: 1 | AO130: 0 | AP130: 1
A131: COG0130 | B131: tRNA U55 pseudouridine synthase TruB, may also work on U342 of tmRNA | C131: J | D131: 1 | E131: 1 | F131: 1 | G131: 1 | H131: 1 | I131: 1 | J131: 1 | K131: 1 | L131: 1 | M131: 1 | N131: 1 | O131: 1 | P131: 1 | Q131: 1 | R131: 1 | S131: 1 | T131: 1 | U131: 1 | V131: 1 | W131: 1 | X131: 1 | Y131: 1 | Z131: 1 | AA131: 1 | AB131: 1 | AC131: 1 | AD131: 1 | AE131: 1 | AF131: 1 | AG131: 1 | AH131: 1 | AI131: 1 | AJ131: 1 | AK131: 1 | AL131: 1 | AM131: 1 | AN131: 1 | AO131: 1 | AP131: 1
A132: COG0131 | B132: Imidazoleglycerol phosphate dehydratase HisB | C132: E | D132: 1 | E132: 1 | F132: 0 | G132: 0 | H132: 0 | I132: 0 | J132: 0 | K132: 0 | L132: 0 | M132: 0 | N132: 0 | O132: 0 | P132: 0 | Q132: 0 | R132: 0 | S132: 0 | T132: 0 | U132: 0 | V132: 0 | W132: 0 | X132: 0 | Y132: 0 | Z132: 0 | AA132: 0 | AB132: 0 | AC132: 0 | AD132: 0 | AE132: 0 | AF132: 0 | AG132: 0 | AH132: 0 | AI132: 0 | AJ132: 0 | AK132: 0 | AL132: 0 | AM132: 0 | AN132: 0 | AO132: 0 | AP132: 0
A133: COG0132 | B133: Dethiobiotin synthetase | C133: H | D133: 0 | E133: 0 | F133: 0 | G133: 0 | H133: 0 | I133: 0 | J133: 0 | K133: 0 | L133: 0 | M133: 0 | N133: 0 | O133: 0 | P133: 0 | Q133: 0 | R133: 0 | S133: 0 | T133: 0 | U133: 0 | V133: 0 | W133: 0 | X133: 0 | Y133: 0 | Z133: 0 | AA133: 0 | AB133: 0 | AC133: 0 | AD133: 0 | AE133: 0 | AF133: 0 | AG133: 0 | AH133: 0 | AI133: 0 | AJ133: 0 | AK133: 0 | AL133: 0 | AM133: 0 | AN133: 0 | AO133: 0 | AP133: 0
A134: COG0133 | B134: Tryptophan synthase beta chain | C134: E | D134: 1 | E134: 1 | F134: 0 | G134: 0 | H134: 0 | I134: 0 | J134: 0 | K134: 0 | L134: 0 | M134: 0 | N134: 0 | O134: 0 | P134: 0 | Q134: 0 | R134: 0 | S134: 0 | T134: 0 | U134: 0 | V134: 0 | W134: 0 | X134: 0 | Y134: 0 | Z134: 0 | AA134: 0 | AB134: 0 | AC134: 0 | AD134: 0 | AE134: 0 | AF134: 0 | AG134: 0 | AH134: 0 | AI134: 0 | AJ134: 0 | AK134: 0 | AL134: 0 | AM134: 0 | AN134: 0 | AO134: 0 | AP134: 0
A135: COG0134 | B135: Indole-3-glycerol phosphate synthase | C135: E | D135: 1 | E135: 1 | F135: 0 | G135: 0 | H135: 0 | I135: 0 | J135: 0 | K135: 0 | L135: 0 | M135: 0 | N135: 0 | O135: 0 | P135: 0 | Q135: 0 | R135: 0 | S135: 0 | T135: 0 | U135: 0 | V135: 0 | W135: 0 | X135: 0 | Y135: 0 | Z135: 0 | AA135: 0 | AB135: 0 | AC135: 0 | AD135: 0 | AE135: 0 | AF135: 0 | AG135: 0 | AH135: 0 | AI135: 0 | AJ135: 0 | AK135: 0 | AL135: 0 | AM135: 0 | AN135: 0 | AO135: 0 | AP135: 0
A136: COG0135 | B136: Phosphoribosylanthranilate isomerase | C136: E | D136: 1 | E136: 1 | F136: 0 | G136: 0 | H136: 0 | I136: 0 | J136: 0 | K136: 0 | L136: 0 | M136: 0 | N136: 0 | O136: 0 | P136: 0 | Q136: 0 | R136: 0 | S136: 0 | T136: 0 | U136: 0 | V136: 0 | W136: 0 | X136: 0 | Y136: 0 | Z136: 0 | AA136: 0 | AB136: 0 | AC136: 0 | AD136: 0 | AE136: 0 | AF136: 0 | AG136: 0 | AH136: 0 | AI136: 0 | AJ136: 0 | AK136: 0 | AL136: 0 | AM136: 0 | AN136: 0 | AO136: 0 | AP136: 0
A137: COG0136 | B137: Aspartate-semialdehyde dehydrogenase | C137: E | D137: 1 | E137: 1 | F137: 1 | G137: 1 | H137: 1 | I137: 1 | J137: 1 | K137: 1 | L137: 1 | M137: 1 | N137: 1 | O137: 1 | P137: 1 | Q137: 1 | R137: 1 | S137: 1 | T137: 1 | U137: 1 | V137: 1 | W137: 1 | X137: 1 | Y137: 1 | Z137: 1 | AA137: 1 | AB137: 1 | AC137: 1 | AD137: 1 | AE137: 1 | AF137: 1 | AG137: 1 | AH137: 1 | AI137: 1 | AJ137: 1 | AK137: 1 | AL137: 1 | AM137: 1 | AN137: 1 | AO137: 1 | AP137: 1
A138: COG0137 | B138: Argininosuccinate synthase | C138: E | D138: 1 | E138: 1 | F138: 0 | G138: 0 | H138: 0 | I138: 0 | J138: 0 | K138: 0 | L138: 0 | M138: 0 | N138: 0 | O138: 0 | P138: 0 | Q138: 0 | R138: 0 | S138: 0 | T138: 0 | U138: 0 | V138: 0 | W138: 0 | X138: 0 | Y138: 0 | Z138: 0 | AA138: 0 | AB138: 0 | AC138: 0 | AD138: 0 | AE138: 0 | AF138: 0 | AG138: 0 | AH138: 0 | AI138: 0 | AJ138: 0 | AK138: 0 | AL138: 0 | AM138: 0 | AN138: 1 | AO138: 0 | AP138: 1
A139: COG0138 | B139: AICAR transformylase/IMP cyclohydrolase PurH | C139: E | D139: 1 | E139: 1 | F139: 1 | G139: 1 | H139: 1 | I139: 1 | J139: 1 | K139: 1 | L139: 1 | M139: 1 | N139: 1 | O139: 1 | P139: 1 | Q139: 1 | R139: 1 | S139: 1 | T139: 1 | U139: 1 | V139: 1 | W139: 1 | X139: 1 | Y139: 1 | Z139: 1 | AA139: 1 | AB139: 1 | AC139: 1 | AD139: 1 | AE139: 1 | AF139: 1 | AG139: 1 | AH139: 1 | AI139: 1 | AJ139: 1 | AK139: 1 | AL139: 1 | AM139: 1 | AN139: 1 | AO139: 1 | AP139: 1
A140: COG0139 | B140: Phosphoribosyl-AMP cyclohydrolase | C140: E | D140: 1 | E140: 1 | F140: 0 | G140: 0 | H140: 0 | I140: 0 | J140: 0 | K140: 0 | L140: 0 | M140: 0 | N140: 0 | O140: 0 | P140: 0 | Q140: 0 | R140: 0 | S140: 0 | T140: 0 | U140: 0 | V140: 0 | W140: 0 | X140: 0 | Y140: 0 | Z140: 0 | AA140: 0 | AB140: 0 | AC140: 0 | AD140: 0 | AE140: 0 | AF140: 0 | AG140: 0 | AH140: 0 | AI140: 0 | AJ140: 0 | AK140: 0 | AL140: 0 | AM140: 0 | AN140: 0 | AO140: 0 | AP140: 0
A141: COG0140 | B141: Phosphoribosyl-ATP pyrophosphohydrolase | C141: E | D141: 0 | E141: 0 | F141: 0 | G141: 0 | H141: 0 | I141: 0 | J141: 0 | K141: 0 | L141: 0 | M141: 0 | N141: 0 | O141: 0 | P141: 0 | Q141: 0 | R141: 0 | S141: 0 | T141: 0 | U141: 0 | V141: 0 | W141: 0 | X141: 0 | Y141: 0 | Z141: 0 | AA141: 0 | AB141: 0 | AC141: 0 | AD141: 0 | AE141: 0 | AF141: 0 | AG141: 0 | AH141: 0 | AI141: 0 | AJ141: 0 | AK141: 0 | AL141: 0 | AM141: 0 | AN141: 0 | AO141: 0 | AP141: 0
A142: COG0141 | B142: Histidinol dehydrogenase | C142: E | D142: 1 | E142: 1 | F142: 0 | G142: 0 | H142: 0 | I142: 0 | J142: 0 | K142: 0 | L142: 0 | M142: 0 | N142: 0 | O142: 0 | P142: 0 | Q142: 0 | R142: 0 | S142: 0 | T142: 0 | U142: 0 | V142: 0 | W142: 0 | X142: 0 | Y142: 0 | Z142: 0 | AA142: 0 | AB142: 0 | AC142: 0 | AD142: 0 | AE142: 0 | AF142: 0 | AG142: 0 | AH142: 0 | AI142: 0 | AJ142: 0 | AK142: 0 | AL142: 0 | AM142: 0 | AN142: 0 | AO142: 0 | AP142: 0
A143: COG0142 | B143: Geranylgeranyl pyrophosphate synthase | C143: H | D143: 3 | E143: 3 | F143: 3 | G143: 3 | H143: 3 | I143: 2 | J143: 3 | K143: 3 | L143: 3 | M143: 3 | N143: 3 | O143: 3 | P143: 3 | Q143: 3 | R143: 3 | S143: 3 | T143: 3 | U143: 3 | V143: 3 | W143: 3 | X143: 3 | Y143: 3 | Z143: 3 | AA143: 3 | AB143: 3 | AC143: 2 | AD143: 2 | AE143: 2 | AF143: 2 | AG143: 2 | AH143: 2 | AI143: 3 | AJ143: 2 | AK143: 2 | AL143: 2 | AM143: 2 | AN143: 3 | AO143: 3 | AP143: 3
A144: COG0143 | B144: Methionyl-tRNA synthetase | C144: J | D144: 1 | E144: 1 | F144: 1 | G144: 1 | H144: 1 | I144: 1 | J144: 1 | K144: 1 | L144: 1 | M144: 1 | N144: 1 | O144: 1 | P144: 1 | Q144: 1 | R144: 1 | S144: 1 | T144: 1 | U144: 1 | V144: 1 | W144: 1 | X144: 1 | Y144: 1 | Z144: 1 | AA144: 1 | AB144: 1 | AC144: 1 | AD144: 1 | AE144: 1 | AF144: 1 | AG144: 1 | AH144: 1 | AI144: 1 | AJ144: 1 | AK144: 1 | AL144: 1 | AM144: 1 | AN144: 1 | AO144: 1 | AP144: 1
A145: COG0144 | B145: 16S rRNA C967 or C1407 C5-methylase, RsmB/RsmF family | C145: J | D145: 2 | E145: 2 | F145: 1 | G145: 1 | H145: 1 | I145: 2 | J145: 1 | K145: 1 | L145: 1 | M145: 1 | N145: 1 | O145: 1 | P145: 1 | Q145: 1 | R145: 1 | S145: 1 | T145: 1 | U145: 1 | V145: 1 | W145: 1 | X145: 1 | Y145: 1 | Z145: 1 | AA145: 1 | AB145: 1 | AC145: 2 | AD145: 2 | AE145: 2 | AF145: 2 | AG145: 2 | AH145: 2 | AI145: 1 | AJ145: 2 | AK145: 2 | AL145: 2 | AM145: 2 | AN145: 2 | AO145: 1 | AP145: 2
A146: COG0145 | B146: N-methylhydantoinase A/oxoprolinase/acetone carboxylase, beta subunit | C146: EQ | D146: 0 | E146: 0 | F146: 0 | G146: 0 | H146: 0 | I146: 1 | J146: 0 | K146: 0 | L146: 0 | M146: 0 | N146: 0 | O146: 0 | P146: 0 | Q146: 0 | R146: 0 | S146: 0 | T146: 0 | U146: 0 | V146: 0 | W146: 0 | X146: 0 | Y146: 0 | Z146: 0 | AA146: 0 | AB146: 0 | AC146: 1 | AD146: 1 | AE146: 1 | AF146: 1 | AG146: 1 | AH146: 1 | AI146: 0 | AJ146: 1 | AK146: 1 | AL146: 1 | AM146: 1 | AN146: 0 | AO146: 0 | AP146: 0
A147: COG0146 | B147: N-methylhydantoinase B/oxoprolinase/acetone carboxylase, alpha subunit | C147: EQ | D147: 0 | E147: 0 | F147: 0 | G147: 0 | H147: 0 | I147: 0 | J147: 0 | K147: 0 | L147: 0 | M147: 0 | N147: 0 | O147: 0 | P147: 0 | Q147: 0 | R147: 0 | S147: 0 | T147: 0 | U147: 0 | V147: 0 | W147: 0 | X147: 0 | Y147: 0 | Z147: 0 | AA147: 0 | AB147: 0 | AC147: 0 | AD147: 0 | AE147: 0 | AF147: 0 | AG147: 0 | AH147: 0 | AI147: 0 | AJ147: 0 | AK147: 0 | AL147: 0 | AM147: 0 | AN147: 0 | AO147: 0 | AP147: 0
A148: COG0147 | B148: Anthranilate/para-aminobenzoate synthases component I | C148: EH | D148: 1 | E148: 1 | F148: 0 | G148: 0 | H148: 0 | I148: 0 | J148: 0 | K148: 0 | L148: 0 | M148: 0 | N148: 0 | O148: 0 | P148: 0 | Q148: 0 | R148: 0 | S148: 0 | T148: 0 | U148: 0 | V148: 0 | W148: 0 | X148: 0 | Y148: 0 | Z148: 0 | AA148: 0 | AB148: 0 | AC148: 0 | AD148: 0 | AE148: 0 | AF148: 0 | AG148: 0 | AH148: 0 | AI148: 0 | AJ148: 0 | AK148: 0 | AL148: 0 | AM148: 0 | AN148: 0 | AO148: 0 | AP148: 0
A149: COG0148 | B149: Enolase | C149: G | D149: 1 | E149: 1 | F149: 1 | G149: 1 | H149: 1 | I149: 1 | J149: 1 | K149: 1 | L149: 1 | M149: 1 | N149: 1 | O149: 1 | P149: 1 | Q149: 1 | R149: 1 | S149: 1 | T149: 1 | U149: 1 | V149: 1 | W149: 1 | X149: 1 | Y149: 1 | Z149: 1 | AA149: 1 | AB149: 1 | AC149: 1 | AD149: 1 | AE149: 1 | AF149: 1 | AG149: 1 | AH149: 1 | AI149: 1 | AJ149: 1 | AK149: 1 | AL149: 1 | AM149: 1 | AN149: 1 | AO149: 1 | AP149: 1
A150: COG0149 | B150: Triosephosphate isomerase | C150: G | D150: 2 | E150: 2 | F150: 1 | G150: 1 | H150: 1 | I150: 1 | J150: 1 | K150: 2 | L150: 1 | M150: 1 | N150: 1 | O150: 1 | P150: 2 | Q150: 1 | R150: 1 | S150: 1 | T150: 1 | U150: 1 | V150: 1 | W150: 1 | X150: 1 | Y150: 2 | Z150: 1 | AA150: 1 | AB150: 2 | AC150: 1 | AD150: 1 | AE150: 1 | AF150: 1 | AG150: 1 | AH150: 1 | AI150: 1 | AJ150: 1 | AK150: 1 | AL150: 1 | AM150: 1 | AN150: 2 | AO150: 1 | AP150: 2
A151: COG0150 | B151: Phosphoribosylaminoimidazole (AIR) synthetase | C151: F | D151: 1 | E151: 1 | F151: 1 | G151: 1 | H151: 1 | I151: 1 | J151: 1 | K151: 1 | L151: 1 | M151: 1 | N151: 1 | O151: 1 | P151: 1 | Q151: 1 | R151: 1 | S151: 1 | T151: 1 | U151: 1 | V151: 1 | W151: 1 | X151: 1 | Y151: 1 | Z151: 1 | AA151: 1 | AB151: 1 | AC151: 1 | AD151: 1 | AE151: 1 | AF151: 1 | AG151: 1 | AH151: 1 | AI151: 1 | AJ151: 1 | AK151: 1 | AL151: 1 | AM151: 1 | AN151: 1 | AO151: 1 | AP151: 1
A152: COG0151 | B152: Phosphoribosylamine-glycine ligase | C152: F | D152: 1 | E152: 1 | F152: 1 | G152: 1 | H152: 1 | I152: 1 | J152: 1 | K152: 1 | L152: 1 | M152: 1 | N152: 1 | O152: 1 | P152: 1 | Q152: 1 | R152: 1 | S152: 1 | T152: 1 | U152: 1 | V152: 1 | W152: 1 | X152: 1 | Y152: 1 | Z152: 1 | AA152: 1 | AB152: 1 | AC152: 1 | AD152: 1 | AE152: 1 | AF152: 1 | AG152: 1 | AH152: 1 | AI152: 1 | AJ152: 1 | AK152: 1 | AL152: 1 | AM152: 1 | AN152: 1 | AO152: 1 | AP152: 1
A153: COG0152 | B153: Phosphoribosylaminoimidazole-succinocarboxamide synthase | C153: F | D153: 1 | E153: 1 | F153: 1 | G153: 1 | H153: 1 | I153: 1 | J153: 1 | K153: 1 | L153: 1 | M153: 1 | N153: 1 | O153: 1 | P153: 1 | Q153: 1 | R153: 1 | S153: 1 | T153: 1 | U153: 1 | V153: 1 | W153: 1 | X153: 1 | Y153: 1 | Z153: 1 | AA153: 1 | AB153: 1 | AC153: 1 | AD153: 1 | AE153: 1 | AF153: 1 | AG153: 1 | AH153: 1 | AI153: 1 | AJ153: 1 | AK153: 1 | AL153: 1 | AM153: 1 | AN153: 1 | AO153: 1 | AP153: 1
A154: COG0153 | B154: Galactokinase | C154: G | D154: 1 | E154: 1 | F154: 1 | G154: 1 | H154: 1 | I154: 1 | J154: 1 | K154: 1 | L154: 1 | M154: 1 | N154: 1 | O154: 1 | P154: 1 | Q154: 1 | R154: 1 | S154: 1 | T154: 1 | U154: 1 | V154: 1 | W154: 1 | X154: 1 | Y154: 1 | Z154: 1 | AA154: 1 | AB154: 1 | AC154: 1 | AD154: 1 | AE154: 1 | AF154: 1 | AG154: 1 | AH154: 1 | AI154: 1 | AJ154: 1 | AK154: 1 | AL154: 1 | AM154: 1 | AN154: 1 | AO154: 1 | AP154: 1
A155: COG0154 | B155: Asp-tRNAAsn/Glu-tRNAGln amidotransferase A subunit or related amidase | C155: J | D155: 2 | E155: 2 | F155: 3 | G155: 4 | H155: 4 | I155: 2 | J155: 4 | K155: 4 | L155: 4 | M155: 4 | N155: 4 | O155: 4 | P155: 4 | Q155: 4 | R155: 4 | S155: 4 | T155: 4 | U155: 4 | V155: 4 | W155: 4 | X155: 3 | Y155: 4 | Z155: 4 | AA155: 4 | AB155: 4 | AC155: 2 | AD155: 2 | AE155: 2 | AF155: 2 | AG155: 2 | AH155: 2 | AI155: 4 | AJ155: 2 | AK155: 2 | AL155: 2 | AM155: 2 | AN155: 2 | AO155: 4 | AP155: 2
A156: COG0155 | B156: Sulfite reductase, beta subunit (hemoprotein) | C156: P | D156: 0 | E156: 0 | F156: 0 | G156: 0 | H156: 0 | I156: 0 | J156: 0 | K156: 0 | L156: 0 | M156: 0 | N156: 0 | O156: 0 | P156: 0 | Q156: 0 | R156: 0 | S156: 0 | T156: 0 | U156: 0 | V156: 0 | W156: 0 | X156: 0 | Y156: 0 | Z156: 0 | AA156: 0 | AB156: 0 | AC156: 0 | AD156: 0 | AE156: 0 | AF156: 0 | AG156: 0 | AH156: 0 | AI156: 0 | AJ156: 0 | AK156: 0 | AL156: 0 | AM156: 0 | AN156: 0 | AO156: 0 | AP156: 0
A157: COG0156 | B157: 7-keto-8-aminopelargonate synthetase or related enzyme | C157: H | D157: 0 | E157: 0 | F157: 0 | G157: 0 | H157: 0 | I157: 1 | J157: 0 | K157: 0 | L157: 0 | M157: 0 | N157: 0 | O157: 0 | P157: 0 | Q157: 0 | R157: 0 | S157: 0 | T157: 0 | U157: 0 | V157: 0 | W157: 0 | X157: 0 | Y157: 0 | Z157: 0 | AA157: 0 | AB157: 0 | AC157: 1 | AD157: 1 | AE157: 1 | AF157: 1 | AG157: 1 | AH157: 1 | AI157: 0 | AJ157: 1 | AK157: 1 | AL157: 1 | AM157: 1 | AN157: 0 | AO157: 0 | AP157: 0
A158: COG0157 | B158: Nicotinate-nucleotide pyrophosphorylase | C158: H | D158: 0 | E158: 0 | F158: 0 | G158: 0 | H158: 0 | I158: 0 | J158: 0 | K158: 0 | L158: 0 | M158: 0 | N158: 0 | O158: 0 | P158: 0 | Q158: 0 | R158: 0 | S158: 0 | T158: 0 | U158: 0 | V158: 0 | W158: 0 | X158: 0 | Y158: 0 | Z158: 0 | AA158: 0 | AB158: 0 | AC158: 0 | AD158: 0 | AE158: 0 | AF158: 0 | AG158: 0 | AH158: 0 | AI158: 0 | AJ158: 0 | AK158: 0 | AL158: 0 | AM158: 0 | AN158: 0 | AO158: 0 | AP158: 0
A159: COG0158 | B159: Fructose-1,6-bisphosphatase | C159: G | D159: 0 | E159: 0 | F159: 0 | G159: 0 | H159: 0 | I159: 0 | J159: 0 | K159: 0 | L159: 0 | M159: 0 | N159: 0 | O159: 0 | P159: 0 | Q159: 0 | R159: 0 | S159: 0 | T159: 0 | U159: 0 | V159: 0 | W159: 0 | X159: 0 | Y159: 0 | Z159: 0 | AA159: 0 | AB159: 0 | AC159: 0 | AD159: 0 | AE159: 0 | AF159: 0 | AG159: 0 | AH159: 0 | AI159: 0 | AJ159: 0 | AK159: 0 | AL159: 0 | AM159: 0 | AN159: 0 | AO159: 0 | AP159: 0
A160: COG0159 | B160: Tryptophan synthase alpha chain | C160: E | D160: 1 | E160: 1 | F160: 0 | G160: 0 | H160: 0 | I160: 0 | J160: 0 | K160: 0 | L160: 0 | M160: 0 | N160: 0 | O160: 0 | P160: 0 | Q160: 0 | R160: 0 | S160: 0 | T160: 0 | U160: 0 | V160: 0 | W160: 0 | X160: 0 | Y160: 0 | Z160: 0 | AA160: 0 | AB160: 0 | AC160: 0 | AD160: 0 | AE160: 0 | AF160: 0 | AG160: 0 | AH160: 0 | AI160: 0 | AJ160: 0 | AK160: 0 | AL160: 0 | AM160: 0 | AN160: 0 | AO160: 0 | AP160: 0
A161: COG0160 | B161: 4-aminobutyrate aminotransferase or related aminotransferase | C161: E | D161: 0 | E161: 0 | F161: 0 | G161: 0 | H161: 0 | I161: 0 | J161: 0 | K161: 0 | L161: 0 | M161: 0 | N161: 0 | O161: 0 | P161: 0 | Q161: 0 | R161: 0 | S161: 0 | T161: 0 | U161: 0 | V161: 0 | W161: 0 | X161: 0 | Y161: 0 | Z161: 0 | AA161: 0 | AB161: 0 | AC161: 0 | AD161: 0 | AE161: 0 | AF161: 0 | AG161: 0 | AH161: 0 | AI161: 0 | AJ161: 0 | AK161: 0 | AL161: 0 | AM161: 0 | AN161: 0 | AO161: 0 | AP161: 0
A162: COG0161 | B162: Adenosylmethionine-8-amino-7-oxononanoate aminotransferase | C162: H | D162: 0 | E162: 0 | F162: 0 | G162: 0 | H162: 0 | I162: 0 | J162: 0 | K162: 0 | L162: 0 | M162: 0 | N162: 0 | O162: 0 | P162: 0 | Q162: 0 | R162: 0 | S162: 0 | T162: 0 | U162: 0 | V162: 0 | W162: 0 | X162: 0 | Y162: 0 | Z162: 1 | AA162: 0 | AB162: 0 | AC162: 0 | AD162: 0 | AE162: 0 | AF162: 0 | AG162: 0 | AH162: 0 | AI162: 0 | AJ162: 0 | AK162: 0 | AL162: 0 | AM162: 0 | AN162: 0 | AO162: 0 | AP162: 0
A163: COG0162 | B163: Tyrosyl-tRNA synthetase | C163: J | D163: 1 | E163: 1 | F163: 2 | G163: 2 | H163: 2 | I163: 1 | J163: 2 | K163: 2 | L163: 2 | M163: 2 | N163: 2 | O163: 2 | P163: 2 | Q163: 2 | R163: 2 | S163: 2 | T163: 2 | U163: 2 | V163: 2 | W163: 2 | X163: 2 | Y163: 2 | Z163: 2 | AA163: 2 | AB163: 2 | AC163: 1 | AD163: 1 | AE163: 1 | AF163: 1 | AG163: 1 | AH163: 1 | AI163: 2 | AJ163: 1 | AK163: 1 | AL163: 1 | AM163: 1 | AN163: 1 | AO163: 2 | AP163: 1
A164: COG0163 | B164: 3-polyprenyl-4-hydroxybenzoate decarboxylase | C164: H | D164: 0 | E164: 0 | F164: 0 | G164: 0 | H164: 0 | I164: 1 | J164: 0 | K164: 0 | L164: 0 | M164: 0 | N164: 0 | O164: 0 | P164: 0 | Q164: 0 | R164: 0 | S164: 0 | T164: 0 | U164: 0 | V164: 0 | W164: 0 | X164: 0 | Y164: 0 | Z164: 0 | AA164: 0 | AB164: 0 | AC164: 1 | AD164: 1 | AE164: 1 | AF164: 1 | AG164: 1 | AH164: 1 | AI164: 0 | AJ164: 1 | AK164: 1 | AL164: 1 | AM164: 1 | AN164: 0 | AO164: 0 | AP164: 0
A165: COG0164 | B165: Ribonuclease HII | C165: L | D165: 1 | E165: 1 | F165: 1 | G165: 1 | H165: 1 | I165: 1 | J165: 1 | K165: 1 | L165: 1 | M165: 1 | N165: 1 | O165: 1 | P165: 1 | Q165: 1 | R165: 1 | S165: 1 | T165: 1 | U165: 1 | V165: 1 | W165: 1 | X165: 1 | Y165: 1 | Z165: 1 | AA165: 1 | AB165: 1 | AC165: 1 | AD165: 1 | AE165: 1 | AF165: 1 | AG165: 1 | AH165: 1 | AI165: 1 | AJ165: 1 | AK165: 1 | AL165: 1 | AM165: 1 | AN165: 1 | AO165: 1 | AP165: 1
A166: COG0165 | B166: Argininosuccinate lyase | C166: E | D166: 1 | E166: 1 | F166: 0 | G166: 0 | H166: 0 | I166: 0 | J166: 0 | K166: 0 | L166: 0 | M166: 0 | N166: 0 | O166: 0 | P166: 0 | Q166: 0 | R166: 0 | S166: 0 | T166: 0 | U166: 0 | V166: 0 | W166: 0 | X166: 0 | Y166: 0 | Z166: 0 | AA166: 0 | AB166: 0 | AC166: 0 | AD166: 0 | AE166: 0 | AF166: 0 | AG166: 0 | AH166: 0 | AI166: 0 | AJ166: 0 | AK166: 0 | AL166: 0 | AM166: 0 | AN166: 1 | AO166: 0 | AP166: 1
A167: COG0166 | B167: Glucose-6-phosphate isomerase | C167: G | D167: 1 | E167: 1 | F167: 1 | G167: 1 | H167: 1 | I167: 1 | J167: 1 | K167: 1 | L167: 1 | M167: 1 | N167: 1 | O167: 1 | P167: 1 | Q167: 1 | R167: 1 | S167: 1 | T167: 1 | U167: 1 | V167: 1 | W167: 1 | X167: 1 | Y167: 1 | Z167: 1 | AA167: 1 | AB167: 1 | AC167: 1 | AD167: 1 | AE167: 1 | AF167: 1 | AG167: 1 | AH167: 1 | AI167: 1 | AJ167: 1 | AK167: 1 | AL167: 1 | AM167: 1 | AN167: 1 | AO167: 1 | AP167: 1
A168: COG0167 | B168: Dihydroorotate dehydrogenase | C168: F | D168: 2 | E168: 2 | F168: 2 | G168: 2 | H168: 2 | I168: 2 | J168: 2 | K168: 2 | L168: 2 | M168: 2 | N168: 2 | O168: 2 | P168: 2 | Q168: 2 | R168: 2 | S168: 2 | T168: 2 | U168: 2 | V168: 2 | W168: 2 | X168: 1 | Y168: 2 | Z168: 2 | AA168: 2 | AB168: 2 | AC168: 2 | AD168: 2 | AE168: 2 | AF168: 2 | AG168: 2 | AH168: 2 | AI168: 2 | AJ168: 2 | AK168: 2 | AL168: 2 | AM168: 2 | AN168: 2 | AO168: 2 | AP168: 2
A169: COG0168 | B169: Trk-type K+ transport system, membrane component | C169: P | D169: 2 | E169: 2 | F169: 2 | G169: 2 | H169: 2 | I169: 2 | J169: 2 | K169: 2 | L169: 2 | M169: 2 | N169: 2 | O169: 2 | P169: 2 | Q169: 2 | R169: 2 | S169: 2 | T169: 2 | U169: 2 | V169: 2 | W169: 2 | X169: 2 | Y169: 2 | Z169: 2 | AA169: 2 | AB169: 2 | AC169: 2 | AD169: 2 | AE169: 2 | AF169: 2 | AG169: 2 | AH169: 2 | AI169: 2 | AJ169: 2 | AK169: 2 | AL169: 2 | AM169: 2 | AN169: 2 | AO169: 2 | AP169: 2
A170: COG0169 | B170: Shikimate 5-dehydrogenase | C170: E | D170: 1 | E170: 1 | F170: 1 | G170: 1 | H170: 1 | I170: 1 | J170: 1 | K170: 1 | L170: 1 | M170: 1 | N170: 1 | O170: 1 | P170: 1 | Q170: 1 | R170: 1 | S170: 1 | T170: 1 | U170: 1 | V170: 1 | W170: 1 | X170: 1 | Y170: 1 | Z170: 1 | AA170: 1 | AB170: 1 | AC170: 1 | AD170: 1 | AE170: 1 | AF170: 1 | AG170: 1 | AH170: 1 | AI170: 1 | AJ170: 1 | AK170: 1 | AL170: 1 | AM170: 1 | AN170: 1 | AO170: 1 | AP170: 1
A171: COG0170 | B171: Dolichol kinase | C171: O | D171: 0 | E171: 0 | F171: 0 | G171: 0 | H171: 0 | I171: 0 | J171: 0 | K171: 0 | L171: 0 | M171: 0 | N171: 0 | O171: 0 | P171: 0 | Q171: 0 | R171: 0 | S171: 0 | T171: 0 | U171: 0 | V171: 0 | W171: 0 | X171: 0 | Y171: 0 | Z171: 0 | AA171: 0 | AB171: 0 | AC171: 0 | AD171: 0 | AE171: 0 | AF171: 0 | AG171: 0 | AH171: 0 | AI171: 0 | AJ171: 0 | AK171: 0 | AL171: 0 | AM171: 0 | AN171: 0 | AO171: 0 | AP171: 0
A172: COG0171 | B172: NH3-dependent NAD+ synthetase | C172: H | D172: 1 | E172: 1 | F172: 1 | G172: 1 | H172: 1 | I172: 1 | J172: 1 | K172: 1 | L172: 1 | M172: 1 | N172: 1 | O172: 1 | P172: 1 | Q172: 1 | R172: 1 | S172: 1 | T172: 1 | U172: 1 | V172: 1 | W172: 1 | X172: 1 | Y172: 1 | Z172: 1 | AA172: 1 | AB172: 1 | AC172: 1 | AD172: 1 | AE172: 1 | AF172: 1 | AG172: 1 | AH172: 1 | AI172: 1 | AJ172: 1 | AK172: 1 | AL172: 1 | AM172: 1 | AN172: 1 | AO172: 1 | AP172: 1
A173: COG0172 | B173: Seryl-tRNA synthetase | C173: J | D173: 1 | E173: 1 | F173: 2 | G173: 2 | H173: 2 | I173: 1 | J173: 2 | K173: 2 | L173: 2 | M173: 2 | N173: 2 | O173: 2 | P173: 2 | Q173: 2 | R173: 2 | S173: 1 | T173: 2 | U173: 2 | V173: 2 | W173: 2 | X173: 2 | Y173: 2 | Z173: 2 | AA173: 2 | AB173: 2 | AC173: 1 | AD173: 1 | AE173: 1 | AF173: 1 | AG173: 1 | AH173: 1 | AI173: 2 | AJ173: 1 | AK173: 1 | AL173: 1 | AM173: 1 | AN173: 1 | AO173: 2 | AP173: 1
A174: COG0173 | B174: Aspartyl-tRNA synthetase | C174: J | D174: 1 | E174: 1 | F174: 1 | G174: 1 | H174: 1 | I174: 1 | J174: 1 | K174: 1 | L174: 1 | M174: 1 | N174: 1 | O174: 1 | P174: 1 | Q174: 1 | R174: 1 | S174: 1 | T174: 1 | U174: 1 | V174: 1 | W174: 1 | X174: 1 | Y174: 1 | Z174: 1 | AA174: 1 | AB174: 1 | AC174: 1 | AD174: 1 | AE174: 1 | AF174: 1 | AG174: 1 | AH174: 1 | AI174: 1 | AJ174: 1 | AK174: 1 | AL174: 1 | AM174: 1 | AN174: 1 | AO174: 1 | AP174: 1
A175: COG0174 | B175: Glutamine synthetase | C175: E | D175: 1 | E175: 1 | F175: 1 | G175: 1 | H175: 1 | I175: 1 | J175: 1 | K175: 1 | L175: 1 | M175: 1 | N175: 1 | O175: 1 | P175: 1 | Q175: 1 | R175: 1 | S175: 1 | T175: 1 | U175: 1 | V175: 1 | W175: 1 | X175: 1 | Y175: 1 | Z175: 1 | AA175: 1 | AB175: 1 | AC175: 1 | AD175: 1 | AE175: 1 | AF175: 1 | AG175: 1 | AH175: 1 | AI175: 1 | AJ175: 1 | AK175: 1 | AL175: 1 | AM175: 1 | AN175: 1 | AO175: 1 | AP175: 1
A176: COG0175 | B176: 3'-phosphoadenosine 5'-phosphosulfate sulfotransferase (PAPS reductase)/FAD synthetase or related enzyme | C176: EH | D176: 0 | E176: 0 | F176: 0 | G176: 0 | H176: 0 | I176: 0 | J176: 0 | K176: 0 | L176: 0 | M176: 0 | N176: 0 | O176: 0 | P176: 0 | Q176: 0 | R176: 0 | S176: 0 | T176: 0 | U176: 0 | V176: 0 | W176: 0 | X176: 0 | Y176: 0 | Z176: 0 | AA176: 0 | AB176: 0 | AC176: 0 | AD176: 0 | AE176: 0 | AF176: 0 | AG176: 0 | AH176: 0 | AI176: 0 | AJ176: 0 | AK176: 0 | AL176: 0 | AM176: 0 | AN176: 0 | AO176: 0 | AP176: 0
A177: COG0176 | B177: Transaldolase | C177: G | D177: 0 | E177: 0 | F177: 1 | G177: 1 | H177: 1 | I177: 1 | J177: 1 | K177: 2 | L177: 1 | M177: 1 | N177: 1 | O177: 1 | P177: 2 | Q177: 1 | R177: 1 | S177: 1 | T177: 1 | U177: 1 | V177: 1 | W177: 1 | X177: 1 | Y177: 2 | Z177: 1 | AA177: 1 | AB177: 2 | AC177: 1 | AD177: 1 | AE177: 1 | AF177: 1 | AG177: 1 | AH177: 1 | AI177: 1 | AJ177: 1 | AK177: 1 | AL177: 1 | AM177: 1 | AN177: 0 | AO177: 1 | AP177: 0
A178: COG0177 | B178: Endonuclease III | C178: L | D178: 1 | E178: 1 | F178: 1 | G178: 1 | H178: 1 | I178: 1 | J178: 1 | K178: 1 | L178: 1 | M178: 1 | N178: 1 | O178: 1 | P178: 1 | Q178: 1 | R178: 1 | S178: 1 | T178: 1 | U178: 1 | V178: 1 | W178: 1 | X178: 1 | Y178: 1 | Z178: 1 | AA178: 1 | AB178: 1 | AC178: 1 | AD178: 1 | AE178: 1 | AF178: 1 | AG178: 1 | AH178: 1 | AI178: 1 | AJ178: 1 | AK178: 1 | AL178: 1 | AM178: 1 | AN178: 1 | AO178: 1 | AP178: 1
A179: COG0178 | B179: Excinuclease UvrABC ATPase subunit | C179: L | D179: 2 | E179: 2 | F179: 2 | G179: 2 | H179: 2 | I179: 1 | J179: 2 | K179: 2 | L179: 2 | M179: 2 | N179: 2 | O179: 2 | P179: 1 | Q179: 2 | R179: 2 | S179: 2 | T179: 2 | U179: 2 | V179: 2 | W179: 2 | X179: 2 | Y179: 2 | Z179: 2 | AA179: 2 | AB179: 2 | AC179: 1 | AD179: 1 | AE179: 1 | AF179: 1 | AG179: 1 | AH179: 1 | AI179: 2 | AJ179: 1 | AK179: 1 | AL179: 1 | AM179: 1 | AN179: 1 | AO179: 2 | AP179: 1
A180: COG0179 | B180: 2-keto-4-pentenoate hydratase/2-oxohepta-3-ene-1,7-dioic acid hydratase (catechol pathway) | C180: Q | D180: 0 | E180: 0 | F180: 0 | G180: 0 | H180: 0 | I180: 0 | J180: 0 | K180: 0 | L180: 0 | M180: 0 | N180: 0 | O180: 0 | P180: 0 | Q180: 0 | R180: 0 | S180: 0 | T180: 0 | U180: 0 | V180: 0 | W180: 0 | X180: 0 | Y180: 0 | Z180: 0 | AA180: 0 | AB180: 0 | AC180: 0 | AD180: 0 | AE180: 0 | AF180: 0 | AG180: 0 | AH180: 0 | AI180: 0 | AJ180: 0 | AK180: 0 | AL180: 0 | AM180: 0 | AN180: 0 | AO180: 0 | AP180: 0
A181: COG0180 | B181: Tryptophanyl-tRNA synthetase | C181: J | D181: 1 | E181: 1 | F181: 2 | G181: 2 | H181: 2 | I181: 1 | J181: 2 | K181: 2 | L181: 2 | M181: 2 | N181: 2 | O181: 2 | P181: 2 | Q181: 2 | R181: 2 | S181: 2 | T181: 2 | U181: 2 | V181: 2 | W181: 2 | X181: 2 | Y181: 2 | Z181: 2 | AA181: 2 | AB181: 2 | AC181: 1 | AD181: 1 | AE181: 1 | AF181: 1 | AG181: 1 | AH181: 1 | AI181: 2 | AJ181: 1 | AK181: 1 | AL181: 1 | AM181: 1 | AN181: 1 | AO181: 2 | AP181: 1
A182: COG0181 | B182: Porphobilinogen deaminase | C182: H | D182: 0 | E182: 0 | F182: 0 | G182: 0 | H182: 0 | I182: 0 | J182: 0 | K182: 0 | L182: 0 | M182: 0 | N182: 0 | O182: 0 | P182: 0 | Q182: 0 | R182: 0 | S182: 0 | T182: 0 | U182: 0 | V182: 0 | W182: 0 | X182: 0 | Y182: 0 | Z182: 0 | AA182: 0 | AB182: 0 | AC182: 0 | AD182: 0 | AE182: 0 | AF182: 0 | AG182: 0 | AH182: 0 | AI182: 0 | AJ182: 0 | AK182: 0 | AL182: 0 | AM182: 0 | AN182: 0 | AO182: 0 | AP182: 0
A183: COG0182 | B183: Methylthioribose-1-phosphate isomerase (methionine salvage pathway), a paralog of eIF-2B alpha subunit | C183: E | D183: 0 | E183: 0 | F183: 0 | G183: 0 | H183: 0 | I183: 0 | J183: 0 | K183: 0 | L183: 0 | M183: 0 | N183: 0 | O183: 0 | P183: 0 | Q183: 0 | R183: 0 | S183: 0 | T183: 0 | U183: 0 | V183: 0 | W183: 0 | X183: 0 | Y183: 0 | Z183: 0 | AA183: 0 | AB183: 0 | AC183: 0 | AD183: 0 | AE183: 0 | AF183: 0 | AG183: 0 | AH183: 0 | AI183: 0 | AJ183: 0 | AK183: 0 | AL183: 0 | AM183: 0 | AN183: 0 | AO183: 0 | AP183: 0
A184: COG0183 | B184: Acetyl-CoA acetyltransferase | C184: I | D184: 0 | E184: 0 | F184: 0 | G184: 0 | H184: 0 | I184: 0 | J184: 0 | K184: 0 | L184: 0 | M184: 0 | N184: 0 | O184: 0 | P184: 0 | Q184: 0 | R184: 0 | S184: 0 | T184: 0 | U184: 0 | V184: 0 | W184: 0 | X184: 0 | Y184: 0 | Z184: 0 | AA184: 0 | AB184: 0 | AC184: 0 | AD184: 0 | AE184: 0 | AF184: 0 | AG184: 0 | AH184: 0 | AI184: 0 | AJ184: 0 | AK184: 0 | AL184: 0 | AM184: 0 | AN184: 0 | AO184: 0 | AP184: 0
A185: COG0184 | B185: Ribosomal protein S15P/S13E | C185: J | D185: 1 | E185: 1 | F185: 1 | G185: 1 | H185: 1 | I185: 1 | J185: 1 | K185: 1 | L185: 1 | M185: 1 | N185: 1 | O185: 1 | P185: 1 | Q185: 1 | R185: 1 | S185: 1 | T185: 1 | U185: 1 | V185: 1 | W185: 1 | X185: 1 | Y185: 1 | Z185: 1 | AA185: 1 | AB185: 1 | AC185: 1 | AD185: 1 | AE185: 1 | AF185: 1 | AG185: 1 | AH185: 1 | AI185: 1 | AJ185: 1 | AK185: 1 | AL185: 1 | AM185: 1 | AN185: 1 | AO185: 1 | AP185: 1
A186: COG0185 | B186: Ribosomal protein S19 | C186: J | D186: 1 | E186: 1 | F186: 1 | G186: 1 | H186: 1 | I186: 1 | J186: 1 | K186: 1 | L186: 1 | M186: 1 | N186: 1 | O186: 1 | P186: 1 | Q186: 1 | R186: 1 | S186: 1 | T186: 1 | U186: 1 | V186: 1 | W186: 1 | X186: 1 | Y186: 1 | Z186: 1 | AA186: 1 | AB186: 1 | AC186: 1 | AD186: 1 | AE186: 1 | AF186: 1 | AG186: 1 | AH186: 1 | AI186: 1 | AJ186: 1 | AK186: 1 | AL186: 1 | AM186: 1 | AN186: 1 | AO186: 1 | AP186: 1
A187: COG0186 | B187: Ribosomal protein S17 | C187: J | D187: 1 | E187: 1 | F187: 1 | G187: 1 | H187: 1 | I187: 1 | J187: 1 | K187: 1 | L187: 1 | M187: 1 | N187: 1 | O187: 1 | P187: 1 | Q187: 1 | R187: 1 | S187: 1 | T187: 1 | U187: 1 | V187: 1 | W187: 1 | X187: 1 | Y187: 1 | Z187: 1 | AA187: 1 | AB187: 1 | AC187: 1 | AD187: 1 | AE187: 1 | AF187: 1 | AG187: 1 | AH187: 1 | AI187: 1 | AJ187: 1 | AK187: 1 | AL187: 1 | AM187: 1 | AN187: 1 | AO187: 1 | AP187: 1
A188: COG0187 | B188: DNA gyrase/topoisomerase IV, subunit B | C188: L | D188: 2 | E188: 2 | F188: 2 | G188: 2 | H188: 2 | I188: 2 | J188: 2 | K188: 2 | L188: 2 | M188: 2 | N188: 2 | O188: 2 | P188: 2 | Q188: 2 | R188: 2 | S188: 2 | T188: 2 | U188: 2 | V188: 2 | W188: 2 | X188: 2 | Y188: 2 | Z188: 2 | AA188: 2 | AB188: 2 | AC188: 2 | AD188: 2 | AE188: 2 | AF188: 2 | AG188: 2 | AH188: 2 | AI188: 2 | AJ188: 2 | AK188: 2 | AL188: 2 | AM188: 2 | AN188: 2 | AO188: 2 | AP188: 2
A189: COG0188 | B189: DNA gyrase/topoisomerase IV, subunit A | C189: L | D189: 2 | E189: 2 | F189: 2 | G189: 2 | H189: 2 | I189: 2 | J189: 2 | K189: 2 | L189: 2 | M189: 2 | N189: 2 | O189: 2 | P189: 2 | Q189: 2 | R189: 2 | S189: 2 | T189: 2 | U189: 2 | V189: 2 | W189: 2 | X189: 2 | Y189: 2 | Z189: 2 | AA189: 2 | AB189: 2 | AC189: 2 | AD189: 2 | AE189: 2 | AF189: 2 | AG189: 2 | AH189: 2 | AI189: 2 | AJ189: 2 | AK189: 2 | AL189: 2 | AM189: 2 | AN189: 2 | AO189: 2 | AP189: 2
A190: COG0189 | B190: Glutathione synthase/RimK-type ligase, ATP-grasp superfamily | C190: HJ | D190: 0 | E190: 0 | F190: 0 | G190: 0 | H190: 0 | I190: 0 | J190: 0 | K190: 0 | L190: 0 | M190: 0 | N190: 0 | O190: 0 | P190: 0 | Q190: 0 | R190: 0 | S190: 0 | T190: 0 | U190: 0 | V190: 0 | W190: 0 | X190: 0 | Y190: 0 | Z190: 0 | AA190: 0 | AB190: 0 | AC190: 0 | AD190: 0 | AE190: 0 | AF190: 0 | AG190: 0 | AH190: 0 | AI190: 0 | AJ190: 0 | AK190: 0 | AL190: 0 | AM190: 0 | AN190: 0 | AO190: 0 | AP190: 0
A191: COG0190 | B191: 5,10-methylene-tetrahydrofolate dehydrogenase/Methenyl tetrahydrofolate cyclohydrolase | C191: H | D191: 1 | E191: 1 | F191: 1 | G191: 1 | H191: 1 | I191: 1 | J191: 1 | K191: 1 | L191: 1 | M191: 1 | N191: 1 | O191: 1 | P191: 1 | Q191: 1 | R191: 1 | S191: 1 | T191: 1 | U191: 1 | V191: 1 | W191: 1 | X191: 1 | Y191: 1 | Z191: 1 | AA191: 1 | AB191: 1 | AC191: 1 | AD191: 1 | AE191: 1 | AF191: 1 | AG191: 1 | AH191: 1 | AI191: 1 | AJ191: 1 | AK191: 1 | AL191: 1 | AM191: 1 | AN191: 1 | AO191: 1 | AP191: 1
A192: COG0191 | B192: Fructose/tagatose bisphosphate aldolase | C192: G | D192: 3 | E192: 3 | F192: 1 | G192: 1 | H192: 1 | I192: 3 | J192: 1 | K192: 1 | L192: 1 | M192: 1 | N192: 1 | O192: 1 | P192: 1 | Q192: 1 | R192: 1 | S192: 1 | T192: 1 | U192: 1 | V192: 1 | W192: 1 | X192: 1 | Y192: 1 | Z192: 1 | AA192: 1 | AB192: 1 | AC192: 3 | AD192: 3 | AE192: 4 | AF192: 4 | AG192: 3 | AH192: 3 | AI192: 1 | AJ192: 3 | AK192: 3 | AL192: 3 | AM192: 3 | AN192: 2 | AO192: 1 | AP192: 4
A193: COG0192 | B193: S-adenosylmethionine synthetase | C193: H | D193: 1 | E193: 1 | F193: 1 | G193: 1 | H193: 1 | I193: 1 | J193: 1 | K193: 1 | L193: 1 | M193: 1 | N193: 1 | O193: 1 | P193: 1 | Q193: 1 | R193: 1 | S193: 1 | T193: 1 | U193: 1 | V193: 1 | W193: 1 | X193: 1 | Y193: 1 | Z193: 1 | AA193: 1 | AB193: 1 | AC193: 1 | AD193: 1 | AE193: 1 | AF193: 1 | AG193: 1 | AH193: 1 | AI193: 1 | AJ193: 1 | AK193: 1 | AL193: 1 | AM193: 1 | AN193: 1 | AO193: 1 | AP193: 1
A194: COG0193 | B194: Peptidyl-tRNA hydrolase | C194: J | D194: 1 | E194: 1 | F194: 1 | G194: 1 | H194: 1 | I194: 1 | J194: 1 | K194: 1 | L194: 1 | M194: 1 | N194: 1 | O194: 1 | P194: 1 | Q194: 1 | R194: 1 | S194: 1 | T194: 1 | U194: 1 | V194: 1 | W194: 1 | X194: 1 | Y194: 1 | Z194: 1 | AA194: 1 | AB194: 1 | AC194: 1 | AD194: 1 | AE194: 1 | AF194: 1 | AG194: 1 | AH194: 1 | AI194: 1 | AJ194: 1 | AK194: 1 | AL194: 1 | AM194: 1 | AN194: 1 | AO194: 1 | AP194: 1
A195: COG0194 | B195: Guanylate kinase | C195: F | D195: 1 | E195: 1 | F195: 2 | G195: 2 | H195: 2 | I195: 2 | J195: 2 | K195: 2 | L195: 2 | M195: 2 | N195: 2 | O195: 2 | P195: 2 | Q195: 2 | R195: 2 | S195: 2 | T195: 2 | U195: 2 | V195: 2 | W195: 2 | X195: 2 | Y195: 2 | Z195: 2 | AA195: 2 | AB195: 2 | AC195: 2 | AD195: 2 | AE195: 2 | AF195: 2 | AG195: 2 | AH195: 2 | AI195: 2 | AJ195: 2 | AK195: 2 | AL195: 2 | AM195: 2 | AN195: 1 | AO195: 2 | AP195: 1
A196: COG0195 | B196: Transcription antitermination factor NusA, contains S1 and KH domains | C196: K | D196: 1 | E196: 1 | F196: 1 | G196: 1 | H196: 1 | I196: 1 | J196: 1 | K196: 1 | L196: 1 | M196: 1 | N196: 1 | O196: 1 | P196: 1 | Q196: 1 | R196: 1 | S196: 1 | T196: 1 | U196: 1 | V196: 1 | W196: 1 | X196: 1 | Y196: 1 | Z196: 1 | AA196: 1 | AB196: 1 | AC196: 1 | AD196: 1 | AE196: 1 | AF196: 1 | AG196: 1 | AH196: 1 | AI196: 1 | AJ196: 1 | AK196: 1 | AL196: 1 | AM196: 1 | AN196: 1 | AO196: 1 | AP196: 1
A197: COG0196 | B197: FAD synthase | C197: H | D197: 1 | E197: 1 | F197: 1 | G197: 1 | H197: 1 | I197: 1 | J197: 1 | K197: 1 | L197: 1 | M197: 1 | N197: 1 | O197: 1 | P197: 1 | Q197: 1 | R197: 1 | S197: 1 | T197: 1 | U197: 1 | V197: 1 | W197: 1 | X197: 1 | Y197: 1 | Z197: 1 | AA197: 1 | AB197: 1 | AC197: 1 | AD197: 1 | AE197: 1 | AF197: 1 | AG197: 1 | AH197: 1 | AI197: 1 | AJ197: 1 | AK197: 1 | AL197: 1 | AM197: 1 | AN197: 1 | AO197: 1 | AP197: 1
A198: COG0197 | B198: Ribosomal protein L16/L10AE | C198: J | D198: 1 | E198: 1 | F198: 1 | G198: 1 | H198: 1 | I198: 1 | J198: 1 | K198: 1 | L198: 1 | M198: 1 | N198: 1 | O198: 1 | P198: 1 | Q198: 1 | R198: 1 | S198: 1 | T198: 1 | U198: 1 | V198: 1 | W198: 1 | X198: 1 | Y198: 1 | Z198: 1 | AA198: 1 | AB198: 1 | AC198: 1 | AD198: 1 | AE198: 1 | AF198: 1 | AG198: 1 | AH198: 1 | AI198: 1 | AJ198: 1 | AK198: 1 | AL198: 1 | AM198: 1 | AN198: 1 | AO198: 1 | AP198: 1
A199: COG0198 | B199: Ribosomal protein L24 | C199: J | D199: 1 | E199: 1 | F199: 1 | G199: 1 | H199: 1 | I199: 1 | J199: 1 | K199: 1 | L199: 1 | M199: 1 | N199: 1 | O199: 1 | P199: 1 | Q199: 1 | R199: 1 | S199: 1 | T199: 1 | U199: 1 | V199: 1 | W199: 1 | X199: 1 | Y199: 1 | Z199: 1 | AA199: 1 | AB199: 1 | AC199: 1 | AD199: 1 | AE199: 1 | AF199: 1 | AG199: 1 | AH199: 1 | AI199: 1 | AJ199: 1 | AK199: 1 | AL199: 1 | AM199: 1 | AN199: 1 | AO199: 1 | AP199: 1
A200: COG0199 | B200: Ribosomal protein S14 | C200: J | D200: 2 | E200: 2 | F200: 2 | G200: 3 | H200: 3 | I200: 2 | J200: 3 | K200: 3 | L200: 3 | M200: 3 | N200: 2 | O200: 3 | P200: 2 | Q200: 3 | R200: 2 | S200: 2 | T200: 3 | U200: 2 | V200: 3 | W200: 2 | X200: 2 | Y200: 3 | Z200: 2 | AA200: 2 | AB200: 3 | AC200: 3 | AD200: 3 | AE200: 2 | AF200: 2 | AG200: 3 | AH200: 3 | AI200: 3 | AJ200: 3 | AK200: 3 | AL200: 3 | AM200: 3 | AN200: 2 | AO200: 3 | AP200: 2
A201: COG0200 | B201: Ribosomal protein L15 | C201: J | D201: 1 | E201: 1 | F201: 1 | G201: 1 | H201: 1 | I201: 1 | J201: 1 | K201: 1 | L201: 1 | M201: 1 | N201: 1 | O201: 1 | P201: 1 | Q201: 1 | R201: 1 | S201: 1 | T201: 1 | U201: 1 | V201: 1 | W201: 1 | X201: 1 | Y201: 1 | Z201: 1 | AA201: 1 | AB201: 1 | AC201: 1 | AD201: 1 | AE201: 1 | AF201: 1 | AG201: 1 | AH201: 1 | AI201: 1 | AJ201: 1 | AK201: 1 | AL201: 1 | AM201: 1 | AN201: 1 | AO201: 1 | AP201: 1
... 2049 more rows

Sheet S4 COG Pivot Table
B3: Data
A4: Function Code | B4: Sum - Ent cas B72 2767802419 | C4: Sum - Ent cas B79 2767802416 | D4: Sum - Ent fae B19 2767802415 | E4: Sum - Ent fae B10 2767802418 | F4: Sum - Ent fae B18 2767802414 | G4: Sum - Ent fae B46 2767802413 | H4: Sum - Ent fae B48 2767802417 | I4: Sum - Ent fae B66 2767802420 | J4: Sum - Ent fae C16 2767802408 | K4: Sum - Ent fae C33 2767802410 | L4: Sum - Ent fae C34 2767802409 | M4: Sum - Ent fae C39 2767802406 | N4: Sum - Ent fae R38 2767802393 | O4: Sum - Ent fae R35 2767802392 | P4: Sum - Ent fae R61 2767802397 | Q4: Sum - Ent fae R76 2767802396 | R4: Sum - Ent fae R95 2767802395 | S4: Sum - Ent fae W11 2767802386 | T4: Sum - Ent fae W15 2767802385 | U4: Sum - Ent fae W34 2767802384 | V4: Sum - Ent fae W30 2767802383 | W4: Sum - Ent fae W37 2767802389 | X4: Sum - Ent fae W41 2767802388 | Y4: Sum - Ent fae W40 2767802382 | Z4: Sum - Ent fae W75 2767802387 | AA4: Sum - Ent fae B42 2767802412 | AB4: Sum - Ent fae C1D 2767802411 | AC4: Sum - Ent fae C39 2767802407 | AD4: Sum - Ent fae C57 2767802405 | AE4: Sum - Ent fae F1J 2767802404 | AF4: Sum - Ent fae H12 2767802401 | AG4: Sum - Ent fae H12 2767802400 | AH4: Sum - Ent fae H12 2767802398 | AI4: Sum - Ent fae H51 2767802402 | AJ4: Sum - Ent fae R37 2767802394 | AK4: Sum - Ent fae R47 2767802391 | AL4: Sum - Ent gal G1S 2767802403 | AM4: Sum - Ent gal H12 2767802399 | AN4: Sum - Ent gal W17 2767802390
A5: A | B5: 0 | C5: 0 | D5: 0 | E5: 0 | F5: 0 | G5: 0 | H5: 0 | I5: 0 | J5: 0 | K5: 0 | L5: 0 | M5: 0 | N5: 0 | O5: 0 | P5: 0 | Q5: 0 | R5: 0 | S5: 0 | T5: 0 | U5: 0 | V5: 0 | W5: 0 | X5: 0 | Y5: 0 | Z5: 0 | AA5: 0 | AB5: 0 | AC5: 0 | AD5: 0 | AE5: 0 | AF5: 0 | AG5: 0 | AH5: 0 | AI5: 0 | AJ5: 0 | AK5: 0 | AL5: 0 | AM5: 0 | AN5: 0
A6: AT | B6: 0 | C6: 0 | D6: 0 | E6: 0 | F6: 0 | G6: 0 | H6: 0 | I6: 0 | J6: 0 | K6: 0 | L6: 0 | M6: 0 | N6: 0 | O6: 0 | P6: 0 | Q6: 0 | R6: 0 | S6: 0 | T6: 0 | U6: 0 | V6: 0 | W6: 0 | X6: 0 | Y6: 0 | Z6: 0 | AA6: 0 | AB6: 0 | AC6: 0 | AD6: 0 | AE6: 0 | AF6: 0 | AG6: 0 | AH6: 0 | AI6: 0 | AJ6: 0 | AK6: 0 | AL6: 0 | AM6: 0 | AN6: 0
A7: B | B7: 0 | C7: 0 | D7: 0 | E7: 0 | F7: 0 | G7: 0 | H7: 0 | I7: 0 | J7: 0 | K7: 0 | L7: 0 | M7: 0 | N7: 0 | O7: 0 | P7: 0 | Q7: 0 | R7: 0 | S7: 0 | T7: 0 | U7: 0 | V7: 0 | W7: 0 | X7: 0 | Y7: 0 | Z7: 0 | AA7: 0 | AB7: 0 | AC7: 0 | AD7: 0 | AE7: 0 | AF7: 0 | AG7: 0 | AH7: 0 | AI7: 0 | AJ7: 0 | AK7: 0 | AL7: 0 | AM7: 0 | AN7: 0
A8: BK | B8: 0 | C8: 0 | D8: 0 | E8: 0 | F8: 0 | G8: 0 | H8: 0 | I8: 0 | J8: 0 | K8: 0 | L8: 0 | M8: 0 | N8: 0 | O8: 0 | P8: 0 | Q8: 0 | R8: 0 | S8: 0 | T8: 0 | U8: 0 | V8: 0 | W8: 0 | X8: 0 | Y8: 0 | Z8: 0 | AA8: 0 | AB8: 0 | AC8: 0 | AD8: 0 | AE8: 0 | AF8: 0 | AG8: 0 | AH8: 0 | AI8: 0 | AJ8: 0 | AK8: 0 | AL8: 0 | AM8: 0 | AN8: 0
A9: BKL | B9: 0 | C9: 0 | D9: 0 | E9: 0 | F9: 0 | G9: 0 | H9: 0 | I9: 0 | J9: 0 | K9: 0 | L9: 0 | M9: 0 | N9: 0 | O9: 0 | P9: 0 | Q9: 0 | R9: 0 | S9: 0 | T9: 0 | U9: 0 | V9: 0 | W9: 0 | X9: 0 | Y9: 0 | Z9: 0 | AA9: 0 | AB9: 0 | AC9: 0 | AD9: 0 | AE9: 0 | AF9: 0 | AG9: 0 | AH9: 0 | AI9: 0 | AJ9: 0 | AK9: 0 | AL9: 0 | AM9: 0 | AN9: 0
A10: BQ | B10: 0 | C10: 0 | D10: 0 | E10: 0 | F10: 0 | G10: 0 | H10: 0 | I10: 0 | J10: 0 | K10: 0 | L10: 0 | M10: 0 | N10: 0 | O10: 0 | P10: 0 | Q10: 0 | R10: 0 | S10: 0 | T10: 0 | U10: 0 | V10: 0 | W10: 0 | X10: 0 | Y10: 0 | Z10: 0 | AA10: 0 | AB10: 0 | AC10: 0 | AD10: 0 | AE10: 0 | AF10: 0 | AG10: 0 | AH10: 0 | AI10: 0 | AJ10: 0 | AK10: 0 | AL10: 0 | AM10: 0 | AN10: 0
A11: C | B11: 101 | C11: 101 | D11: 87 | E11: 87 | F11: 89 | G11: 54 | H11: 82 | I11: 88 | J11: 87 | K11: 87 | L11: 87 | M11: 87 | N11: 86 | O11: 88 | P11: 87 | Q11: 82 | R11: 86 | S11: 85 | T11: 88 | U11: 88 | V11: 86 | W11: 86 | X11: 88 | Y11: 88 | Z11: 88 | AA11: 56 | AB11: 55 | AC11: 55 | AD11: 60 | AE11: 55 | AF11: 55 | AG11: 88 | AH11: 55 | AI11: 55 | AJ11: 57 | AK11: 56 | AL11: 87 | AM11: 82 | AN11: 86
A12: CE | B12: 1 | C12: 1 | D12: 0 | E12: 0 | F12: 0 | G12: 0 | H12: 0 | I12: 0 | J12: 0 | K12: 0 | L12: 0 | M12: 0 | N12: 0 | O12: 0 | P12: 0 | Q12: 0 | R12: 0 | S12: 0 | T12: 0 | U12: 0 | V12: 0 | W12: 0 | X12: 0 | Y12: 0 | Z12: 0 | AA12: 0 | AB12: 0 | AC12: 0 | AD12: 0 | AE12: 0 | AF12: 0 | AG12: 0 | AH12: 0 | AI12: 0 | AJ12: 0 | AK12: 0 | AL12: 1 | AM12: 0 | AN12: 1
A13: CH | B13: 1 | C13: 1 | D13: 2 | E13: 2 | F13: 2 | G13: 1 | H13: 2 | I13: 2 | J13: 2 | K13: 2 | L13: 2 | M13: 2 | N13: 2 | O13: 2 | P13: 2 | Q13: 2 | R13: 2 | S13: 2 | T13: 2 | U13: 2 | V13: 2 | W13: 2 | X13: 2 | Y13: 2 | Z13: 2 | AA13: 1 | AB13: 1 | AC13: 1 | AD13: 1 | AE13: 1 | AF13: 1 | AG13: 2 | AH13: 1 | AI13: 1 | AJ13: 1 | AK13: 1 | AL13: 1 | AM13: 2 | AN13: 1
A14: CHR | B14: 2 | C14: 2 | D14: 1 | E14: 1 | F14: 1 | G14: 2 | H14: 1 | I14: 1 | J14: 1 | K14: 1 | L14: 1 | M14: 1 | N14: 1 | O14: 1 | P14: 1 | Q14: 1 | R14: 1 | S14: 1 | T14: 1 | U14: 1 | V14: 1 | W14: 1 | X14: 1 | Y14: 1 | Z14: 1 | AA14: 3 | AB14: 3 | AC14: 0 | AD14: 2 | AE14: 3 | AF14: 3 | AG14: 1 | AH14: 3 | AI14: 3 | AJ14: 3 | AK14: 3 | AL14: 3 | AM14: 1 | AN14: 2
A15: CI | B15: 0 | C15: 0 | D15: 0 | E15: 0 | F15: 0 | G15: 0 | H15: 0 | I15: 0 | J15: 0 | K15: 0 | L15: 0 | M15: 0 | N15: 0 | O15: 0 | P15: 0 | Q15: 0 | R15: 0 | S15: 0 | T15: 0 | U15: 0 | V15: 0 | W15: 0 | X15: 0 | Y15: 0 | Z15: 0 | AA15: 0 | AB15: 0 | AC15: 0 | AD15: 0 | AE15: 0 | AF15: 0 | AG15: 0 | AH15: 0 | AI15: 0 | AJ15: 0 | AK15: 0 | AL15: 0 | AM15: 0 | AN15: 0
A16: CIR | B16: 2 | C16: 2 | D16: 1 | E16: 1 | F16: 1 | G16: 3 | H16: 1 | I16: 1 | J16: 1 | K16: 1 | L16: 1 | M16: 1 | N16: 1 | O16: 1 | P16: 1 | Q16: 1 | R16: 1 | S16: 1 | T16: 1 | U16: 1 | V16: 1 | W16: 1 | X16: 1 | Y16: 1 | Z16: 1 | AA16: 3 | AB16: 3 | AC16: 3 | AD16: 3 | AE16: 3 | AF16: 3 | AG16: 1 | AH16: 3 | AI16: 3 | AJ16: 3 | AK16: 3 | AL16: 2 | AM16: 1 | AN16: 2
A17: CO | B17: 2 | C17: 2 | D17: 2 | E17: 2 | F17: 2 | G17: 0 | H17: 2 | I17: 2 | J17: 2 | K17: 2 | L17: 2 | M17: 2 | N17: 2 | O17: 2 | P17: 2 | Q17: 2 | R17: 2 | S17: 2 | T17: 2 | U17: 2 | V17: 2 | W17: 2 | X17: 2 | Y17: 2 | Z17: 2 | AA17: 0 | AB17: 0 | AC17: 0 | AD17: 0 | AE17: 0 | AF17: 0 | AG17: 2 | AH17: 0 | AI17: 0 | AJ17: 0 | AK17: 0 | AL17: 2 | AM17: 2 | AN17: 2
A18: COP | B18: 0 | C18: 0 | D18: 0 | E18: 0 | F18: 0 | G18: 0 | H18: 0 | I18: 0 | J18: 0 | K18: 0 | L18: 0 | M18: 0 | N18: 0 | O18: 0 | P18: 0 | Q18: 0 | R18: 0 | S18: 0 | T18: 0 | U18: 0 | V18: 0 | W18: 0 | X18: 0 | Y18: 0 | Z18: 0 | AA18: 0 | AB18: 0 | AC18: 0 | AD18: 0 | AE18: 0 | AF18: 0 | AG18: 0 | AH18: 0 | AI18: 0 | AJ18: 0 | AK18: 0 | AL18: 0 | AM18: 0 | AN18: 0
A19: CP | B19: 2 | C19: 2 | D19: 2 | E19: 3 | F19: 3 | G19: 2 | H19: 3 | I19: 3 | J19: 3 | K19: 3 | L19: 2 | M19: 3 | N19: 3 | O19: 3 | P19: 3 | Q19: 3 | R19: 2 | S19: 2 | T19: 3 | U19: 2 | V19: 2 | W19: 3 | X19: 3 | Y19: 2 | Z19: 2 | AA19: 2 | AB19: 2 | AC19: 2 | AD19: 2 | AE19: 2 | AF19: 2 | AG19: 3 | AH19: 2 | AI19: 2 | AJ19: 2 | AK19: 2 | AL19: 2 | AM19: 3 | AN19: 2
A20: CQ | B20: 0 | C20: 0 | D20: 2 | E20: 2 | F20: 2 | G20: 0 | H20: 2 | I20: 2 | J20: 2 | K20: 2 | L20: 2 | M20: 2 | N20: 2 | O20: 2 | P20: 2 | Q20: 2 | R20: 2 | S20: 2 | T20: 2 | U20: 2 | V20: 2 | W20: 2 | X20: 2 | Y20: 2 | Z20: 2 | AA20: 0 | AB20: 0 | AC20: 0 | AD20: 0 | AE20: 0 | AF20: 0 | AG20: 2 | AH20: 0 | AI20: 0 | AJ20: 0 | AK20: 0 | AL20: 2 | AM20: 2 | AN20: 2
A21: CR | B21: 5 | C21: 5 | D21: 3 | E21: 3 | F21: 3 | G21: 4 | H21: 2 | I21: 3 | J21: 3 | K21: 3 | L21: 3 | M21: 3 | N21: 3 | O21: 3 | P21: 3 | Q21: 2 | R21: 3 | S21: 3 | T21: 3 | U21: 3 | V21: 3 | W21: 3 | X21: 3 | Y21: 3 | Z21: 3 | AA21: 3 | AB21: 3 | AC21: 4 | AD21: 4 | AE21: 3 | AF21: 3 | AG21: 3 | AH21: 3 | AI21: 3 | AJ21: 3 | AK21: 3 | AL21: 3 | AM21: 2 | AN21: 4
A22: CT | B22: 0 | C22: 0 | D22: 0 | E22: 0 | F22: 0 | G22: 0 | H22: 0 | I22: 0 | J22: 0 | K22: 0 | L22: 0 | M22: 0 | N22: 0 | O22: 0 | P22: 0 | Q22: 0 | R22: 0 | S22: 0 | T22: 0 | U22: 0 | V22: 0 | W22: 0 | X22: 0 | Y22: 0 | Z22: 0 | AA22: 0 | AB22: 0 | AC22: 0 | AD22: 0 | AE22: 0 | AF22: 0 | AG22: 0 | AH22: 0 | AI22: 0 | AJ22: 0 | AK22: 0 | AL22: 0 | AM22: 0 | AN22: 0
A23: D | B23: 26 | C23: 26 | D23: 22 | E23: 22 | F23: 21 | G23: 21 | H23: 22 | I23: 22 | J23: 22 | K23: 22 | L23: 21 | M23: 22 | N23: 22 | O23: 22 | P23: 22 | Q23: 21 | R23: 21 | S23: 21 | T23: 22 | U23: 21 | V23: 22 | W23: 22 | X23: 21 | Y23: 21 | Z23: 22 | AA23: 21 | AB23: 21 | AC23: 21 | AD23: 21 | AE23: 21 | AF23: 21 | AG23: 22 | AH23: 21 | AI23: 21 | AJ23: 21 | AK23: 21 | AL23: 25 | AM23: 22 | AN23: 26
A24: DL | B24: 1 | C24: 1 | D24: 1 | E24: 1 | F24: 1 | G24: 1 | H24: 1 | I24: 1 | J24: 1 | K24: 1 | L24: 1 | M24: 1 | N24: 1 | O24: 1 | P24: 1 | Q24: 1 | R24: 1 | S24: 1 | T24: 1 | U24: 1 | V24: 1 | W24: 1 | X24: 1 | Y24: 1 | Z24: 1 | AA24: 1 | AB24: 1 | AC24: 1 | AD24: 1 | AE24: 1 | AF24: 1 | AG24: 1 | AH24: 1 | AI24: 1 | AJ24: 1 | AK24: 1 | AL24: 1 | AM24: 1 | AN24: 1
A25: DM | B25: 4 | C25: 4 | D25: 3 | E25: 3 | F25: 3 | G25: 3 | H25: 3 | I25: 3 | J25: 3 | K25: 3 | L25: 3 | M25: 3 | N25: 3 | O25: 3 | P25: 3 | Q25: 3 | R25: 3 | S25: 3 | T25: 3 | U25: 3 | V25: 3 | W25: 3 | X25: 3 | Y25: 3 | Z25: 3 | AA25: 3 | AB25: 3 | AC25: 3 | AD25: 3 | AE25: 3 | AF25: 3 | AG25: 3 | AH25: 3 | AI25: 3 | AJ25: 3 | AK25: 3 | AL25: 3 | AM25: 3 | AN25: 3
A26: DMP | B26: 0 | C26: 0 | D26: 0 | E26: 0 | F26: 0 | G26: 0 | H26: 0 | I26: 0 | J26: 0 | K26: 0 | L26: 0 | M26: 0 | N26: 0 | O26: 0 | P26: 0 | Q26: 0 | R26: 0 | S26: 0 | T26: 0 | U26: 0 | V26: 0 | W26: 0 | X26: 0 | Y26: 0 | Z26: 0 | AA26: 0 | AB26: 0 | AC26: 0 | AD26: 1 | AE26: 0 | AF26: 0 | AG26: 0 | AH26: 0 | AI26: 0 | AJ26: 0 | AK26: 0 | AL26: 0 | AM26: 0 | AN26: 0
A27: DP | B27: 0 | C27: 0 | D27: 0 | E27: 0 | F27: 0 | G27: 0 | H27: 0 | I27: 0 | J27: 0 | K27: 0 | L27: 0 | M27: 0 | N27: 0 | O27: 0 | P27: 0 | Q27: 0 | R27: 0 | S27: 0 | T27: 0 | U27: 0 | V27: 0 | W27: 0 | X27: 0 | Y27: 0 | Z27: 0 | AA27: 0 | AB27: 0 | AC27: 0 | AD27: 0 | AE27: 0 | AF27: 0 | AG27: 0 | AH27: 0 | AI27: 0 | AJ27: 0 | AK27: 0 | AL27: 2 | AM27: 0 | AN27: 2
A28: DZ | B28: 0 | C28: 0 | D28: 0 | E28: 0 | F28: 0 | G28: 0 | H28: 0 | I28: 0 | J28: 0 | K28: 0 | L28: 0 | M28: 0 | N28: 0 | O28: 0 | P28: 0 | Q28: 0 | R28: 0 | S28: 0 | T28: 0 | U28: 0 | V28: 0 | W28: 0 | X28: 0 | Y28: 0 | Z28: 0 | AA28: 0 | AB28: 0 | AC28: 0 | AD28: 0 | AE28: 0 | AF28: 0 | AG28: 0 | AH28: 0 | AI28: 0 | AJ28: 0 | AK28: 0 | AL28: 0 | AM28: 0 | AN28: 0
A29: E | B29: 165 | C29: 165 | D29: 144 | E29: 148 | F29: 147 | G29: 110 | H29: 145 | I29: 148 | J29: 145 | K29: 144 | L29: 146 | M29: 147 | N29: 145 | O29: 148 | P29: 147 | Q29: 145 | R29: 145 | S29: 147 | T29: 148 | U29: 145 | V29: 141 | W29: 149 | X29: 146 | Y29: 147 | Z29: 148 | AA29: 111 | AB29: 109 | AC29: 114 | AD29: 112 | AE29: 111 | AF29: 111 | AG29: 148 | AH29: 111 | AI29: 111 | AJ29: 111 | AK29: 111 | AL29: 172 | AM29: 145 | AN29: 164
A30: EF | B30: 5 | C30: 5 | D30: 5 | E30: 5 | F30: 5 | G30: 4 | H30: 5 | I30: 5 | J30: 5 | K30: 5 | L30: 5 | M30: 5 | N30: 5 | O30: 5 | P30: 5 | Q30: 5 | R30: 5 | S30: 5 | T30: 5 | U30: 5 | V30: 5 | W30: 5 | X30: 5 | Y30: 5 | Z30: 5 | AA30: 5 | AB30: 5 | AC30: 5 | AD30: 5 | AE30: 5 | AF30: 5 | AG30: 5 | AH30: 5 | AI30: 5 | AJ30: 5 | AK30: 5 | AL30: 4 | AM30: 5 | AN30: 4
A31: EG | B31: 3 | C31: 3 | D31: 3 | E31: 3 | F31: 3 | G31: 2 | H31: 3 | I31: 3 | J31: 3 | K31: 3 | L31: 3 | M31: 3 | N31: 3 | O31: 3 | P31: 3 | Q31: 3 | R31: 3 | S31: 3 | T31: 3 | U31: 3 | V31: 3 | W31: 3 | X31: 3 | Y31: 3 | Z31: 3 | AA31: 2 | AB31: 2 | AC31: 2 | AD31: 2 | AE31: 2 | AF31: 2 | AG31: 3 | AH31: 2 | AI31: 2 | AJ31: 2 | AK31: 2 | AL31: 6 | AM31: 3 | AN31: 6
A32: EGPR | B32: 0 | C32: 0 | D32: 0 | E32: 0 | F32: 0 | G32: 0 | H32: 0 | I32: 0 | J32: 0 | K32: 0 | L32: 0 | M32: 0 | N32: 0 | O32: 0 | P32: 0 | Q32: 0 | R32: 0 | S32: 0 | T32: 0 | U32: 0 | V32: 0 | W32: 0 | X32: 0 | Y32: 0 | Z32: 0 | AA32: 0 | AB32: 0 | AC32: 0 | AD32: 0 | AE32: 0 | AF32: 0 | AG32: 0 | AH32: 0 | AI32: 0 | AJ32: 0 | AK32: 0 | AL32: 0 | AM32: 0 | AN32: 0
A33: EGR | B33: 1 | C33: 1 | D33: 0 | E33: 0 | F33: 0 | G33: 0 | H33: 0 | I33: 0 | J33: 0 | K33: 0 | L33: 0 | M33: 0 | N33: 0 | O33: 0 | P33: 0 | Q33: 0 | R33: 0 | S33: 0 | T33: 0 | U33: 0 | V33: 0 | W33: 0 | X33: 0 | Y33: 0 | Z33: 0 | AA33: 0 | AB33: 0 | AC33: 0 | AD33: 0 | AE33: 0 | AF33: 0 | AG33: 0 | AH33: 0 | AI33: 0 | AJ33: 0 | AK33: 0 | AL33: 0 | AM33: 0 | AN33: 0
A34: EH | B34: 9 | C34: 9 | D34: 2 | E34: 2 | F34: 2 | G34: 3 | H34: 2 | I34: 2 | J34: 2 | K34: 2 | L34: 2 | M34: 2 | N34: 2 | O34: 2 | P34: 2 | Q34: 2 | R34: 2 | S34: 2 | T34: 2 | U34: 2 | V34: 2 | W34: 2 | X34: 2 | Y34: 2 | Z34: 2 | AA34: 3 | AB34: 3 | AC34: 3 | AD34: 3 | AE34: 3 | AF34: 3 | AG34: 2 | AH34: 3 | AI34: 3 | AJ34: 3 | AK34: 3 | AL34: 7 | AM34: 2 | AN34: 7
A35: EK | B35: 2 | C35: 2 | D35: 1 | E35: 1 | F35: 2 | G35: 2 | H35: 1 | I35: 2 | J35: 1 | K35: 1 | L35: 2 | M35: 2 | N35: 2 | O35: 2 | P35: 1 | Q35: 1 | R35: 2 | S35: 2 | T35: 2 | U35: 2 | V35: 1 | W35: 2 | X35: 2 | Y35: 2 | Z35: 2 | AA35: 2 | AB35: 2 | AC35: 2 | AD35: 2 | AE35: 2 | AF35: 2 | AG35: 2 | AH35: 2 | AI35: 2 | AJ35: 2 | AK35: 2 | AL35: 2 | AM35: 1 | AN35: 1
A36: EM | B36: 2 | C36: 2 | D36: 1 | E36: 1 | F36: 1 | G36: 1 | H36: 1 | I36: 1 | J36: 1 | K36: 1 | L36: 1 | M36: 1 | N36: 1 | O36: 1 | P36: 1 | Q36: 1 | R36: 1 | S36: 1 | T36: 1 | U36: 1 | V36: 1 | W36: 1 | X36: 1 | Y36: 1 | Z36: 1 | AA36: 1 | AB36: 1 | AC36: 1 | AD36: 1 | AE36: 1 | AF36: 1 | AG36: 1 | AH36: 1 | AI36: 1 | AJ36: 1 | AK36: 1 | AL36: 3 | AM36: 1 | AN36: 4
A37: EP | B37: 9 | C37: 9 | D37: 6 | E37: 6 | F37: 6 | G37: 6 | H37: 6 | I37: 6 | J37: 6 | K37: 6 | L37: 6 | M37: 6 | N37: 6 | O37: 6 | P37: 6 | Q37: 6 | R37: 6 | S37: 6 | T37: 6 | U37: 6 | V37: 6 | W37: 6 | X37: 6 | Y37: 6 | Z37: 6 | AA37: 6 | AB37: 6 | AC37: 6 | AD37: 6 | AE37: 6 | AF37: 6 | AG37: 6 | AH37: 6 | AI37: 6 | AJ37: 6 | AK37: 6 | AL37: 13 | AM37: 6 | AN37: 9
A38: EQ | B38: 0 | C38: 0 | D38: 0 | E38: 0 | F38: 0 | G38: 1 | H38: 0 | I38: 0 | J38: 0 | K38: 0 | L38: 0 | M38: 0 | N38: 0 | O38: 0 | P38: 0 | Q38: 0 | R38: 0 | S38: 0 | T38: 0 | U38: 0 | V38: 0 | W38: 0 | X38: 0 | Y38: 0 | Z38: 0 | AA38: 1 | AB38: 1 | AC38: 1 | AD38: 1 | AE38: 1 | AF38: 1 | AG38: 0 | AH38: 1 | AI38: 1 | AJ38: 1 | AK38: 1 | AL38: 0 | AM38: 0 | AN38: 0
A39: ER | B39: 10 | C39: 10 | D39: 4 | E39: 4 | F39: 4 | G39: 4 | H39: 4 | I39: 4 | J39: 4 | K39: 4 | L39: 4 | M39: 4 | N39: 4 | O39: 4 | P39: 4 | Q39: 4 | R39: 4 | S39: 3 | T39: 4 | U39: 4 | V39: 5 | W39: 4 | X39: 4 | Y39: 4 | Z39: 4 | AA39: 5 | AB39: 4 | AC39: 4 | AD39: 4 | AE39: 5 | AF39: 5 | AG39: 4 | AH39: 5 | AI39: 5 | AJ39: 5 | AK39: 5 | AL39: 6 | AM39: 4 | AN39: 6
A40: ET | B40: 5 | C40: 5 | D40: 2 | E40: 2 | F40: 2 | G40: 3 | H40: 2 | I40: 2 | J40: 2 | K40: 2 | L40: 2 | M40: 2 | N40: 2 | O40: 2 | P40: 2 | Q40: 2 | R40: 2 | S40: 2 | T40: 2 | U40: 2 | V40: 2 | W40: 2 | X40: 2 | Y40: 2 | Z40: 2 | AA40: 3 | AB40: 3 | AC40: 3 | AD40: 3 | AE40: 3 | AF40: 3 | AG40: 2 | AH40: 3 | AI40: 3 | AJ40: 3 | AK40: 3 | AL40: 6 | AM40: 2 | AN40: 5
A41: F | B41: 67 | C41: 67 | D41: 76 | E41: 75 | F41: 78 | G41: 69 | H41: 74 | I41: 77 | J41: 74 | K41: 74 | L41: 77 | M41: 77 | N41: 77 | O41: 77 | P41: 75 | Q41: 75 | R41: 77 | S41: 77 | T41: 77 | U41: 78 | V41: 73 | W41: 76 | X41: 75 | Y41: 75 | Z41: 76 | AA41: 68 | AB41: 68 | AC41: 67 | AD41: 69 | AE41: 68 | AF41: 68 | AG41: 77 | AH41: 68 | AI41: 68 | AJ41: 68 | AK41: 68 | AL41: 69 | AM41: 74 | AN41: 73
A42: FGR | B42: 3 | C42: 3 | D42: 1 | E42: 1 | F42: 1 | G42: 1 | H42: 1 | I42: 1 | J42: 1 | K42: 1 | L42: 1 | M42: 1 | N42: 1 | O42: 1 | P42: 1 | Q42: 1 | R42: 1 | S42: 1 | T42: 1 | U42: 1 | V42: 1 | W42: 1 | X42: 1 | Y42: 1 | Z42: 1 | AA42: 1 | AB42: 1 | AC42: 1 | AD42: 1 | AE42: 1 | AF42: 1 | AG42: 1 | AH42: 1 | AI42: 1 | AJ42: 1 | AK42: 1 | AL42: 2 | AM42: 1 | AN42: 3
A43: FH | B43: 0 | C43: 0 | D43: 1 | E43: 1 | F43: 1 | G43: 0 | H43: 1 | I43: 1 | J43: 1 | K43: 1 | L43: 1 | M43: 1 | N43: 1 | O43: 1 | P43: 1 | Q43: 1 | R43: 1 | S43: 1 | T43: 1 | U43: 1 | V43: 0 | W43: 1 | X43: 1 | Y43: 1 | Z43: 1 | AA43: 0 | AB43: 0 | AC43: 0 | AD43: 0 | AE43: 0 | AF43: 0 | AG43: 1 | AH43: 0 | AI43: 0 | AJ43: 0 | AK43: 0 | AL43: 0 | AM43: 1 | AN43: 0
A44: FL | B44: 0 | C44: 0 | D44: 0 | E44: 0 | F44: 0 | G44: 0 | H44: 0 | I44: 0 | J44: 0 | K44: 0 | L44: 0 | M44: 0 | N44: 0 | O44: 0 | P44: 0 | Q44: 0 | R44: 0 | S44: 0 | T44: 0 | U44: 0 | V44: 0 | W44: 0 | X44: 0 | Y44: 0 | Z44: 0 | AA44: 0 | AB44: 0 | AC44: 0 | AD44: 0 | AE44: 0 | AF44: 0 | AG44: 0 | AH44: 0 | AI44: 0 | AJ44: 0 | AK44: 0 | AL44: 0 | AM44: 0 | AN44: 0
A45: FPT | B45: 0 | C45: 0 | D45: 0 | E45: 0 | F45: 0 | G45: 0 | H45: 0 | I45: 0 | J45: 0 | K45: 0 | L45: 0 | M45: 0 | N45: 0 | O45: 0 | P45: 0 | Q45: 0 | R45: 0 | S45: 0 | T45: 0 | U45: 0 | V45: 0 | W45: 0 | X45: 0 | Y45: 0 | Z45: 0 | AA45: 0 | AB45: 0 | AC45: 0 | AD45: 0 | AE45: 0 | AF45: 0 | AG45: 0 | AH45: 0 | AI45: 0 | AJ45: 0 | AK45: 0 | AL45: 0 | AM45: 0 | AN45: 0
A46: FR | B46: 5 | C46: 5 | D46: 7 | E46: 7 | F46: 7 | G46: 1 | H46: 7 | I46: 7 | J46: 7 | K46: 7 | L46: 7 | M46: 7 | N46: 7 | O46: 7 | P46: 7 | Q46: 7 | R46: 7 | S46: 7 | T46: 7 | U46: 7 | V46: 7 | W46: 7 | X46: 7 | Y46: 7 | Z46: 7 | AA46: 1 | AB46: 1 | AC46: 1 | AD46: 1 | AE46: 1 | AF46: 1 | AG46: 7 | AH46: 1 | AI46: 1 | AJ46: 1 | AK46: 1 | AL46: 5 | AM46: 7 | AN46: 5
A47: FT | B47: 1 | C47: 1 | D47: 1 | E47: 1 | F47: 1 | G47: 1 | H47: 1 | I47: 1 | J47: 1 | K47: 1 | L47: 1 | M47: 1 | N47: 1 | O47: 1 | P47: 1 | Q47: 1 | R47: 1 | S47: 1 | T47: 1 | U47: 1 | V47: 1 | W47: 1 | X47: 1 | Y47: 1 | Z47: 1 | AA47: 1 | AB47: 1 | AC47: 1 | AD47: 1 | AE47: 1 | AF47: 1 | AG47: 1 | AH47: 1 | AI47: 1 | AJ47: 1 | AK47: 1 | AL47: 1 | AM47: 1 | AN47: 2
A48: FV | B48: 3 | C48: 3 | D48: 4 | E48: 4 | F48: 4 | G48: 3 | H48: 4 | I48: 5 | J48: 4 | K48: 4 | L48: 4 | M48: 4 | N48: 5 | O48: 4 | P48: 4 | Q48: 3 | R48: 4 | S48: 3 | T48: 4 | U48: 4 | V48: 4 | W48: 4 | X48: 4 | Y48: 4 | Z48: 4 | AA48: 2 | AB48: 2 | AC48: 2 | AD48: 2 | AE48: 2 | AF48: 2 | AG48: 4 | AH48: 2 | AI48: 2 | AJ48: 2 | AK48: 2 | AL48: 3 | AM48: 4 | AN48: 3
A49: G | B49: 350 | C49: 351 | D49: 239 | E49: 238 | F49: 220 | G49: 223 | H49: 225 | I49: 244 | J49: 224 | K49: 225 | L49: 226 | M49: 248 | N49: 228 | O49: 245 | P49: 228 | Q49: 226 | R49: 214 | S49: 226 | T49: 248 | U49: 213 | V49: 216 | W49: 227 | X49: 230 | Y49: 220 | Z49: 245 | AA49: 255 | AB49: 244 | AC49: 233 | AD49: 249 | AE49: 248 | AF49: 248 | AG49: 248 | AH49: 244 | AI49: 244 | AJ49: 262 | AK49: 255 | AL49: 345 | AM49: 226 | AN49: 347
A50: GHR | B50: 0 | C50: 0 | D50: 0 | E50: 0 | F50: 0 | G50: 0 | H50: 0 | I50: 0 | J50: 0 | K50: 0 | L50: 0 | M50: 0 | N50: 0 | O50: 0 | P50: 0 | Q50: 0 | R50: 0 | S50: 0 | T50: 0 | U50: 0 | V50: 0 | W50: 0 | X50: 0 | Y50: 0 | Z50: 0 | AA50: 0 | AB50: 0 | AC50: 0 | AD50: 0 | AE50: 0 | AF50: 0 | AG50: 0 | AH50: 0 | AI50: 0 | AJ50: 0 | AK50: 0 | AL50: 0 | AM50: 0 | AN50: 0
A51: GI | B51: 0 | C51: 0 | D51: 0 | E51: 0 | F51: 0 | G51: 1 | H51: 0 | I51: 0 | J51: 0 | K51: 0 | L51: 0 | M51: 0 | N51: 0 | O51: 0 | P51: 0 | Q51: 0 | R51: 0 | S51: 0 | T51: 0 | U51: 0 | V51: 0 | W51: 0 | X51: 0 | Y51: 0 | Z51: 0 | AA51: 1 | AB51: 1 | AC51: 1 | AD51: 1 | AE51: 1 | AF51: 1 | AG51: 0 | AH51: 1 | AI51: 1 | AJ51: 1 | AK51: 1 | AL51: 0 | AM51: 0 | AN51: 1
A52: GK | B52: 13 | C52: 13 | D52: 7 | E52: 8 | F52: 8 | G52: 11 | H52: 7 | I52: 7 | J52: 8 | K52: 8 | L52: 7 | M52: 9 | N52: 7 | O52: 9 | P52: 7 | Q52: 7 | R52: 6 | S52: 7 | T52: 9 | U52: 7 | V52: 7 | W52: 6 | X52: 8 | Y52: 6 | Z52: 7 | AA52: 9 | AB52: 9 | AC52: 9 | AD52: 11 | AE52: 9 | AF52: 9 | AG52: 9 | AH52: 9 | AI52: 9 | AJ52: 11 | AK52: 9 | AL52: 17 | AM52: 8 | AN52: 15
A53: GM | B53: 6 | C53: 6 | D53: 6 | E53: 8 | F53: 4 | G53: 3 | H53: 7 | I53: 5 | J53: 7 | K53: 7 | L53: 6 | M53: 5 | N53: 4 | O53: 5 | P53: 7 | Q53: 6 | R53: 7 | S53: 6 | T53: 5 | U53: 6 | V53: 3 | W53: 7 | X53: 6 | Y53: 3 | Z53: 8 | AA53: 5 | AB53: 5 | AC53: 5 | AD53: 8 | AE53: 5 | AF53: 5 | AG53: 5 | AH53: 5 | AI53: 5 | AJ53: 4 | AK53: 5 | AL53: 6 | AM53: 7 | AN53: 8
A54: GR | B54: 4 | C54: 4 | D54: 5 | E54: 5 | F54: 5 | G54: 6 | H54: 5 | I54: 5 | J54: 6 | K54: 6 | L54: 5 | M54: 5 | N54: 5 | O54: 5 | P54: 5 | Q54: 5 | R54: 5 | S54: 5 | T54: 5 | U54: 5 | V54: 5 | W54: 5 | X54: 5 | Y54: 5 | Z54: 5 | AA54: 8 | AB54: 7 | AC54: 5 | AD54: 8 | AE54: 8 | AF54: 8 | AG54: 5 | AH54: 7 | AI54: 7 | AJ54: 8 | AK54: 8 | AL54: 6 | AM54: 6 | AN54: 5
A55: GT | B55: 8 | C55: 8 | D55: 7 | E55: 10 | F55: 7 | G55: 7 | H55: 6 | I55: 9 | J55: 6 | K55: 6 | L55: 5 | M55: 10 | N55: 9 | O55: 10 | P55: 10 | Q55: 7 | R55: 4 | S55: 7 | T55: 10 | U55: 5 | V55: 7 | W55: 9 | X55: 7 | Y55: 5 | Z55: 10 | AA55: 6 | AB55: 6 | AC55: 8 | AD55: 9 | AE55: 6 | AF55: 6 | AG55: 10 | AH55: 6 | AI55: 6 | AJ55: 5 | AK55: 6 | AL55: 7 | AM55: 6 | AN55: 11
A56: H | B56: 54 | C56: 54 | D56: 65 | E56: 68 | F56: 64 | G56: 41 | H56: 65 | I56: 63 | J56: 67 | K56: 67 | L56: 66 | M56: 64 | N56: 66 | O56: 64 | P56: 67 | Q56: 64 | R56: 64 | S56: 62 | T56: 64 | U56: 63 | V56: 62 | W56: 67 | X56: 64 | Y56: 61 | Z56: 64 | AA56: 50 | AB56: 49 | AC56: 41 | AD56: 41 | AE56: 50 | AF56: 45 | AG56: 64 | AH56: 50 | AI56: 50 | AJ56: 47 | AK56: 50 | AL56: 58 | AM56: 67 | AN56: 60
A57: HI | B57: 4 | C57: 4 | D57: 3 | E57: 3 | F57: 3 | G57: 2 | H57: 3 | I57: 3 | J57: 3 | K57: 3 | L57: 3 | M57: 3 | N57: 3 | O57: 3 | P57: 3 | Q57: 3 | R57: 3 | S57: 3 | T57: 3 | U57: 3 | V57: 3 | W57: 3 | X57: 3 | Y57: 3 | Z57: 3 | AA57: 2 | AB57: 2 | AC57: 2 | AD57: 2 | AE57: 2 | AF57: 2 | AG57: 3 | AH57: 2 | AI57: 2 | AJ57: 2 | AK57: 2 | AL57: 4 | AM57: 3 | AN57: 4
A58: HJ | B58: 1 | C58: 1 | D58: 1 | E58: 1 | F58: 1 | G58: 1 | H58: 1 | I58: 1 | J58: 1 | K58: 1 | L58: 1 | M58: 1 | N58: 1 | O58: 1 | P58: 1 | Q58: 1 | R58: 1 | S58: 1 | T58: 1 | U58: 1 | V58: 1 | W58: 1 | X58: 1 | Y58: 1 | Z58: 1 | AA58: 1 | AB58: 1 | AC58: 1 | AD58: 1 | AE58: 1 | AF58: 1 | AG58: 1 | AH58: 1 | AI58: 1 | AJ58: 1 | AK58: 1 | AL58: 1 | AM58: 1 | AN58: 1
A59: HK | B59: 1 | C59: 1 | D59: 1 | E59: 1 | F59: 1 | G59: 1 | H59: 1 | I59: 1 | J59: 1 | K59: 1 | L59: 1 | M59: 1 | N59: 1 | O59: 1 | P59: 1 | Q59: 1 | R59: 1 | S59: 1 | T59: 1 | U59: 1 | V59: 1 | W59: 1 | X59: 1 | Y59: 1 | Z59: 1 | AA59: 1 | AB59: 1 | AC59: 1 | AD59: 1 | AE59: 1 | AF59: 1 | AG59: 1 | AH59: 1 | AI59: 1 | AJ59: 1 | AK59: 1 | AL59: 1 | AM59: 1 | AN59: 1
A60: HP | B60: 2 | C60: 2 | D60: 2 | E60: 3 | F60: 2 | G60: 1 | H60: 2 | I60: 2 | J60: 3 | K60: 3 | L60: 2 | M60: 2 | N60: 2 | O60: 2 | P60: 3 | Q60: 3 | R60: 3 | S60: 2 | T60: 2 | U60: 2 | V60: 2 | W60: 2 | X60: 3 | Y60: 2 | Z60: 3 | AA60: 1 | AB60: 1 | AC60: 1 | AD60: 1 | AE60: 1 | AF60: 1 | AG60: 2 | AH60: 1 | AI60: 1 | AJ60: 1 | AK60: 1 | AL60: 2 | AM60: 3 | AN60: 2
A61: HQ | B61: 1 | C61: 1 | D61: 1 | E61: 1 | F61: 1 | G61: 0 | H61: 1 | I61: 1 | J61: 1 | K61: 1 | L61: 1 | M61: 1 | N61: 1 | O61: 1 | P61: 1 | Q61: 1 | R61: 1 | S61: 1 | T61: 1 | U61: 1 | V61: 1 | W61: 1 | X61: 1 | Y61: 1 | Z61: 1 | AA61: 0 | AB61: 0 | AC61: 0 | AD61: 0 | AE61: 0 | AF61: 0 | AG61: 1 | AH61: 0 | AI61: 0 | AJ61: 0 | AK61: 0 | AL61: 1 | AM61: 1 | AN61: 1
A62: HR | B62: 22 | C62: 22 | D62: 13 | E62: 13 | F62: 14 | G62: 17 | H62: 13 | I62: 13 | J62: 13 | K62: 13 | L62: 13 | M62: 13 | N62: 14 | O62: 13 | P62: 13 | Q62: 13 | R62: 13 | S62: 13 | T62: 13 | U62: 13 | V62: 13 | W62: 13 | X62: 13 | Y62: 13 | Z62: 14 | AA62: 18 | AB62: 18 | AC62: 18 | AD62: 20 | AE62: 18 | AF62: 18 | AG62: 13 | AH62: 18 | AI62: 18 | AJ62: 18 | AK62: 18 | AL62: 22 | AM62: 13 | AN62: 22
A63: HT | B63: 1 | C63: 1 | D63: 0 | E63: 0 | F63: 0 | G63: 1 | H63: 0 | I63: 0 | J63: 0 | K63: 0 | L63: 0 | M63: 0 | N63: 0 | O63: 0 | P63: 0 | Q63: 0 | R63: 0 | S63: 0 | T63: 0 | U63: 0 | V63: 0 | W63: 0 | X63: 0 | Y63: 0 | Z63: 0 | AA63: 1 | AB63: 1 | AC63: 1 | AD63: 1 | AE63: 1 | AF63: 1 | AG63: 0 | AH63: 1 | AI63: 1 | AJ63: 1 | AK63: 1 | AL63: 1 | AM63: 0 | AN63: 1
A64: I | B64: 54 | C64: 54 | D64: 52 | E64: 52 | F64: 51 | G64: 55 | H64: 52 | I64: 53 | J64: 52 | K64: 51 | L64: 56 | M64: 50 | N64: 53 | O64: 49 | P64: 51 | Q64: 52 | R64: 52 | S64: 52 | T64: 50 | U64: 53 | V64: 52 | W64: 51 | X64: 52 | Y64: 52 | Z64: 54 | AA64: 53 | AB64: 53 | AC64: 54 | AD64: 57 | AE64: 53 | AF64: 51 | AG64: 49 | AH64: 53 | AI64: 53 | AJ64: 53 | AK64: 53 | AL64: 49 | AM64: 52 | AN64: 51
A65: IM | B65: 4 | C65: 3 | D65: 3 | E65: 1 | F65: 2 | G65: 0 | H65: 3 | I65: 0 | J65: 3 | K65: 3 | L65: 2 | M65: 2 | N65: 1 | O65: 2 | P65: 1 | Q65: 2 | R65: 2 | S65: 3 | T65: 2 | U65: 2 | V65: 1 | W65: 1 | X65: 2 | Y65: 0 | Z65: 2 | AA65: 0 | AB65: 0 | AC65: 0 | AD65: 0 | AE65: 0 | AF65: 0 | AG65: 2 | AH65: 0 | AI65: 0 | AJ65: 0 | AK65: 0 | AL65: 3 | AM65: 3 | AN65: 0
A66: IO | B66: 0 | C66: 0 | D66: 0 | E66: 0 | F66: 0 | G66: 0 | H66: 0 | I66: 0 | J66: 0 | K66: 0 | L66: 0 | M66: 0 | N66: 0 | O66: 0 | P66: 0 | Q66: 0 | R66: 0 | S66: 0 | T66: 0 | U66: 0 | V66: 0 | W66: 0 | X66: 0 | Y66: 0 | Z66: 0 | AA66: 0 | AB66: 0 | AC66: 0 | AD66: 0 | AE66: 0 | AF66: 0 | AG66: 0 | AH66: 0 | AI66: 0 | AJ66: 0 | AK66: 0 | AL66: 0 | AM66: 0 | AN66: 0
A67: IQ | B67: 4 | C67: 4 | D67: 7 | E67: 6 | F67: 6 | G67: 4 | H67: 6 | I67: 6 | J67: 7 | K67: 7 | L67: 8 | M67: 6 | N67: 6 | O67: 6 | P67: 6 | Q67: 7 | R67: 6 | S67: 6 | T67: 6 | U67: 6 | V67: 6 | W67: 6 | X67: 6 | Y67: 6 | Z67: 6 | AA67: 4 | AB67: 4 | AC67: 4 | AD67: 4 | AE67: 4 | AF67: 4 | AG67: 6 | AH67: 4 | AI67: 4 | AJ67: 4 | AK67: 4 | AL67: 5 | AM67: 7 | AN67: 5
A68: IQR | B68: 7 | C68: 7 | D68: 7 | E68: 7 | F68: 6 | G68: 7 | H68: 6 | I68: 7 | J68: 7 | K68: 7 | L68: 8 | M68: 7 | N68: 6 | O68: 7 | P68: 7 | Q68: 6 | R68: 7 | S68: 7 | T68: 7 | U68: 7 | V68: 7 | W68: 7 | X68: 8 | Y68: 7 | Z68: 7 | AA68: 7 | AB68: 7 | AC68: 6 | AD68: 6 | AE68: 7 | AF68: 7 | AG68: 7 | AH68: 7 | AI68: 7 | AJ68: 7 | AK68: 7 | AL68: 7 | AM68: 6 | AN68: 7
A69: IR | B69: 4 | C69: 4 | D69: 4 | E69: 4 | F69: 4 | G69: 4 | H69: 4 | I69: 4 | J69: 4 | K69: 4 | L69: 4 | M69: 4 | N69: 4 | O69: 4 | P69: 4 | Q69: 4 | R69: 4 | S69: 4 | T69: 4 | U69: 4 | V69: 4 | W69: 4 | X69: 4 | Y69: 4 | Z69: 4 | AA69: 4 | AB69: 4 | AC69: 4 | AD69: 4 | AE69: 4 | AF69: 4 | AG69: 4 | AH69: 4 | AI69: 4 | AJ69: 4 | AK69: 4 | AL69: 4 | AM69: 4 | AN69: 4
A70: IV | B70: 1 | C70: 1 | D70: 0 | E70: 0 | F70: 0 | G70: 1 | H70: 0 | I70: 0 | J70: 0 | K70: 0 | L70: 0 | M70: 0 | N70: 0 | O70: 0 | P70: 0 | Q70: 0 | R70: 0 | S70: 0 | T70: 0 | U70: 0 | V70: 0 | W70: 0 | X70: 0 | Y70: 0 | Z70: 0 | AA70: 1 | AB70: 1 | AC70: 1 | AD70: 1 | AE70: 1 | AF70: 1 | AG70: 0 | AH70: 1 | AI70: 1 | AJ70: 1 | AK70: 1 | AL70: 1 | AM70: 0 | AN70: 1
A71: J | B71: 192 | C71: 192 | D71: 188 | E71: 195 | F71: 194 | G71: 186 | H71: 196 | I71: 194 | J71: 199 | K71: 198 | L71: 189 | M71: 194 | N71: 188 | O71: 194 | P71: 193 | Q71: 192 | R71: 193 | S71: 190 | T71: 194 | U71: 191 | V71: 189 | W71: 196 | X71: 190 | Y71: 190 | Z71: 192 | AA71: 191 | AB71: 188 | AC71: 185 | AD71: 185 | AE71: 191 | AF71: 191 | AG71: 195 | AH71: 191 | AI71: 191 | AJ71: 192 | AK71: 191 | AL71: 194 | AM71: 198 | AN71: 193
A72: JK | B72: 1 | C72: 1 | D72: 2 | E72: 2 | F72: 2 | G72: 2 | H72: 2 | I72: 2 | J72: 2 | K72: 2 | L72: 2 | M72: 2 | N72: 2 | O72: 2 | P72: 2 | Q72: 2 | R72: 2 | S72: 2 | T72: 2 | U72: 2 | V72: 2 | W72: 2 | X72: 2 | Y72: 2 | Z72: 2 | AA72: 2 | AB72: 2 | AC72: 2 | AD72: 2 | AE72: 2 | AF72: 2 | AG72: 2 | AH72: 2 | AI72: 2 | AJ72: 2 | AK72: 2 | AL72: 1 | AM72: 2 | AN72: 1
A73: JM | B73: 0 | C73: 0 | D73: 0 | E73: 0 | F73: 0 | G73: 0 | H73: 0 | I73: 0 | J73: 0 | K73: 0 | L73: 0 | M73: 0 | N73: 0 | O73: 0 | P73: 0 | Q73: 0 | R73: 0 | S73: 0 | T73: 0 | U73: 0 | V73: 0 | W73: 0 | X73: 0 | Y73: 0 | Z73: 0 | AA73: 0 | AB73: 0 | AC73: 0 | AD73: 0 | AE73: 0 | AF73: 0 | AG73: 0 | AH73: 0 | AI73: 0 | AJ73: 0 | AK73: 0 | AL73: 0 | AM73: 0 | AN73: 0
A74: JO | B74: 7 | C74: 7 | D74: 6 | E74: 6 | F74: 5 | G74: 2 | H74: 6 | I74: 6 | J74: 6 | K74: 7 | L74: 5 | M74: 6 | N74: 5 | O74: 6 | P74: 6 | Q74: 6 | R74: 6 | S74: 6 | T74: 6 | U74: 5 | V74: 5 | W74: 6 | X74: 6 | Y74: 5 | Z74: 5 | AA74: 2 | AB74: 2 | AC74: 2 | AD74: 3 | AE74: 2 | AF74: 2 | AG74: 6 | AH74: 2 | AI74: 2 | AJ74: 2 | AK74: 2 | AL74: 7 | AM74: 6 | AN74: 7
A75: JR | B75: 3 | C75: 3 | D75: 2 | E75: 2 | F75: 2 | G75: 3 | H75: 2 | I75: 2 | J75: 2 | K75: 2 | L75: 2 | M75: 2 | N75: 2 | O75: 2 | P75: 2 | Q75: 2 | R75: 2 | S75: 2 | T75: 2 | U75: 2 | V75: 2 | W75: 2 | X75: 2 | Y75: 2 | Z75: 2 | AA75: 3 | AB75: 3 | AC75: 3 | AD75: 3 | AE75: 3 | AF75: 3 | AG75: 2 | AH75: 3 | AI75: 3 | AJ75: 3 | AK75: 3 | AL75: 3 | AM75: 2 | AN75: 3
A76: JT | B76: 0 | C76: 0 | D76: 0 | E76: 0 | F76: 0 | G76: 0 | H76: 0 | I76: 0 | J76: 0 | K76: 0 | L76: 0 | M76: 0 | N76: 0 | O76: 0 | P76: 0 | Q76: 0 | R76: 0 | S76: 0 | T76: 0 | U76: 0 | V76: 0 | W76: 0 | X76: 0 | Y76: 0 | Z76: 0 | AA76: 0 | AB76: 0 | AC76: 0 | AD76: 0 | AE76: 0 | AF76: 0 | AG76: 0 | AH76: 0 | AI76: 0 | AJ76: 0 | AK76: 0 | AL76: 0 | AM76: 0 | AN76: 0
A77: JU | B77: 1 | C77: 1 | D77: 1 | E77: 1 | F77: 1 | G77: 1 | H77: 1 | I77: 1 | J77: 1 | K77: 1 | L77: 1 | M77: 1 | N77: 1 | O77: 1 | P77: 1 | Q77: 1 | R77: 1 | S77: 1 | T77: 1 | U77: 1 | V77: 1 | W77: 1 | X77: 1 | Y77: 1 | Z77: 1 | AA77: 1 | AB77: 1 | AC77: 1 | AD77: 1 | AE77: 1 | AF77: 1 | AG77: 1 | AH77: 1 | AI77: 1 | AJ77: 1 | AK77: 1 | AL77: 1 | AM77: 1 | AN77: 1
A78: JV | B78: 0 | C78: 0 | D78: 0 | E78: 0 | F78: 0 | G78: 0 | H78: 0 | I78: 0 | J78: 0 | K78: 0 | L78: 0 | M78: 0 | N78: 0 | O78: 0 | P78: 0 | Q78: 0 | R78: 0 | S78: 0 | T78: 0 | U78: 0 | V78: 0 | W78: 0 | X78: 0 | Y78: 0 | Z78: 0 | AA78: 0 | AB78: 0 | AC78: 0 | AD78: 0 | AE78: 0 | AF78: 0 | AG78: 0 | AH78: 0 | AI78: 0 | AJ78: 0 | AK78: 0 | AL78: 0 | AM78: 0 | AN78: 0
A79: K | B79: 198 | C79: 198 | D79: 138 | E79: 141 | F79: 136 | G79: 119 | H79: 136 | I79: 145 | J79: 138 | K79: 140 | L79: 137 | M79: 143 | N79: 140 | O79: 142 | P79: 140 | Q79: 134 | R79: 135 | S79: 139 | T79: 145 | U79: 128 | V79: 130 | W79: 143 | X79: 133 | Y79: 137 | Z79: 140 | AA79: 137 | AB79: 134 | AC79: 126 | AD79: 141 | AE79: 136 | AF79: 133 | AG79: 144 | AH79: 136 | AI79: 136 | AJ79: 138 | AK79: 137 | AL79: 181 | AM79: 139 | AN79: 174
A80: KL | B80: 2 | C80: 2 | D80: 2 | E80: 3 | F80: 2 | G80: 2 | H80: 3 | I80: 2 | J80: 2 | K80: 2 | L80: 2 | M80: 2 | N80: 2 | O80: 2 | P80: 3 | Q80: 2 | R80: 3 | S80: 2 | T80: 2 | U80: 3 | V80: 2 | W80: 2 | X80: 2 | Y80: 2 | Z80: 3 | AA80: 2 | AB80: 2 | AC80: 2 | AD80: 2 | AE80: 2 | AF80: 2 | AG80: 2 | AH80: 2 | AI80: 2 | AJ80: 2 | AK80: 2 | AL80: 3 | AM80: 3 | AN80: 2
A81: KN | B81: 0 | C81: 0 | D81: 0 | E81: 0 | F81: 0 | G81: 0 | H81: 0 | I81: 0 | J81: 0 | K81: 0 | L81: 0 | M81: 0 | N81: 0 | O81: 0 | P81: 0 | Q81: 0 | R81: 0 | S81: 0 | T81: 0 | U81: 0 | V81: 0 | W81: 0 | X81: 0 | Y81: 0 | Z81: 0 | AA81: 0 | AB81: 0 | AC81: 0 | AD81: 0 | AE81: 0 | AF81: 0 | AG81: 0 | AH81: 0 | AI81: 0 | AJ81: 0 | AK81: 0 | AL81: 0 | AM81: 0 | AN81: 0
A82: KNT | B82: 1 | C82: 1 | D82: 1 | E82: 1 | F82: 1 | G82: 1 | H82: 1 | I82: 1 | J82: 1 | K82: 1 | L82: 1 | M82: 1 | N82: 1 | O82: 1 | P82: 1 | Q82: 1 | R82: 1 | S82: 1 | T82: 1 | U82: 1 | V82: 1 | W82: 1 | X82: 1 | Y82: 1 | Z82: 1 | AA82: 1 | AB82: 1 | AC82: 1 | AD82: 1 | AE82: 1 | AF82: 1 | AG82: 1 | AH82: 1 | AI82: 1 | AJ82: 1 | AK82: 1 | AL82: 1 | AM82: 1 | AN82: 1
A83: KO | B83: 1 | C83: 1 | D83: 1 | E83: 1 | F83: 1 | G83: 1 | H83: 1 | I83: 1 | J83: 1 | K83: 1 | L83: 1 | M83: 1 | N83: 1 | O83: 1 | P83: 1 | Q83: 1 | R83: 1 | S83: 1 | T83: 1 | U83: 1 | V83: 1 | W83: 1 | X83: 1 | Y83: 1 | Z83: 1 | AA83: 1 | AB83: 1 | AC83: 1 | AD83: 1 | AE83: 1 | AF83: 1 | AG83: 1 | AH83: 1 | AI83: 1 | AJ83: 1 | AK83: 1 | AL83: 1 | AM83: 1 | AN83: 1
A84: KR | B84: 0 | C84: 0 | D84: 0 | E84: 0 | F84: 0 | G84: 0 | H84: 0 | I84: 0 | J84: 0 | K84: 0 | L84: 0 | M84: 0 | N84: 0 | O84: 0 | P84: 0 | Q84: 0 | R84: 0 | S84: 0 | T84: 0 | U84: 0 | V84: 0 | W84: 0 | X84: 0 | Y84: 0 | Z84: 0 | AA84: 0 | AB84: 0 | AC84: 0 | AD84: 0 | AE84: 0 | AF84: 0 | AG84: 0 | AH84: 0 | AI84: 0 | AJ84: 0 | AK84: 0 | AL84: 0 | AM84: 0 | AN84: 0
A85: KT | B85: 33 | C85: 33 | D85: 24 | E85: 25 | F85: 23 | G85: 25 | H85: 27 | I85: 24 | J85: 27 | K85: 27 | L85: 26 | M85: 27 | N85: 26 | O85: 27 | P85: 25 | Q85: 25 | R85: 27 | S85: 24 | T85: 27 | U85: 25 | V85: 20 | W85: 23 | X85: 26 | Y85: 26 | Z85: 23 | AA85: 24 | AB85: 23 | AC85: 22 | AD85: 26 | AE85: 24 | AF85: 23 | AG85: 27 | AH85: 24 | AI85: 23 | AJ85: 24 | AK85: 24 | AL85: 27 | AM85: 27 | AN85: 32
A86: KV | B86: 1 | C86: 1 | D86: 1 | E86: 1 | F86: 1 | G86: 1 | H86: 1 | I86: 1 | J86: 1 | K86: 1 | L86: 1 | M86: 1 | N86: 1 | O86: 1 | P86: 1 | Q86: 1 | R86: 1 | S86: 1 | T86: 1 | U86: 1 | V86: 1 | W86: 1 | X86: 1 | Y86: 1 | Z86: 1 | AA86: 1 | AB86: 1 | AC86: 1 | AD86: 1 | AE86: 1 | AF86: 1 | AG86: 1 | AH86: 1 | AI86: 1 | AJ86: 1 | AK86: 1 | AL86: 1 | AM86: 1 | AN86: 1
A87: KX | B87: 0 | C87: 0 | D87: 0 | E87: 0 | F87: 0 | G87: 0 | H87: 0 | I87: 0 | J87: 0 | K87: 0 | L87: 0 | M87: 0 | N87: 0 | O87: 0 | P87: 0 | Q87: 0 | R87: 0 | S87: 0 | T87: 0 | U87: 0 | V87: 0 | W87: 0 | X87: 0 | Y87: 0 | Z87: 0 | AA87: 0 | AB87: 0 | AC87: 0 | AD87: 0 | AE87: 0 | AF87: 0 | AG87: 0 | AH87: 0 | AI87: 0 | AJ87: 0 | AK87: 0 | AL87: 0 | AM87: 0 | AN87: 0
A88: L | B88: 92 | C88: 92 | D88: 91 | E88: 114 | F88: 100 | G88: 91 | H88: 102 | I88: 103 | J88: 98 | K88: 103 | L88: 94 | M88: 107 | N88: 100 | O88: 103 | P88: 112 | Q88: 102 | R88: 92 | S88: 99 | T88: 103 | U88: 94 | V88: 96 | W88: 111 | X88: 91 | Y88: 99 | Z88: 96 | AA88: 116 | AB88: 110 | AC88: 87 | AD88: 97 | AE88: 113 | AF88: 111 | AG88: 103 | AH88: 112 | AI88: 113 | AJ88: 118 | AK88: 118 | AL88: 103 | AM88: 102 | AN88: 100
A89: LV | B89: 0 | C89: 0 | D89: 0 | E89: 0 | F89: 0 | G89: 0 | H89: 0 | I89: 0 | J89: 0 | K89: 0 | L89: 0 | M89: 0 | N89: 0 | O89: 0 | P89: 0 | Q89: 0 | R89: 0 | S89: 0 | T89: 0 | U89: 0 | V89: 0 | W89: 0 | X89: 0 | Y89: 0 | Z89: 0 | AA89: 0 | AB89: 0 | AC89: 0 | AD89: 0 | AE89: 0 | AF89: 0 | AG89: 0 | AH89: 0 | AI89: 0 | AJ89: 0 | AK89: 0 | AL89: 0 | AM89: 0 | AN89: 0
A90: LX | B90: 0 | C90: 0 | D90: 1 | E90: 0 | F90: 0 | G90: 0 | H90: 0 | I90: 0 | J90: 0 | K90: 0 | L90: 0 | M90: 0 | N90: 0 | O90: 0 | P90: 0 | Q90: 0 | R90: 0 | S90: 1 | T90: 0 | U90: 0 | V90: 1 | W90: 0 | X90: 1 | Y90: 0 | Z90: 1 | AA90: 0 | AB90: 0 | AC90: 0 | AD90: 0 | AE90: 0 | AF90: 0 | AG90: 0 | AH90: 0 | AI90: 0 | AJ90: 0 | AK90: 0 | AL90: 0 | AM90: 0 | AN90: 0
A91: M | B91: 105 | C91: 103 | D91: 87 | E91: 91 | F91: 86 | G91: 89 | H91: 90 | I91: 87 | J91: 90 | K91: 90 | L91: 89 | M91: 88 | N91: 87 | O91: 88 | P91: 90 | Q91: 85 | R91: 86 | S91: 88 | T91: 88 | U91: 87 | V91: 91 | W91: 89 | X91: 89 | Y91: 85 | Z91: 84 | AA91: 107 | AB91: 99 | AC91: 92 | AD91: 93 | AE91: 107 | AF91: 98 | AG91: 86 | AH91: 98 | AI91: 107 | AJ91: 107 | AK91: 107 | AL91: 99 | AM91: 90 | AN91: 104
A92: MN | B92: 10 | C92: 10 | D92: 6 | E92: 5 | F92: 5 | G92: 5 | H92: 5 | I92: 5 | J92: 5 | K92: 5 | L92: 6 | M92: 5 | N92: 5 | O92: 5 | P92: 5 | Q92: 6 | R92: 7 | S92: 6 | T92: 5 | U92: 6 | V92: 4 | W92: 5 | X92: 6 | Y92: 6 | Z92: 5 | AA92: 8 | AB92: 7 | AC92: 5 | AD92: 6 | AE92: 7 | AF92: 7 | AG92: 5 | AH92: 7 | AI92: 7 | AJ92: 6 | AK92: 8 | AL92: 7 | AM92: 5 | AN92: 8
A93: MO | B93: 1 | C93: 1 | D93: 0 | E93: 0 | F93: 0 | G93: 0 | H93: 0 | I93: 0 | J93: 0 | K93: 0 | L93: 0 | M93: 0 | N93: 0 | O93: 0 | P93: 0 | Q93: 0 | R93: 0 | S93: 0 | T93: 0 | U93: 0 | V93: 1 | W93: 0 | X93: 0 | Y93: 0 | Z93: 0 | AA93: 0 | AB93: 0 | AC93: 1 | AD93: 0 | AE93: 0 | AF93: 0 | AG93: 0 | AH93: 0 | AI93: 0 | AJ93: 0 | AK93: 0 | AL93: 1 | AM93: 0 | AN93: 1
A94: MR | B94: 8 | C94: 8 | D94: 4 | E94: 5 | F94: 4 | G94: 3 | H94: 5 | I94: 6 | J94: 5 | K94: 5 | L94: 4 | M94: 6 | N94: 6 | O94: 6 | P94: 5 | Q94: 4 | R94: 4 | S94: 4 | T94: 6 | U94: 3 | V94: 4 | W94: 5 | X94: 4 | Y94: 4 | Z94: 6 | AA94: 4 | AB94: 3 | AC94: 3 | AD94: 3 | AE94: 4 | AF94: 3 | AG94: 6 | AH94: 3 | AI94: 3 | AJ94: 3 | AK94: 4 | AL94: 11 | AM94: 5 | AN94: 8
A95: MT | B95: 1 | C95: 1 | D95: 1 | E95: 1 | F95: 1 | G95: 1 | H95: 1 | I95: 1 | J95: 1 | K95: 1 | L95: 1 | M95: 1 | N95: 1 | O95: 1 | P95: 1 | Q95: 1 | R95: 1 | S95: 1 | T95: 1 | U95: 1 | V95: 1 | W95: 1 | X95: 1 | Y95: 1 | Z95: 1 | AA95: 1 | AB95: 1 | AC95: 1 | AD95: 1 | AE95: 1 | AF95: 1 | AG95: 1 | AH95: 1 | AI95: 1 | AJ95: 1 | AK95: 1 | AL95: 1 | AM95: 1 | AN95: 1
A96: MU | B96: 1 | C96: 1 | D96: 1 | E96: 1 | F96: 1 | G96: 1 | H96: 1 | I96: 1 | J96: 1 | K96: 1 | L96: 1 | M96: 1 | N96: 1 | O96: 1 | P96: 1 | Q96: 1 | R96: 1 | S96: 1 | T96: 1 | U96: 1 | V96: 1 | W96: 1 | X96: 1 | Y96: 1 | Z96: 1 | AA96: 1 | AB96: 1 | AC96: 1 | AD96: 1 | AE96: 1 | AF96: 1 | AG96: 1 | AH96: 1 | AI96: 1 | AJ96: 1 | AK96: 1 | AL96: 1 | AM96: 1 | AN96: 1
A97: MV | B97: 0 | C97: 0 | D97: 2 | E97: 2 | F97: 2 | G97: 0 | H97: 2 | I97: 2 | J97: 2 | K97: 2 | L97: 2 | M97: 2 | N97: 2 | O97: 2 | P97: 2 | Q97: 2 | R97: 2 | S97: 2 | T97: 2 | U97: 2 | V97: 2 | W97: 2 | X97: 2 | Y97: 2 | Z97: 2 | AA97: 0 | AB97: 0 | AC97: 0 | AD97: 0 | AE97: 0 | AF97: 0 | AG97: 2 | AH97: 0 | AI97: 0 | AJ97: 0 | AK97: 0 | AL97: 0 | AM97: 2 | AN97: 0
A98: MX | B98: 0 | C98: 0 | D98: 0 | E98: 0 | F98: 0 | G98: 0 | H98: 0 | I98: 0 | J98: 0 | K98: 0 | L98: 0 | M98: 0 | N98: 0 | O98: 0 | P98: 0 | Q98: 0 | R98: 0 | S98: 0 | T98: 0 | U98: 0 | V98: 0 | W98: 0 | X98: 0 | Y98: 0 | Z98: 0 | AA98: 0 | AB98: 0 | AC98: 0 | AD98: 0 | AE98: 0 | AF98: 0 | AG98: 0 | AH98: 0 | AI98: 0 | AJ98: 0 | AK98: 0 | AL98: 0 | AM98: 0 | AN98: 0
A99: N | B99: 27 | C99: 27 | D99: 2 | E99: 5 | F99: 7 | G99: 4 | H99: 4 | I99: 7 | J99: 4 | K99: 5 | L99: 3 | M99: 6 | N99: 6 | O99: 6 | P99: 5 | Q99: 4 | R99: 5 | S99: 6 | T99: 6 | U99: 4 | V99: 3 | W99: 11 | X99: 4 | Y99: 5 | Z99: 6 | AA99: 8 | AB99: 7 | AC99: 3 | AD99: 5 | AE99: 8 | AF99: 7 | AG99: 6 | AH99: 8 | AI99: 8 | AJ99: 8 | AK99: 8 | AL99: 27 | AM99: 4 | AN99: 27
A100: NT | B100: 8 | C100: 8 | D100: 0 | E100: 0 | F100: 0 | G100: 0 | H100: 0 | I100: 0 | J100: 0 | K100: 0 | L100: 0 | M100: 0 | N100: 0 | O100: 0 | P100: 0 | Q100: 0 | R100: 0 | S100: 0 | T100: 0 | U100: 0 | V100: 0 | W100: 0 | X100: 0 | Y100: 0 | Z100: 0 | AA100: 0 | AB100: 0 | AC100: 0 | AD100: 0 | AE100: 0 | AF100: 0 | AG100: 0 | AH100: 0 | AI100: 0 | AJ100: 0 | AK100: 0 | AL100: 8 | AM100: 0 | AN100: 7
A101: NU | B101: 5 | C101: 5 | D101: 1 | E101: 1 | F101: 1 | G101: 1 | H101: 1 | I101: 1 | J101: 1 | K101: 1 | L101: 1 | M101: 1 | N101: 1 | O101: 1 | P101: 1 | Q101: 1 | R101: 1 | S101: 1 | T101: 1 | U101: 1 | V101: 1 | W101: 1 | X101: 1 | Y101: 1 | Z101: 1 | AA101: 1 | AB101: 1 | AC101: 1 | AD101: 1 | AE101: 1 | AF101: 1 | AG101: 1 | AH101: 1 | AI101: 1 | AJ101: 1 | AK101: 1 | AL101: 4 | AM101: 1 | AN101: 4
A102: NUW | B102: 3 | C102: 3 | D102: 1 | E102: 1 | F102: 1 | G102: 1 | H102: 1 | I102: 0 | J102: 1 | K102: 1 | L102: 1 | M102: 1 | N102: 1 | O102: 1 | P102: 1 | Q102: 1 | R102: 1 | S102: 0 | T102: 1 | U102: 1 | V102: 1 | W102: 1 | X102: 1 | Y102: 1 | Z102: 1 | AA102: 1 | AB102: 1 | AC102: 1 | AD102: 1 | AE102: 1 | AF102: 1 | AG102: 1 | AH102: 1 | AI102: 1 | AJ102: 1 | AK102: 1 | AL102: 1 | AM102: 1 | AN102: 1
A103: NW | B103: 2 | C103: 2 | D103: 0 | E103: 0 | F103: 0 | G103: 0 | H103: 0 | I103: 0 | J103: 0 | K103: 0 | L103: 0 | M103: 0 | N103: 0 | O103: 0 | P103: 0 | Q103: 0 | R103: 0 | S103: 0 | T103: 0 | U103: 0 | V103: 0 | W103: 0 | X103: 0 | Y103: 0 | Z103: 0 | AA103: 0 | AB103: 0 | AC103: 0 | AD103: 0 | AE103: 0 | AF103: 0 | AG103: 0 | AH103: 0 | AI103: 0 | AJ103: 0 | AK103: 0 | AL103: 0 | AM103: 0 | AN103: 0
A104: O | B104: 64 | C104: 64 | D104: 51 | E104: 53 | F104: 53 | G104: 53 | H104: 50 | I104: 51 | J104: 50 | K104: 50 | L104: 53 | M104: 53 | N104: 54 | O104: 53 | P104: 51 | Q104: 50 | R104: 51 | S104: 51 | T104: 52 | U104: 52 | V104: 51 | W104: 54 | X104: 50 | Y104: 51 | Z104: 52 | AA104: 53 | AB104: 53 | AC104: 52 | AD104: 54 | AE104: 53 | AF104: 52 | AG104: 53 | AH104: 53 | AI104: 53 | AJ104: 53 | AK104: 53 | AL104: 57 | AM104: 50 | AN104: 58
A105: OP | B105: 0 | C105: 0 | D105: 0 | E105: 0 | F105: 0 | G105: 0 | H105: 0 | I105: 0 | J105: 0 | K105: 0 | L105: 0 | M105: 0 | N105: 0 | O105: 0 | P105: 0 | Q105: 0 | R105: 0 | S105: 0 | T105: 0 | U105: 0 | V105: 0 | W105: 0 | X105: 0 | Y105: 0 | Z105: 0 | AA105: 0 | AB105: 0 | AC105: 0 | AD105: 0 | AE105: 0 | AF105: 0 | AG105: 0 | AH105: 0 | AI105: 0 | AJ105: 0 | AK105: 0 | AL105: 0 | AM105: 0 | AN105: 0
A106: OT | B106: 0 | C106: 0 | D106: 0 | E106: 0 | F106: 0 | G106: 0 | H106: 0 | I106: 0 | J106: 0 | K106: 0 | L106: 0 | M106: 0 | N106: 0 | O106: 0 | P106: 0 | Q106: 0 | R106: 0 | S106: 0 | T106: 0 | U106: 0 | V106: 0 | W106: 0 | X106: 0 | Y106: 0 | Z106: 0 | AA106: 0 | AB106: 0 | AC106: 0 | AD106: 0 | AE106: 0 | AF106: 0 | AG106: 0 | AH106: 0 | AI106: 0 | AJ106: 0 | AK106: 0 | AL106: 0 | AM106: 0 | AN106: 0
A107: OU | B107: 0 | C107: 0 | D107: 0 | E107: 0 | F107: 0 | G107: 0 | H107: 0 | I107: 0 | J107: 0 | K107: 0 | L107: 0 | M107: 0 | N107: 0 | O107: 0 | P107: 0 | Q107: 0 | R107: 0 | S107: 0 | T107: 0 | U107: 0 | V107: 0 | W107: 0 | X107: 0 | Y107: 0 | Z107: 0 | AA107: 0 | AB107: 0 | AC107: 0 | AD107: 0 | AE107: 0 | AF107: 0 | AG107: 0 | AH107: 0 | AI107: 0 | AJ107: 0 | AK107: 0 | AL107: 0 | AM107: 0 | AN107: 0
A108: P | B108: 102 | C108: 102 | D108: 84 | E108: 87 | F108: 85 | G108: 86 | H108: 88 | I108: 87 | J108: 89 | K108: 88 | L108: 85 | M108: 86 | N108: 88 | O108: 85 | P108: 83 | Q108: 85 | R108: 87 | S108: 88 | T108: 87 | U108: 84 | V108: 82 | W108: 86 | X108: 84 | Y108: 84 | Z108: 83 | AA108: 87 | AB108: 86 | AC108: 81 | AD108: 99 | AE108: 87 | AF108: 85 | AG108: 86 | AH108: 86 | AI108: 86 | AJ108: 84 | AK108: 87 | AL108: 104 | AM108: 89 | AN108: 103
A109: PQ | B109: 0 | C109: 0 | D109: 0 | E109: 0 | F109: 0 | G109: 0 | H109: 0 | I109: 0 | J109: 0 | K109: 0 | L109: 0 | M109: 0 | N109: 0 | O109: 0 | P109: 0 | Q109: 0 | R109: 0 | S109: 0 | T109: 0 | U109: 0 | V109: 0 | W109: 0 | X109: 0 | Y109: 0 | Z109: 0 | AA109: 0 | AB109: 0 | AC109: 0 | AD109: 0 | AE109: 0 | AF109: 0 | AG109: 0 | AH109: 0 | AI109: 0 | AJ109: 0 | AK109: 0 | AL109: 0 | AM109: 0 | AN109: 0
A110: PR | B110: 2 | C110: 2 | D110: 5 | E110: 4 | F110: 4 | G110: 2 | H110: 4 | I110: 4 | J110: 4 | K110: 4 | L110: 5 | M110: 4 | N110: 4 | O110: 4 | P110: 4 | Q110: 5 | R110: 5 | S110: 5 | T110: 4 | U110: 5 | V110: 4 | W110: 4 | X110: 5 | Y110: 4 | Z110: 5 | AA110: 2 | AB110: 2 | AC110: 2 | AD110: 2 | AE110: 2 | AF110: 2 | AG110: 4 | AH110: 2 | AI110: 2 | AJ110: 2 | AK110: 2 | AL110: 3 | AM110: 4 | AN110: 3
A111: PT | B111: 0 | C111: 0 | D111: 0 | E111: 0 | F111: 0 | G111: 0 | H111: 0 | I111: 0 | J111: 0 | K111: 0 | L111: 0 | M111: 0 | N111: 0 | O111: 0 | P111: 0 | Q111: 0 | R111: 0 | S111: 0 | T111: 0 | U111: 0 | V111: 0 | W111: 0 | X111: 0 | Y111: 0 | Z111: 0 | AA111: 0 | AB111: 0 | AC111: 0 | AD111: 0 | AE111: 0 | AF111: 0 | AG111: 0 | AH111: 0 | AI111: 0 | AJ111: 0 | AK111: 0 | AL111: 0 | AM111: 0 | AN111: 0
A112: PU | B112: 0 | C112: 0 | D112: 0 | E112: 0 | F112: 0 | G112: 0 | H112: 0 | I112: 0 | J112: 0 | K112: 0 | L112: 0 | M112: 0 | N112: 0 | O112: 0 | P112: 0 | Q112: 0 | R112: 0 | S112: 0 | T112: 0 | U112: 0 | V112: 0 | W112: 0 | X112: 0 | Y112: 0 | Z112: 0 | AA112: 0 | AB112: 0 | AC112: 0 | AD112: 0 | AE112: 0 | AF112: 0 | AG112: 0 | AH112: 0 | AI112: 0 | AJ112: 0 | AK112: 0 | AL112: 0 | AM112: 0 | AN112: 0
A113: PV | B113: 1 | C113: 1 | D113: 1 | E113: 1 | F113: 1 | G113: 1 | H113: 2 | I113: 1 | J113: 2 | K113: 2 | L113: 1 | M113: 1 | N113: 1 | O113: 1 | P113: 1 | Q113: 1 | R113: 1 | S113: 1 | T113: 1 | U113: 1 | V113: 1 | W113: 1 | X113: 1 | Y113: 1 | Z113: 1 | AA113: 1 | AB113: 1 | AC113: 1 | AD113: 2 | AE113: 1 | AF113: 1 | AG113: 1 | AH113: 1 | AI113: 1 | AJ113: 1 | AK113: 1 | AL113: 3 | AM113: 2 | AN113: 1
A114: Q | B114: 25 | C114: 25 | D114: 17 | E114: 17 | F114: 17 | G114: 12 | H114: 17 | I114: 18 | J114: 17 | K114: 17 | L114: 18 | M114: 18 | N114: 17 | O114: 18 | P114: 17 | Q114: 17 | R114: 17 | S114: 17 | T114: 18 | U114: 17 | V114: 18 | W114: 17 | X114: 17 | Y114: 18 | Z114: 17 | AA114: 11 | AB114: 11 | AC114: 11 | AD114: 12 | AE114: 11 | AF114: 11 | AG114: 18 | AH114: 11 | AI114: 11 | AJ114: 12 | AK114: 11 | AL114: 21 | AM114: 17 | AN114: 21
A115: QR | B115: 1 | C115: 1 | D115: 1 | E115: 2 | F115: 2 | G115: 1 | H115: 2 | I115: 2 | J115: 2 | K115: 2 | L115: 2 | M115: 2 | N115: 2 | O115: 2 | P115: 2 | Q115: 2 | R115: 2 | S115: 2 | T115: 2 | U115: 2 | V115: 2 | W115: 2 | X115: 2 | Y115: 2 | Z115: 2 | AA115: 1 | AB115: 1 | AC115: 1 | AD115: 1 | AE115: 1 | AF115: 1 | AG115: 2 | AH115: 1 | AI115: 1 | AJ115: 1 | AK115: 1 | AL115: 1 | AM115: 2 | AN115: 1
A116: QT | B116: 0 | C116: 0 | D116: 0 | E116: 0 | F116: 0 | G116: 0 | H116: 0 | I116: 0 | J116: 0 | K116: 0 | L116: 0 | M116: 0 | N116: 0 | O116: 0 | P116: 0 | Q116: 0 | R116: 0 | S116: 0 | T116: 0 | U116: 0 | V116: 0 | W116: 0 | X116: 0 | Y116: 0 | Z116: 0 | AA116: 0 | AB116: 0 | AC116: 0 | AD116: 0 | AE116: 0 | AF116: 0 | AG116: 0 | AH116: 0 | AI116: 0 | AJ116: 0 | AK116: 0 | AL116: 0 | AM116: 0 | AN116: 0
A117: QV | B117: 0 | C117: 0 | D117: 0 | E117: 0 | F117: 0 | G117: 1 | H117: 0 | I117: 0 | J117: 0 | K117: 0 | L117: 0 | M117: 0 | N117: 0 | O117: 0 | P117: 0 | Q117: 0 | R117: 0 | S117: 0 | T117: 0 | U117: 0 | V117: 0 | W117: 0 | X117: 0 | Y117: 0 | Z117: 0 | AA117: 1 | AB117: 1 | AC117: 1 | AD117: 1 | AE117: 1 | AF117: 1 | AG117: 0 | AH117: 1 | AI117: 1 | AJ117: 1 | AK117: 1 | AL117: 1 | AM117: 0 | AN117: 1
A118: R | B118: 147 | C118: 147 | D118: 125 | E118: 121 | F118: 123 | G118: 123 | H118: 119 | I118: 124 | J118: 121 | K118: 121 | L118: 126 | M118: 128 | N118: 118 | O118: 128 | P118: 121 | Q118: 120 | R118: 123 | S118: 122 | T118: 127 | U118: 126 | V118: 122 | W118: 122 | X118: 124 | Y118: 128 | Z118: 122 | AA118: 130 | AB118: 127 | AC118: 120 | AD118: 128 | AE118: 130 | AF118: 127 | AG118: 128 | AH118: 128 | AI118: 130 | AJ118: 129 | AK118: 130 | AL118: 139 | AM118: 119 | AN118: 138
A119: RT | B119: 0 | C119: 0 | D119: 0 | E119: 0 | F119: 0 | G119: 0 | H119: 0 | I119: 0 | J119: 0 | K119: 0 | L119: 0 | M119: 0 | N119: 0 | O119: 0 | P119: 0 | Q119: 0 | R119: 0 | S119: 0 | T119: 0 | U119: 0 | V119: 0 | W119: 0 | X119: 0 | Y119: 0 | Z119: 0 | AA119: 0 | AB119: 0 | AC119: 0 | AD119: 0 | AE119: 0 | AF119: 0 | AG119: 0 | AH119: 0 | AI119: 0 | AJ119: 0 | AK119: 0 | AL119: 0 | AM119: 0 | AN119: 0
A120: RUX | B120: 0 | C120: 0 | D120: 0 | E120: 0 | F120: 0 | G120: 0 | H120: 0 | I120: 0 | J120: 0 | K120: 0 | L120: 0 | M120: 0 | N120: 0 | O120: 0 | P120: 0 | Q120: 0 | R120: 0 | S120: 0 | T120: 0 | U120: 0 | V120: 0 | W120: 0 | X120: 0 | Y120: 0 | Z120: 0 | AA120: 0 | AB120: 0 | AC120: 0 | AD120: 0 | AE120: 0 | AF120: 0 | AG120: 0 | AH120: 0 | AI120: 0 | AJ120: 0 | AK120: 0 | AL120: 0 | AM120: 0 | AN120: 0
A121: S | B121: 173 | C121: 173 | D121: 163 | E121: 173 | F121: 167 | G121: 141 | H121: 165 | I121: 173 | J121: 166 | K121: 168 | L121: 164 | M121: 173 | N121: 170 | O121: 170 | P121: 167 | Q121: 162 | R121: 164 | S121: 166 | T121: 172 | U121: 162 | V121: 164 | W121: 175 | X121: 160 | Y121: 167 | Z121: 167 | AA121: 148 | AB121: 147 | AC121: 143 | AD121: 144 | AE121: 148 | AF121: 147 | AG121: 176 | AH121: 149 | AI121: 149 | AJ121: 147 | AK121: 148 | AL121: 162 | AM121: 166 | AN121: 168
A122: SX | B122: 0 | C122: 0 | D122: 0 | E122: 0 | F122: 0 | G122: 0 | H122: 0 | I122: 0 | J122: 0 | K122: 0 | L122: 0 | M122: 0 | N122: 0 | O122: 0 | P122: 0 | Q122: 0 | R122: 0 | S122: 0 | T122: 0 | U122: 0 | V122: 0 | W122: 0 | X122: 0 | Y122: 0 | Z122: 0 | AA122: 0 | AB122: 0 | AC122: 0 | AD122: 0 | AE122: 0 | AF122: 0 | AG122: 0 | AH122: 0 | AI122: 0 | AJ122: 0 | AK122: 0 | AL122: 0 | AM122: 0 | AN122: 0
A123: T | B123: 63 | C123: 63 | D123: 47 | E123: 49 | F123: 46 | G123: 51 | H123: 47 | I123: 47 | J123: 47 | K123: 47 | L123: 47 | M123: 48 | N123: 49 | O123: 49 | P123: 48 | Q123: 46 | R123: 46 | S123: 48 | T123: 49 | U123: 46 | V123: 44 | W123: 49 | X123: 47 | Y123: 46 | Z123: 44 | AA123: 50 | AB123: 48 | AC123: 46 | AD123: 52 | AE123: 50 | AF123: 48 | AG123: 49 | AH123: 48 | AI123: 49 | AJ123: 50 | AK123: 50 | AL123: 68 | AM123: 47 | AN123: 64
A124: TL | B124: 1 | C124: 1 | D124: 1 | E124: 1 | F124: 1 | G124: 1 | H124: 1 | I124: 1 | J124: 1 | K124: 1 | L124: 1 | M124: 1 | N124: 1 | O124: 1 | P124: 1 | Q124: 1 | R124: 1 | S124: 1 | T124: 1 | U124: 1 | V124: 1 | W124: 1 | X124: 1 | Y124: 1 | Z124: 1 | AA124: 1 | AB124: 1 | AC124: 1 | AD124: 1 | AE124: 1 | AF124: 1 | AG124: 1 | AH124: 1 | AI124: 1 | AJ124: 1 | AK124: 1 | AL124: 1 | AM124: 1 | AN124: 1
A125: TU | B125: 0 | C125: 0 | D125: 0 | E125: 0 | F125: 0 | G125: 0 | H125: 0 | I125: 0 | J125: 0 | K125: 0 | L125: 0 | M125: 0 | N125: 0 | O125: 0 | P125: 0 | Q125: 0 | R125: 0 | S125: 0 | T125: 0 | U125: 0 | V125: 0 | W125: 0 | X125: 0 | Y125: 0 | Z125: 0 | AA125: 0 | AB125: 0 | AC125: 0 | AD125: 0 | AE125: 0 | AF125: 0 | AG125: 0 | AH125: 0 | AI125: 0 | AJ125: 0 | AK125: 0 | AL125: 0 | AM125: 0 | AN125: 0
A126: TV | B126: 1 | C126: 1 | D126: 1 | E126: 1 | F126: 1 | G126: 1 | H126: 1 | I126: 1 | J126: 1 | K126: 1 | L126: 1 | M126: 1 | N126: 1 | O126: 1 | P126: 1 | Q126: 1 | R126: 1 | S126: 1 | T126: 1 | U126: 1 | V126: 1 | W126: 1 | X126: 1 | Y126: 1 | Z126: 1 | AA126: 1 | AB126: 1 | AC126: 1 | AD126: 1 | AE126: 1 | AF126: 1 | AG126: 1 | AH126: 1 | AI126: 1 | AJ126: 1 | AK126: 1 | AL126: 1 | AM126: 1 | AN126: 1
A127: TX | B127: 0 | C127: 0 | D127: 0 | E127: 0 | F127: 0 | G127: 0 | H127: 0 | I127: 0 | J127: 0 | K127: 0 | L127: 0 | M127: 0 | N127: 0 | O127: 0 | P127: 0 | Q127: 0 | R127: 0 | S127: 0 | T127: 0 | U127: 0 | V127: 0 | W127: 0 | X127: 0 | Y127: 0 | Z127: 0 | AA127: 0 | AB127: 0 | AC127: 0 | AD127: 0 | AE127: 0 | AF127: 0 | AG127: 0 | AH127: 0 | AI127: 0 | AJ127: 0 | AK127: 0 | AL127: 0 | AM127: 0 | AN127: 0
A128: U | B128: 13 | C128: 13 | D128: 12 | E128: 12 | F128: 13 | G128: 11 | H128: 12 | I128: 12 | J128: 12 | K128: 13 | L128: 12 | M128: 12 | N128: 12 | O128: 12 | P128: 12 | Q128: 12 | R128: 13 | S128: 13 | T128: 12 | U128: 12 | V128: 12 | W128: 13 | X128: 12 | Y128: 12 | Z128: 12 | AA128: 11 | AB128: 11 | AC128: 11 | AD128: 11 | AE128: 11 | AF128: 11 | AG128: 12 | AH128: 11 | AI128: 11 | AJ128: 11 | AK128: 11 | AL128: 15 | AM128: 12 | AN128: 14
A129: UW | B129: 0 | C129: 0 | D129: 0 | E129: 0 | F129: 0 | G129: 0 | H129: 0 | I129: 0 | J129: 0 | K129: 0 | L129: 0 | M129: 0 | N129: 0 | O129: 0 | P129: 0 | Q129: 0 | R129: 0 | S129: 0 | T129: 0 | U129: 0 | V129: 0 | W129: 0 | X129: 0 | Y129: 0 | Z129: 0 | AA129: 1 | AB129: 1 | AC129: 0 | AD129: 0 | AE129: 1 | AF129: 1 | AG129: 0 | AH129: 1 | AI129: 1 | AJ129: 1 | AK129: 1 | AL129: 0 | AM129: 0 | AN129: 0
A130: V | B130: 67 | C130: 67 | D130: 58 | E130: 61 | F130: 52 | G130: 48 | H130: 61 | I130: 61 | J130: 62 | K130: 63 | L130: 50 | M130: 60 | N130: 60 | O130: 61 | P130: 57 | Q130: 57 | R130: 56 | S130: 50 | T130: 59 | U130: 50 | V130: 54 | W130: 58 | X130: 57 | Y130: 54 | Z130: 55 | AA130: 55 | AB130: 55 | AC130: 44 | AD130: 54 | AE130: 55 | AF130: 55 | AG130: 61 | AH130: 55 | AI130: 55 | AJ130: 60 | AK130: 55 | AL130: 64 | AM130: 64 | AN130: 65
A131: W | B131: 0 | C131: 0 | D131: 0 | E131: 0 | F131: 0 | G131: 0 | H131: 0 | I131: 0 | J131: 0 | K131: 0 | L131: 0 | M131: 0 | N131: 0 | O131: 0 | P131: 0 | Q131: 0 | R131: 0 | S131: 0 | T131: 0 | U131: 0 | V131: 0 | W131: 0 | X131: 0 | Y131: 0 | Z131: 0 | AA131: 0 | AB131: 0 | AC131: 0 | AD131: 0 | AE131: 0 | AF131: 0 | AG131: 0 | AH131: 0 | AI131: 0 | AJ131: 0 | AK131: 0 | AL131: 0 | AM131: 0 | AN131: 0
A132: X | B132: 14 | C132: 14 | D132: 9 | E132: 21 | F132: 21 | G132: 24 | H132: 14 | I132: 22 | J132: 12 | K132: 13 | L132: 10 | M132: 35 | N132: 27 | O132: 31 | P132: 24 | Q132: 18 | R132: 9 | S132: 20 | T132: 30 | U132: 12 | V132: 22 | W132: 28 | X132: 8 | Y132: 14 | Z132: 32 | AA132: 57 | AB132: 53 | AC132: 15 | AD132: 34 | AE132: 57 | AF132: 55 | AG132: 29 | AH132: 55 | AI132: 56 | AJ132: 58 | AK132: 59 | AL132: 31 | AM132: 14 | AN132: 10
A133: Z | B133: 0 | C133: 0 | D133: 0 | E133: 0 | F133: 0 | G133: 0 | H133: 0 | I133: 0 | J133: 0 | K133: 0 | L133: 0 | M133: 0 | N133: 0 | O133: 0 | P133: 0 | Q133: 0 | R133: 0 | S133: 0 | T133: 0 | U133: 0 | V133: 0 | W133: 0 | X133: 0 | Y133: 0 | Z133: 0 | AA133: 0 | AB133: 0 | AC133: 0 | AD133: 0 | AE133: 0 | AF133: 0 | AG133: 0 | AH133: 0 | AI133: 0 | AJ133: 0 | AK133: 0 | AL133: 0 | AM133: 0 | AN133: 0
A134: Total Result | B134: 2355 | C134: 2353 | D134: 1945 | E134: 2024 | F134: 1953 | G134: 1783 | H134: 1956 | I134: 2013 | J134: 1971 | K134: 1982 | L134: 1945 | M134: 2041 | N134: 1982 | O134: 2028 | P134: 1989 | Q134: 1936 | R134: 1926 | S134: 1953 | T134: 2034 | U134: 1911 | V134: 1906 | W134: 2017 | X134: 1936 | Y134: 1933 | Z134: 1994 | AA134: 1954 | AB134: 1902 | AC134: 1769 | AD134: 1906 | AE134: 1941 | AF134: 1906 | AG134: 2037 | AH134: 1919 | AI134: 1932 | AJ134: 1962 | AK134: 1958 | AL134: 2327 | AM134: 1973 | AN134: 2300

Sheet S5 COG Graphs
A1: Row Labels | B1: E. casseliflavus B72 | C1: E. casseliflavus B79 | D1: E. faecalis B139 | E1: E. faecalis B150 | F1: E. faecalis B168 | G1: E. faecium B466 | H1: E. faecalis B48 | I1: E. faecalis B6 | J1: E. faecalis C106 | K1: E. faecalis C33 | L1: E. faecalis C34 | M1: E. faecalis C379 | N1: E. faecalis R378 | O1: E. faecalis R395 | P1: E. faecalis R61 | Q1: E. faecalis R76 | R1: E. faecalis R95 | S1: E .faecalis W191 | T1: E. faecalis W195 | U1: E. faecalis W314 | V1: E. faecalis W350 | W1: E. faecalis W37 | X1: E .faecalis W41 | Y1: E. faecalis W460 | Z1: E. faecalis W75 | AA1: E. faecium B492 | AB1: E. faecium C12D | AC1: E. faecium C329 | AD1: E. faecium C567 | AE1: E. faecium F11J | AF1: E. faecium H101S2 | AG1: E. faecalis H114S2 | AH1: E. faecium H123S2 | AI1: E. faecium H53S1 | AJ1: E. faecium R337 | AK1: E. faecium R407 | AL1: E. gallinarum G12S | AM1: E. faecalis H120S2 | AN1: E. gallinarum W17
A2: Genes | B2: 3344 | C2: 3327 | D2: 2553 | E2: 2955 | F2: 2725 | G2: 2512 | H2: 2701 | I2: 2796 | J2: 2670 | K2: 2722 | L2: 2615 | M2: 2902 | N2: 2858 | O2: 2844 | P2: 2969 | Q2: 2690 | R2: 2596 | S2: 2745 | T2: 2865 | U2: 2583 | V2: 2731 | W2: 3051 | X2: 2553 | Y2: 2733 | Z2: 2838 | AA2: 2961 | AB2: 2823 | AC2: 2374 | AD2: 2714 | AE2: 2916 | AF2: 2836 | AG2: 2881 | AH2: 2871 | AI2: 2915 | AJ2: 2992 | AK2: 2955 | AL2: 3303 | AM2: 2731 | AN2: 3161
A3: Size (bp) | B3: 3538396 | C3: 3527325 | D3: 2720730 | E3: 3012117 | F3: 2834215 | G3: 2553406 | H3: 2822491 | I3: 2906126 | J3: 2817683 | K3: 2860595 | L3: 2731087 | M3: 2988783 | N3: 2892126 | O3: 2951239 | P3: 3004659 | Q3: 2800339 | R3: 2761310 | S3: 2839739 | T3: 2970793 | U3: 2721427 | V3: 2789796 | W3: 3088982 | X3: 2693209 | Y3: 2848194 | Z3: 2901424 | AA3: 3008305 | AB3: 2879332 | AC3: 2480628 | AD3: 2778016 | AE3: 2964368 | AF3: 2884826 | AG3: 2979979 | AH3: 2912775 | AI3: 2959005 | AJ3: 3023784 | AK3: 3005175 | AL3: 3442529 | AM3: 2853021 | AN3: 3367806
A4: A | B4: 0 | C4: 0 | D4: 0 | E4: 0 | F4: 0 | G4: 0 | H4: 0 | I4: 0 | J4: 0 | K4: 0 | L4: 0 | M4: 0 | N4: 0 | O4: 0 | P4: 0 | Q4: 0 | R4: 0 | S4: 0 | T4: 0 | U4: 0 | V4: 0 | W4: 0 | X4: 0 | Y4: 0 | Z4: 0 | AA4: 0 | AB4: 0 | AC4: 0 | AD4: 0 | AE4: 0 | AF4: 0 | AG4: 0 | AH4: 0 | AI4: 0 | AJ4: 0 | AK4: 0 | AL4: 0 | AM4: 0 | AN4: 0
A5: AT | B5: 0 | C5: 0 | D5: 0 | E5: 0 | F5: 0 | G5: 0 | H5: 0 | I5: 0 | J5: 0 | K5: 0 | L5: 0 | M5: 0 | N5: 0 | O5: 0 | P5: 0 | Q5: 0 | R5: 0 | S5: 0 | T5: 0 | U5: 0 | V5: 0 | W5: 0 | X5: 0 | Y5: 0 | Z5: 0 | AA5: 0 | AB5: 0 | AC5: 0 | AD5: 0 | AE5: 0 | AF5: 0 | AG5: 0 | AH5: 0 | AI5: 0 | AJ5: 0 | AK5: 0 | AL5: 0 | AM5: 0 | AN5: 0
A6: B | B6: 0 | C6: 0 | D6: 0 | E6: 0 | F6: 0 | G6: 0 | H6: 0 | I6: 0 | J6: 0 | K6: 0 | L6: 0 | M6: 0 | N6: 0 | O6: 0 | P6: 0 | Q6: 0 | R6: 0 | S6: 0 | T6: 0 | U6: 0 | V6: 0 | W6: 0 | X6: 0 | Y6: 0 | Z6: 0 | AA6: 0 | AB6: 0 | AC6: 0 | AD6: 0 | AE6: 0 | AF6: 0 | AG6: 0 | AH6: 0 | AI6: 0 | AJ6: 0 | AK6: 0 | AL6: 0 | AM6: 0 | AN6: 0
A7: BK | B7: 0 | C7: 0 | D7: 0 | E7: 0 | F7: 0 | G7: 0 | H7: 0 | I7: 0 | J7: 0 | K7: 0 | L7: 0 | M7: 0 | N7: 0 | O7: 0 | P7: 0 | Q7: 0 | R7: 0 | S7: 0 | T7: 0 | U7: 0 | V7: 0 | W7: 0 | X7: 0 | Y7: 0 | Z7: 0 | AA7: 0 | AB7: 0 | AC7: 0 | AD7: 0 | AE7: 0 | AF7: 0 | AG7: 0 | AH7: 0 | AI7: 0 | AJ7: 0 | AK7: 0 | AL7: 0 | AM7: 0 | AN7: 0
A8: BKL | B8: 0 | C8: 0 | D8: 0 | E8: 0 | F8: 0 | G8: 0 | H8: 0 | I8: 0 | J8: 0 | K8: 0 | L8: 0 | M8: 0 | N8: 0 | O8: 0 | P8: 0 | Q8: 0 | R8: 0 | S8: 0 | T8: 0 | U8: 0 | V8: 0 | W8: 0 | X8: 0 | Y8: 0 | Z8: 0 | AA8: 0 | AB8: 0 | AC8: 0 | AD8: 0 | AE8: 0 | AF8: 0 | AG8: 0 | AH8: 0 | AI8: 0 | AJ8: 0 | AK8: 0 | AL8: 0 | AM8: 0 | AN8: 0
A9: BQ | B9: 0 | C9: 0 | D9: 0 | E9: 0 | F9: 0 | G9: 0 | H9: 0 | I9: 0 | J9: 0 | K9: 0 | L9: 0 | M9: 0 | N9: 0 | O9: 0 | P9: 0 | Q9: 0 | R9: 0 | S9: 0 | T9: 0 | U9: 0 | V9: 0 | W9: 0 | X9: 0 | Y9: 0 | Z9: 0 | AA9: 0 | AB9: 0 | AC9: 0 | AD9: 0 | AE9: 0 | AF9: 0 | AG9: 0 | AH9: 0 | AI9: 0 | AJ9: 0 | AK9: 0 | AL9: 0 | AM9: 0 | AN9: 0
A10: C | B10: 101 | C10: 101 | D10: 87 | E10: 87 | F10: 89 | G10: 54 | H10: 82 | I10: 88 | J10: 87 | K10: 87 | L10: 87 | M10: 87 | N10: 86 | O10: 88 | P10: 87 | Q10: 82 | R10: 86 | S10: 85 | T10: 88 | U10: 88 | V10: 86 | W10: 86 | X10: 88 | Y10: 88 | Z10: 88 | AA10: 56 | AB10: 55 | AC10: 55 | AD10: 60 | AE10: 55 | AF10: 55 | AG10: 88 | AH10: 55 | AI10: 55 | AJ10: 57 | AK10: 56 | AL10: 87 | AM10: 82 | AN10: 86
A11: CE | B11: 1 | C11: 1 | D11: 0 | E11: 0 | F11: 0 | G11: 0 | H11: 0 | I11: 0 | J11: 0 | K11: 0 | L11: 0 | M11: 0 | N11: 0 | O11: 0 | P11: 0 | Q11: 0 | R11: 0 | S11: 0 | T11: 0 | U11: 0 | V11: 0 | W11: 0 | X11: 0 | Y11: 0 | Z11: 0 | AA11: 0 | AB11: 0 | AC11: 0 | AD11: 0 | AE11: 0 | AF11: 0 | AG11: 0 | AH11: 0 | AI11: 0 | AJ11: 0 | AK11: 0 | AL11: 1 | AM11: 0 | AN11: 1
A12: CH | B12: 1 | C12: 1 | D12: 2 | E12: 2 | F12: 2 | G12: 1 | H12: 2 | I12: 2 | J12: 2 | K12: 2 | L12: 2 | M12: 2 | N12: 2 | O12: 2 | P12: 2 | Q12: 2 | R12: 2 | S12: 2 | T12: 2 | U12: 2 | V12: 2 | W12: 2 | X12: 2 | Y12: 2 | Z12: 2 | AA12: 1 | AB12: 1 | AC12: 1 | AD12: 1 | AE12: 1 | AF12: 1 | AG12: 2 | AH12: 1 | AI12: 1 | AJ12: 1 | AK12: 1 | AL12: 1 | AM12: 2 | AN12: 1
A13: CHR | B13: 2 | C13: 2 | D13: 1 | E13: 1 | F13: 1 | G13: 2 | H13: 1 | I13: 1 | J13: 1 | K13: 1 | L13: 1 | M13: 1 | N13: 1 | O13: 1 | P13: 1 | Q13: 1 | R13: 1 | S13: 1 | T13: 1 | U13: 1 | V13: 1 | W13: 1 | X13: 1 | Y13: 1 | Z13: 1 | AA13: 3 | AB13: 3 | AC13: 0 | AD13: 2 | AE13: 3 | AF13: 3 | AG13: 1 | AH13: 3 | AI13: 3 | AJ13: 3 | AK13: 3 | AL13: 3 | AM13: 1 | AN13: 2
A14: CI | B14: 0 | C14: 0 | D14: 0 | E14: 0 | F14: 0 | G14: 0 | H14: 0 | I14: 0 | J14: 0 | K14: 0 | L14: 0 | M14: 0 | N14: 0 | O14: 0 | P14: 0 | Q14: 0 | R14: 0 | S14: 0 | T14: 0 | U14: 0 | V14: 0 | W14: 0 | X14: 0 | Y14: 0 | Z14: 0 | AA14: 0 | AB14: 0 | AC14: 0 | AD14: 0 | AE14: 0 | AF14: 0 | AG14: 0 | AH14: 0 | AI14: 0 | AJ14: 0 | AK14: 0 | AL14: 0 | AM14: 0 | AN14: 0
A15: CIR | B15: 2 | C15: 2 | D15: 1 | E15: 1 | F15: 1 | G15: 3 | H15: 1 | I15: 1 | J15: 1 | K15: 1 | L15: 1 | M15: 1 | N15: 1 | O15: 1 | P15: 1 | Q15: 1 | R15: 1 | S15: 1 | T15: 1 | U15: 1 | V15: 1 | W15: 1 | X15: 1 | Y15: 1 | Z15: 1 | AA15: 3 | AB15: 3 | AC15: 3 | AD15: 3 | AE15: 3 | AF15: 3 | AG15: 1 | AH15: 3 | AI15: 3 | AJ15: 3 | AK15: 3 | AL15: 2 | AM15: 1 | AN15: 2
A16: CO | B16: 2 | C16: 2 | D16: 2 | E16: 2 | F16: 2 | G16: 0 | H16: 2 | I16: 2 | J16: 2 | K16: 2 | L16: 2 | M16: 2 | N16: 2 | O16: 2 | P16: 2 | Q16: 2 | R16: 2 | S16: 2 | T16: 2 | U16: 2 | V16: 2 | W16: 2 | X16: 2 | Y16: 2 | Z16: 2 | AA16: 0 | AB16: 0 | AC16: 0 | AD16: 0 | AE16: 0 | AF16: 0 | AG16: 2 | AH16: 0 | AI16: 0 | AJ16: 0 | AK16: 0 | AL16: 2 | AM16: 2 | AN16: 2
A17: COP | B17: 0 | C17: 0 | D17: 0 | E17: 0 | F17: 0 | G17: 0 | H17: 0 | I17: 0 | J17: 0 | K17: 0 | L17: 0 | M17: 0 | N17: 0 | O17: 0 | P17: 0 | Q17: 0 | R17: 0 | S17: 0 | T17: 0 | U17: 0 | V17: 0 | W17: 0 | X17: 0 | Y17: 0 | Z17: 0 | AA17: 0 | AB17: 0 | AC17: 0 | AD17: 0 | AE17: 0 | AF17: 0 | AG17: 0 | AH17: 0 | AI17: 0 | AJ17: 0 | AK17: 0 | AL17: 0 | AM17: 0 | AN17: 0
A18: CP | B18: 2 | C18: 2 | D18: 2 | E18: 3 | F18: 3 | G18: 2 | H18: 3 | I18: 3 | J18: 3 | K18: 3 | L18: 2 | M18: 3 | N18: 3 | O18: 3 | P18: 3 | Q18: 3 | R18: 2 | S18: 2 | T18: 3 | U18: 2 | V18: 2 | W18: 3 | X18: 3 | Y18: 2 | Z18: 2 | AA18: 2 | AB18: 2 | AC18: 2 | AD18: 2 | AE18: 2 | AF18: 2 | AG18: 3 | AH18: 2 | AI18: 2 | AJ18: 2 | AK18: 2 | AL18: 2 | AM18: 3 | AN18: 2
A19: CQ | B19: 0 | C19: 0 | D19: 2 | E19: 2 | F19: 2 | G19: 0 | H19: 2 | I19: 2 | J19: 2 | K19: 2 | L19: 2 | M19: 2 | N19: 2 | O19: 2 | P19: 2 | Q19: 2 | R19: 2 | S19: 2 | T19: 2 | U19: 2 | V19: 2 | W19: 2 | X19: 2 | Y19: 2 | Z19: 2 | AA19: 0 | AB19: 0 | AC19: 0 | AD19: 0 | AE19: 0 | AF19: 0 | AG19: 2 | AH19: 0 | AI19: 0 | AJ19: 0 | AK19: 0 | AL19: 2 | AM19: 2 | AN19: 2
A20: CR | B20: 5 | C20: 5 | D20: 3 | E20: 3 | F20: 3 | G20: 4 | H20: 2 | I20: 3 | J20: 3 | K20: 3 | L20: 3 | M20: 3 | N20: 3 | O20: 3 | P20: 3 | Q20: 2 | R20: 3 | S20: 3 | T20: 3 | U20: 3 | V20: 3 | W20: 3 | X20: 3 | Y20: 3 | Z20: 3 | AA20: 3 | AB20: 3 | AC20: 4 | AD20: 4 | AE20: 3 | AF20: 3 | AG20: 3 | AH20: 3 | AI20: 3 | AJ20: 3 | AK20: 3 | AL20: 3 | AM20: 2 | AN20: 4
A21: CT | B21: 0 | C21: 0 | D21: 0 | E21: 0 | F21: 0 | G21: 0 | H21: 0 | I21: 0 | J21: 0 | K21: 0 | L21: 0 | M21: 0 | N21: 0 | O21: 0 | P21: 0 | Q21: 0 | R21: 0 | S21: 0 | T21: 0 | U21: 0 | V21: 0 | W21: 0 | X21: 0 | Y21: 0 | Z21: 0 | AA21: 0 | AB21: 0 | AC21: 0 | AD21: 0 | AE21: 0 | AF21: 0 | AG21: 0 | AH21: 0 | AI21: 0 | AJ21: 0 | AK21: 0 | AL21: 0 | AM21: 0 | AN21: 0
A22: D | B22: 26 | C22: 26 | D22: 22 | E22: 22 | F22: 21 | G22: 21 | H22: 22 | I22: 22 | J22: 22 | K22: 22 | L22: 21 | M22: 22 | N22: 22 | O22: 22 | P22: 22 | Q22: 21 | R22: 21 | S22: 21 | T22: 22 | U22: 21 | V22: 22 | W22: 22 | X22: 21 | Y22: 21 | Z22: 22 | AA22: 21 | AB22: 21 | AC22: 21 | AD22: 21 | AE22: 21 | AF22: 21 | AG22: 22 | AH22: 21 | AI22: 21 | AJ22: 21 | AK22: 21 | AL22: 25 | AM22: 22 | AN22: 26
A23: DL | B23: 1 | C23: 1 | D23: 1 | E23: 1 | F23: 1 | G23: 1 | H23: 1 | I23: 1 | J23: 1 | K23: 1 | L23: 1 | M23: 1 | N23: 1 | O23: 1 | P23: 1 | Q23: 1 | R23: 1 | S23: 1 | T23: 1 | U23: 1 | V23: 1 | W23: 1 | X23: 1 | Y23: 1 | Z23: 1 | AA23: 1 | AB23: 1 | AC23: 1 | AD23: 1 | AE23: 1 | AF23: 1 | AG23: 1 | AH23: 1 | AI23: 1 | AJ23: 1 | AK23: 1 | AL23: 1 | AM23: 1 | AN23: 1
A24: DM | B24: 4 | C24: 4 | D24: 3 | E24: 3 | F24: 3 | G24: 3 | H24: 3 | I24: 3 | J24: 3 | K24: 3 | L24: 3 | M24: 3 | N24: 3 | O24: 3 | P24: 3 | Q24: 3 | R24: 3 | S24: 3 | T24: 3 | U24: 3 | V24: 3 | W24: 3 | X24: 3 | Y24: 3 | Z24: 3 | AA24: 3 | AB24: 3 | AC24: 3 | AD24: 3 | AE24: 3 | AF24: 3 | AG24: 3 | AH24: 3 | AI24: 3 | AJ24: 3 | AK24: 3 | AL24: 3 | AM24: 3 | AN24: 3
A25: DMP | B25: 0 | C25: 0 | D25: 0 | E25: 0 | F25: 0 | G25: 0 | H25: 0 | I25: 0 | J25: 0 | K25: 0 | L25: 0 | M25: 0 | N25: 0 | O25: 0 | P25: 0 | Q25: 0 | R25: 0 | S25: 0 | T25: 0 | U25: 0 | V25: 0 | W25: 0 | X25: 0 | Y25: 0 | Z25: 0 | AA25: 0 | AB25: 0 | AC25: 0 | AD25: 1 | AE25: 0 | AF25: 0 | AG25: 0 | AH25: 0 | AI25: 0 | AJ25: 0 | AK25: 0 | AL25: 0 | AM25: 0 | AN25: 0
A26: DP | B26: 0 | C26: 0 | D26: 0 | E26: 0 | F26: 0 | G26: 0 | H26: 0 | I26: 0 | J26: 0 | K26: 0 | L26: 0 | M26: 0 | N26: 0 | O26: 0 | P26: 0 | Q26: 0 | R26: 0 | S26: 0 | T26: 0 | U26: 0 | V26: 0 | W26: 0 | X26: 0 | Y26: 0 | Z26: 0 | AA26: 0 | AB26: 0 | AC26: 0 | AD26: 0 | AE26: 0 | AF26: 0 | AG26: 0 | AH26: 0 | AI26: 0 | AJ26: 0 | AK26: 0 | AL26: 2 | AM26: 0 | AN26: 2
A27: DZ | B27: 0 | C27: 0 | D27: 0 | E27: 0 | F27: 0 | G27: 0 | H27: 0 | I27: 0 | J27: 0 | K27: 0 | L27: 0 | M27: 0 | N27: 0 | O27: 0 | P27: 0 | Q27: 0 | R27: 0 | S27: 0 | T27: 0 | U27: 0 | V27: 0 | W27: 0 | X27: 0 | Y27: 0 | Z27: 0 | AA27: 0 | AB27: 0 | AC27: 0 | AD27: 0 | AE27: 0 | AF27: 0 | AG27: 0 | AH27: 0 | AI27: 0 | AJ27: 0 | AK27: 0 | AL27: 0 | AM27: 0 | AN27: 0
A28: E | B28: 165 | C28: 165 | D28: 144 | E28: 148 | F28: 147 | G28: 110 | H28: 145 | I28: 148 | J28: 145 | K28: 144 | L28: 146 | M28: 147 | N28: 145 | O28: 148 | P28: 147 | Q28: 145 | R28: 145 | S28: 147 | T28: 148 | U28: 145 | V28: 141 | W28: 149 | X28: 146 | Y28: 147 | Z28: 148 | AA28: 111 | AB28: 109 | AC28: 114 | AD28: 112 | AE28: 111 | AF28: 111 | AG28: 148 | AH28: 111 | AI28: 111 | AJ28: 111 | AK28: 111 | AL28: 172 | AM28: 145 | AN28: 164
A29: EF | B29: 5 | C29: 5 | D29: 5 | E29: 5 | F29: 5 | G29: 4 | H29: 5 | I29: 5 | J29: 5 | K29: 5 | L29: 5 | M29: 5 | N29: 5 | O29: 5 | P29: 5 | Q29: 5 | R29: 5 | S29: 5 | T29: 5 | U29: 5 | V29: 5 | W29: 5 | X29: 5 | Y29: 5 | Z29: 5 | AA29: 5 | AB29: 5 | AC29: 5 | AD29: 5 | AE29: 5 | AF29: 5 | AG29: 5 | AH29: 5 | AI29: 5 | AJ29: 5 | AK29: 5 | AL29: 4 | AM29: 5 | AN29: 4
A30: EG | B30: 3 | C30: 3 | D30: 3 | E30: 3 | F30: 3 | G30: 2 | H30: 3 | I30: 3 | J30: 3 | K30: 3 | L30: 3 | M30: 3 | N30: 3 | O30: 3 | P30: 3 | Q30: 3 | R30: 3 | S30: 3 | T30: 3 | U30: 3 | V30: 3 | W30: 3 | X30: 3 | Y30: 3 | Z30: 3 | AA30: 2 | AB30: 2 | AC30: 2 | AD30: 2 | AE30: 2 | AF30: 2 | AG30: 3 | AH30: 2 | AI30: 2 | AJ30: 2 | AK30: 2 | AL30: 6 | AM30: 3 | AN30: 6
A31: EGPR | B31: 0 | C31: 0 | D31: 0 | E31: 0 | F31: 0 | G31: 0 | H31: 0 | I31: 0 | J31: 0 | K31: 0 | L31: 0 | M31: 0 | N31: 0 | O31: 0 | P31: 0 | Q31: 0 | R31: 0 | S31: 0 | T31: 0 | U31: 0 | V31: 0 | W31: 0 | X31: 0 | Y31: 0 | Z31: 0 | AA31: 0 | AB31: 0 | AC31: 0 | AD31: 0 | AE31: 0 | AF31: 0 | AG31: 0 | AH31: 0 | AI31: 0 | AJ31: 0 | AK31: 0 | AL31: 0 | AM31: 0 | AN31: 0
A32: EGR | B32: 1 | C32: 1 | D32: 0 | E32: 0 | F32: 0 | G32: 0 | H32: 0 | I32: 0 | J32: 0 | K32: 0 | L32: 0 | M32: 0 | N32: 0 | O32: 0 | P32: 0 | Q32: 0 | R32: 0 | S32: 0 | T32: 0 | U32: 0 | V32: 0 | W32: 0 | X32: 0 | Y32: 0 | Z32: 0 | AA32: 0 | AB32: 0 | AC32: 0 | AD32: 0 | AE32: 0 | AF32: 0 | AG32: 0 | AH32: 0 | AI32: 0 | AJ32: 0 | AK32: 0 | AL32: 0 | AM32: 0 | AN32: 0
A33: EH | B33: 9 | C33: 9 | D33: 2 | E33: 2 | F33: 2 | G33: 3 | H33: 2 | I33: 2 | J33: 2 | K33: 2 | L33: 2 | M33: 2 | N33: 2 | O33: 2 | P33: 2 | Q33: 2 | R33: 2 | S33: 2 | T33: 2 | U33: 2 | V33: 2 | W33: 2 | X33: 2 | Y33: 2 | Z33: 2 | AA33: 3 | AB33: 3 | AC33: 3 | AD33: 3 | AE33: 3 | AF33: 3 | AG33: 2 | AH33: 3 | AI33: 3 | AJ33: 3 | AK33: 3 | AL33: 7 | AM33: 2 | AN33: 7
A34: EK | B34: 2 | C34: 2 | D34: 1 | E34: 1 | F34: 2 | G34: 2 | H34: 1 | I34: 2 | J34: 1 | K34: 1 | L34: 2 | M34: 2 | N34: 2 | O34: 2 | P34: 1 | Q34: 1 | R34: 2 | S34: 2 | T34: 2 | U34: 2 | V34: 1 | W34: 2 | X34: 2 | Y34: 2 | Z34: 2 | AA34: 2 | AB34: 2 | AC34: 2 | AD34: 2 | AE34: 2 | AF34: 2 | AG34: 2 | AH34: 2 | AI34: 2 | AJ34: 2 | AK34: 2 | AL34: 2 | AM34: 1 | AN34: 1
A35: EM | B35: 2 | C35: 2 | D35: 1 | E35: 1 | F35: 1 | G35: 1 | H35: 1 | I35: 1 | J35: 1 | K35: 1 | L35: 1 | M35: 1 | N35: 1 | O35: 1 | P35: 1 | Q35: 1 | R35: 1 | S35: 1 | T35: 1 | U35: 1 | V35: 1 | W35: 1 | X35: 1 | Y35: 1 | Z35: 1 | AA35: 1 | AB35: 1 | AC35: 1 | AD35: 1 | AE35: 1 | AF35: 1 | AG35: 1 | AH35: 1 | AI35: 1 | AJ35: 1 | AK35: 1 | AL35: 3 | AM35: 1 | AN35: 4
A36: EP | B36: 9 | C36: 9 | D36: 6 | E36: 6 | F36: 6 | G36: 6 | H36: 6 | I36: 6 | J36: 6 | K36: 6 | L36: 6 | M36: 6 | N36: 6 | O36: 6 | P36: 6 | Q36: 6 | R36: 6 | S36: 6 | T36: 6 | U36: 6 | V36: 6 | W36: 6 | X36: 6 | Y36: 6 | Z36: 6 | AA36: 6 | AB36: 6 | AC36: 6 | AD36: 6 | AE36: 6 | AF36: 6 | AG36: 6 | AH36: 6 | AI36: 6 | AJ36: 6 | AK36: 6 | AL36: 13 | AM36: 6 | AN36: 9
A37: EQ | B37: 0 | C37: 0 | D37: 0 | E37: 0 | F37: 0 | G37: 1 | H37: 0 | I37: 0 | J37: 0 | K37: 0 | L37: 0 | M37: 0 | N37: 0 | O37: 0 | P37: 0 | Q37: 0 | R37: 0 | S37: 0 | T37: 0 | U37: 0 | V37: 0 | W37: 0 | X37: 0 | Y37: 0 | Z37: 0 | AA37: 1 | AB37: 1 | AC37: 1 | AD37: 1 | AE37: 1 | AF37: 1 | AG37: 0 | AH37: 1 | AI37: 1 | AJ37: 1 | AK37: 1 | AL37: 0 | AM37: 0 | AN37: 0
A38: ER | B38: 10 | C38: 10 | D38: 4 | E38: 4 | F38: 4 | G38: 4 | H38: 4 | I38: 4 | J38: 4 | K38: 4 | L38: 4 | M38: 4 | N38: 4 | O38: 4 | P38: 4 | Q38: 4 | R38: 4 | S38: 3 | T38: 4 | U38: 4 | V38: 5 | W38: 4 | X38: 4 | Y38: 4 | Z38: 4 | AA38: 5 | AB38: 4 | AC38: 4 | AD38: 4 | AE38: 5 | AF38: 5 | AG38: 4 | AH38: 5 | AI38: 5 | AJ38: 5 | AK38: 5 | AL38: 6 | AM38: 4 | AN38: 6
A39: ET | B39: 5 | C39: 5 | D39: 2 | E39: 2 | F39: 2 | G39: 3 | H39: 2 | I39: 2 | J39: 2 | K39: 2 | L39: 2 | M39: 2 | N39: 2 | O39: 2 | P39: 2 | Q39: 2 | R39: 2 | S39: 2 | T39: 2 | U39: 2 | V39: 2 | W39: 2 | X39: 2 | Y39: 2 | Z39: 2 | AA39: 3 | AB39: 3 | AC39: 3 | AD39: 3 | AE39: 3 | AF39: 3 | AG39: 2 | AH39: 3 | AI39: 3 | AJ39: 3 | AK39: 3 | AL39: 6 | AM39: 2 | AN39: 5
A40: F | B40: 67 | C40: 67 | D40: 76 | E40: 75 | F40: 78 | G40: 69 | H40: 74 | I40: 77 | J40: 74 | K40: 74 | L40: 77 | M40: 77 | N40: 77 | O40: 77 | P40: 75 | Q40: 75 | R40: 77 | S40: 77 | T40: 77 | U40: 78 | V40: 73 | W40: 76 | X40: 75 | Y40: 75 | Z40: 76 | AA40: 68 | AB40: 68 | AC40: 67 | AD40: 69 | AE40: 68 | AF40: 68 | AG40: 77 | AH40: 68 | AI40: 68 | AJ40: 68 | AK40: 68 | AL40: 69 | AM40: 74 | AN40: 73
A41: FGR | B41: 3 | C41: 3 | D41: 1 | E41: 1 | F41: 1 | G41: 1 | H41: 1 | I41: 1 | J41: 1 | K41: 1 | L41: 1 | M41: 1 | N41: 1 | O41: 1 | P41: 1 | Q41: 1 | R41: 1 | S41: 1 | T41: 1 | U41: 1 | V41: 1 | W41: 1 | X41: 1 | Y41: 1 | Z41: 1 | AA41: 1 | AB41: 1 | AC41: 1 | AD41: 1 | AE41: 1 | AF41: 1 | AG41: 1 | AH41: 1 | AI41: 1 | AJ41: 1 | AK41: 1 | AL41: 2 | AM41: 1 | AN41: 3
A42: FH | B42: 0 | C42: 0 | D42: 1 | E42: 1 | F42: 1 | G42: 0 | H42: 1 | I42: 1 | J42: 1 | K42: 1 | L42: 1 | M42: 1 | N42: 1 | O42: 1 | P42: 1 | Q42: 1 | R42: 1 | S42: 1 | T42: 1 | U42: 1 | V42: 0 | W42: 1 | X42: 1 | Y42: 1 | Z42: 1 | AA42: 0 | AB42: 0 | AC42: 0 | AD42: 0 | AE42: 0 | AF42: 0 | AG42: 1 | AH42: 0 | AI42: 0 | AJ42: 0 | AK42: 0 | AL42: 0 | AM42: 1 | AN42: 0
A43: FL | B43: 0 | C43: 0 | D43: 0 | E43: 0 | F43: 0 | G43: 0 | H43: 0 | I43: 0 | J43: 0 | K43: 0 | L43: 0 | M43: 0 | N43: 0 | O43: 0 | P43: 0 | Q43: 0 | R43: 0 | S43: 0 | T43: 0 | U43: 0 | V43: 0 | W43: 0 | X43: 0 | Y43: 0 | Z43: 0 | AA43: 0 | AB43: 0 | AC43: 0 | AD43: 0 | AE43: 0 | AF43: 0 | AG43: 0 | AH43: 0 | AI43: 0 | AJ43: 0 | AK43: 0 | AL43: 0 | AM43: 0 | AN43: 0
A44: FPT | B44: 0 | C44: 0 | D44: 0 | E44: 0 | F44: 0 | G44: 0 | H44: 0 | I44: 0 | J44: 0 | K44: 0 | L44: 0 | M44: 0 | N44: 0 | O44: 0 | P44: 0 | Q44: 0 | R44: 0 | S44: 0 | T44: 0 | U44: 0 | V44: 0 | W44: 0 | X44: 0 | Y44: 0 | Z44: 0 | AA44: 0 | AB44: 0 | AC44: 0 | AD44: 0 | AE44: 0 | AF44: 0 | AG44: 0 | AH44: 0 | AI44: 0 | AJ44: 0 | AK44: 0 | AL44: 0 | AM44: 0 | AN44: 0
A45: FR | B45: 5 | C45: 5 | D45: 7 | E45: 7 | F45: 7 | G45: 1 | H45: 7 | I45: 7 | J45: 7 | K45: 7 | L45: 7 | M45: 7 | N45: 7 | O45: 7 | P45: 7 | Q45: 7 | R45: 7 | S45: 7 | T45: 7 | U45: 7 | V45: 7 | W45: 7 | X45: 7 | Y45: 7 | Z45: 7 | AA45: 1 | AB45: 1 | AC45: 1 | AD45: 1 | AE45: 1 | AF45: 1 | AG45: 7 | AH45: 1 | AI45: 1 | AJ45: 1 | AK45: 1 | AL45: 5 | AM45: 7 | AN45: 5
A46: FT | B46: 1 | C46: 1 | D46: 1 | E46: 1 | F46: 1 | G46: 1 | H46: 1 | I46: 1 | J46: 1 | K46: 1 | L46: 1 | M46: 1 | N46: 1 | O46: 1 | P46: 1 | Q46: 1 | R46: 1 | S46: 1 | T46: 1 | U46: 1 | V46: 1 | W46: 1 | X46: 1 | Y46: 1 | Z46: 1 | AA46: 1 | AB46: 1 | AC46: 1 | AD46: 1 | AE46: 1 | AF46: 1 | AG46: 1 | AH46: 1 | AI46: 1 | AJ46: 1 | AK46: 1 | AL46: 1 | AM46: 1 | AN46: 2
A47: FV | B47: 3 | C47: 3 | D47: 4 | E47: 4 | F47: 4 | G47: 3 | H47: 4 | I47: 5 | J47: 4 | K47: 4 | L47: 4 | M47: 4 | N47: 5 | O47: 4 | P47: 4 | Q47: 3 | R47: 4 | S47: 3 | T47: 4 | U47: 4 | V47: 4 | W47: 4 | X47: 4 | Y47: 4 | Z47: 4 | AA47: 2 | AB47: 2 | AC47: 2 | AD47: 2 | AE47: 2 | AF47: 2 | AG47: 4 | AH47: 2 | AI47: 2 | AJ47: 2 | AK47: 2 | AL47: 3 | AM47: 4 | AN47: 3
A48: G | B48: 350 | C48: 351 | D48: 239 | E48: 238 | F48: 220 | G48: 223 | H48: 225 | I48: 244 | J48: 224 | K48: 225 | L48: 226 | M48: 248 | N48: 228 | O48: 245 | P48: 228 | Q48: 226 | R48: 214 | S48: 226 | T48: 248 | U48: 213 | V48: 216 | W48: 227 | X48: 230 | Y48: 220 | Z48: 245 | AA48: 255 | AB48: 244 | AC48: 233 | AD48: 249 | AE48: 248 | AF48: 248 | AG48: 248 | AH48: 244 | AI48: 244 | AJ48: 262 | AK48: 255 | AL48: 345 | AM48: 226 | AN48: 347
A49: GHR | B49: 0 | C49: 0 | D49: 0 | E49: 0 | F49: 0 | G49: 0 | H49: 0 | I49: 0 | J49: 0 | K49: 0 | L49: 0 | M49: 0 | N49: 0 | O49: 0 | P49: 0 | Q49: 0 | R49: 0 | S49: 0 | T49: 0 | U49: 0 | V49: 0 | W49: 0 | X49: 0 | Y49: 0 | Z49: 0 | AA49: 0 | AB49: 0 | AC49: 0 | AD49: 0 | AE49: 0 | AF49: 0 | AG49: 0 | AH49: 0 | AI49: 0 | AJ49: 0 | AK49: 0 | AL49: 0 | AM49: 0 | AN49: 0
A50: GI | B50: 0 | C50: 0 | D50: 0 | E50: 0 | F50: 0 | G50: 1 | H50: 0 | I50: 0 | J50: 0 | K50: 0 | L50: 0 | M50: 0 | N50: 0 | O50: 0 | P50: 0 | Q50: 0 | R50: 0 | S50: 0 | T50: 0 | U50: 0 | V50: 0 | W50: 0 | X50: 0 | Y50: 0 | Z50: 0 | AA50: 1 | AB50: 1 | AC50: 1 | AD50: 1 | AE50: 1 | AF50: 1 | AG50: 0 | AH50: 1 | AI50: 1 | AJ50: 1 | AK50: 1 | AL50: 0 | AM50: 0 | AN50: 1
A51: GK | B51: 13 | C51: 13 | D51: 7 | E51: 8 | F51: 8 | G51: 11 | H51: 7 | I51: 7 | J51: 8 | K51: 8 | L51: 7 | M51: 9 | N51: 7 | O51: 9 | P51: 7 | Q51: 7 | R51: 6 | S51: 7 | T51: 9 | U51: 7 | V51: 7 | W51: 6 | X51: 8 | Y51: 6 | Z51: 7 | AA51: 9 | AB51: 9 | AC51: 9 | AD51: 11 | AE51: 9 | AF51: 9 | AG51: 9 | AH51: 9 | AI51: 9 | AJ51: 11 | AK51: 9 | AL51: 17 | AM51: 8 | AN51: 15
A52: GM | B52: 6 | C52: 6 | D52: 6 | E52: 8 | F52: 4 | G52: 3 | H52: 7 | I52: 5 | J52: 7 | K52: 7 | L52: 6 | M52: 5 | N52: 4 | O52: 5 | P52: 7 | Q52: 6 | R52: 7 | S52: 6 | T52: 5 | U52: 6 | V52: 3 | W52: 7 | X52: 6 | Y52: 3 | Z52: 8 | AA52: 5 | AB52: 5 | AC52: 5 | AD52: 8 | AE52: 5 | AF52: 5 | AG52: 5 | AH52: 5 | AI52: 5 | AJ52: 4 | AK52: 5 | AL52: 6 | AM52: 7 | AN52: 8
A53: GR | B53: 4 | C53: 4 | D53: 5 | E53: 5 | F53: 5 | G53: 6 | H53: 5 | I53: 5 | J53: 6 | K53: 6 | L53: 5 | M53: 5 | N53: 5 | O53: 5 | P53: 5 | Q53: 5 | R53: 5 | S53: 5 | T53: 5 | U53: 5 | V53: 5 | W53: 5 | X53: 5 | Y53: 5 | Z53: 5 | AA53: 8 | AB53: 7 | AC53: 5 | AD53: 8 | AE53: 8 | AF53: 8 | AG53: 5 | AH53: 7 | AI53: 7 | AJ53: 8 | AK53: 8 | AL53: 6 | AM53: 6 | AN53: 5
A54: GT | B54: 8 | C54: 8 | D54: 7 | E54: 10 | F54: 7 | G54: 7 | H54: 6 | I54: 9 | J54: 6 | K54: 6 | L54: 5 | M54: 10 | N54: 9 | O54: 10 | P54: 10 | Q54: 7 | R54: 4 | S54: 7 | T54: 10 | U54: 5 | V54: 7 | W54: 9 | X54: 7 | Y54: 5 | Z54: 10 | AA54: 6 | AB54: 6 | AC54: 8 | AD54: 9 | AE54: 6 | AF54: 6 | AG54: 10 | AH54: 6 | AI54: 6 | AJ54: 5 | AK54: 6 | AL54: 7 | AM54: 6 | AN54: 11
A55: H | B55: 54 | C55: 54 | D55: 65 | E55: 68 | F55: 64 | G55: 41 | H55: 65 | I55: 63 | J55: 67 | K55: 67 | L55: 66 | M55: 64 | N55: 66 | O55: 64 | P55: 67 | Q55: 64 | R55: 64 | S55: 62 | T55: 64 | U55: 63 | V55: 62 | W55: 67 | X55: 64 | Y55: 61 | Z55: 64 | AA55: 50 | AB55: 49 | AC55: 41 | AD55: 41 | AE55: 50 | AF55: 45 | AG55: 64 | AH55: 50 | AI55: 50 | AJ55: 47 | AK55: 50 | AL55: 58 | AM55: 67 | AN55: 60
A56: HI | B56: 4 | C56: 4 | D56: 3 | E56: 3 | F56: 3 | G56: 2 | H56: 3 | I56: 3 | J56: 3 | K56: 3 | L56: 3 | M56: 3 | N56: 3 | O56: 3 | P56: 3 | Q56: 3 | R56: 3 | S56: 3 | T56: 3 | U56: 3 | V56: 3 | W56: 3 | X56: 3 | Y56: 3 | Z56: 3 | AA56: 2 | AB56: 2 | AC56: 2 | AD56: 2 | AE56: 2 | AF56: 2 | AG56: 3 | AH56: 2 | AI56: 2 | AJ56: 2 | AK56: 2 | AL56: 4 | AM56: 3 | AN56: 4
A57: HJ | B57: 1 | C57: 1 | D57: 1 | E57: 1 | F57: 1 | G57: 1 | H57: 1 | I57: 1 | J57: 1 | K57: 1 | L57: 1 | M57: 1 | N57: 1 | O57: 1 | P57: 1 | Q57: 1 | R57: 1 | S57: 1 | T57: 1 | U57: 1 | V57: 1 | W57: 1 | X57: 1 | Y57: 1 | Z57: 1 | AA57: 1 | AB57: 1 | AC57: 1 | AD57: 1 | AE57: 1 | AF57: 1 | AG57: 1 | AH57: 1 | AI57: 1 | AJ57: 1 | AK57: 1 | AL57: 1 | AM57: 1 | AN57: 1
A58: HK | B58: 1 | C58: 1 | D58: 1 | E58: 1 | F58: 1 | G58: 1 | H58: 1 | I58: 1 | J58: 1 | K58: 1 | L58: 1 | M58: 1 | N58: 1 | O58: 1 | P58: 1 | Q58: 1 | R58: 1 | S58: 1 | T58: 1 | U58: 1 | V58: 1 | W58: 1 | X58: 1 | Y58: 1 | Z58: 1 | AA58: 1 | AB58: 1 | AC58: 1 | AD58: 1 | AE58: 1 | AF58: 1 | AG58: 1 | AH58: 1 | AI58: 1 | AJ58: 1 | AK58: 1 | AL58: 1 | AM58: 1 | AN58: 1
A59: HP | B59: 2 | C59: 2 | D59: 2 | E59: 3 | F59: 2 | G59: 1 | H59: 2 | I59: 2 | J59: 3 | K59: 3 | L59: 2 | M59: 2 | N59: 2 | O59: 2 | P59: 3 | Q59: 3 | R59: 3 | S59: 2 | T59: 2 | U59: 2 | V59: 2 | W59: 2 | X59: 3 | Y59: 2 | Z59: 3 | AA59: 1 | AB59: 1 | AC59: 1 | AD59: 1 | AE59: 1 | AF59: 1 | AG59: 2 | AH59: 1 | AI59: 1 | AJ59: 1 | AK59: 1 | AL59: 2 | AM59: 3 | AN59: 2
A60: HQ | B60: 1 | C60: 1 | D60: 1 | E60: 1 | F60: 1 | G60: 0 | H60: 1 | I60: 1 | J60: 1 | K60: 1 | L60: 1 | M60: 1 | N60: 1 | O60: 1 | P60: 1 | Q60: 1 | R60: 1 | S60: 1 | T60: 1 | U60: 1 | V60: 1 | W60: 1 | X60: 1 | Y60: 1 | Z60: 1 | AA60: 0 | AB60: 0 | AC60: 0 | AD60: 0 | AE60: 0 | AF60: 0 | AG60: 1 | AH60: 0 | AI60: 0 | AJ60: 0 | AK60: 0 | AL60: 1 | AM60: 1 | AN60: 1
A61: HR | B61: 22 | C61: 22 | D61: 13 | E61: 13 | F61: 14 | G61: 17 | H61: 13 | I61: 13 | J61: 13 | K61: 13 | L61: 13 | M61: 13 | N61: 14 | O61: 13 | P61: 13 | Q61: 13 | R61: 13 | S61: 13 | T61: 13 | U61: 13 | V61: 13 | W61: 13 | X61: 13 | Y61: 13 | Z61: 14 | AA61: 18 | AB61: 18 | AC61: 18 | AD61: 20 | AE61: 18 | AF61: 18 | AG61: 13 | AH61: 18 | AI61: 18 | AJ61: 18 | AK61: 18 | AL61: 22 | AM61: 13 | AN61: 22
A62: HT | B62: 1 | C62: 1 | D62: 0 | E62: 0 | F62: 0 | G62: 1 | H62: 0 | I62: 0 | J62: 0 | K62: 0 | L62: 0 | M62: 0 | N62: 0 | O62: 0 | P62: 0 | Q62: 0 | R62: 0 | S62: 0 | T62: 0 | U62: 0 | V62: 0 | W62: 0 | X62: 0 | Y62: 0 | Z62: 0 | AA62: 1 | AB62: 1 | AC62: 1 | AD62: 1 | AE62: 1 | AF62: 1 | AG62: 0 | AH62: 1 | AI62: 1 | AJ62: 1 | AK62: 1 | AL62: 1 | AM62: 0 | AN62: 1
A63: I | B63: 54 | C63: 54 | D63: 52 | E63: 52 | F63: 51 | G63: 55 | H63: 52 | I63: 53 | J63: 52 | K63: 51 | L63: 56 | M63: 50 | N63: 53 | O63: 49 | P63: 51 | Q63: 52 | R63: 52 | S63: 52 | T63: 50 | U63: 53 | V63: 52 | W63: 51 | X63: 52 | Y63: 52 | Z63: 54 | AA63: 53 | AB63: 53 | AC63: 54 | AD63: 57 | AE63: 53 | AF63: 51 | AG63: 49 | AH63: 53 | AI63: 53 | AJ63: 53 | AK63: 53 | AL63: 49 | AM63: 52 | AN63: 51
A64: IM | B64: 4 | C64: 3 | D64: 3 | E64: 1 | F64: 2 | G64: 0 | H64: 3 | I64: 0 | J64: 3 | K64: 3 | L64: 2 | M64: 2 | N64: 1 | O64: 2 | P64: 1 | Q64: 2 | R64: 2 | S64: 3 | T64: 2 | U64: 2 | V64: 1 | W64: 1 | X64: 2 | Y64: 0 | Z64: 2 | AA64: 0 | AB64: 0 | AC64: 0 | AD64: 0 | AE64: 0 | AF64: 0 | AG64: 2 | AH64: 0 | AI64: 0 | AJ64: 0 | AK64: 0 | AL64: 3 | AM64: 3 | AN64: 0
A65: IO | B65: 0 | C65: 0 | D65: 0 | E65: 0 | F65: 0 | G65: 0 | H65: 0 | I65: 0 | J65: 0 | K65: 0 | L65: 0 | M65: 0 | N65: 0 | O65: 0 | P65: 0 | Q65: 0 | R65: 0 | S65: 0 | T65: 0 | U65: 0 | V65: 0 | W65: 0 | X65: 0 | Y65: 0 | Z65: 0 | AA65: 0 | AB65: 0 | AC65: 0 | AD65: 0 | AE65: 0 | AF65: 0 | AG65: 0 | AH65: 0 | AI65: 0 | AJ65: 0 | AK65: 0 | AL65: 0 | AM65: 0 | AN65: 0
A66: IQ | B66: 4 | C66: 4 | D66: 7 | E66: 6 | F66: 6 | G66: 4 | H66: 6 | I66: 6 | J66: 7 | K66: 7 | L66: 8 | M66: 6 | N66: 6 | O66: 6 | P66: 6 | Q66: 7 | R66: 6 | S66: 6 | T66: 6 | U66: 6 | V66: 6 | W66: 6 | X66: 6 | Y66: 6 | Z66: 6 | AA66: 4 | AB66: 4 | AC66: 4 | AD66: 4 | AE66: 4 | AF66: 4 | AG66: 6 | AH66: 4 | AI66: 4 | AJ66: 4 | AK66: 4 | AL66: 5 | AM66: 7 | AN66: 5
A67: IQR | B67: 7 | C67: 7 | D67: 7 | E67: 7 | F67: 6 | G67: 7 | H67: 6 | I67: 7 | J67: 7 | K67: 7 | L67: 8 | M67: 7 | N67: 6 | O67: 7 | P67: 7 | Q67: 6 | R67: 7 | S67: 7 | T67: 7 | U67: 7 | V67: 7 | W67: 7 | X67: 8 | Y67: 7 | Z67: 7 | AA67: 7 | AB67: 7 | AC67: 6 | AD67: 6 | AE67: 7 | AF67: 7 | AG67: 7 | AH67: 7 | AI67: 7 | AJ67: 7 | AK67: 7 | AL67: 7 | AM67: 6 | AN67: 7
A68: IR | B68: 4 | C68: 4 | D68: 4 | E68: 4 | F68: 4 | G68: 4 | H68: 4 | I68: 4 | J68: 4 | K68: 4 | L68: 4 | M68: 4 | N68: 4 | O68: 4 | P68: 4 | Q68: 4 | R68: 4 | S68: 4 | T68: 4 | U68: 4 | V68: 4 | W68: 4 | X68: 4 | Y68: 4 | Z68: 4 | AA68: 4 | AB68: 4 | AC68: 4 | AD68: 4 | AE68: 4 | AF68: 4 | AG68: 4 | AH68: 4 | AI68: 4 | AJ68: 4 | AK68: 4 | AL68: 4 | AM68: 4 | AN68: 4
A69: IV | B69: 1 | C69: 1 | D69: 0 | E69: 0 | F69: 0 | G69: 1 | H69: 0 | I69: 0 | J69: 0 | K69: 0 | L69: 0 | M69: 0 | N69: 0 | O69: 0 | P69: 0 | Q69: 0 | R69: 0 | S69: 0 | T69: 0 | U69: 0 | V69: 0 | W69: 0 | X69: 0 | Y69: 0 | Z69: 0 | AA69: 1 | AB69: 1 | AC69: 1 | AD69: 1 | AE69: 1 | AF69: 1 | AG69: 0 | AH69: 1 | AI69: 1 | AJ69: 1 | AK69: 1 | AL69: 1 | AM69: 0 | AN69: 1
A70: J | B70: 192 | C70: 192 | D70: 188 | E70: 195 | F70: 194 | G70: 186 | H70: 196 | I70: 194 | J70: 199 | K70: 198 | L70: 189 | M70: 194 | N70: 188 | O70: 194 | P70: 193 | Q70: 192 | R70: 193 | S70: 190 | T70: 194 | U70: 191 | V70: 189 | W70: 196 | X70: 190 | Y70: 190 | Z70: 192 | AA70: 191 | AB70: 188 | AC70: 185 | AD70: 185 | AE70: 191 | AF70: 191 | AG70: 195 | AH70: 191 | AI70: 191 | AJ70: 192 | AK70: 191 | AL70: 194 | AM70: 198 | AN70: 193
A71: JK | B71: 1 | C71: 1 | D71: 2 | E71: 2 | F71: 2 | G71: 2 | H71: 2 | I71: 2 | J71: 2 | K71: 2 | L71: 2 | M71: 2 | N71: 2 | O71: 2 | P71: 2 | Q71: 2 | R71: 2 | S71: 2 | T71: 2 | U71: 2 | V71: 2 | W71: 2 | X71: 2 | Y71: 2 | Z71: 2 | AA71: 2 | AB71: 2 | AC71: 2 | AD71: 2 | AE71: 2 | AF71: 2 | AG71: 2 | AH71: 2 | AI71: 2 | AJ71: 2 | AK71: 2 | AL71: 1 | AM71: 2 | AN71: 1
A72: JM | B72: 0 | C72: 0 | D72: 0 | E72: 0 | F72: 0 | G72: 0 | H72: 0 | I72: 0 | J72: 0 | K72: 0 | L72: 0 | M72: 0 | N72: 0 | O72: 0 | P72: 0 | Q72: 0 | R72: 0 | S72: 0 | T72: 0 | U72: 0 | V72: 0 | W72: 0 | X72: 0 | Y72: 0 | Z72: 0 | AA72: 0 | AB72: 0 | AC72: 0 | AD72: 0 | AE72: 0 | AF72: 0 | AG72: 0 | AH72: 0 | AI72: 0 | AJ72: 0 | AK72: 0 | AL72: 0 | AM72: 0 | AN72: 0
A73: JO | B73: 7 | C73: 7 | D73: 6 | E73: 6 | F73: 5 | G73: 2 | H73: 6 | I73: 6 | J73: 6 | K73: 7 | L73: 5 | M73: 6 | N73: 5 | O73: 6 | P73: 6 | Q73: 6 | R73: 6 | S73: 6 | T73: 6 | U73: 5 | V73: 5 | W73: 6 | X73: 6 | Y73: 5 | Z73: 5 | AA73: 2 | AB73: 2 | AC73: 2 | AD73: 3 | AE73: 2 | AF73: 2 | AG73: 6 | AH73: 2 | AI73: 2 | AJ73: 2 | AK73: 2 | AL73: 7 | AM73: 6 | AN73: 7
A74: JR | B74: 3 | C74: 3 | D74: 2 | E74: 2 | F74: 2 | G74: 3 | H74: 2 | I74: 2 | J74: 2 | K74: 2 | L74: 2 | M74: 2 | N74: 2 | O74: 2 | P74: 2 | Q74: 2 | R74: 2 | S74: 2 | T74: 2 | U74: 2 | V74: 2 | W74: 2 | X74: 2 | Y74: 2 | Z74: 2 | AA74: 3 | AB74: 3 | AC74: 3 | AD74: 3 | AE74: 3 | AF74: 3 | AG74: 2 | AH74: 3 | AI74: 3 | AJ74: 3 | AK74: 3 | AL74: 3 | AM74: 2 | AN74: 3
A75: JT | B75: 0 | C75: 0 | D75: 0 | E75: 0 | F75: 0 | G75: 0 | H75: 0 | I75: 0 | J75: 0 | K75: 0 | L75: 0 | M75: 0 | N75: 0 | O75: 0 | P75: 0 | Q75: 0 | R75: 0 | S75: 0 | T75: 0 | U75: 0 | V75: 0 | W75: 0 | X75: 0 | Y75: 0 | Z75: 0 | AA75: 0 | AB75: 0 | AC75: 0 | AD75: 0 | AE75: 0 | AF75: 0 | AG75: 0 | AH75: 0 | AI75: 0 | AJ75: 0 | AK75: 0 | AL75: 0 | AM75: 0 | AN75: 0
A76: JU | B76: 1 | C76: 1 | D76: 1 | E76: 1 | F76: 1 | G76: 1 | H76: 1 | I76: 1 | J76: 1 | K76: 1 | L76: 1 | M76: 1 | N76: 1 | O76: 1 | P76: 1 | Q76: 1 | R76: 1 | S76: 1 | T76: 1 | U76: 1 | V76: 1 | W76: 1 | X76: 1 | Y76: 1 | Z76: 1 | AA76: 1 | AB76: 1 | AC76: 1 | AD76: 1 | AE76: 1 | AF76: 1 | AG76: 1 | AH76: 1 | AI76: 1 | AJ76: 1 | AK76: 1 | AL76: 1 | AM76: 1 | AN76: 1
A77: JV | B77: 0 | C77: 0 | D77: 0 | E77: 0 | F77: 0 | G77: 0 | H77: 0 | I77: 0 | J77: 0 | K77: 0 | L77: 0 | M77: 0 | N77: 0 | O77: 0 | P77: 0 | Q77: 0 | R77: 0 | S77: 0 | T77: 0 | U77: 0 | V77: 0 | W77: 0 | X77: 0 | Y77: 0 | Z77: 0 | AA77: 0 | AB77: 0 | AC77: 0 | AD77: 0 | AE77: 0 | AF77: 0 | AG77: 0 | AH77: 0 | AI77: 0 | AJ77: 0 | AK77: 0 | AL77: 0 | AM77: 0 | AN77: 0
A78: K | B78: 198 | C78: 198 | D78: 138 | E78: 141 | F78: 136 | G78: 119 | H78: 136 | I78: 145 | J78: 138 | K78: 140 | L78: 137 | M78: 143 | N78: 140 | O78: 142 | P78: 140 | Q78: 134 | R78: 135 | S78: 139 | T78: 145 | U78: 128 | V78: 130 | W78: 143 | X78: 133 | Y78: 137 | Z78: 140 | AA78: 137 | AB78: 134 | AC78: 126 | AD78: 141 | AE78: 136 | AF78: 133 | AG78: 144 | AH78: 136 | AI78: 136 | AJ78: 138 | AK78: 137 | AL78: 181 | AM78: 139 | AN78: 174
A79: KL | B79: 2 | C79: 2 | D79: 2 | E79: 3 | F79: 2 | G79: 2 | H79: 3 | I79: 2 | J79: 2 | K79: 2 | L79: 2 | M79: 2 | N79: 2 | O79: 2 | P79: 3 | Q79: 2 | R79: 3 | S79: 2 | T79: 2 | U79: 3 | V79: 2 | W79: 2 | X79: 2 | Y79: 2 | Z79: 3 | AA79: 2 | AB79: 2 | AC79: 2 | AD79: 2 | AE79: 2 | AF79: 2 | AG79: 2 | AH79: 2 | AI79: 2 | AJ79: 2 | AK79: 2 | AL79: 3 | AM79: 3 | AN79: 2
A80: KN | B80: 0 | C80: 0 | D80: 0 | E80: 0 | F80: 0 | G80: 0 | H80: 0 | I80: 0 | J80: 0 | K80: 0 | L80: 0 | M80: 0 | N80: 0 | O80: 0 | P80: 0 | Q80: 0 | R80: 0 | S80: 0 | T80: 0 | U80: 0 | V80: 0 | W80: 0 | X80: 0 | Y80: 0 | Z80: 0 | AA80: 0 | AB80: 0 | AC80: 0 | AD80: 0 | AE80: 0 | AF80: 0 | AG80: 0 | AH80: 0 | AI80: 0 | AJ80: 0 | AK80: 0 | AL80: 0 | AM80: 0 | AN80: 0
A81: KNT | B81: 1 | C81: 1 | D81: 1 | E81: 1 | F81: 1 | G81: 1 | H81: 1 | I81: 1 | J81: 1 | K81: 1 | L81: 1 | M81: 1 | N81: 1 | O81: 1 | P81: 1 | Q81: 1 | R81: 1 | S81: 1 | T81: 1 | U81: 1 | V81: 1 | W81: 1 | X81: 1 | Y81: 1 | Z81: 1 | AA81: 1 | AB81: 1 | AC81: 1 | AD81: 1 | AE81: 1 | AF81: 1 | AG81: 1 | AH81: 1 | AI81: 1 | AJ81: 1 | AK81: 1 | AL81: 1 | AM81: 1 | AN81: 1
A82: KO | B82: 1 | C82: 1 | D82: 1 | E82: 1 | F82: 1 | G82: 1 | H82: 1 | I82: 1 | J82: 1 | K82: 1 | L82: 1 | M82: 1 | N82: 1 | O82: 1 | P82: 1 | Q82: 1 | R82: 1 | S82: 1 | T82: 1 | U82: 1 | V82: 1 | W82: 1 | X82: 1 | Y82: 1 | Z82: 1 | AA82: 1 | AB82: 1 | AC82: 1 | AD82: 1 | AE82: 1 | AF82: 1 | AG82: 1 | AH82: 1 | AI82: 1 | AJ82: 1 | AK82: 1 | AL82: 1 | AM82: 1 | AN82: 1
A83: KR | B83: 0 | C83: 0 | D83: 0 | E83: 0 | F83: 0 | G83: 0 | H83: 0 | I83: 0 | J83: 0 | K83: 0 | L83: 0 | M83: 0 | N83: 0 | O83: 0 | P83: 0 | Q83: 0 | R83: 0 | S83: 0 | T83: 0 | U83: 0 | V83: 0 | W83: 0 | X83: 0 | Y83: 0 | Z83: 0 | AA83: 0 | AB83: 0 | AC83: 0 | AD83: 0 | AE83: 0 | AF83: 0 | AG83: 0 | AH83: 0 | AI83: 0 | AJ83: 0 | AK83: 0 | AL83: 0 | AM83: 0 | AN83: 0
A84: KT | B84: 33 | C84: 33 | D84: 24 | E84: 25 | F84: 23 | G84: 25 | H84: 27 | I84: 24 | J84: 27 | K84: 27 | L84: 26 | M84: 27 | N84: 26 | O84: 27 | P84: 25 | Q84: 25 | R84: 27 | S84: 24 | T84: 27 | U84: 25 | V84: 20 | W84: 23 | X84: 26 | Y84: 26 | Z84: 23 | AA84: 24 | AB84: 23 | AC84: 22 | AD84: 26 | AE84: 24 | AF84: 23 | AG84: 27 | AH84: 24 | AI84: 23 | AJ84: 24 | AK84: 24 | AL84: 27 | AM84: 27 | AN84: 32
A85: KV | B85: 1 | C85: 1 | D85: 1 | E85: 1 | F85: 1 | G85: 1 | H85: 1 | I85: 1 | J85: 1 | K85: 1 | L85: 1 | M85: 1 | N85: 1 | O85: 1 | P85: 1 | Q85: 1 | R85: 1 | S85: 1 | T85: 1 | U85: 1 | V85: 1 | W85: 1 | X85: 1 | Y85: 1 | Z85: 1 | AA85: 1 | AB85: 1 | AC85: 1 | AD85: 1 | AE85: 1 | AF85: 1 | AG85: 1 | AH85: 1 | AI85: 1 | AJ85: 1 | AK85: 1 | AL85: 1 | AM85: 1 | AN85: 1
A86: KX | B86: 0 | C86: 0 | D86: 0 | E86: 0 | F86: 0 | G86: 0 | H86: 0 | I86: 0 | J86: 0 | K86: 0 | L86: 0 | M86: 0 | N86: 0 | O86: 0 | P86: 0 | Q86: 0 | R86: 0 | S86: 0 | T86: 0 | U86: 0 | V86: 0 | W86: 0 | X86: 0 | Y86: 0 | Z86: 0 | AA86: 0 | AB86: 0 | AC86: 0 | AD86: 0 | AE86: 0 | AF86: 0 | AG86: 0 | AH86: 0 | AI86: 0 | AJ86: 0 | AK86: 0 | AL86: 0 | AM86: 0 | AN86: 0
A87: L | B87: 92 | C87: 92 | D87: 91 | E87: 114 | F87: 100 | G87: 91 | H87: 102 | I87: 103 | J87: 98 | K87: 103 | L87: 94 | M87: 107 | N87: 100 | O87: 103 | P87: 112 | Q87: 102 | R87: 92 | S87: 99 | T87: 103 | U87: 94 | V87: 96 | W87: 111 | X87: 91 | Y87: 99 | Z87: 96 | AA87: 116 | AB87: 110 | AC87: 87 | AD87: 97 | AE87: 113 | AF87: 111 | AG87: 103 | AH87: 112 | AI87: 113 | AJ87: 118 | AK87: 118 | AL87: 103 | AM87: 102 | AN87: 100
A88: LV | B88: 0 | C88: 0 | D88: 0 | E88: 0 | F88: 0 | G88: 0 | H88: 0 | I88: 0 | J88: 0 | K88: 0 | L88: 0 | M88: 0 | N88: 0 | O88: 0 | P88: 0 | Q88: 0 | R88: 0 | S88: 0 | T88: 0 | U88: 0 | V88: 0 | W88: 0 | X88: 0 | Y88: 0 | Z88: 0 | AA88: 0 | AB88: 0 | AC88: 0 | AD88: 0 | AE88: 0 | AF88: 0 | AG88: 0 | AH88: 0 | AI88: 0 | AJ88: 0 | AK88: 0 | AL88: 0 | AM88: 0 | AN88: 0
A89: LX | B89: 0 | C89: 0 | D89: 1 | E89: 0 | F89: 0 | G89: 0 | H89: 0 | I89: 0 | J89: 0 | K89: 0 | L89: 0 | M89: 0 | N89: 0 | O89: 0 | P89: 0 | Q89: 0 | R89: 0 | S89: 1 | T89: 0 | U89: 0 | V89: 1 | W89: 0 | X89: 1 | Y89: 0 | Z89: 1 | AA89: 0 | AB89: 0 | AC89: 0 | AD89: 0 | AE89: 0 | AF89: 0 | AG89: 0 | AH89: 0 | AI89: 0 | AJ89: 0 | AK89: 0 | AL89: 0 | AM89: 0 | AN89: 0
A90: M | B90: 105 | C90: 103 | D90: 87 | E90: 91 | F90: 86 | G90: 89 | H90: 90 | I90: 87 | J90: 90 | K90: 90 | L90: 89 | M90: 88 | N90: 87 | O90: 88 | P90: 90 | Q90: 85 | R90: 86 | S90: 88 | T90: 88 | U90: 87 | V90: 91 | W90: 89 | X90: 89 | Y90: 85 | Z90: 84 | AA90: 107 | AB90: 99 | AC90: 92 | AD90: 93 | AE90: 107 | AF90: 98 | AG90: 86 | AH90: 98 | AI90: 107 | AJ90: 107 | AK90: 107 | AL90: 99 | AM90: 90 | AN90: 104
A91: MN | B91: 10 | C91: 10 | D91: 6 | E91: 5 | F91: 5 | G91: 5 | H91: 5 | I91: 5 | J91: 5 | K91: 5 | L91: 6 | M91: 5 | N91: 5 | O91: 5 | P91: 5 | Q91: 6 | R91: 7 | S91: 6 | T91: 5 | U91: 6 | V91: 4 | W91: 5 | X91: 6 | Y91: 6 | Z91: 5 | AA91: 8 | AB91: 7 | AC91: 5 | AD91: 6 | AE91: 7 | AF91: 7 | AG91: 5 | AH91: 7 | AI91: 7 | AJ91: 6 | AK91: 8 | AL91: 7 | AM91: 5 | AN91: 8
A92: MO | B92: 1 | C92: 1 | D92: 0 | E92: 0 | F92: 0 | G92: 0 | H92: 0 | I92: 0 | J92: 0 | K92: 0 | L92: 0 | M92: 0 | N92: 0 | O92: 0 | P92: 0 | Q92: 0 | R92: 0 | S92: 0 | T92: 0 | U92: 0 | V92: 1 | W92: 0 | X92: 0 | Y92: 0 | Z92: 0 | AA92: 0 | AB92: 0 | AC92: 1 | AD92: 0 | AE92: 0 | AF92: 0 | AG92: 0 | AH92: 0 | AI92: 0 | AJ92: 0 | AK92: 0 | AL92: 1 | AM92: 0 | AN92: 1
A93: MR | B93: 8 | C93: 8 | D93: 4 | E93: 5 | F93: 4 | G93: 3 | H93: 5 | I93: 6 | J93: 5 | K93: 5 | L93: 4 | M93: 6 | N93: 6 | O93: 6 | P93: 5 | Q93: 4 | R93: 4 | S93: 4 | T93: 6 | U93: 3 | V93: 4 | W93: 5 | X93: 4 | Y93: 4 | Z93: 6 | AA93: 4 | AB93: 3 | AC93: 3 | AD93: 3 | AE93: 4 | AF93: 3 | AG93: 6 | AH93: 3 | AI93: 3 | AJ93: 3 | AK93: 4 | AL93: 11 | AM93: 5 | AN93: 8
A94: MT | B94: 1 | C94: 1 | D94: 1 | E94: 1 | F94: 1 | G94: 1 | H94: 1 | I94: 1 | J94: 1 | K94: 1 | L94: 1 | M94: 1 | N94: 1 | O94: 1 | P94: 1 | Q94: 1 | R94: 1 | S94: 1 | T94: 1 | U94: 1 | V94: 1 | W94: 1 | X94: 1 | Y94: 1 | Z94: 1 | AA94: 1 | AB94: 1 | AC94: 1 | AD94: 1 | AE94: 1 | AF94: 1 | AG94: 1 | AH94: 1 | AI94: 1 | AJ94: 1 | AK94: 1 | AL94: 1 | AM94: 1 | AN94: 1
A95: MU | B95: 1 | C95: 1 | D95: 1 | E95: 1 | F95: 1 | G95: 1 | H95: 1 | I95: 1 | J95: 1 | K95: 1 | L95: 1 | M95: 1 | N95: 1 | O95: 1 | P95: 1 | Q95: 1 | R95: 1 | S95: 1 | T95: 1 | U95: 1 | V95: 1 | W95: 1 | X95: 1 | Y95: 1 | Z95: 1 | AA95: 1 | AB95: 1 | AC95: 1 | AD95: 1 | AE95: 1 | AF95: 1 | AG95: 1 | AH95: 1 | AI95: 1 | AJ95: 1 | AK95: 1 | AL95: 1 | AM95: 1 | AN95: 1
A96: MV | B96: 0 | C96: 0 | D96: 2 | E96: 2 | F96: 2 | G96: 0 | H96: 2 | I96: 2 | J96: 2 | K96: 2 | L96: 2 | M96: 2 | N96: 2 | O96: 2 | P96: 2 | Q96: 2 | R96: 2 | S96: 2 | T96: 2 | U96: 2 | V96: 2 | W96: 2 | X96: 2 | Y96: 2 | Z96: 2 | AA96: 0 | AB96: 0 | AC96: 0 | AD96: 0 | AE96: 0 | AF96: 0 | AG96: 2 | AH96: 0 | AI96: 0 | AJ96: 0 | AK96: 0 | AL96: 0 | AM96: 2 | AN96: 0
A97: MX | B97: 0 | C97: 0 | D97: 0 | E97: 0 | F97: 0 | G97: 0 | H97: 0 | I97: 0 | J97: 0 | K97: 0 | L97: 0 | M97: 0 | N97: 0 | O97: 0 | P97: 0 | Q97: 0 | R97: 0 | S97: 0 | T97: 0 | U97: 0 | V97: 0 | W97: 0 | X97: 0 | Y97: 0 | Z97: 0 | AA97: 0 | AB97: 0 | AC97: 0 | AD97: 0 | AE97: 0 | AF97: 0 | AG97: 0 | AH97: 0 | AI97: 0 | AJ97: 0 | AK97: 0 | AL97: 0 | AM97: 0 | AN97: 0
A98: N | B98: 27 | C98: 27 | D98: 2 | E98: 5 | F98: 7 | G98: 4 | H98: 4 | I98: 7 | J98: 4 | K98: 5 | L98: 3 | M98: 6 | N98: 6 | O98: 6 | P98: 5 | Q98: 4 | R98: 5 | S98: 6 | T98: 6 | U98: 4 | V98: 3 | W98: 11 | X98: 4 | Y98: 5 | Z98: 6 | AA98: 8 | AB98: 7 | AC98: 3 | AD98: 5 | AE98: 8 | AF98: 7 | AG98: 6 | AH98: 8 | AI98: 8 | AJ98: 8 | AK98: 8 | AL98: 27 | AM98: 4 | AN98: 27
A99: NT | B99: 8 | C99: 8 | D99: 0 | E99: 0 | F99: 0 | G99: 0 | H99: 0 | I99: 0 | J99: 0 | K99: 0 | L99: 0 | M99: 0 | N99: 0 | O99: 0 | P99: 0 | Q99: 0 | R99: 0 | S99: 0 | T99: 0 | U99: 0 | V99: 0 | W99: 0 | X99: 0 | Y99: 0 | Z99: 0 | AA99: 0 | AB99: 0 | AC99: 0 | AD99: 0 | AE99: 0 | AF99: 0 | AG99: 0 | AH99: 0 | AI99: 0 | AJ99: 0 | AK99: 0 | AL99: 8 | AM99: 0 | AN99: 7
A100: NU | B100: 5 | C100: 5 | D100: 1 | E100: 1 | F100: 1 | G100: 1 | H100: 1 | I100: 1 | J100: 1 | K100: 1 | L100: 1 | M100: 1 | N100: 1 | O100: 1 | P100: 1 | Q100: 1 | R100: 1 | S100: 1 | T100: 1 | U100: 1 | V100: 1 | W100: 1 | X100: 1 | Y100: 1 | Z100: 1 | AA100: 1 | AB100: 1 | AC100: 1 | AD100: 1 | AE100: 1 | AF100: 1 | AG100: 1 | AH100: 1 | AI100: 1 | AJ100: 1 | AK100: 1 | AL100: 4 | AM100: 1 | AN100: 4
A101: NUW | B101: 3 | C101: 3 | D101: 1 | E101: 1 | F101: 1 | G101: 1 | H101: 1 | I101: 0 | J101: 1 | K101: 1 | L101: 1 | M101: 1 | N101: 1 | O101: 1 | P101: 1 | Q101: 1 | R101: 1 | S101: 0 | T101: 1 | U101: 1 | V101: 1 | W101: 1 | X101: 1 | Y101: 1 | Z101: 1 | AA101: 1 | AB101: 1 | AC101: 1 | AD101: 1 | AE101: 1 | AF101: 1 | AG101: 1 | AH101: 1 | AI101: 1 | AJ101: 1 | AK101: 1 | AL101: 1 | AM101: 1 | AN101: 1
A102: NW | B102: 2 | C102: 2 | D102: 0 | E102: 0 | F102: 0 | G102: 0 | H102: 0 | I102: 0 | J102: 0 | K102: 0 | L102: 0 | M102: 0 | N102: 0 | O102: 0 | P102: 0 | Q102: 0 | R102: 0 | S102: 0 | T102: 0 | U102: 0 | V102: 0 | W102: 0 | X102: 0 | Y102: 0 | Z102: 0 | AA102: 0 | AB102: 0 | AC102: 0 | AD102: 0 | AE102: 0 | AF102: 0 | AG102: 0 | AH102: 0 | AI102: 0 | AJ102: 0 | AK102: 0 | AL102: 0 | AM102: 0 | AN102: 0
A103: O | B103: 64 | C103: 64 | D103: 51 | E103: 53 | F103: 53 | G103: 53 | H103: 50 | I103: 51 | J103: 50 | K103: 50 | L103: 53 | M103: 53 | N103: 54 | O103: 53 | P103: 51 | Q103: 50 | R103: 51 | S103: 51 | T103: 52 | U103: 52 | V103: 51 | W103: 54 | X103: 50 | Y103: 51 | Z103: 52 | AA103: 53 | AB103: 53 | AC103: 52 | AD103: 54 | AE103: 53 | AF103: 52 | AG103: 53 | AH103: 53 | AI103: 53 | AJ103: 53 | AK103: 53 | AL103: 57 | AM103: 50 | AN103: 58
A104: OP | B104: 0 | C104: 0 | D104: 0 | E104: 0 | F104: 0 | G104: 0 | H104: 0 | I104: 0 | J104: 0 | K104: 0 | L104: 0 | M104: 0 | N104: 0 | O104: 0 | P104: 0 | Q104: 0 | R104: 0 | S104: 0 | T104: 0 | U104: 0 | V104: 0 | W104: 0 | X104: 0 | Y104: 0 | Z104: 0 | AA104: 0 | AB104: 0 | AC104: 0 | AD104: 0 | AE104: 0 | AF104: 0 | AG104: 0 | AH104: 0 | AI104: 0 | AJ104: 0 | AK104: 0 | AL104: 0 | AM104: 0 | AN104: 0
A105: OT | B105: 0 | C105: 0 | D105: 0 | E105: 0 | F105: 0 | G105: 0 | H105: 0 | I105: 0 | J105: 0 | K105: 0 | L105: 0 | M105: 0 | N105: 0 | O105: 0 | P105: 0 | Q105: 0 | R105: 0 | S105: 0 | T105: 0 | U105: 0 | V105: 0 | W105: 0 | X105: 0 | Y105: 0 | Z105: 0 | AA105: 0 | AB105: 0 | AC105: 0 | AD105: 0 | AE105: 0 | AF105: 0 | AG105: 0 | AH105: 0 | AI105: 0 | AJ105: 0 | AK105: 0 | AL105: 0 | AM105: 0 | AN105: 0
A106: OU | B106: 0 | C106: 0 | D106: 0 | E106: 0 | F106: 0 | G106: 0 | H106: 0 | I106: 0 | J106: 0 | K106: 0 | L106: 0 | M106: 0 | N106: 0 | O106: 0 | P106: 0 | Q106: 0 | R106: 0 | S106: 0 | T106: 0 | U106: 0 | V106: 0 | W106: 0 | X106: 0 | Y106: 0 | Z106: 0 | AA106: 0 | AB106: 0 | AC106: 0 | AD106: 0 | AE106: 0 | AF106: 0 | AG106: 0 | AH106: 0 | AI106: 0 | AJ106: 0 | AK106: 0 | AL106: 0 | AM106: 0 | AN106: 0
A107: P | B107: 102 | C107: 102 | D107: 84 | E107: 87 | F107: 85 | G107: 86 | H107: 88 | I107: 87 | J107: 89 | K107: 88 | L107: 85 | M107: 86 | N107: 88 | O107: 85 | P107: 83 | Q107: 85 | R107: 87 | S107: 88 | T107: 87 | U107: 84 | V107: 82 | W107: 86 | X107: 84 | Y107: 84 | Z107: 83 | AA107: 87 | AB107: 86 | AC107: 81 | AD107: 99 | AE107: 87 | AF107: 85 | AG107: 86 | AH107: 86 | AI107: 86 | AJ107: 84 | AK107: 87 | AL107: 104 | AM107: 89 | AN107: 103
A108: PQ | B108: 0 | C108: 0 | D108: 0 | E108: 0 | F108: 0 | G108: 0 | H108: 0 | I108: 0 | J108: 0 | K108: 0 | L108: 0 | M108: 0 | N108: 0 | O108: 0 | P108: 0 | Q108: 0 | R108: 0 | S108: 0 | T108: 0 | U108: 0 | V108: 0 | W108: 0 | X108: 0 | Y108: 0 | Z108: 0 | AA108: 0 | AB108: 0 | AC108: 0 | AD108: 0 | AE108: 0 | AF108: 0 | AG108: 0 | AH108: 0 | AI108: 0 | AJ108: 0 | AK108: 0 | AL108: 0 | AM108: 0 | AN108: 0
A109: PR | B109: 2 | C109: 2 | D109: 5 | E109: 4 | F109: 4 | G109: 2 | H109: 4 | I109: 4 | J109: 4 | K109: 4 | L109: 5 | M109: 4 | N109: 4 | O109: 4 | P109: 4 | Q109: 5 | R109: 5 | S109: 5 | T109: 4 | U109: 5 | V109: 4 | W109: 4 | X109: 5 | Y109: 4 | Z109: 5 | AA109: 2 | AB109: 2 | AC109: 2 | AD109: 2 | AE109: 2 | AF109: 2 | AG109: 4 | AH109: 2 | AI109: 2 | AJ109: 2 | AK109: 2 | AL109: 3 | AM109: 4 | AN109: 3
A110: PT | B110: 0 | C110: 0 | D110: 0 | E110: 0 | F110: 0 | G110: 0 | H110: 0 | I110: 0 | J110: 0 | K110: 0 | L110: 0 | M110: 0 | N110: 0 | O110: 0 | P110: 0 | Q110: 0 | R110: 0 | S110: 0 | T110: 0 | U110: 0 | V110: 0 | W110: 0 | X110: 0 | Y110: 0 | Z110: 0 | AA110: 0 | AB110: 0 | AC110: 0 | AD110: 0 | AE110: 0 | AF110: 0 | AG110: 0 | AH110: 0 | AI110: 0 | AJ110: 0 | AK110: 0 | AL110: 0 | AM110: 0 | AN110: 0
A111: PU | B111: 0 | C111: 0 | D111: 0 | E111: 0 | F111: 0 | G111: 0 | H111: 0 | I111: 0 | J111: 0 | K111: 0 | L111: 0 | M111: 0 | N111: 0 | O111: 0 | P111: 0 | Q111: 0 | R111: 0 | S111: 0 | T111: 0 | U111: 0 | V111: 0 | W111: 0 | X111: 0 | Y111: 0 | Z111: 0 | AA111: 0 | AB111: 0 | AC111: 0 | AD111: 0 | AE111: 0 | AF111: 0 | AG111: 0 | AH111: 0 | AI111: 0 | AJ111: 0 | AK111: 0 | AL111: 0 | AM111: 0 | AN111: 0
A112: PV | B112: 1 | C112: 1 | D112: 1 | E112: 1 | F112: 1 | G112: 1 | H112: 2 | I112: 1 | J112: 2 | K112: 2 | L112: 1 | M112: 1 | N112: 1 | O112: 1 | P112: 1 | Q112: 1 | R112: 1 | S112: 1 | T112: 1 | U112: 1 | V112: 1 | W112: 1 | X112: 1 | Y112: 1 | Z112: 1 | AA112: 1 | AB112: 1 | AC112: 1 | AD112: 2 | AE112: 1 | AF112: 1 | AG112: 1 | AH112: 1 | AI112: 1 | AJ112: 1 | AK112: 1 | AL112: 3 | AM112: 2 | AN112: 1
A113: Q | B113: 25 | C113: 25 | D113: 17 | E113: 17 | F113: 17 | G113: 12 | H113: 17 | I113: 18 | J113: 17 | K113: 17 | L113: 18 | M113: 18 | N113: 17 | O113: 18 | P113: 17 | Q113: 17 | R113: 17 | S113: 17 | T113: 18 | U113: 17 | V113: 18 | W113: 17 | X113: 17 | Y113: 18 | Z113: 17 | AA113: 11 | AB113: 11 | AC113: 11 | AD113: 12 | AE113: 11 | AF113: 11 | AG113: 18 | AH113: 11 | AI113: 11 | AJ113: 12 | AK113: 11 | AL113: 21 | AM113: 17 | AN113: 21
A114: QR | B114: 1 | C114: 1 | D114: 1 | E114: 2 | F114: 2 | G114: 1 | H114: 2 | I114: 2 | J114: 2 | K114: 2 | L114: 2 | M114: 2 | N114: 2 | O114: 2 | P114: 2 | Q114: 2 | R114: 2 | S114: 2 | T114: 2 | U114: 2 | V114: 2 | W114: 2 | X114: 2 | Y114: 2 | Z114: 2 | AA114: 1 | AB114: 1 | AC114: 1 | AD114: 1 | AE114: 1 | AF114: 1 | AG114: 2 | AH114: 1 | AI114: 1 | AJ114: 1 | AK114: 1 | AL114: 1 | AM114: 2 | AN114: 1
A115: QT | B115: 0 | C115: 0 | D115: 0 | E115: 0 | F115: 0 | G115: 0 | H115: 0 | I115: 0 | J115: 0 | K115: 0 | L115: 0 | M115: 0 | N115: 0 | O115: 0 | P115: 0 | Q115: 0 | R115: 0 | S115: 0 | T115: 0 | U115: 0 | V115: 0 | W115: 0 | X115: 0 | Y115: 0 | Z115: 0 | AA115: 0 | AB115: 0 | AC115: 0 | AD115: 0 | AE115: 0 | AF115: 0 | AG115: 0 | AH115: 0 | AI115: 0 | AJ115: 0 | AK115: 0 | AL115: 0 | AM115: 0 | AN115: 0
A116: QV | B116: 0 | C116: 0 | D116: 0 | E116: 0 | F116: 0 | G116: 1 | H116: 0 | I116: 0 | J116: 0 | K116: 0 | L116: 0 | M116: 0 | N116: 0 | O116: 0 | P116: 0 | Q116: 0 | R116: 0 | S116: 0 | T116: 0 | U116: 0 | V116: 0 | W116: 0 | X116: 0 | Y116: 0 | Z116: 0 | AA116: 1 | AB116: 1 | AC116: 1 | AD116: 1 | AE116: 1 | AF116: 1 | AG116: 0 | AH116: 1 | AI116: 1 | AJ116: 1 | AK116: 1 | AL116: 1 | AM116: 0 | AN116: 1
A117: R | B117: 147 | C117: 147 | D117: 125 | E117: 121 | F117: 123 | G117: 123 | H117: 119 | I117: 124 | J117: 121 | K117: 121 | L117: 126 | M117: 128 | N117: 118 | O117: 128 | P117: 121 | Q117: 120 | R117: 123 | S117: 122 | T117: 127 | U117: 126 | V117: 122 | W117: 122 | X117: 124 | Y117: 128 | Z117: 122 | AA117: 130 | AB117: 127 | AC117: 120 | AD117: 128 | AE117: 130 | AF117: 127 | AG117: 128 | AH117: 128 | AI117: 130 | AJ117: 129 | AK117: 130 | AL117: 139 | AM117: 119 | AN117: 138
A118: RT | B118: 0 | C118: 0 | D118: 0 | E118: 0 | F118: 0 | G118: 0 | H118: 0 | I118: 0 | J118: 0 | K118: 0 | L118: 0 | M118: 0 | N118: 0 | O118: 0 | P118: 0 | Q118: 0 | R118: 0 | S118: 0 | T118: 0 | U118: 0 | V118: 0 | W118: 0 | X118: 0 | Y118: 0 | Z118: 0 | AA118: 0 | AB118: 0 | AC118: 0 | AD118: 0 | AE118: 0 | AF118: 0 | AG118: 0 | AH118: 0 | AI118: 0 | AJ118: 0 | AK118: 0 | AL118: 0 | AM118: 0 | AN118: 0
A119: RUX | B119: 0 | C119: 0 | D119: 0 | E119: 0 | F119: 0 | G119: 0 | H119: 0 | I119: 0 | J119: 0 | K119: 0 | L119: 0 | M119: 0 | N119: 0 | O119: 0 | P119: 0 | Q119: 0 | R119: 0 | S119: 0 | T119: 0 | U119: 0 | V119: 0 | W119: 0 | X119: 0 | Y119: 0 | Z119: 0 | AA119: 0 | AB119: 0 | AC119: 0 | AD119: 0 | AE119: 0 | AF119: 0 | AG119: 0 | AH119: 0 | AI119: 0 | AJ119: 0 | AK119: 0 | AL119: 0 | AM119: 0 | AN119: 0
A120: S | B120: 173 | C120: 173 | D120: 163 | E120: 173 | F120: 167 | G120: 141 | H120: 165 | I120: 173 | J120: 166 | K120: 168 | L120: 164 | M120: 173 | N120: 170 | O120: 170 | P120: 167 | Q120: 162 | R120: 164 | S120: 166 | T120: 172 | U120: 162 | V120: 164 | W120: 175 | X120: 160 | Y120: 167 | Z120: 167 | AA120: 148 | AB120: 147 | AC120: 143 | AD120: 144 | AE120: 148 | AF120: 147 | AG120: 176 | AH120: 149 | AI120: 149 | AJ120: 147 | AK120: 148 | AL120: 162 | AM120: 166 | AN120: 168
A121: SX | B121: 0 | C121: 0 | D121: 0 | E121: 0 | F121: 0 | G121: 0 | H121: 0 | I121: 0 | J121: 0 | K121: 0 | L121: 0 | M121: 0 | N121: 0 | O121: 0 | P121: 0 | Q121: 0 | R121: 0 | S121: 0 | T121: 0 | U121: 0 | V121: 0 | W121: 0 | X121: 0 | Y121: 0 | Z121: 0 | AA121: 0 | AB121: 0 | AC121: 0 | AD121: 0 | AE121: 0 | AF121: 0 | AG121: 0 | AH121: 0 | AI121: 0 | AJ121: 0 | AK121: 0 | AL121: 0 | AM121: 0 | AN121: 0
A122: T | B122: 63 | C122: 63 | D122: 47 | E122: 49 | F122: 46 | G122: 51 | H122: 47 | I122: 47 | J122: 47 | K122: 47 | L122: 47 | M122: 48 | N122: 49 | O122: 49 | P122: 48 | Q122: 46 | R122: 46 | S122: 48 | T122: 49 | U122: 46 | V122: 44 | W122: 49 | X122: 47 | Y122: 46 | Z122: 44 | AA122: 50 | AB122: 48 | AC122: 46 | AD122: 52 | AE122: 50 | AF122: 48 | AG122: 49 | AH122: 48 | AI122: 49 | AJ122: 50 | AK122: 50 | AL122: 68 | AM122: 47 | AN122: 64
A123: TL | B123: 1 | C123: 1 | D123: 1 | E123: 1 | F123: 1 | G123: 1 | H123: 1 | I123: 1 | J123: 1 | K123: 1 | L123: 1 | M123: 1 | N123: 1 | O123: 1 | P123: 1 | Q123: 1 | R123: 1 | S123: 1 | T123: 1 | U123: 1 | V123: 1 | W123: 1 | X123: 1 | Y123: 1 | Z123: 1 | AA123: 1 | AB123: 1 | AC123: 1 | AD123: 1 | AE123: 1 | AF123: 1 | AG123: 1 | AH123: 1 | AI123: 1 | AJ123: 1 | AK123: 1 | AL123: 1 | AM123: 1 | AN123: 1
A124: TU | B124: 0 | C124: 0 | D124: 0 | E124: 0 | F124: 0 | G124: 0 | H124: 0 | I124: 0 | J124: 0 | K124: 0 | L124: 0 | M124: 0 | N124: 0 | O124: 0 | P124: 0 | Q124: 0 | R124: 0 | S124: 0 | T124: 0 | U124: 0 | V124: 0 | W124: 0 | X124: 0 | Y124: 0 | Z124: 0 | AA124: 0 | AB124: 0 | AC124: 0 | AD124: 0 | AE124: 0 | AF124: 0 | AG124: 0 | AH124: 0 | AI124: 0 | AJ124: 0 | AK124: 0 | AL124: 0 | AM124: 0 | AN124: 0
A125: TV | B125: 1 | C125: 1 | D125: 1 | E125: 1 | F125: 1 | G125: 1 | H125: 1 | I125: 1 | J125: 1 | K125: 1 | L125: 1 | M125: 1 | N125: 1 | O125: 1 | P125: 1 | Q125: 1 | R125: 1 | S125: 1 | T125: 1 | U125: 1 | V125: 1 | W125: 1 | X125: 1 | Y125: 1 | Z125: 1 | AA125: 1 | AB125: 1 | AC125: 1 | AD125: 1 | AE125: 1 | AF125: 1 | AG125: 1 | AH125: 1 | AI125: 1 | AJ125: 1 | AK125: 1 | AL125: 1 | AM125: 1 | AN125: 1
A126: TX | B126: 0 | C126: 0 | D126: 0 | E126: 0 | F126: 0 | G126: 0 | H126: 0 | I126: 0 | J126: 0 | K126: 0 | L126: 0 | M126: 0 | N126: 0 | O126: 0 | P126: 0 | Q126: 0 | R126: 0 | S126: 0 | T126: 0 | U126: 0 | V126: 0 | W126: 0 | X126: 0 | Y126: 0 | Z126: 0 | AA126: 0 | AB126: 0 | AC126: 0 | AD126: 0 | AE126: 0 | AF126: 0 | AG126: 0 | AH126: 0 | AI126: 0 | AJ126: 0 | AK126: 0 | AL126: 0 | AM126: 0 | AN126: 0
A127: U | B127: 13 | C127: 13 | D127: 12 | E127: 12 | F127: 13 | G127: 11 | H127: 12 | I127: 12 | J127: 12 | K127: 13 | L127: 12 | M127: 12 | N127: 12 | O127: 12 | P127: 12 | Q127: 12 | R127: 13 | S127: 13 | T127: 12 | U127: 12 | V127: 12 | W127: 13 | X127: 12 | Y127: 12 | Z127: 12 | AA127: 11 | AB127: 11 | AC127: 11 | AD127: 11 | AE127: 11 | AF127: 11 | AG127: 12 | AH127: 11 | AI127: 11 | AJ127: 11 | AK127: 11 | AL127: 15 | AM127: 12 | AN127: 14
A128: UW | B128: 0 | C128: 0 | D128: 0 | E128: 0 | F128: 0 | G128: 0 | H128: 0 | I128: 0 | J128: 0 | K128: 0 | L128: 0 | M128: 0 | N128: 0 | O128: 0 | P128: 0 | Q128: 0 | R128: 0 | S128: 0 | T128: 0 | U128: 0 | V128: 0 | W128: 0 | X128: 0 | Y128: 0 | Z128: 0 | AA128: 1 | AB128: 1 | AC128: 0 | AD128: 0 | AE128: 1 | AF128: 1 | AG128: 0 | AH128: 1 | AI128: 1 | AJ128: 1 | AK128: 1 | AL128: 0 | AM128: 0 | AN128: 0
A129: V | B129: 67 | C129: 67 | D129: 58 | E129: 61 | F129: 52 | G129: 48 | H129: 61 | I129: 61 | J129: 62 | K129: 63 | L129: 50 | M129: 60 | N129: 60 | O129: 61 | P129: 57 | Q129: 57 | R129: 56 | S129: 50 | T129: 59 | U129: 50 | V129: 54 | W129: 58 | X129: 57 | Y129: 54 | Z129: 55 | AA129: 55 | AB129: 55 | AC129: 44 | AD129: 54 | AE129: 55 | AF129: 55 | AG129: 61 | AH129: 55 | AI129: 55 | AJ129: 60 | AK129: 55 | AL129: 64 | AM129: 64 | AN129: 65
A130: W | B130: 0 | C130: 0 | D130: 0 | E130: 0 | F130: 0 | G130: 0 | H130: 0 | I130: 0 | J130: 0 | K130: 0 | L130: 0 | M130: 0 | N130: 0 | O130: 0 | P130: 0 | Q130: 0 | R130: 0 | S130: 0 | T130: 0 | U130: 0 | V130: 0 | W130: 0 | X130: 0 | Y130: 0 | Z130: 0 | AA130: 0 | AB130: 0 | AC130: 0 | AD130: 0 | AE130: 0 | AF130: 0 | AG130: 0 | AH130: 0 | AI130: 0 | AJ130: 0 | AK130: 0 | AL130: 0 | AM130: 0 | AN130: 0
A131: X | B131: 14 | C131: 14 | D131: 9 | E131: 21 | F131: 21 | G131: 24 | H131: 14 | I131: 22 | J131: 12 | K131: 13 | L131: 10 | M131: 35 | N131: 27 | O131: 31 | P131: 24 | Q131: 18 | R131: 9 | S131: 20 | T131: 30 | U131: 12 | V131: 22 | W131: 28 | X131: 8 | Y131: 14 | Z131: 32 | AA131: 57 | AB131: 53 | AC131: 15 | AD131: 34 | AE131: 57 | AF131: 55 | AG131: 29 | AH131: 55 | AI131: 56 | AJ131: 58 | AK131: 59 | AL131: 31 | AM131: 14 | AN131: 10
A132: Z | B132: 0 | C132: 0 | D132: 0 | E132: 0 | F132: 0 | G132: 0 | H132: 0 | I132: 0 | J132: 0 | K132: 0 | L132: 0 | M132: 0 | N132: 0 | O132: 0 | P132: 0 | Q132: 0 | R132: 0 | S132: 0 | T132: 0 | U132: 0 | V132: 0 | W132: 0 | X132: 0 | Y132: 0 | Z132: 0 | AA132: 0 | AB132: 0 | AC132: 0 | AD132: 0 | AE132: 0 | AF132: 0 | AG132: 0 | AH132: 0 | AI132: 0 | AJ132: 0 | AK132: 0 | AL132: 0 | AM132: 0 | AN132: 0
A133: Grand Total | B133: 2355 | C133: 2353 | D133: 1945 | E133: 2024 | F133: 1953 | G133: 1783 | H133: 1956 | I133: 2013 | J133: 1971 | K133: 1982 | L133: 1945 | M133: 2041 | N133: 1982 | O133: 2028 | P133: 1989 | Q133: 1936 | R133: 1926 | S133: 1953 | T133: 2034 | U133: 1911 | V133: 1906 | W133: 2017 | X133: 1936 | Y133: 1933 | Z133: 1994 | AA133: 1954 | AB133: 1902 | AC133: 1769 | AD133: 1906 | AE133: 1941 | AF133: 1906 | AG133: 2037 | AH133: 1919 | AI133: 1932 | AJ133: 1962 | AK133: 1958 | AL133: 2327 | AM133: 1973 | AN133: 2300
A134: Size (bp) | B134: 3538396 | C134: 3527325 | D134: 2720730 | E134: 3012117 | F134: 2834215 | G134: 2553406 | H134: 2822491 | I134: 2906126 | J134: 2817683 | K134: 2860595 | L134: 2731087 | M134: 2988783 | N134: 2892126 | O134: 2951239 | P134: 3004659 | Q134: 2800339 | R134: 2761310 | S134: 2839739 | T134: 2970793 | U134: 2721427 | V134: 2789796 | W134: 3088982 | X134: 2693209 | Y134: 2848194 | Z134: 2901424 | AA134: 3008305 | AB134: 2879332 | AC134: 2480628 | AD134: 2778016 | AE134: 2964368 | AF134: 2884826 | AG134: 2979979 | AH134: 2912775 | AI134: 2959005 | AJ134: 3023784 | AK134: 3005175 | AL134: 3442529 | AM134: 2853021 | AN134: 3367806
A135: A | B135: 0 | C135: 0 | D135: 0 | E135: 0 | F135: 0 | G135: 0 | H135: 0 | I135: 0 | J135: 0 | K135: 0 | L135: 0 | M135: 0 | N135: 0 | O135: 0 | P135: 0 | Q135: 0 | R135: 0 | S135: 0 | T135: 0 | U135: 0 | V135: 0 | W135: 0 | X135: 0 | Y135: 0 | Z135: 0 | AA135: 0 | AB135: 0 | AC135: 0 | AD135: 0 | AE135: 0 | AF135: 0 | AG135: 0 | AH135: 0 | AI135: 0 | AJ135: 0 | AK135: 0 | AL135: 0 | AM135: 0 | AN135: 0
A136: AT | B136: 0 | C136: 0 | D136: 0 | E136: 0 | F136: 0 | G136: 0 | H136: 0 | I136: 0 | J136: 0 | K136: 0 | L136: 0 | M136: 0 | N136: 0 | O136: 0 | P136: 0 | Q136: 0 | R136: 0 | S136: 0 | T136: 0 | U136: 0 | V136: 0 | W136: 0 | X136: 0 | Y136: 0 | Z136: 0 | AA136: 0 | AB136: 0 | AC136: 0 | AD136: 0 | AE136: 0 | AF136: 0 | AG136: 0 | AH136: 0 | AI136: 0 | AJ136: 0 | AK136: 0 | AL136: 0 | AM136: 0 | AN136: 0
A137: Sum of all E | B137: =SUM(B11:B39) -> 257 | C137: =SUM(C11:C39) -> 257 | D137: =SUM(D11:D39) -> 207 | E137: =SUM(E11:E39) -> 212 | F137: =SUM(F11:F39) -> 211 | G137: =SUM(G11:G39) -> 173 | H137: =SUM(H11:H39) -> 208 | I137: =SUM(I11:I39) -> 213 | J137: =SUM(J11:J39) -> 209 | K137: =SUM(K11:K39) -> 208 | L137: =SUM(L11:L39) -> 209 | M137: =SUM(M11:M39) -> 212 | N137: =SUM(N11:N39) -> 210 | O137: =SUM(O11:O39) -> 213 | P137: =SUM(P11:P39) -> 211 | Q137: =SUM(Q11:Q39) -> 207 | R137: =SUM(R11:R39) -> 208 | S137: =SUM(S11:S39) -> 209 | T137: =SUM(T11:T39) -> 213 | U137: =SUM(U11:U39) -> 208 | V137: =SUM(V11:V39) -> 205 | W137: =SUM(W11:W39) -> 214 | X137: =SUM(X11:X39) -> 210 | Y137: =SUM(Y11:Y39) -> 210 | Z137: =SUM(Z11:Z39) -> 212 | AA137: =SUM(AA11:AA39) -> 176 | AB137: =SUM(AB11:AB39) -> 173 | AC137: =SUM(AC11:AC39) -> 176 | AD137: =SUM(AD11:AD39) -> 177 | AE137: =SUM(AE11:AE39) -> 176 | AF137: =SUM(AF11:AF39) -> 176 | AG137: =SUM(AG11:AG39) -> 213 | AH137: =SUM(AH11:AH39) -> 176 | AI137: =SUM(AI11:AI39) -> 176 | AJ137: =SUM(AJ11:AJ39) -> 176 | AK137: =SUM(AK11:AK39) -> 176 | AL137: =SUM(AL11:AL39) -> 266 | AM137: =SUM(AM11:AM39) -> 208 | AN137: =SUM(AN11:AN39) -> 254
A143: Genes | B143: 3344 | C143: 3327 | D143: 2553 | E143: 2955 | F143: 2725 | G143: 2512 | H143: 2701 | I143: 2796 | J143: 2670 | K143: 2722 | L143: 2615 | M143: 2902 | N143: 2858 | O143: 2844 | P143: 2969 | Q143: 2690 | R143: 2596 | S143: 2745 | T143: 2865 | U143: 2583 | V143: 2731 | W143: 3051 | X143: 2553 | Y143: 2733 | Z143: 2838 | AA143: 2961 | AB143: 2823 | AC143: 2374 | AD143: 2714 | AE143: 2916 | AF143: 2836 | AG143: 2881 | AH143: 2871 | AI143: 2915 | AJ143: 2992 | AK143: 2955 | AL143: 3303 | AM143: 2731 | AN143: 3161
A144: Size (bp) | B144: 3538396 | C144: 3527325 | D144: 2720730 | E144: 3012117 | F144: 2834215 | G144: 2553406 | H144: 2822491 | I144: 2906126 | J144: 2817683 | K144: 2860595 | L144: 2731087 | M144: 2988783 | N144: 2892126 | O144: 2951239 | P144: 3004659 | Q144: 2800339 | R144: 2761310 | S144: 2839739 | T144: 2970793 | U144: 2721427 | V144: 2789796 | W144: 3088982 | X144: 2693209 | Y144: 2848194 | Z144: 2901424 | AA144: 3008305 | AB144: 2879332 | AC144: 2480628 | AD144: 2778016 | AE144: 2964368 | AF144: 2884826 | AG144: 2979979 | AH144: 2912775 | AI144: 2959005 | AJ144: 3023784 | AK144: 3005175 | AL144: 3442529 | AM144: 2853021 | AN144: 3367806
A145: C | B145: 101 | C145: 101 | D145: 87 | E145: 87 | F145: 89 | G145: 54 | H145: 82 | I145: 88 | J145: 87 | K145: 87 | L145: 87 | M145: 87 | N145: 86 | O145: 88 | P145: 87 | Q145: 82 | R145: 86 | S145: 85 | T145: 88 | U145: 88 | V145: 86 | W145: 86 | X145: 88 | Y145: 88 | Z145: 88 | AA145: 56 | AB145: 55 | AC145: 55 | AD145: 60 | AE145: 55 | AF145: 55 | AG145: 88 | AH145: 55 | AI145: 55 | AJ145: 57 | AK145: 56 | AL145: 87 | AM145: 82 | AN145: 86
A146: CE | B146: 1 | C146: 1 | D146: 0 | E146: 0 | F146: 0 | G146: 0 | H146: 0 | I146: 0 | J146: 0 | K146: 0 | L146: 0 | M146: 0 | N146: 0 | O146: 0 | P146: 0 | Q146: 0 | R146: 0 | S146: 0 | T146: 0 | U146: 0 | V146: 0 | W146: 0 | X146: 0 | Y146: 0 | Z146: 0 | AA146: 0 | AB146: 0 | AC146: 0 | AD146: 0 | AE146: 0 | AF146: 0 | AG146: 0 | AH146: 0 | AI146: 0 | AJ146: 0 | AK146: 0 | AL146: 1 | AM146: 0 | AN146: 1
A147: CH | B147: 1 | C147: 1 | D147: 2 | E147: 2 | F147: 2 | G147: 1 | H147: 2 | I147: 2 | J147: 2 | K147: 2 | L147: 2 | M147: 2 | N147: 2 | O147: 2 | P147: 2 | Q147: 2 | R147: 2 | S147: 2 | T147: 2 | U147: 2 | V147: 2 | W147: 2 | X147: 2 | Y147: 2 | Z147: 2 | AA147: 1 | AB147: 1 | AC147: 1 | AD147: 1 | AE147: 1 | AF147: 1 | AG147: 2 | AH147: 1 | AI147: 1 | AJ147: 1 | AK147: 1 | AL147: 1 | AM147: 2 | AN147: 1
A148: CHR | B148: 2 | C148: 2 | D148: 1 | E148: 1 | F148: 1 | G148: 2 | H148: 1 | I148: 1 | J148: 1 | K148: 1 | L148: 1 | M148: 1 | N148: 1 | O148: 1 | P148: 1 | Q148: 1 | R148: 1 | S148: 1 | T148: 1 | U148: 1 | V148: 1 | W148: 1 | X148: 1 | Y148: 1 | Z148: 1 | AA148: 3 | AB148: 3 | AC148: 0 | AD148: 2 | AE148: 3 | AF148: 3 | AG148: 1 | AH148: 3 | AI148: 3 | AJ148: 3 | AK148: 3 | AL148: 3 | AM148: 1 | AN148: 2
A149: CI | B149: 0 | C149: 0 | D149: 0 | E149: 0 | F149: 0 | G149: 0 | H149: 0 | I149: 0 | J149: 0 | K149: 0 | L149: 0 | M149: 0 | N149: 0 | O149: 0 | P149: 0 | Q149: 0 | R149: 0 | S149: 0 | T149: 0 | U149: 0 | V149: 0 | W149: 0 | X149: 0 | Y149: 0 | Z149: 0 | AA149: 0 | AB149: 0 | AC149: 0 | AD149: 0 | AE149: 0 | AF149: 0 | AG149: 0 | AH149: 0 | AI149: 0 | AJ149: 0 | AK149: 0 | AL149: 0 | AM149: 0 | AN149: 0
A150: CIR | B150: 2 | C150: 2 | D150: 1 | E150: 1 | F150: 1 | G150: 3 | H150: 1 | I150: 1 | J150: 1 | K150: 1 | L150: 1 | M150: 1 | N150: 1 | O150: 1 | P150: 1 | Q150: 1 | R150: 1 | S150: 1 | T150: 1 | U150: 1 | V150: 1 | W150: 1 | X150: 1 | Y150: 1 | Z150: 1 | AA150: 3 | AB150: 3 | AC150: 3 | AD150: 3 | AE150: 3 | AF150: 3 | AG150: 1 | AH150: 3 | AI150: 3 | AJ150: 3 | AK150: 3 | AL150: 2 | AM150: 1 | AN150: 2
A151: CO | B151: 2 | C151: 2 | D151: 2 | E151: 2 | F151: 2 | G151: 0 | H151: 2 | I151: 2 | J151: 2 | K151: 2 | L151: 2 | M151: 2 | N151: 2 | O151: 2 | P151: 2 | Q151: 2 | R151: 2 | S151: 2 | T151: 2 | U151: 2 | V151: 2 | W151: 2 | X151: 2 | Y151: 2 | Z151: 2 | AA151: 0 | AB151: 0 | AC151: 0 | AD151: 0 | AE151: 0 | AF151: 0 | AG151: 2 | AH151: 0 | AI151: 0 | AJ151: 0 | AK151: 0 | AL151: 2 | AM151: 2 | AN151: 2
A152: COP | B152: 0 | C152: 0 | D152: 0 | E152: 0 | F152: 0 | G152: 0 | H152: 0 | I152: 0 | J152: 0 | K152: 0 | L152: 0 | M152: 0 | N152: 0 | O152: 0 | P152: 0 | Q152: 0 | R152: 0 | S152: 0 | T152: 0 | U152: 0 | V152: 0 | W152: 0 | X152: 0 | Y152: 0 | Z152: 0 | AA152: 0 | AB152: 0 | AC152: 0 | AD152: 0 | AE152: 0 | AF152: 0 | AG152: 0 | AH152: 0 | AI152: 0 | AJ152: 0 | AK152: 0 | AL152: 0 | AM152: 0 | AN152: 0
A153: CP | B153: 2 | C153: 2 | D153: 2 | E153: 3 | F153: 3 | G153: 2 | H153: 3 | I153: 3 | J153: 3 | K153: 3 | L153: 2 | M153: 3 | N153: 3 | O153: 3 | P153: 3 | Q153: 3 | R153: 2 | S153: 2 | T153: 3 | U153: 2 | V153: 2 | W153: 3 | X153: 3 | Y153: 2 | Z153: 2 | AA153: 2 | AB153: 2 | AC153: 2 | AD153: 2 | AE153: 2 | AF153: 2 | AG153: 3 | AH153: 2 | AI153: 2 | AJ153: 2 | AK153: 2 | AL153: 2 | AM153: 3 | AN153: 2
A154: CQ | B154: 0 | C154: 0 | D154: 2 | E154: 2 | F154: 2 | G154: 0 | H154: 2 | I154: 2 | J154: 2 | K154: 2 | L154: 2 | M154: 2 | N154: 2 | O154: 2 | P154: 2 | Q154: 2 | R154: 2 | S154: 2 | T154: 2 | U154: 2 | V154: 2 | W154: 2 | X154: 2 | Y154: 2 | Z154: 2 | AA154: 0 | AB154: 0 | AC154: 0 | AD154: 0 | AE154: 0 | AF154: 0 | AG154: 2 | AH154: 0 | AI154: 0 | AJ154: 0 | AK154: 0 | AL154: 2 | AM154: 2 | AN154: 2
A155: CR | B155: 5 | C155: 5 | D155: 3 | E155: 3 | F155: 3 | G155: 4 | H155: 2 | I155: 3 | J155: 3 | K155: 3 | L155: 3 | M155: 3 | N155: 3 | O155: 3 | P155: 3 | Q155: 2 | R155: 3 | S155: 3 | T155: 3 | U155: 3 | V155: 3 | W155: 3 | X155: 3 | Y155: 3 | Z155: 3 | AA155: 3 | AB155: 3 | AC155: 4 | AD155: 4 | AE155: 3 | AF155: 3 | AG155: 3 | AH155: 3 | AI155: 3 | AJ155: 3 | AK155: 3 | AL155: 3 | AM155: 2 | AN155: 4
A156: CT | B156: 0 | C156: 0 | D156: 0 | E156: 0 | F156: 0 | G156: 0 | H156: 0 | I156: 0 | J156: 0 | K156: 0 | L156: 0 | M156: 0 | N156: 0 | O156: 0 | P156: 0 | Q156: 0 | R156: 0 | S156: 0 | T156: 0 | U156: 0 | V156: 0 | W156: 0 | X156: 0 | Y156: 0 | Z156: 0 | AA156: 0 | AB156: 0 | AC156: 0 | AD156: 0 | AE156: 0 | AF156: 0 | AG156: 0 | AH156: 0 | AI156: 0 | AJ156: 0 | AK156: 0 | AL156: 0 | AM156: 0 | AN156: 0
A157: Sum of all C | B157: =SUM(B160:B171) -> 116 | C157: =SUM(C160:C171) -> 116 | D157: =SUM(D160:D171) -> 100 | E157: =SUM(E160:E171) -> 101 | F157: =SUM(F160:F171) -> 103 | G157: =SUM(G160:G171) -> 66 | H157: =SUM(H160:H171) -> 95 | I157: =SUM(I160:I171) -> 102 | J157: =SUM(J160:J171) -> 101 | K157: =SUM(K160:K171) -> 101 | L157: =SUM(L160:L171) -> 100 | M157: =SUM(M160:M171) -> 101 | N157: =SUM(N160:N171) -> 100 | O157: =SUM(O160:O171) -> 102 | P157: =SUM(P160:P171) -> 101 | Q157: =SUM(Q160:Q171) -> 95 | R157: =SUM(R160:R171) -> 99 | S157: =SUM(S160:S171) -> 98 | T157: =SUM(T160:T171) -> 102 | U157: =SUM(U160:U171) -> 101 | V157: =SUM(V160:V171) -> 99 | W157: =SUM(W160:W171) -> 100 | X157: =SUM(X160:X171) -> 102 | Y157: =SUM(Y160:Y171) -> 101 | Z157: =SUM(Z160:Z171) -> 101 | AA157: =SUM(AA160:AA171) -> 68 | AB157: =SUM(AB160:AB171) -> 67 | AC157: =SUM(AC160:AC171) -> 65 | AD157: =SUM(AD160:AD171) -> 72 | AE157: =SUM(AE160:AE171) -> 67 | AF157: =SUM(AF160:AF171) -> 67 | AG157: =SUM(AG160:AG171) -> 102 | AH157: =SUM(AH160:AH171) -> 67 | AI157: =SUM(AI160:AI171) -> 67 | AJ157: =SUM(AJ160:AJ171) -> 69 | AK157: =SUM(AK160:AK171) -> 68 | AL157: =SUM(AL160:AL171) -> 103 | AM157: =SUM(AM160:AM171) -> 95 | AN157: =SUM(AN160:AN171) -> 102
A159: Row Labels | B159: E. casseliflavus B72 | C159: E. casseliflavus B79 | D159: E. faecalis B139 | E159: E. faecalis B150 | F159: E. faecalis B168 | G159: E. faecium B466 | H159: E. faecalis B48 | I159: E. faecalis B6 | J159: E. faecalis C106 | K159: E. faecalis C33 | L159: E. faecalis C34 | M159: E. faecalis C379 | N159: E. faecalis R378 | O159: E. faecalis R395 | P159: E. faecalis R61 | Q159: E. faecalis R76 | R159: E. faecalis R95 | S159: E .faecalis W191 | T159: E. faecalis W195 | U159: E. faecalis W314 | V159: E. faecalis W350 | W159: E. faecalis W37 | X159: E .faecalis W41 | Y159: E. faecalis W460 | Z159: E. faecalis W75 | AA159: E. faecium B492 | AB159: E. faecium C12D | AC159: E. faecium C329 | AD159: E. faecium C567 | AE159: E. faecium F11J | AF159: E. faecium H101S2 | AG159: E. faecalis H114S2 | AH159: E. faecium H123S2 | AI159: E. faecium H53S1 | AJ159: E. faecium R337 | AK159: E. faecium R407 | AL159: E. gallinarum G12S | AM159: E. faecalis H120S2 | AN159: E. gallinarum W17
A160: C | B160: 101 | C160: 101 | D160: 87 | E160: 87 | F160: 89 | G160: 54 | H160: 82 | I160: 88 | J160: 87 | K160: 87 | L160: 87 | M160: 87 | N160: 86 | O160: 88 | P160: 87 | Q160: 82 | R160: 86 | S160: 85 | T160: 88 | U160: 88 | V160: 86 | W160: 86 | X160: 88 | Y160: 88 | Z160: 88 | AA160: 56 | AB160: 55 | AC160: 55 | AD160: 60 | AE160: 55 | AF160: 55 | AG160: 88 | AH160: 55 | AI160: 55 | AJ160: 57 | AK160: 56 | AL160: 87 | AM160: 82 | AN160: 86
A161: CE | B161: 1 | C161: 1 | D161: 0 | E161: 0 | F161: 0 | G161: 0 | H161: 0 | I161: 0 | J161: 0 | K161: 0 | L161: 0 | M161: 0 | N161: 0 | O161: 0 | P161: 0 | Q161: 0 | R161: 0 | S161: 0 | T161: 0 | U161: 0 | V161: 0 | W161: 0 | X161: 0 | Y161: 0 | Z161: 0 | AA161: 0 | AB161: 0 | AC161: 0 | AD161: 0 | AE161: 0 | AF161: 0 | AG161: 0 | AH161: 0 | AI161: 0 | AJ161: 0 | AK161: 0 | AL161: 1 | AM161: 0 | AN161: 1
A162: CH | B162: 1 | C162: 1 | D162: 2 | E162: 2 | F162: 2 | G162: 1 | H162: 2 | I162: 2 | J162: 2 | K162: 2 | L162: 2 | M162: 2 | N162: 2 | O162: 2 | P162: 2 | Q162: 2 | R162: 2 | S162: 2 | T162: 2 | U162: 2 | V162: 2 | W162: 2 | X162: 2 | Y162: 2 | Z162: 2 | AA162: 1 | AB162: 1 | AC162: 1 | AD162: 1 | AE162: 1 | AF162: 1 | AG162: 2 | AH162: 1 | AI162: 1 | AJ162: 1 | AK162: 1 | AL162: 1 | AM162: 2 | AN162: 1
A163: CHR | B163: 2 | C163: 2 | D163: 1 | E163: 1 | F163: 1 | G163: 2 | H163: 1 | I163: 1 | J163: 1 | K163: 1 | L163: 1 | M163: 1 | N163: 1 | O163: 1 | P163: 1 | Q163: 1 | R163: 1 | S163: 1 | T163: 1 | U163: 1 | V163: 1 | W163: 1 | X163: 1 | Y163: 1 | Z163: 1 | AA163: 3 | AB163: 3 | AC163: 0 | AD163: 2 | AE163: 3 | AF163: 3 | AG163: 1 | AH163: 3 | AI163: 3 | AJ163: 3 | AK163: 3 | AL163: 3 | AM163: 1 | AN163: 2
A164: CI | B164: 0 | C164: 0 | D164: 0 | E164: 0 | F164: 0 | G164: 0 | H164: 0 | I164: 0 | J164: 0 | K164: 0 | L164: 0 | M164: 0 | N164: 0 | O164: 0 | P164: 0 | Q164: 0 | R164: 0 | S164: 0 | T164: 0 | U164: 0 | V164: 0 | W164: 0 | X164: 0 | Y164: 0 | Z164: 0 | AA164: 0 | AB164: 0 | AC164: 0 | AD164: 0 | AE164: 0 | AF164: 0 | AG164: 0 | AH164: 0 | AI164: 0 | AJ164: 0 | AK164: 0 | AL164: 0 | AM164: 0 | AN164: 0
A165: CIR | B165: 2 | C165: 2 | D165: 1 | E165: 1 | F165: 1 | G165: 3 | H165: 1 | I165: 1 | J165: 1 | K165: 1 | L165: 1 | M165: 1 | N165: 1 | O165: 1 | P165: 1 | Q165: 1 | R165: 1 | S165: 1 | T165: 1 | U165: 1 | V165: 1 | W165: 1 | X165: 1 | Y165: 1 | Z165: 1 | AA165: 3 | AB165: 3 | AC165: 3 | AD165: 3 | AE165: 3 | AF165: 3 | AG165: 1 | AH165: 3 | AI165: 3 | AJ165: 3 | AK165: 3 | AL165: 2 | AM165: 1 | AN165: 2
A166: CO | B166: 2 | C166: 2 | D166: 2 | E166: 2 | F166: 2 | G166: 0 | H166: 2 | I166: 2 | J166: 2 | K166: 2 | L166: 2 | M166: 2 | N166: 2 | O166: 2 | P166: 2 | Q166: 2 | R166: 2 | S166: 2 | T166: 2 | U166: 2 | V166: 2 | W166: 2 | X166: 2 | Y166: 2 | Z166: 2 | AA166: 0 | AB166: 0 | AC166: 0 | AD166: 0 | AE166: 0 | AF166: 0 | AG166: 2 | AH166: 0 | AI166: 0 | AJ166: 0 | AK166: 0 | AL166: 2 | AM166: 2 | AN166: 2
A167: COP | B167: 0 | C167: 0 | D167: 0 | E167: 0 | F167: 0 | G167: 0 | H167: 0 | I167: 0 | J167: 0 | K167: 0 | L167: 0 | M167: 0 | N167: 0 | O167: 0 | P167: 0 | Q167: 0 | R167: 0 | S167: 0 | T167: 0 | U167: 0 | V167: 0 | W167: 0 | X167: 0 | Y167: 0 | Z167: 0 | AA167: 0 | AB167: 0 | AC167: 0 | AD167: 0 | AE167: 0 | AF167: 0 | AG167: 0 | AH167: 0 | AI167: 0 | AJ167: 0 | AK167: 0 | AL167: 0 | AM167: 0 | AN167: 0
A168: CP | B168: 2 | C168: 2 | D168: 2 | E168: 3 | F168: 3 | G168: 2 | H168: 3 | I168: 3 | J168: 3 | K168: 3 | L168: 2 | M168: 3 | N168: 3 | O168: 3 | P168: 3 | Q168: 3 | R168: 2 | S168: 2 | T168: 3 | U168: 2 | V168: 2 | W168: 3 | X168: 3 | Y168: 2 | Z168: 2 | AA168: 2 | AB168: 2 | AC168: 2 | AD168: 2 | AE168: 2 | AF168: 2 | AG168: 3 | AH168: 2 | AI168: 2 | AJ168: 2 | AK168: 2 | AL168: 2 | AM168: 3 | AN168: 2
A169: CQ | B169: 0 | C169: 0 | D169: 2 | E169: 2 | F169: 2 | G169: 0 | H169: 2 | I169: 2 | J169: 2 | K169: 2 | L169: 2 | M169: 2 | N169: 2 | O169: 2 | P169: 2 | Q169: 2 | R169: 2 | S169: 2 | T169: 2 | U169: 2 | V169: 2 | W169: 2 | X169: 2 | Y169: 2 | Z169: 2 | AA169: 0 | AB169: 0 | AC169: 0 | AD169: 0 | AE169: 0 | AF169: 0 | AG169: 2 | AH169: 0 | AI169: 0 | AJ169: 0 | AK169: 0 | AL169: 2 | AM169: 2 | AN169: 2
A170: CR | B170: 5 | C170: 5 | D170: 3 | E170: 3 | F170: 3 | G170: 4 | H170: 2 | I170: 3 | J170: 3 | K170: 3 | L170: 3 | M170: 3 | N170: 3 | O170: 3 | P170: 3 | Q170: 2 | R170: 3 | S170: 3 | T170: 3 | U170: 3 | V170: 3 | W170: 3 | X170: 3 | Y170: 3 | Z170: 3 | AA170: 3 | AB170: 3 | AC170: 4 | AD170: 4 | AE170: 3 | AF170: 3 | AG170: 3 | AH170: 3 | AI170: 3 | AJ170: 3 | AK170: 3 | AL170: 3 | AM170: 2 | AN170: 4
A171: CT | B171: 0 | C171: 0 | D171: 0 | E171: 0 | F171: 0 | G171: 0 | H171: 0 | I171: 0 | J171: 0 | K171: 0 | L171: 0 | M171: 0 | N171: 0 | O171: 0 | P171: 0 | Q171: 0 | R171: 0 | S171: 0 | T171: 0 | U171: 0 | V171: 0 | W171: 0 | X171: 0 | Y171: 0 | Z171: 0 | AA171: 0 | AB171: 0 | AC171: 0 | AD171: 0 | AE171: 0 | AF171: 0 | AG171: 0 | AH171: 0 | AI171: 0 | AJ171: 0 | AK171: 0 | AL171: 0 | AM171: 0 | AN171: 0
A173: Genes | B173: 3344 | C173: 3327 | D173: 2553 | E173: 2955 | F173: 2725 | G173: 2512 | H173: 2701 | I173: 2796 | J173: 2670 | K173: 2722 | L173: 2615 | M173: 2902 | N173: 2858 | O173: 2844 | P173: 2969 | Q173: 2690 | R173: 2596 | S173: 2745 | T173: 2865 | U173: 2583 | V173: 2731 | W173: 3051 | X173: 2553 | Y173: 2733 | Z173: 2838 | AA173: 2961 | AB173: 2823 | AC173: 2374 | AD173: 2714 | AE173: 2916 | AF173: 2836 | AG173: 2881 | AH173: 2871 | AI173: 2915 | AJ173: 2992 | AK173: 2955 | AL173: 3303 | AM173: 2731 | AN173: 3161
A174: Size (bp) | B174: 3538396 | C174: 3527325 | D174: 2720730 | E174: 3012117 | F174: 2834215 | G174: 2553406 | H174: 2822491 | I174: 2906126 | J174: 2817683 | K174: 2860595 | L174: 2731087 | M174: 2988783 | N174: 2892126 | O174: 2951239 | P174: 3004659 | Q174: 2800339 | R174: 2761310 | S174: 2839739 | T174: 2970793 | U174: 2721427 | V174: 2789796 | W174: 3088982 | X174: 2693209 | Y174: 2848194 | Z174: 2901424 | AA174: 3008305 | AB174: 2879332 | AC174: 2480628 | AD174: 2778016 | AE174: 2964368 | AF174: 2884826 | AG174: 2979979 | AH174: 2912775 | AI174: 2959005 | AJ174: 3023784 | AK174: 3005175 | AL174: 3442529 | AM174: 2853021 | AN174: 3367806
A175: Sum of all D | B175: =SUM(B178:B183) -> 31 | C175: =SUM(C178:C183) -> 31 | D175: =SUM(D178:D183) -> 26 | E175: =SUM(E178:E183) -> 26 | F175: =SUM(F178:F183) -> 25 | G175: =SUM(G178:G183) -> 25 | H175: =SUM(H178:H183) -> 26 | I175: =SUM(I178:I183) -> 26 | J175: =SUM(J178:J183) -> 26 | K175: =SUM(K178:K183) -> 26 | L175: =SUM(L178:L183) -> 25 | M175: =SUM(M178:M183) -> 26 | N175: =SUM(N178:N183) -> 26 | O175: =SUM(O178:O183) -> 26 | P175: =SUM(P178:P183) -> 26 | Q175: =SUM(Q178:Q183) -> 25 | R175: =SUM(R178:R183) -> 25 | S175: =SUM(S178:S183) -> 25 | T175: =SUM(T178:T183) -> 26 | U175: =SUM(U178:U183) -> 25 | V175: =SUM(V178:V183) -> 26 | W175: =SUM(W178:W183) -> 26 | X175: =SUM(X178:X183) -> 25 | Y175: =SUM(Y178:Y183) -> 25 | Z175: =SUM(Z178:Z183) -> 26 | AA175: =SUM(AA178:AA183) -> 25 | AB175: =SUM(AB178:AB183) -> 25 | AC175: =SUM(AC178:AC183) -> 25 | AD175: =SUM(AD178:AD183) -> 26 | AE175: =SUM(AE178:AE183) -> 25 | AF175: =SUM(AF178:AF183) -> 25 | AG175: =SUM(AG178:AG183) -> 26 | AH175: =SUM(AH178:AH183) -> 25 | AI175: =SUM(AI178:AI183) -> 25 | AJ175: =SUM(AJ178:AJ183) -> 25 | AK175: =SUM(AK178:AK183) -> 25 | AL175: =SUM(AL178:AL183) -> 31 | AM175: =SUM(AM178:AM183) -> 26 | AN175: =SUM(AN178:AN183) -> 32
A177: Row Labels | B177: E. casseliflavus B72 | C177: E. casseliflavus B79 | D177: E. faecalis B139 | E177: E. faecalis B150 | F177: E. faecalis B168 | G177: E. faecium B466 | H177: E. faecalis B48 | I177: E. faecalis B6 | J177: E. faecalis C106 | K177: E. faecalis C33 | L177: E. faecalis C34 | M177: E. faecalis C379 | N177: E. faecalis R378 | O177: E. faecalis R395 | P177: E. faecalis R61 | Q177: E. faecalis R76 | R177: E. faecalis R95 | S177: E .faecalis W191 | T177: E. faecalis W195 | U177: E. faecalis W314 | V177: E. faecalis W350 | W177: E. faecalis W37 | X177: E .faecalis W41 | Y177: E. faecalis W460 | Z177: E. faecalis W75 | AA177: E. faecium B492 | AB177: E. faecium C12D | AC177: E. faecium C329 | AD177: E. faecium C567 | AE177: E. faecium F11J | AF177: E. faecium H101S2 | AG177: E. faecalis H114S2 | AH177: E. faecium H123S2 | AI177: E. faecium H53S1 | AJ177: E. faecium R337 | AK177: E. faecium R407 | AL177: E. gallinarum G12S | AM177: E. faecalis H120S2 | AN177: E. gallinarum W17
A178: D | B178: 26 | C178: 26 | D178: 22 | E178: 22 | F178: 21 | G178: 21 | H178: 22 | I178: 22 | J178: 22 | K178: 22 | L178: 21 | M178: 22 | N178: 22 | O178: 22 | P178: 22 | Q178: 21 | R178: 21 | S178: 21 | T178: 22 | U178: 21 | V178: 22 | W178: 22 | X178: 21 | Y178: 21 | Z178: 22 | AA178: 21 | AB178: 21 | AC178: 21 | AD178: 21 | AE178: 21 | AF178: 21 | AG178: 22 | AH178: 21 | AI178: 21 | AJ178: 21 | AK178: 21 | AL178: 25 | AM178: 22 | AN178: 26
A179: DL | B179: 1 | C179: 1 | D179: 1 | E179: 1 | F179: 1 | G179: 1 | H179: 1 | I179: 1 | J179: 1 | K179: 1 | L179: 1 | M179: 1 | N179: 1 | O179: 1 | P179: 1 | Q179: 1 | R179: 1 | S179: 1 | T179: 1 | U179: 1 | V179: 1 | W179: 1 | X179: 1 | Y179: 1 | Z179: 1 | AA179: 1 | AB179: 1 | AC179: 1 | AD179: 1 | AE179: 1 | AF179: 1 | AG179: 1 | AH179: 1 | AI179: 1 | AJ179: 1 | AK179: 1 | AL179: 1 | AM179: 1 | AN179: 1
A180: DM | B180: 4 | C180: 4 | D180: 3 | E180: 3 | F180: 3 | G180: 3 | H180: 3 | I180: 3 | J180: 3 | K180: 3 | L180: 3 | M180: 3 | N180: 3 | O180: 3 | P180: 3 | Q180: 3 | R180: 3 | S180: 3 | T180: 3 | U180: 3 | V180: 3 | W180: 3 | X180: 3 | Y180: 3 | Z180: 3 | AA180: 3 | AB180: 3 | AC180: 3 | AD180: 3 | AE180: 3 | AF180: 3 | AG180: 3 | AH180: 3 | AI180: 3 | AJ180: 3 | AK180: 3 | AL180: 3 | AM180: 3 | AN180: 3
A181: DMP | B181: 0 | C181: 0 | D181: 0 | E181: 0 | F181: 0 | G181: 0 | H181: 0 | I181: 0 | J181: 0 | K181: 0 | L181: 0 | M181: 0 | N181: 0 | O181: 0 | P181: 0 | Q181: 0 | R181: 0 | S181: 0 | T181: 0 | U181: 0 | V181: 0 | W181: 0 | X181: 0 | Y181: 0 | Z181: 0 | AA181: 0 | AB181: 0 | AC181: 0 | AD181: 1 | AE181: 0 | AF181: 0 | AG181: 0 | AH181: 0 | AI181: 0 | AJ181: 0 | AK181: 0 | AL181: 0 | AM181: 0 | AN181: 0
A182: DP | B182: 0 | C182: 0 | D182: 0 | E182: 0 | F182: 0 | G182: 0 | H182: 0 | I182: 0 | J182: 0 | K182: 0 | L182: 0 | M182: 0 | N182: 0 | O182: 0 | P182: 0 | Q182: 0 | R182: 0 | S182: 0 | T182: 0 | U182: 0 | V182: 0 | W182: 0 | X182: 0 | Y182: 0 | Z182: 0 | AA182: 0 | AB182: 0 | AC182: 0 | AD182: 0 | AE182: 0 | AF182: 0 | AG182: 0 | AH182: 0 | AI182: 0 | AJ182: 0 | AK182: 0 | AL182: 2 | AM182: 0 | AN182: 2
A183: DZ | B183: 0 | C183: 0 | D183: 0 | E183: 0 | F183: 0 | G183: 0 | H183: 0 | I183: 0 | J183: 0 | K183: 0 | L183: 0 | M183: 0 | N183: 0 | O183: 0 | P183: 0 | Q183: 0 | R183: 0 | S183: 0 | T183: 0 | U183: 0 | V183: 0 | W183: 0 | X183: 0 | Y183: 0 | Z183: 0 | AA183: 0 | AB183: 0 | AC183: 0 | AD183: 0 | AE183: 0 | AF183: 0 | AG183: 0 | AH183: 0 | AI183: 0 | AJ183: 0 | AK183: 0 | AL183: 0 | AM183: 0 | AN183: 0
A191: Genes | B191: 3344 | C191: 3327 | D191: 2553 | E191: 2955 | F191: 2725 | G191: 2512 | H191: 2701 | I191: 2796 | J191: 2670 | K191: 2722 | L191: 2615 | M191: 2902 | N191: 2858 | O191: 2844 | P191: 2969 | Q191: 2690 | R191: 2596 | S191: 2745 | T191: 2865 | U191: 2583 | V191: 2731 | W191: 3051 | X191: 2553 | Y191: 2733 | Z191: 2838 | AA191: 2961 | AB191: 2823 | AC191: 2374 | AD191: 2714 | AE191: 2916 | AF191: 2836 | AG191: 2881 | AH191: 2871 | AI191: 2915 | AJ191: 2992 | AK191: 2955 | AL191: 3303 | AM191: 2731 | AN191: 3161
A192: Size (bp) | B192: 3538396 | C192: 3527325 | D192: 2720730 | E192: 3012117 | F192: 2834215 | G192: 2553406 | H192: 2822491 | I192: 2906126 | J192: 2817683 | K192: 2860595 | L192: 2731087 | M192: 2988783 | N192: 2892126 | O192: 2951239 | P192: 3004659 | Q192: 2800339 | R192: 2761310 | S192: 2839739 | T192: 2970793 | U192: 2721427 | V192: 2789796 | W192: 3088982 | X192: 2693209 | Y192: 2848194 | Z192: 2901424 | AA192: 3008305 | AB192: 2879332 | AC192: 2480628 | AD192: 2778016 | AE192: 2964368 | AF192: 2884826 | AG192: 2979979 | AH192: 2912775 | AI192: 2959005 | AJ192: 3023784 | AK192: 3005175 | AL192: 3442529 | AM192: 2853021 | AN192: 3367806
A193: Sum of all E | B193: =SUM(B196:B208) -> 212 | C193: =SUM(C196:C208) -> 212 | D193: =SUM(D196:D208) -> 168 | E193: =SUM(E196:E208) -> 172 | F193: =SUM(F196:F208) -> 172 | G193: =SUM(G196:G208) -> 136 | H193: =SUM(H196:H208) -> 169 | I193: =SUM(I196:I208) -> 173 | J193: =SUM(J196:J208) -> 169 | K193: =SUM(K196:K208) -> 168 | L193: =SUM(L196:L208) -> 171 | M193: =SUM(M196:M208) -> 172 | N193: =SUM(N196:N208) -> 170 | O193: =SUM(O196:O208) -> 173 | P193: =SUM(P196:P208) -> 171 | Q193: =SUM(Q196:Q208) -> 169 | R193: =SUM(R196:R208) -> 170 | S193: =SUM(S196:S208) -> 171 | T193: =SUM(T196:T208) -> 173 | U193: =SUM(U196:U208) -> 170 | V193: =SUM(V196:V208) -> 166 | W193: =SUM(W196:W208) -> 174 | X193: =SUM(X196:X208) -> 171 | Y193: =SUM(Y196:Y208) -> 172 | Z193: =SUM(Z196:Z208) -> 173 | AA193: =SUM(AA196:AA208) -> 139 | AB193: =SUM(AB196:AB208) -> 136 | AC193: =SUM(AC196:AC208) -> 141 | AD193: =SUM(AD196:AD208) -> 139 | AE193: =SUM(AE196:AE208) -> 139 | AF193: =SUM(AF196:AF208) -> 139 | AG193: =SUM(AG196:AG208) -> 173 | AH193: =SUM(AH196:AH208) -> 139 | AI193: =SUM(AI196:AI208) -> 139 | AJ193: =SUM(AJ196:AJ208) -> 139 | AK193: =SUM(AK196:AK208) -> 139 | AL193: =SUM(AL196:AL208) -> 220 | AM193: =SUM(AM196:AM208) -> 169 | AN193: =SUM(AN196:AN208) -> 207
A195: Row Labels | B195: E. casseliflavus B72 | C195: E. casseliflavus B79 | D195: E. faecalis B139 | E195: E. faecalis B150 | F195: E. faecalis B168 | G195: E. faecium B466 | H195: E. faecalis B48 | I195: E. faecalis B6 | J195: E. faecalis C106 | K195: E. faecalis C33 | L195: E. faecalis C34 | M195: E. faecalis C379 | N195: E. faecalis R378 | O195: E. faecalis R395 | P195: E. faecalis R61 | Q195: E. faecalis R76 | R195: E. faecalis R95 | S195: E .faecalis W191 | T195: E. faecalis W195 | U195: E. faecalis W314 | V195: E. faecalis W350 | W195: E. faecalis W37 | X195: E .faecalis W41 | Y195: E. faecalis W460 | Z195: E. faecalis W75 | AA195: E. faecium B492 | AB195: E. faecium C12D | AC195: E. faecium C329 | AD195: E. faecium C567 | AE195: E. faecium F11J | AF195: E. faecium H101S2 | AG195: E. faecalis H114S2 | AH195: E. faecium H123S2 | AI195: E. faecium H53S1 | AJ195: E. faecium R337 | AK195: E. faecium R407 | AL195: E. gallinarum G12S | AM195: E. faecalis H120S2 | AN195: E. gallinarum W17
A196: CE | B196: 1 | C196: 1 | D196: 0 | E196: 0 | F196: 0 | G196: 0 | H196: 0 | I196: 0 | J196: 0 | K196: 0 | L196: 0 | M196: 0 | N196: 0 | O196: 0 | P196: 0 | Q196: 0 | R196: 0 | S196: 0 | T196: 0 | U196: 0 | V196: 0 | W196: 0 | X196: 0 | Y196: 0 | Z196: 0 | AA196: 0 | AB196: 0 | AC196: 0 | AD196: 0 | AE196: 0 | AF196: 0 | AG196: 0 | AH196: 0 | AI196: 0 | AJ196: 0 | AK196: 0 | AL196: 1 | AM196: 0 | AN196: 1
A197: E | B197: 165 | C197: 165 | D197: 144 | E197: 148 | F197: 147 | G197: 110 | H197: 145 | I197: 148 | J197: 145 | K197: 144 | L197: 146 | M197: 147 | N197: 145 | O197: 148 | P197: 147 | Q197: 145 | R197: 145 | S197: 147 | T197: 148 | U197: 145 | V197: 141 | W197: 149 | X197: 146 | Y197: 147 | Z197: 148 | AA197: 111 | AB197: 109 | AC197: 114 | AD197: 112 | AE197: 111 | AF197: 111 | AG197: 148 | AH197: 111 | AI197: 111 | AJ197: 111 | AK197: 111 | AL197: 172 | AM197: 145 | AN197: 164
A198: EF | B198: 5 | C198: 5 | D198: 5 | E198: 5 | F198: 5 | G198: 4 | H198: 5 | I198: 5 | J198: 5 | K198: 5 | L198: 5 | M198: 5 | N198: 5 | O198: 5 | P198: 5 | Q198: 5 | R198: 5 | S198: 5 | T198: 5 | U198: 5 | V198: 5 | W198: 5 | X198: 5 | Y198: 5 | Z198: 5 | AA198: 5 | AB198: 5 | AC198: 5 | AD198: 5 | AE198: 5 | AF198: 5 | AG198: 5 | AH198: 5 | AI198: 5 | AJ198: 5 | AK198: 5 | AL198: 4 | AM198: 5 | AN198: 4
A199: EG | B199: 3 | C199: 3 | D199: 3 | E199: 3 | F199: 3 | G199: 2 | H199: 3 | I199: 3 | J199: 3 | K199: 3 | L199: 3 | M199: 3 | N199: 3 | O199: 3 | P199: 3 | Q199: 3 | R199: 3 | S199: 3 | T199: 3 | U199: 3 | V199: 3 | W199: 3 | X199: 3 | Y199: 3 | Z199: 3 | AA199: 2 | AB199: 2 | AC199: 2 | AD199: 2 | AE199: 2 | AF199: 2 | AG199: 3 | AH199: 2 | AI199: 2 | AJ199: 2 | AK199: 2 | AL199: 6 | AM199: 3 | AN199: 6
A200: EGPR | B200: 0 | C200: 0 | D200: 0 | E200: 0 | F200: 0 | G200: 0 | H200: 0 | I200: 0 | J200: 0 | K200: 0 | L200: 0 | M200: 0 | N200: 0 | O200: 0 | P200: 0 | Q200: 0 | R200: 0 | S200: 0 | T200: 0 | U200: 0 | V200: 0 | W200: 0 | X200: 0 | Y200: 0 | Z200: 0 | AA200: 0 | AB200: 0 | AC200: 0 | AD200: 0 | AE200: 0 | AF200: 0 | AG200: 0 | AH200: 0 | AI200: 0 | AJ200: 0 | AK200: 0 | AL200: 0 | AM200: 0 | AN200: 0
A201: EGR | B201: 1 | C201: 1 | D201: 0 | E201: 0 | F201: 0 | G201: 0 | H201: 0 | I201: 0 | J201: 0 | K201: 0 | L201: 0 | M201: 0 | N201: 0 | O201: 0 | P201: 0 | Q201: 0 | R201: 0 | S201: 0 | T201: 0 | U201: 0 | V201: 0 | W201: 0 | X201: 0 | Y201: 0 | Z201: 0 | AA201: 0 | AB201: 0 | AC201: 0 | AD201: 0 | AE201: 0 | AF201: 0 | AG201: 0 | AH201: 0 | AI201: 0 | AJ201: 0 | AK201: 0 | AL201: 0 | AM201: 0 | AN201: 0
A202: EH | B202: 9 | C202: 9 | D202: 2 | E202: 2 | F202: 2 | G202: 3 | H202: 2 | I202: 2 | J202: 2 | K202: 2 | L202: 2 | M202: 2 | N202: 2 | O202: 2 | P202: 2 | Q202: 2 | R202: 2 | S202: 2 | T202: 2 | U202: 2 | V202: 2 | W202: 2 | X202: 2 | Y202: 2 | Z202: 2 | AA202: 3 | AB202: 3 | AC202: 3 | AD202: 3 | AE202: 3 | AF202: 3 | AG202: 2 | AH202: 3 | AI202: 3 | AJ202: 3 | AK202: 3 | AL202: 7 | AM202: 2 | AN202: 7
A203: EK | B203: 2 | C203: 2 | D203: 1 | E203: 1 | F203: 2 | G203: 2 | H203: 1 | I203: 2 | J203: 1 | K203: 1 | L203: 2 | M203: 2 | N203: 2 | O203: 2 | P203: 1 | Q203: 1 | R203: 2 | S203: 2 | T203: 2 | U203: 2 | V203: 1 | W203: 2 | X203: 2 | Y203: 2 | Z203: 2 | AA203: 2 | AB203: 2 | AC203: 2 | AD203: 2 | AE203: 2 | AF203: 2 | AG203: 2 | AH203: 2 | AI203: 2 | AJ203: 2 | AK203: 2 | AL203: 2 | AM203: 1 | AN203: 1
A204: EM | B204: 2 | C204: 2 | D204: 1 | E204: 1 | F204: 1 | G204: 1 | H204: 1 | I204: 1 | J204: 1 | K204: 1 | L204: 1 | M204: 1 | N204: 1 | O204: 1 | P204: 1 | Q204: 1 | R204: 1 | S204: 1 | T204: 1 | U204: 1 | V204: 1 | W204: 1 | X204: 1 | Y204: 1 | Z204: 1 | AA204: 1 | AB204: 1 | AC204: 1 | AD204: 1 | AE204: 1 | AF204: 1 | AG204: 1 | AH204: 1 | AI204: 1 | AJ204: 1 | AK204: 1 | AL204: 3 | AM204: 1 | AN204: 4
A205: EP | B205: 9 | C205: 9 | D205: 6 | E205: 6 | F205: 6 | G205: 6 | H205: 6 | I205: 6 | J205: 6 | K205: 6 | L205: 6 | M205: 6 | N205: 6 | O205: 6 | P205: 6 | Q205: 6 | R205: 6 | S205: 6 | T205: 6 | U205: 6 | V205: 6 | W205: 6 | X205: 6 | Y205: 6 | Z205: 6 | AA205: 6 | AB205: 6 | AC205: 6 | AD205: 6 | AE205: 6 | AF205: 6 | AG205: 6 | AH205: 6 | AI205: 6 | AJ205: 6 | AK205: 6 | AL205: 13 | AM205: 6 | AN205: 9
A206: EQ | B206: 0 | C206: 0 | D206: 0 | E206: 0 | F206: 0 | G206: 1 | H206: 0 | I206: 0 | J206: 0 | K206: 0 | L206: 0 | M206: 0 | N206: 0 | O206: 0 | P206: 0 | Q206: 0 | R206: 0 | S206: 0 | T206: 0 | U206: 0 | V206: 0 | W206: 0 | X206: 0 | Y206: 0 | Z206: 0 | AA206: 1 | AB206: 1 | AC206: 1 | AD206: 1 | AE206: 1 | AF206: 1 | AG206: 0 | AH206: 1 | AI206: 1 | AJ206: 1 | AK206: 1 | AL206: 0 | AM206: 0 | AN206: 0
A207: ER | B207: 10 | C207: 10 | D207: 4 | E207: 4 | F207: 4 | G207: 4 | H207: 4 | I207: 4 | J207: 4 | K207: 4 | L207: 4 | M207: 4 | N207: 4 | O207: 4 | P207: 4 | Q207: 4 | R207: 4 | S207: 3 | T207: 4 | U207: 4 | V207: 5 | W207: 4 | X207: 4 | Y207: 4 | Z207: 4 | AA207: 5 | AB207: 4 | AC207: 4 | AD207: 4 | AE207: 5 | AF207: 5 | AG207: 4 | AH207: 5 | AI207: 5 | AJ207: 5 | AK207: 5 | AL207: 6 | AM207: 4 | AN207: 6
A208: ET | B208: 5 | C208: 5 | D208: 2 | E208: 2 | F208: 2 | G208: 3 | H208: 2 | I208: 2 | J208: 2 | K208: 2 | L208: 2 | M208: 2 | N208: 2 | O208: 2 | P208: 2 | Q208: 2 | R208: 2 | S208: 2 | T208: 2 | U208: 2 | V208: 2 | W208: 2 | X208: 2 | Y208: 2 | Z208: 2 | AA208: 3 | AB208: 3 | AC208: 3 | AD208: 3 | AE208: 3 | AF208: 3 | AG208: 2 | AH208: 3 | AI208: 3 | AJ208: 3 | AK208: 3 | AL208: 6 | AM208: 2 | AN208: 5
A211: Genes | B211: 3344 | C211: 3327 | D211: 2553 | E211: 2955 | F211: 2725 | G211: 2512 | H211: 2701 | I211: 2796 | J211: 2670 | K211: 2722 | L211: 2615 | M211: 2902 | N211: 2858 | O211: 2844 | P211: 2969 | Q211: 2690 | R211: 2596 | S211: 2745 | T211: 2865 | U211: 2583 | V211: 2731 | W211: 3051 | X211: 2553 | Y211: 2733 | Z211: 2838 | AA211: 2961 | AB211: 2823 | AC211: 2374 | AD211: 2714 | AE211: 2916 | AF211: 2836 | AG211: 2881 | AH211: 2871 | AI211: 2915 | AJ211: 2992 | AK211: 2955 | AL211: 3303 | AM211: 2731 | AN211: 3161
A212: Size (bp) | B212: 3538396 | C212: 3527325 | D212: 2720730 | E212: 3012117 | F212: 2834215 | G212: 2553406 | H212: 2822491 | I212: 2906126 | J212: 2817683 | K212: 2860595 | L212: 2731087 | M212: 2988783 | N212: 2892126 | O212: 2951239 | P212: 3004659 | Q212: 2800339 | R212: 2761310 | S212: 2839739 | T212: 2970793 | U212: 2721427 | V212: 2789796 | W212: 3088982 | X212: 2693209 | Y212: 2848194 | Z212: 2901424 | AA212: 3008305 | AB212: 2879332 | AC212: 2480628 | AD212: 2778016 | AE212: 2964368 | AF212: 2884826 | AG212: 2979979 | AH212: 2912775 | AI212: 2959005 | AJ212: 3023784 | AK212: 3005175 | AL212: 3442529 | AM212: 2853021 | AN212: 3367806
A213: Sum of all F | B213: =SUM(B216:B224) -> 84 | C213: =SUM(C216:C224) -> 84 | D213: =SUM(D216:D224) -> 95 | E213: =SUM(E216:E224) -> 94 | F213: =SUM(F216:F224) -> 97 | G213: =SUM(G216:G224) -> 79 | H213: =SUM(H216:H224) -> 93 | I213: =SUM(I216:I224) -> 97 | J213: =SUM(J216:J224) -> 93 | K213: =SUM(K216:K224) -> 93 | L213: =SUM(L216:L224) -> 96 | M213: =SUM(M216:M224) -> 96 | N213: =SUM(N216:N224) -> 97 | O213: =SUM(O216:O224) -> 96 | P213: =SUM(P216:P224) -> 94 | Q213: =SUM(Q216:Q224) -> 93 | R213: =SUM(R216:R224) -> 96 | S213: =SUM(S216:S224) -> 95 | T213: =SUM(T216:T224) -> 96 | U213: =SUM(U216:U224) -> 97 | V213: =SUM(V216:V224) -> 91 | W213: =SUM(W216:W224) -> 95 | X213: =SUM(X216:X224) -> 94 | Y213: =SUM(Y216:Y224) -> 94 | Z213: =SUM(Z216:Z224) -> 95 | AA213: =SUM(AA216:AA224) -> 78 | AB213: =SUM(AB216:AB224) -> 78 | AC213: =SUM(AC216:AC224) -> 77 | AD213: =SUM(AD216:AD224) -> 79 | AE213: =SUM(AE216:AE224) -> 78 | AF213: =SUM(AF216:AF224) -> 78 | AG213: =SUM(AG216:AG224) -> 96 | AH213: =SUM(AH216:AH224) -> 78 | AI213: =SUM(AI216:AI224) -> 78 | AJ213: =SUM(AJ216:AJ224) -> 78 | AK213: =SUM(AK216:AK224) -> 78 | AL213: =SUM(AL216:AL224) -> 84 | AM213: =SUM(AM216:AM224) -> 93 | AN213: =SUM(AN216:AN224) -> 90
A215: Row Labels | B215: E. casseliflavus B72 | C215: E. casseliflavus B79 | D215: E. faecalis B139 | E215: E. faecalis B150 | F215: E. faecalis B168 | G215: E. faecium B466 | H215: E. faecalis B48 | I215: E. faecalis B6 | J215: E. faecalis C106 | K215: E. faecalis C33 | L215: E. faecalis C34 | M215: E. faecalis C379 | N215: E. faecalis R378 | O215: E. faecalis R395 | P215: E. faecalis R61 | Q215: E. faecalis R76 | R215: E. faecalis R95 | S215: E .faecalis W191 | T215: E. faecalis W195 | U215: E. faecalis W314 | V215: E. faecalis W350 | W215: E. faecalis W37 | X215: E .faecalis W41 | Y215: E. faecalis W460 | Z215: E. faecalis W75 | AA215: E. faecium B492 | AB215: E. faecium C12D | AC215: E. faecium C329 | AD215: E. faecium C567 | AE215: E. faecium F11J | AF215: E. faecium H101S2 | AG215: E. faecalis H114S2 | AH215: E. faecium H123S2 | AI215: E. faecium H53S1 | AJ215: E. faecium R337 | AK215: E. faecium R407 | AL215: E. gallinarum G12S | AM215: E. faecalis H120S2 | AN215: E. gallinarum W17
A216: EF | B216: 5 | C216: 5 | D216: 5 | E216: 5 | F216: 5 | G216: 4 | H216: 5 | I216: 5 | J216: 5 | K216: 5 | L216: 5 | M216: 5 | N216: 5 | O216: 5 | P216: 5 | Q216: 5 | R216: 5 | S216: 5 | T216: 5 | U216: 5 | V216: 5 | W216: 5 | X216: 5 | Y216: 5 | Z216: 5 | AA216: 5 | AB216: 5 | AC216: 5 | AD216: 5 | AE216: 5 | AF216: 5 | AG216: 5 | AH216: 5 | AI216: 5 | AJ216: 5 | AK216: 5 | AL216: 4 | AM216: 5 | AN216: 4
A217: F | B217: 67 | C217: 67 | D217: 76 | E217: 75 | F217: 78 | G217: 69 | H217: 74 | I217: 77 | J217: 74 | K217: 74 | L217: 77 | M217: 77 | N217: 77 | O217: 77 | P217: 75 | Q217: 75 | R217: 77 | S217: 77 | T217: 77 | U217: 78 | V217: 73 | W217: 76 | X217: 75 | Y217: 75 | Z217: 76 | AA217: 68 | AB217: 68 | AC217: 67 | AD217: 69 | AE217: 68 | AF217: 68 | AG217: 77 | AH217: 68 | AI217: 68 | AJ217: 68 | AK217: 68 | AL217: 69 | AM217: 74 | AN217: 73
A218: FGR | B218: 3 | C218: 3 | D218: 1 | E218: 1 | F218: 1 | G218: 1 | H218: 1 | I218: 1 | J218: 1 | K218: 1 | L218: 1 | M218: 1 | N218: 1 | O218: 1 | P218: 1 | Q218: 1 | R218: 1 | S218: 1 | T218: 1 | U218: 1 | V218: 1 | W218: 1 | X218: 1 | Y218: 1 | Z218: 1 | AA218: 1 | AB218: 1 | AC218: 1 | AD218: 1 | AE218: 1 | AF218: 1 | AG218: 1 | AH218: 1 | AI218: 1 | AJ218: 1 | AK218: 1 | AL218: 2 | AM218: 1 | AN218: 3
A219: FH | B219: 0 | C219: 0 | D219: 1 | E219: 1 | F219: 1 | G219: 0 | H219: 1 | I219: 1 | J219: 1 | K219: 1 | L219: 1 | M219: 1 | N219: 1 | O219: 1 | P219: 1 | Q219: 1 | R219: 1 | S219: 1 | T219: 1 | U219: 1 | V219: 0 | W219: 1 | X219: 1 | Y219: 1 | Z219: 1 | AA219: 0 | AB219: 0 | AC219: 0 | AD219: 0 | AE219: 0 | AF219: 0 | AG219: 1 | AH219: 0 | AI219: 0 | AJ219: 0 | AK219: 0 | AL219: 0 | AM219: 1 | AN219: 0
... 278 more rows

Sheet S6 COG correlation and pvalues
D1: All Genomes | M1: E. faecalis | V1: E. faecium
A2: Functional Class | B2: Functional Categories | D2: Correlation* | E2: Genome Size | G2: Genes/ORFs | I2: AMR Genes | K2: Virulence genes | M2: Correlation* | N2: Genome Size | P2: Genes/ORFs | R2: AMR Genes | T2: Virulence genes | V2: Correlation* | W2: Genome Size | Y2: Genes/ORFs | AA2: AMR Genes | AC2: Virulence genes
E3: R2 | F3: p value | G3: R2 | H3: p value | I3: R2 | J3: p value | K3: R2 | L3: p value | N3: R2 | O3: p value | P3: R2 | Q3: p value | R3: R2 | S3: p value | T3: R2 | U3: p value | W3: R2 | X3: p value | Y3: R2 | Z3: p value | AA3: R2 | AB3: p value | AC3: R2 | AD3: p value
A4: Cellular Processes | B4: D | C4: Cell division and chromosome partitioning | D4: N | E4: 0.679 | F4: <0.001 | G4: 0.513 | H4: <0.001 | I4: 0.305 | J4: <0.001 | K4: 0.092 | L4: 0.034 | M4: N | N4: 0.328 | O4: 0.002 | P4: 0.299 | Q4: 0.003 | R4: -0.023 | S4: 0.492 | T4: 0.025 | U4: 0.221 | V4: N | W4: -0.087 | X4: 0.668 | Y4: -0.085 | Z4: 0.650 | AA4: 0.291 | AB4: 0.050 | AC4: -0.111 | AD4: 0.988
B5: M | C5: Cell envelope biogenesis, outer membrane | D5: N | E5: 0.643 | F5: <0.001 | G5: 0.596 | H5: <0.001 | I5: -0.026 | J5: 0.828 | K5: 0.118 | L5: 0.018 | M5: N | N5: -0.034 | O5: 0.624 | P5: -0.042 | Q5: 0.787 | R5: 0.114 | S5: 0.059 | T5: -0.043 | U5: 0.822 | V5: N | W5: 0.792 | X5: <0.001 | Y5: 0.744 | Z5: <0.001 | AA5: 0.407 | AB5: 0.021 | AC5: -0.077 | AD5: 0.608
B6: N | C6: Cell motility | D6: P | E6: 0.774 | F6: <0.001 | G6: 0.636 | H6: <0.001 | I6: 0.141 | J6: 0.011 | K6: 0.134 | L6: 0.013 | M6: No | N6: 0.282 | O6: 0.004 | P6: 0.242 | Q6: 0.009 | R6: 0.007 | S6: 0.295 | T6: 0.015 | U6: 0.259 | V6: P | W6: 0.914 | X6: <0.001 | Y6: 0.903 | Z6: <0.001 | AA6: 0.643 | AB6: 0.002 | AC6: -0.039 | AD6: 0.449
B7: O | C7: Posttranslational modification, protein turnover | D7: N | E7: 0.585 | F7: <0.001 | G7: 0.411 | H7: <0.001 | I7: 0.397 | J7: <0.001 | K7: 0.015 | L7: 0.218 | M7: N | N7: 0.412 | O7: <0.001 | P7: 0.423 | Q7: 0.000 | R7: -0.034 | S7: 0.622 | T7: -0.044 | U7: 0.876 | V7: N | W7: -0.088 | X7: 0.669 | Y7: -0.085 | Z7: 0.650 | AA7: 0.274 | AB7: 0.057 | AC7: -0.012 | AD7: 0.373
B8: P | C8: Inorganic ion transport and metabolism | D8: N | E8: 0.497 | F8: <0.001 | G8: 0.346 | H8: <0.001 | I8: 0.266 | J8: 0.000 | K8: 0.077 | L8: 0.048 | M8: N | N8: -0.040 | O8: 0.732 | P8: -0.045 | Q8: 0.936 | R8: 0.131 | S8: 0.047 | T8: -0.044 | U8: 0.875 | V8: N | W8: -0.104 | X8: 0.818 | Y8: -0.104 | Z8: 0.815 | AA8: 0.032 | AB8: 0.278 | AC8: -0.106 | AD8: 0.848
B9: T | C9: Signal transduction mechanisms | D9: P | E9: 0.698 | F9: <0.001 | G9: 0.563 | H9: <0.001 | I9: 0.208 | J9: 0.002 | K9: 0.108 | L9: 0.024 | M9: N | N9: 0.420 | O9: 0.000 | P9: 0.320 | Q9: 0.002 | R9: -0.016 | S9: 0.432 | T9: 0.075 | U9: 0.104 | V9: N | W9: -0.100 | X9: 0.769 | Y9: -0.105 | Z9: 0.825 | AA9: -0.011 | AB9: 0.371 | AC9: -0.097 | AD9: 0.742
B10: U | C10: Intracellular trafficking, secretion | D10: No | E10: 0.727 | F10: <0.001 | G10: 0.554 | H10: <0.001 | I10: 0.191 | J10: 0.003 | K10: 0.118 | L10: 0.019 | M10: N | N10: -0.044 | O10: 0.864 | P10: -0.045 | Q10: 0.975 | R10: 0.029 | S10: 0.207 | T10: -0.029 | U10: 0.559 | V10: N | W10: 0.768 | X10: <0.001 | Y10: 0.761 | Z10: <0.001 | AA10: 0.693 | AB10: 0.001 | AC10: -0.052 | AD10: 0.496
B11: V | C11: Defense mechanisms | D11: N | E11: 0.402 | F11: <0.001 | G11: 0.307 | H11: 0.000 | I11: 0.011 | J11: 0.243 | K11: -0.020 | L11: 0.622 | M11: N | N11: 0.119 | O11: 0.055 | P11: 0.051 | Q11: 0.150 | R11: 0.074 | S11: 0.106 | T11: 0.038 | U11: 0.180 | V11: N | W11: 0.792 | X11: <0.001 | Y11: 0.821 | Z11: <0.001 | AA11: 0.319 | AB11: 0.041 | AC11: -0.071 | AD11: 0.574
A12: Metabolism | B12: C | C12: Energy production and conversion | D12: No | E12: 0.101 | F12: 0.027 | G12: 0.023 | H12: 0.176 | I12: 0.293 | J12: 0.000 | K12: -0.017 | L12: 0.539 | M12: N | N12: 0.014 | O12: 0.260 | P12: 0.000 | Q12: 0.328 | R12: -0.008 | S12: 0.373 | T12: -0.044 | U12: 0.887 | V12: N | W12: 0.054 | X12: 0.242 | Y12: 0.052 | Z12: 0.245 | AA12: -0.094 | AB12: 0.713 | AC12: -0.105 | AD12: 0.833
B13: E | C13: Amino acid transport and metabolism | D13: No | E13: 0.393 | F13: <0.001 | G13: 0.230 | H13: 0.001 | I13: 0.401 | J13: <0.001 | K13: -0.009 | L13: 0.417 | M13: N | N13: 0.355 | O13: 0.001 | P13: 0.301 | Q13: 0.003 | R13: -0.041 | S13: 0.768 | T13: -0.014 | U13: 0.417 | V13: N | W13: -0.110 | X13: 0.913 | Y13: -0.111 | Z13: 0.974 | AA13: -0.106 | AB13: 0.849 | AC13: -0.073 | AD13: 0.586
B14: F | C14: Nucleotide transport and metabolism | D14: N | E14: -0.012 | F14: 0.462 | G14: 0.017 | H14: 0.208 | I14: 0.083 | J14: 0.042 | K14: 0.088 | L14: 0.037 | M14: N | N14: -0.027 | O14: 0.534 | P14: -0.035 | Q14: 0.637 | R14: 0.183 | S14: 0.021 | T14: -0.010 | U14: 0.391 | V14: N | W14: -0.111 | X14: 0.981 | Y14: -0.109 | Z14: 0.901 | AA14: -0.107 | AB14: 0.852 | AC14: -0.098 | AD14: 0.749
B15: G | C15: Carbohydrate transport and metabolism | D15: P | E15: 0.750 | F15: <0.001 | G15: 0.643 | H15: <0.001 | I15: 0.133 | J15: 0.013 | K15: 0.122 | L15: 0.017 | M15: No | N15: 0.315 | O15: 0.003 | P15: 0.243 | Q15: 0.008 | R15: -0.045 | S15: 0.938 | T15: 0.074 | U15: 0.106 | V15: N | W15: 0.574 | X15: 0.004 | Y15: 0.535 | Z15: 0.006 | AA15: 0.009 | AB15: 0.323 | AC15: -0.105 | AD15: 0.827
B16: H | C16: Coenzyme metabolism | D16: N | E16: 0.250 | F16: <0.001 | G16: 0.143 | H16: 0.010 | I16: 0.124 | J16: 0.016 | K16: -0.022 | L16: 0.685 | M16: N | N16: 0.027 | O16: 0.213 | P16: 0.020 | Q16: 0.240 | R16: 0.132 | S16: 0.046 | T16: -0.031 | U16: 0.579 | V16: N | W16: 0.827 | X16: <0.001 | Y16: 0.813 | Z16: <0.001 | AA16: 0.549 | AB16: 0.006 | AC16: 0.109 | AD16: 0.170
B17: I | C17: Lipid metabolism | D17: N | E17: -0.023 | F17: 0.696 | G17: -0.027 | H17: 0.903 | I17: 0.068 | J17: 0.060 | K17: 0.031 | L17: 0.144 | M17: N | N17: 0.384 | O17: 0.001 | P17: 0.345 | Q17: 0.002 | R17: -0.017 | S17: 0.440 | T17: 0.011 | U17: 0.277 | V17: N | W17: 0.055 | X17: 0.240 | Y17: 0.039 | Z17: 0.266 | AA17: 0.237 | AB17: 0.073 | AC17: -0.069 | AD17: 0.568
B18: Q | C18: Secondary metabolites transport and metabolism | D18: N | E18: 0.068 | F18: 0.060 | G18: 0.002 | H18: 0.304 | I18: 0.265 | J18: 0.000 | K18: -0.024 | L18: 0.745 | M18: N | N18: -0.025 | O18: 0.515 | P18: -0.018 | Q18: 0.448 | R18: -0.038 | S18: 0.701 | T18: 0.040 | U18: 0.174 | V18: N | W18: -0.048 | X18: 0.479 | Y18: -0.009 | Z18: 0.365 | AA18: 0.070 | AB18: 0.218 | AC18: -0.098 | AD18: 0.749
A19: Information | B19: J | C19: Translation, ribosomal structure and biogenesis | D19: N | E19: 0.141 | F19: 0.011 | G19: 0.079 | H19: 0.046 | I19: -0.027 | J19: 0.982 | K19: -0.019 | L19: 0.600 | M19: N | N19: 0.155 | O19: 0.032 | P19: 0.051 | Q19: 0.149 | R19: 0.362 | S19: 0.001 | T19: -0.045 | U19: 0.939 | V19: N | W19: 0.803 | X19: <0.001 | Y19: 0.815 | Z19: <0.001 | AA19: 0.854 | AB19: <0.001 | AC19: -0.110 | AD19: 0.917
B20: K | C20: Transcription | D20: N | E20: 0.928 | F20: <0.001 | G20: 0.808 | H20: <0.001 | I20: 0.115 | J20: 0.020 | K20: 0.056 | L20: 0.080 | M20: N | N20: 0.725 | O20: <0.001 | P20: 0.615 | Q20: <0.001 | R20: -0.029 | S20: 0.560 | T20: 0.024 | U20: 0.225 | V20: N | W20: 0.915 | X20: <0.001 | Y20: 0.925 | Z20: <0.001 | AA20: 0.417 | AB20: 0.019 | AC20: -0.061 | AD20: 0.531
B21: L | C21: DNA replication, recombination, and repair | D21: No | E21: 0.037 | F21: 0.126 | G21: 0.144 | H21: 0.010 | I21: 0.486 | J21: <0.001 | K21: -0.024 | L21: 0.748 | M21: No | N21: 0.767 | O21: <0.001 | P21: 0.753 | Q21: <0.001 | R21: 0.187 | S21: 0.020 | T21: -0.039 | U21: 0.710 | V21: P | W21: 0.954 | X21: <0.001 | Y21: 0.952 | Z21: <0.001 | AA21: 0.696 | AB21: 0.001 | AC21: -0.066 | AD21: 0.551
A22: Other | B22: W | C22: Extracellular Structures | D22: No | E22: 0.361 | F22: <0.001 | G22: 0.336 | H22: <0.0001 | I22: -0.025 | J22: 0.761 | K22: 0.016 | L22: 0.214 | M22: N | N22: -0.045 | O22: 0.928 | P22: -0.045 | Q22: 0.935 | R22: -0.045 | S22: 0.942 | T22: -0.041 | U22: 0.750 | V22: P | W22: 0.768 | X22: <0.001 | Y22: 0.761 | Z22: <0.001 | AA22: 0.693 | AB22: 0.001 | AC22: -0.052 | AD22: 0.496
B23: X | C23: Mobilome | D23: P | E23: -0.012 | F23: 0.457 | G23: 0.063 | H23: 0.068 | I23: 0.349 | J23: <0.001 | K23: -0.027 | L23: 0.989 | M23: P | N23: 0.598 | O23: <0.001 | P23: 0.650 | Q23: <0.001 | R23: -0.045 | S23: 0.964 | T23: 0.025 | U23: 0.222 | V23: P | W23: 0.944 | X23: <0.001 | Y23: 0.948 | Z23: <0.001 | AA23: 0.673 | AB23: 0.001 | AC23: -0.064 | AD23: 0.542
A24: Poorly characterized | B24: R | C24: General function prediction only | D24: N | E24: 0.740 | F24: <0.0001 | G24: 0.630 | H24: <0.001 | I24: 0.102 | J24: 0.027 | K24: 0.146 | L24: 0.010 | M24: N | N24: -0.026 | O24: 0.528 | P24: -0.041 | Q24: 0.764 | R24: 0.101 | S24: 0.072 | T24: -0.045 | U24: 0.981 | V24: N | W24: 0.874 | X24: <0.001 | Y24: 0.881 | Z24: <0.001 | AA24: 0.416 | AB24: 0.019 | AC24: -0.096 | AD24: 0.730
B25: S | C25: Function unknown | D25: N | E25: 0.115 | F25: 0.020 | G25: 0.055 | H25: 0.082 | I25: 0.138 | J25: 0.012 | K25: 0.006 | L25: 0.278 | M25: N | N25: 0.783 | O25: <0.001 | P25: 0.689 | Q25: <0.001 | R25: -0.036 | S25: 0.661 | T25: -0.044 | U25: 0.864 | V25: N | W25: 0.770 | X25: <0.001 | Y25: 0.736 | Z25: <0.001 | AA25: 0.491 | AB25: 0.010 | AC25: 0.029 | AD25: 0.283
C26: Antimicrobial Resistance | K26: 0.006 | L26: 0.278 | T26: -0.024 | U26: 0.501 | AC26: -0.109 | AD26: 0.904
C27: Virulence | I27: 0.006 | J27: 0.278 | R27: -0.024 | S27: 0.501 | AA27: -0.109 | AB27: 0.904
C28: Genome Size | I28: 0.016 | J28: 0.212 | K28: 0.037 | L28: 0.126 | R28: 0.054 | S28: 0.143 | T28: -0.010 | U28: 0.388 | AA28: 0.566 | AB28: 0.005 | AC28: -0.057 | AD28: 0.514
C29: Genes/ORFs | I29: -0.021 | J29: 0.623 | K29: 0.025 | L29: 0.169 | R29: 0.030 | S29: 0.205 | T29: -0.019 | U29: 0.459 | AA29: 0.607 | AB29: 0.003 | AC29: -0.062 | AD29: 0.537
A31: * genetic fraction which is below
D32: All Genomes | G32: E. faecalis | J32: E. faecium
A33: Functional Class | B33: Functional Categories | D33: Genes/ORFs | G33: Genes/ORFs | J33: Genes/ORFs
D34: Correlation | E34: R2 | F34: p value | G34: Correlation | H34: R2 | I34: p value | J34: Correlation | K34: R2 | L34: p value
A35: Cellular Processes | B35: D | C35: Cell division and chromosome partitioning | D35: N | E35: 0.233 | F35: 0.001 | G35: N | H35: 0.846 | I35: 0.000 | J35: N | K35: 0.980 | L35: 0.000
B36: M | C36: Cell envelope biogenesis, outer membrane | D36: N | E36: 0.112 | F36: 0.021 | G36: N | H36: 0.735 | I36: 0.000 | J36: N | K36: 0.094 | L36: 0.187
B37: N | C37: Cell motility | D37: P | E37: 0.583 | F37: 0.000 | G37: No | H37: -0.025 | I37: 0.511 | J37: P | K37: 0.788 | L37: 0.000
B38: O | C38: Posttranslational modification, protein turnover | D38: N | E38: 0.194 | F38: 0.003 | G38: N | H38: 0.832 | I38: 0.000 | J38: N | K38: 0.976 | L38: 0.000
B39: P | C39: Inorganic ion transport and metabolism | D39: N | E39: 0.263 | F39: 0.000 | G39: N | H39: 0.792 | I39: 0.000 | J39: N | K39: 0.634 | L39: 0.002
B40: T | C40: Signal transduction mechanisms | D40: P | E40: -0.000 | F40: 0.327 | G40: N | H40: 0.280 | I40: 0.005 | J40: N | K40: 0.816 | L40: 0.000
B41: U | C41: Intracellular trafficking, secretion | D41: No | E41: -0.018 | F41: 0.579 | G41: N | H41: 0.736 | I41: 0.000 | J41: N | K41: 0.901 | L41: 0.000
B42: V | C42: Defense mechanisms | D42: N | E42: 0.096 | F42: 0.031 | G42: N | H42: 0.111 | I42: 0.062 | J42: N | K42: -0.005 | L42: 0.356
A43: Metabolism | B43: C | C43: Energy production and conversion | D43: No | E43: 0.025 | F43: 0.169 | G43: N | H43: 0.778 | I43: 0.000 | J43: N | K43: 0.868 | L43: 0.000
B44: E | C44: Amino acid transport and metabolism | D44: No | E44: -0.006 | F44: 0.383 | G44: N | H44: 0.940 | I44: 0.000 | J44: N | K44: 0.963 | L44: 0.000
B45: F | C45: Nucleotide transport and metabolism | D45: N | E45: 0.516 | F45: 0.000 | G45: N | H45: 0.869 | I45: 0.000 | J45: N | K45: 0.995 | L45: 0.000
B46: G | C46: Carbohydrate transport and metabolism | D46: P | E46: 0.128 | F46: 0.015 | G46: No | H46: 0.157 | I46: 0.031 | J46: N | K46: 0.660 | L46: 0.001
B47: H | C47: Coenzyme metabolism | D47: N | E47: 0.139 | F47: 0.011 | G47: N | H47: 0.750 | I47: 0.000 | J47: N | K47: 0.250 | L47: 0.067
B48: I | C48: Lipid metabolism | D48: N | E48: 0.845 | F48: 0.000 | G48: N | H48: 0.876 | I48: 0.000 | J48: N | K48: 0.965 | L48: 0.000
B49: Q | C49: Secondary metabolites transport and metabolism | D49: N | E49: 0.076 | F49: 0.050 | G49: N | H49: 0.756 | I49: 0.000 | J49: N | K49: 0.905 | L49: 0.000
A50: Information | B50: J | C50: Translation, ribosomal structure and biogenesis | D50: N | E50: 0.914 | F50: 0.000 | G50: N | H50: 0.869 | I50: 0.000 | J50: N | K50: 0.983 | L50: 0.000
B51: K | C51: Transcription | D51: N | E51: 0.143 | F51: 0.010 | G51: N | H51: 0.756 | I51: 0.000 | J51: N | K51: 0.907 | L51: 0.000
B52: L | C52: DNA replication, recombination, and repair | D52: No | E52: 0.240 | F52: 0.001 | G52: No | H52: -0.042 | I52: 0.787 | J52: P | K52: 0.596 | L52: 0.003
A53: Other | B53: W | C53: Extracellular Structures | D53: No | E53: 0.254 | F53: 0.001 | G53: N | H53: -0.009 | I53: 0.383 | J53: P | K53: 0.642 | L53: 0.002
B54: X | C54: Mobilome | D54: P | E54: 0.024 | F54: 0.174 | G54: P | H54: 0.581 | I54: 0.000 | J54: P | K54: 0.924 | L54: 0.000
A55: Poorly characterized | B55: R | C55: General function prediction only | D55: N | E55: 0.289 | F55: 0.000 | G55: N | H55: 0.844 | I55: 0.000 | J55: N | K55: 0.961 | L55: 0.000
B56: S | C56: Function unknown | D56: N | E56: 0.435 | F56: 0.000 | G56: N | H56: 0.784 | I56: 0.000 | J56: N | K56: 0.967 | L56: 0.000
A62: Correlation with mobilome genomic fraction (All Genomes) | C62: adjusted R squared | D62: p value | E62: correlation between mobilome genomic fraction (E. faecium) | F62: Correlation | G62: adjusted R squared | H62: p value | I62: correlation between mobilome genomic fraction (E. faecalis) | K62: adjusted R squared | L62: p value
A64: %C | B64: N | C64: 0.7395900482 | D64: 1.41E-12 | E64: %C | F64: N | G64: 0.938 | H64: 0.000 | I64: %C | J64: N | K64: 0.391 | L64: 0.001
A65: %D | B65: N | C65: 0.5297771149 | D65: 9.17E-08 | E65: %D | F65: N | G65: 0.960 | H65: 0.000 | I65: %D | J65: N | K65: 0.487 | L65: 0.000
A66: %E | B66: N | C66: 0.8620938394 | D66: 1.03E-17 | E66: %E | F66: N | G66: 0.920 | H66: 0.000 | I66: %E | J66: N | K66: 0.528 | L66: 0.000
A67: %F | B67: N | C67: 0.3908315741 | D67: 1.25E-05 | E67: %F | F67: N | G67: 0.944 | H67: 0.000 | I67: %F | J67: N | K67: 0.425 | L67: 0.000
A68: %G | B68: NO | C68: -0.0001157348 | D68: 3.25E-01 | E68: %G | F68: N | G68: 0.766 | H68: 0.000 | I68: %G | J68: NO | K68: -0.035 | L68: 0.650
A69: %H | B69: N | C69: 0.6196730938 | D69: 1.69E-09 | E69: %H | F69: N | G69: 0.109 | H69: 0.170 | I69: %H | J69: N | K69: 0.698 | L69: 0.000
A70: %I | B70: NO | C70: 0.0915290971 | D70: 3.43E-02 | E70: %I | F70: N | G70: 0.974 | H70: 0.000 | I70: %I | J70: N | K70: 0.596 | L70: 0.000
A71: %J | B71: NO | C71: 0.1439759556 | D71: 9.92E-03 | E71: %J | F71: N | G71: 0.902 | H71: 0.000 | I71: %J | J71: N | K71: 0.644 | L71: 0.000
A72: %K | B72: N | C72: 0.4625246274 | D72: 1.15E-06 | E72: %K | F72: N | G72: 0.874 | H72: 0.000 | I72: %K | J72: N | K72: 0.295 | L72: 0.004
A73: %L | B73: P | C73: 0.2361052662 | D73: 1.01E-03 | E73: %L | F73: P | G73: 0.724 | H73: 0.001 | I73: %L | J73: N | K73: 0.066 | L73: 0.120
A74: %M | B74: NO | C74: -0.0252642666 | D74: 8.02E-01 | E74: %M | F74: N | G74: 0.138 | H74: 0.142 | I74: %M | J74: N | K74: 0.632 | L74: 0.000
A75: %N | B75: NO | C75: -0.0093239499 | D75: 4.26E-01 | E75: %N | F75: P | G75: 0.883 | H75: 0.000 | I75: %N | J75: NO | K75: -0.040 | L75: 0.730
A76: %O | B76: N | C76: 0.7819482845 | D76: 5.16E-14 | E76: %O | F76: N | G76: 0.971 | H76: 0.000 | I76: %O | J76: N | K76: 0.424 | L76: 0.000
A77: %P | B77: N | C77: 0.4568364478 | D77: 1.41E-06 | E77: %P | F77: N | G77: 0.720 | H77: 0.001 | I77: %P | J77: N | K77: 0.637 | L77: 0.000
A78: %Q | B78: N | C78: 0.732068421 | D78: 2.40E-12 | E78: %Q | F78: N | G78: 0.881 | H78: 0.000 | I78: %Q | J78: N | K78: 0.456 | L78: 0.000
A79: %R | B79: NO | C79: 0.0796845992 | D79: 4.54E-02 | E79: %R | F79: N | G79: 0.943 | H79: 0.000 | I79: %R | J79: N | K79: 0.366 | L79: 0.001
A80: %S | B80: N | C80: 0.4824746196 | D80: 5.62E-07 | E80: %S | F80: N | G80: 0.862 | H80: 0.000 | I80: %S | J80: N | K80: 0.434 | L80: 0.000
A81: %T | B81: N | C81: 0.207528755 | D81: 2.09E-03 | E81: %T | F81: N | G81: 0.902 | H81: 0.000 | I81: %T | J81: N | K81: 0.150 | L81: 0.035
A82: %U | B82: N | C82: 0.4211818637 | D82: 4.72E-06 | E82: %U | F82: N | G82: 0.724 | H82: 0.001 | I82: %U | J82: N | K82: 0.549 | L82: 0.000
A83: %V | B83: N | C83: 0.307745218 | D83: 1.47E-04 | E83: %V | F83: NO | G83: 0.036 | H83: 0.271 | I83: %V | J83: N | K83: 0.144 | L83: 0.038
A84: %W | B84: P | C84: 0.0210173924 | D84: 1.86E-01 | E84: %W | F84: P | G84: 0.831 | H84: 0.000 | I84: %W | J84: NO | K84: -0.003 | L84: 0.343
A85: AMR | B85: P | C85: 0.3605829964 | D85: 3.18E-05 | E85: AMR | F85: P | G85: 0.656 | H85: 0.002 | I85: AMR | J85: NO | K85: -0.044 | L85: 0.854
A86: Virulence | C86: -0.0269106537 | D86: 9.49E-01 | E86: Virulence | F86: NO | G86: -0.063 | H86: 0.541 | I86: Virulence | J86: NO | K86: 0.019 | L86: 0.240

Sheet S7 AMR phenotypic profiles
A1: Results for Disc Susceptibility Testing showing which isolates were Resistant (R), intermediately Resistant (I) or Susceptible (S) to each antimicrobial | P1: Results from Disc Susceptibility Testing Showing Diameter of Area of Clearance
B2: Species | C2: VAN | D2: TEC | E2: AMP | F2: DOX | G2: ERY | H2: NIT | I2: GEN | J2: LZD | K2: LVX | L2: Q-D | M2: STR | N2: TGC | R2: VAN | S2: TEC | T2: AMP | U2: DOX | V2: ERY | W2: NIT | X2: GEN | Y2: LZD | Z2: LVX | AA2: Q-D | AB2: STR | AC2: TGC
A3: W460 | B3: E. faecalis | C3: S | D3: R | E3: S | F3: S | G3: I | H3: S | I3: S | J3: S | K3: S | L3: R | M3: S | N3: S | P3: W17 | Q3: E. faecalis | R3: 16 | S3: 18 | T3: 22 | U3: 31 | V3: 26 | W3: 22 | X3: 24 | Y3: 31 | Z3: 18 | AA3: 20 | AB3: 22 | AC3: 25
A4: W350 | B4: E. faecalis | C4: S | D4: S | E4: S | F4: R | G4: I | H4: S | I4: S | J4: I | K4: S | L4: S | M4: S | N4: S | P4: W460 | Q4: E. faecalis | R4: 17 | S4: 16 | T4: 26 | U4: 26 | V4: 18 | W4: 22 | X4: 19 | Y4: 25 | Z4: 20 | AA4: 13 | AB4: 15 | AC4: 21
A5: W191 | B5: E. faecalis | C5: S | D5: R | E5: S | F5: R | G5: S | H5: S | I5: S | J5: S | K5: S | L5: R | M5: S | N5: S | P5: W350 | Q5: E. faecalis | R5: 17 | S5: 17 | T5: 25 | U5: 12 | V5: 18 | W5: 19 | X5: 19 | Y5: 22 | Z5: 21 | AA5: 23 | AB5: 17 | AC5: 23
A6: H120S2 | B6: E. faecalis | C6: S | D6: S | E6: S | F6: S | G6: R | H6: S | I6: S | J6: S | K6: S | L6: S | M6: I | N6: S | P6: W191 | Q6: E. faecalis | R6: 17 | S6: 16 | T6: 26 | U6: 9 | V6: 24 | W6: 21 | X6: 18 | Y6: 23 | Z6: 17 | AA6: 13 | AB6: 14 | AC6: 21
A7: H114S2 | B7: E. faecalis | C7: R | D7: R | E7: R | F7: S | G7: S | H7: S | I7: S | J7: S | K7: R | L7: S | M7: S | N7: S | P7: R407 | Q7: E. faecalis | R7: 6 | S7: 9 | T7: 6 | U7: 27 | V7: 6 | W7: 20 | X7: 6 | Y7: 29 | Z7: 6 | AA7: 28 | AB7: 6 | AC7: 28
A8: C34 | B8: E. faecalis | C8: I | D8: R | E8: S | F8: S | G8: I | H8: S | I8: S | J8: I | K8: S | L8: R | M8: S | N8: S | P8: R337 | Q8: E. faecalis | R8: 6 | S8: 9 | T8: 6 | U8: 27 | V8: 6 | W8: 16 | X8: 26 | Y8: 31 | Z8: 6 | AA8: 26 | AB8: 6 | AC8: 22
A9: C33 | B9: E. faecalis | C9: S | D9: R | E9: S | F9: R | G9: R | H9: S | I9: S | J9: I | K9: R | L9: R | M9: S | N9: S | P9: H120S2 | Q9: E. faecalis | R9: 17 | S9: 20 | T9: 27 | U9: 30 | V9: 6 | W9: 28 | X9: 25 | Y9: 30 | Z9: 22 | AA9: 19 | AB9: 9 | AC9: 28
A10: B168 | B10: E. faecalis | C10: S | D10: R | E10: S | F10: I | G10: I | H10: S | I10: S | J10: I | K10: S | L10: R | M10: S | N10: S | P10: H114S2 | Q10: E. faecalis | R10: 8 | S10: 10 | T10: 6 | U10: 22 | V10: 29 | W10: 20 | X10: 26 | Y10: 30 | Z10: 6 | AA10: 32 | AB10: 24 | AC10: 31
A11: B150 | B11: E. faecalis | C11: S | D11: R | E11: S | F11: I | G11: R | H11: S | I11: S | J11: R | K11: S | L11: R | M11: S | N11: S | P11: H53S1 | Q11: E. faecalis | R11: 6 | S11: 10 | T11: 6 | U11: 19 | V11: 9 | W11: 25 | X11: 26 | Y11: 30 | Z11: 6 | AA11: 29 | AB11: 9 | AC11: 28
A12: R407 | B12: E. faecium | C12: R | D12: R | E12: R | F12: S | G12: R | H12: S | I12: R | J12: S | K12: R | L12: S | M12: R | N12: S | P12: G12s | Q12: E. faecium | R12: 16 | S12: 19 | T12: 29 | U12: 30 | V12: 26 | W12: 22 | X12: 27 | Y12: 29 | Z12: 20 | AA12: 20 | AB12: 22 | AC12: 26
A13: R337 | B13: E. faecium | C13: R | D13: R | E13: R | F13: S | G13: R | H13: I | I13: S | J13: S | K13: R | L13: S | M13: R | N13: S | P13: F11j | Q13: E. faecium | R13: 6 | S13: 10 | T13: 6 | U13: 18 | V13: 6 | W13: 23 | X13: 26 | Y13: 32 | Z13: 6 | AA13: 27 | AB13: 6 | AC13: 29
A14: H53S1 | B14: E. faecium | C14: R | D14: R | E14: R | F14: S | G14: R | H14: S | I14: S | J14: S | K14: R | L14: S | M14: I | N14: S | P14: C329 | Q14: E. faecium | R14: 18 | S14: 16 | T14: 17 | U14: 25 | V14: 16 | W14: 14 | X14: 23 | Y14: 22 | Z14: 13 | AA14: 20 | AB14: 18 | AC14: 22
A15: F11j | B15: E. faecium | C15: R | D15: R | E15: R | F15: S | G15: R | H15: S | I15: S | J15: S | K15: R | L15: S | M15: R | N15: S | P15: C34 | Q15: E. faecium | R15: 16 | S15: 15 | T15: 22 | U15: 22 | V15: 16 | W15: 21 | X15: 16 | Y15: 22 | Z15: 18 | AA15: 12 | AB15: 14 | AC15: 20
A16: C329 | B16: E. faecium | C16: S | D16: R | E16: S | F16: S | G16: I | H16: R | I16: S | J16: I | K16: R | L16: S | M16: S | N16: S | P16: C33 | Q16: E. faecium | R16: 17 | S16: 15 | T16: 23 | U16: 11 | V16: 6 | W16: 22 | X16: 16 | Y16: 22 | Z16: 6 | AA16: 11 | AB16: 15 | AC16: 22
A17: B492 | B17: E. faecium | C17: R | D17: R | E17: R | F17: S | G17: R | H17: S | I17: S | J17: S | K17: R | L17: S | M17: R | N17: S | P17: B492 | Q17: E. faecium | R17: 6 | S17: 9 | T17: 6 | U17: 27 | V17: 6 | W17: 19 | X17: 24 | Y17: 26 | Z17: 6 | AA17: 29 | AB17: 6 | AC17: 27
A18: B466 | B18: E. faecium | C18: S | D18: R | E18: R | F18: R | G18: R | H18: I | I18: S | J18: S | K18: I | L18: S | M18: S | N18: S | P18: B466 | Q18: E. faecium | R18: 20 | S18: 16 | T18: 14 | U18: 9 | V18: 9 | W18: 16 | X18: 24 | Y18: 26 | Z18: 15 | AA18: 26 | AB18: 21 | AC18: 24
A19: W17 | B19: E. gallinarum | C19: I | D19: S | E19: S | F19: S | G19: S | H19: S | I19: S | J19: S | K19: S | L19: S | M19: S | N19: S | P19: B168 | Q19: E. gallinarum | R19: 17 | S19: 16 | T19: 23 | U19: 14 | V19: 21 | W19: 23 | X19: 16 | Y19: 21 | Z19: 17 | AA19: 13 | AB19: 14 | AC19: 21
A20: G12s | B20: E. gallinarum | C20: I | D20: S | E20: S | F20: S | G20: S | H20: S | I20: S | J20: S | K20: S | L20: S | M20: S | N20: S | P20: B150 | Q20: E. gallinarum | R20: 17 | S20: 15 | T20: 25 | U20: 13 | V20: 6 | W20: 19 | X20: 17 | Y20: 20 | Z20: 21 | AA20: 11 | AB20: 13 | AC20: 20
A21: B6 | B21: E. faecalis | C21: S | D21: R | E21: S | F21: R | G21: I | H21: S | I21: S | J21: S | K21: S | L21: R | M21: S | N21: S | P21: B6 | Q21: E. faecalis | R21: 17 | S21: 16 | T21: 24 | U21: 11 | V21: 16 | W21: 23 | X21: 18 | Y21: 26 | Z21: 18 | AA21: 14 | AB21: 17 | AC21: 21
A22: B48 | B22: E. faecalis | C22: S | D22: R | E22: S | F22: R | G22: R | H22: S | I22: S | J22: R | K22: S | L22: R | M22: S | N22: S | P22: B48 | Q22: E. faecalis | R22: 17 | S22: 16 | T22: 25 | U22: 11 | V22: 6 | W22: 21 | X22: 14 | Y22: 19 | Z22: 20 | AA22: 10 | AB22: 14 | AC22: 20
A23: B72 | B23: E. casseliflavus | C23: S | D23: R | E23: S | F23: S | G23: I | H23: S | I23: S | J23: S | K23: S | L23: R | M23: S | N23: S | P23: B72 | Q23: E. casseliflavus | R23: 17 | S23: 16 | T23: 26 | U23: 29 | V23: 19 | W23: 20 | X23: 21 | Y23: 27 | Z23: 17 | AA23: 15 | AB23: 19 | AC23: 24
A24: B79 | B24: E. gallinarum* | C24: I | D24: R | E24: S | F24: S | G24: I | H24: S | I24: S | J24: S | K24: S | L24: I | M24: S | N24: S | P24: B79 | Q24: E. gallinarum* | R24: 16 | S24: 16 | T24: 27 | U24: 28 | V24: 21 | W24: 21 | X24: 23 | Y24: 26 | Z24: 17 | AA24: 17 | AB24: 19 | AC24: 23
A25: B139 | B25: E. faecalis | C25: I | D25: R | E25: S | F25: S | G25: S | H25: S | I25: S | J25: I | K25: S | L25: R | M25: S | N25: S | P25: B139 | Q25: E. faecalis | R25: 16 | S25: 16 | T25: 23 | U25: 22 | V25: 24 | W25: 20 | X25: 19 | Y25: 22 | Z25: 17 | AA25: 11 | AB25: 15 | AC25: 19
A26: C12d | B26: E. faecium | C26: R | D26: R | E26: R | F26: S | G26: I | H26: S | I26: S | J26: S | K26: R | L26: S | M26: S | N26: S | P26: C12d | Q26: E. faecium | R26: 6 | S26: 9 | T26: 6 | U26: 18 | V26: 17 | W26: 23 | X26: 25 | Y26: 31 | Z26: 6 | AA26: 27 | AB26: 23 | AC26: 26
A27: C106 | B27: E. faecalis | C27: S | D27: R | E27: S | F27: R | G27: R | H27: S | I27: R | J27: S | K27: S | L27: R | M27: S | N27: S | P27: C106 | Q27: E. faecalis | R27: 17 | S27: 15 | T27: 25 | U27: 11 | V27: 6 | W27: 24 | X27: 6 | Y27: 26 | Z27: 21 | AA27: 10 | AB27: 14 | AC27: 21
A28: C379 | B28: E. faecalis | C28: S | D28: S | E28: S | F28: R | G28: I | H28: S | I28: S | J28: S | K28: S | L28: R | M28: S | N28: S | P28: C379 | Q28: E. faecalis | R28: 17 | S28: 17 | T28: 24 | U28: 10 | V28: 18 | W28: 22 | X28: 19 | Y28: 27 | Z28: 18 | AA28: 12 | AB28: 18 | AC28: 22
A29: C567 | B29: E. faecium | C29: S | D29: R | E29: S | F29: S | G29: R | H29: I | I29: S | J29: I | K29: S | L29: S | M29: S | N29: S | P29: C567 | Q29: E. faecium | R29: 19 | S29: 16 | T29: 22 | U29: 27 | V29: 13 | W29: 15 | X29: 24 | Y29: 22 | Z29: 20 | AA29: 25 | AB29: 21 | AC29: 25
A30: H101S2 | B30: E. faecium | C30: R | D30: R | E30: R | F30: S | G30: R | H30: S | I30: S | J30: S | K30: R | L30: S | M30: I | N30: S | P30: H101S2 | Q30: E. faecium | R30: 7 | S30: 11 | T30: 9 | U30: 20 | V30: 6 | W30: 24 | X30: 25 | Y30: 31 | Z30: 6 | AA30: 29 | AB30: 9 | AC30: 27
A31: H123S2 | B31: E. faecium | C31: R | D31: R | E31: R | F31: S | G31: R | H31: S | I31: S | J31: S | K31: R | L31: S | M31: I | N31: S | P31: H123S2 | Q31: E. faecium | R31: 7 | S31: 10 | T31: 6 | U31: 19 | V31: 6 | W31: 27 | X31: 24 | Y31: 32 | Z31: 6 | AA31: 30 | AB31: 9 | AC31: 29
A32: R61 | B32: E. faecalis | C32: I | D32: R | E32: S | F32: R | G32: R | H32: S | I32: I | J32: I | K32: S | L32: R | M32: S | N32: S | P32: R61 | Q32: E. faecalis | R32: 16 | S32: 15 | T32: 26 | U32: 12 | V32: 6 | W32: 23 | X32: 9 | Y32: 22 | Z32: 21 | AA32: 11 | AB32: 14 | AC32: 21
A33: R76 | B33: E. faecalis | C33: S | D33: R | E33: S | F33: R | G33: R | H33: S | I33: R | J33: S | K33: S | L33: R | M33: R | N33: S | P33: R76 | Q33: E. faecalis | R33: 17 | S33: 16 | T33: 25 | U33: 10 | V33: 6 | W33: 21 | X33: 6 | Y33: 23 | Z33: 17 | AA33: 11 | AB33: 6 | AC33: 20
A34: R95 | B34: E. faecalis | C34: S | D34: R | E34: S | F34: I | G34: R | H34: S | I34: I | J34: I | K34: S | L34: R | M34: R | N34: S | P34: R95 | Q34: E. faecalis | R34: 17 | S34: 16 | T34: 24 | U34: 14 | V34: 6 | W34: 23 | X34: 9 | Y34: 22 | Z34: 20 | AA34: 13 | AB34: 6 | AC34: 21
A35: R378 | B35: E. faecalis | C35: S | D35: R | E35: S | F35: S | G35: I | H35: S | I35: S | J35: S | K35: S | L35: I | M35: S | N35: S | P35: R378 | Q35: E. faecalis | R35: 17 | S35: 16 | T35: 24 | U35: 25 | V35: 21 | W35: 22 | X35: 19 | Y35: 23 | Z35: 20 | AA35: 18 | AB35: 17 | AC35: 22
A36: R395 | B36: E. faecalis | C36: I | D36: R | E36: S | F36: R | G36: I | H36: S | I36: S | J36: S | K36: S | L36: R | M36: S | N36: S | P36: R395 | Q36: E. faecalis | R36: 16 | S36: 15 | T36: 23 | U36: 11 | V36: 17 | W36: 22 | X36: 19 | Y36: 25 | Z36: 20 | AA36: 11 | AB36: 15 | AC36: 21
A37: W37 | B37: E. faecalis | C37: S | D37: R | E37: S | F37: I | G37: R | H37: S | I37: S | J37: S | K37: R | L37: I | M37: R | N37: S | P37: W37 | Q37: E. faecalis | R37: 17 | S37: 16 | T37: 23 | U37: 14 | V37: 9 | W37: 22 | X37: 19 | Y37: 26 | Z37: 6 | AA37: 17 | AB37: 6 | AC37: 21
A38: W41 | B38: E. faecalis | C38: I | D38: R | E38: S | F38: R | G38: I | H38: S | I38: S | J38: S | K38: S | L38: R | M38: S | N38: S | P38: W41 | Q38: E. faecalis | R38: 16 | S38: 15 | T38: 24 | U38: 10 | V38: 18 | W38: 21 | X38: 18 | Y38: 24 | Z38: 18 | AA38: 12 | AB38: 13 | AC38: 21
A39: W75 | B39: E. faecalis | C39: I | D39: R | E39: S | F39: S | G39: S | H39: S | I39: S | J39: S | K39: S | L39: I | M39: S | N39: S | P39: W75 | Q39: E. faecalis | R39: 16 | S39: 16 | T39: 22 | U39: 28 | V39: 23 | W39: 21 | X39: 17 | Y39: 26 | Z39: 19 | AA39: 16 | AB39: 17 | AC39: 22
A40: W195 | B40: E. faecalis | C40: S | D40: R | E40: S | F40: I | G40: I | H40: S | I40: S | J40: S | K40: S | L40: R | M40: S | N40: S | P40: W195 | Q40: E. faecalis | R40: 17 | S40: 16 | T40: 24 | U40: 13 | V40: 17 | W40: 21 | X40: 20 | Y40: 27 | Z40: 18 | AA40: 12 | AB40: 17 | AC40: 21
A41: W314 | B41: E. faecalis | C41: S | D41: R | E41: S | F41: S | G41: I | H41: S | I41: S | J41: R | K41: S | L41: R | M41: S | N41: S | P41: W314 | Q41: E. faecalis | R41: 17 | S41: 15 | T41: 26 | U41: 25 | V41: 18 | W41: 21 | X41: 15 | Y41: 19 | Z41: 19 | AA41: 12 | AB41: 14 | AC41: 22
A42: W193 | B42: E. cassseliflavus/mundtii* | C42: S | D42: R | E42: S | F42: S | G42: I | H42: S | I42: S | J42: S | K42: S | L42: I | M42: S | N42: S | P42: W193 | Q42: E. cassseliflavus/mundtii* | R42: 21 | S42: 16 | T42: 24 | U42: 29 | V42: 21 | W42: 28 | X42: 22 | Y42: 25 | Z42: 20 | AA42: 17 | AB42: 19 | AC42: 25
A44: VAN | B44: vancomycin
A45: TEC | B45: teicoplanin
A46: AMP | B46: ampicillin
A47: DOX | B47: doxycycline
A48: ERY | B48: erythromycin
A49: NIT | B49: nitrofurantoin
A50: GEN | B50: gentamicin
A51: LZD | B51: linezolid
A52: LVX | B52: levofloxacin
A53: Q-D | B53: quinupristin-dalfopristin
A54: STR | B54: streptomycin
A55: TGC | B55: tigecycline

Sheet S8 AMR Genes
B1: H120S2 | C1: H114S2 | D1: B168 | E1: R95 | F1: B48 | H1: B150 | I1: R378 | J1: B6 | K1: B139 | L1: R61 | M1: R76 | O1: W314 | P1: W37 | Q1: C34 | R1: C33 | S1: C106 | T1: W41 | V1: W195 | W1: W460 | X1: W350 | Y1: W75 | Z1: C379 | AA1: W191 | AD1: R407 | AE1: H101S2 | AF1: H123S2 | AG1: R337 | AI1: B492 | AJ1: B466 | AL1: H53S1 | AM1: F11j | AN1: C12d | AP1: C567 | AQ1: C329 | AT1: B72 | AU1: B79 | AW1: G12s | AX1: W17
A2: Location | B2: BAF PE | C2: BAF PE | D2: BAF PE | E2: BAF PE | F2: BAF PE | H2: BAF FE | I2: BAF FE | J2: BAF FE | K2: BAF FE | L2: BAF FE | M2: BAF FE | O2: CAS PE | P2: CAS PE | Q2: CAS PE | R2: CAS PE | S2: CAS PE | T2: CAS PE | V2: CAS FE | W2: CAS FE | X2: CAS FE | Y2: CAS FE | Z2: CAS FE | AA2: CAS FE | AC2: Location | AD2: BAF PE | AE2: BAF PE | AF2: BAF PE | AG2: BAF PE | AI2: BAF FE | AJ2: BAF FE | AL2: CAS PE | AM2: CAS PE | AN2: CAS PE | AP2: CAS FE | AQ2: CAS FE | AS2: Location | AT2: BAF FE | AU2: BAF FE | AW2: CAS PE | AX2: CAS FE
A3: Species | B3: E. faecalis | C3: E. faecalis | D3: E. faecalis | E3: E. faecalis | F3: E. faecalis | G3: COUNT | H3: E. faecalis | I3: E. faecalis | J3: E. faecalis | K3: E. faecalis | L3: E. faecalis | M3: E. faecalis | N3: COUNT | O3: E. faecalis | P3: E. faecalis | Q3: E. faecalis | R3: E. faecalis | S3: E. faecalis | T3: E. faecalis | U3: COUNT | V3: E. faecalis | W3: E. faecalis | X3: E. faecalis | Y3: E. faecalis | Z3: E. faecalis | AA3: E. faecalis | AB3: COUNT | AC3: Species | AD3: E. faecium | AE3: E. faecium | AF3: E . faecium | AG3: E. faecium | AH3: COUNT | AI3: E. faecium | AJ3: E. faecium | AK3: COUNT | AL3: E. faecium | AM3: E. faecium | AN3: E. faecium | AO3: COUNT | AP3: E.faecium | AQ3: E. faecium | AR3: COUNT | AS3: Species | AT3: E. casseliflavus | AU3: E.gallinarum** | AV3: COUNT | AW3: E. gallinarum | AX3: E. gallinarum | AY3: COUNT
A4: gb|AF162694|+|2438-3011|ARO:3002966|vanXYC | B4: 0 | C4: 0 | D4: 0 | E4: 0 | F4: 0 | G4: 0 | H4: 0 | I4: 0 | J4: 0 | K4: 0 | L4: 0 | M4: 0 | N4: 0 | O4: 0 | P4: 0 | Q4: 0 | R4: 0 | S4: 0 | T4: 0 | U4: 0 | V4: 0 | W4: 0 | X4: 0 | Y4: 0 | Z4: 0 | AA4: 0 | AB4: 0 | AC4: gb|AF162694|+|2438-3011|ARO:3002966|vanXYC | AD4: 0 | AE4: 0 | AF4: 0 | AG4: 0 | AH4: 0 | AI4: 0 | AJ4: 0 | AK4: 0 | AL4: 0 | AM4: 0 | AN4: 0 | AO4: 0 | AP4: 0 | AQ4: 0 | AR4: 0 | AS4: gb|AF162694|+|2438-3011|ARO:3002966|vanXYC | AT4: 0 | AU4: 0 | AV4: 0 | AW4: 1 | AX4: 1 | AY4: 2
A5: gb|AF162694|+|3007-5104|ARO:3002970|vanTC | B5: 0 | C5: 0 | D5: 0 | E5: 0 | F5: 0 | G5: 0 | H5: 0 | I5: 0 | J5: 0 | K5: 0 | L5: 0 | M5: 0 | N5: 0 | O5: 0 | P5: 0 | Q5: 0 | R5: 0 | S5: 0 | T5: 0 | U5: 0 | V5: 0 | W5: 0 | X5: 0 | Y5: 0 | Z5: 0 | AA5: 0 | AB5: 0 | AC5: gb|AF162694|+|3007-5104|ARO:3002970|vanTC | AD5: 0 | AE5: 0 | AF5: 0 | AG5: 0 | AH5: 0 | AI5: 0 | AJ5: 0 | AK5: 0 | AL5: 0 | AM5: 0 | AN5: 0 | AO5: 0 | AP5: 0 | AQ5: 0 | AR5: 0 | AS5: gb|AF162694|+|3007-5104|ARO:3002970|vanTC | AT5: 0 | AU5: 0 | AV5: 0 | AW5: 1 | AX5: 1 | AY5: 2
A6: gb|AF162694|+|5192-5888|ARO:3002922|vanRC | B6: 0 | C6: 0 | D6: 0 | E6: 0 | F6: 0 | G6: 0 | H6: 0 | I6: 0 | J6: 0 | K6: 0 | L6: 0 | M6: 0 | N6: 0 | O6: 0 | P6: 0 | Q6: 0 | R6: 0 | S6: 0 | T6: 0 | U6: 0 | V6: 0 | W6: 0 | X6: 0 | Y6: 0 | Z6: 0 | AA6: 0 | AB6: 0 | AC6: gb|AF162694|+|5192-5888|ARO:3002922|vanRC | AD6: 0 | AE6: 0 | AF6: 0 | AG6: 0 | AH6: 0 | AI6: 0 | AJ6: 0 | AK6: 0 | AL6: 0 | AM6: 0 | AN6: 0 | AO6: 0 | AP6: 0 | AQ6: 0 | AR6: 0 | AS6: gb|AF162694|+|5192-5888|ARO:3002922|vanRC | AT6: 1 | AU6: 1 | AV6: 2 | AW6: 1 | AX6: 1 | AY6: 2
A7: gb|AF162694|+|5877-6963|ARO:3002933|vanSC | B7: 0 | C7: 0 | D7: 0 | E7: 0 | F7: 0 | G7: 0 | H7: 0 | I7: 0 | J7: 0 | K7: 0 | L7: 0 | M7: 0 | N7: 0 | O7: 0 | P7: 0 | Q7: 0 | R7: 0 | S7: 0 | T7: 0 | U7: 0 | V7: 0 | W7: 0 | X7: 0 | Y7: 0 | Z7: 0 | AA7: 0 | AB7: 0 | AC7: gb|AF162694|+|5877-6963|ARO:3002933|vanSC | AD7: 0 | AE7: 0 | AF7: 0 | AG7: 0 | AH7: 0 | AI7: 0 | AJ7: 0 | AK7: 0 | AL7: 0 | AM7: 0 | AN7: 0 | AO7: 0 | AP7: 0 | AQ7: 0 | AR7: 0 | AS7: gb|AF162694|+|5877-6963|ARO:3002933|vanSC | AT7: 1 | AU7: 1 | AV7: 2 | AW7: 1 | AX7: 1 | AY7: 2
A8: gb|AF162694|+|1410-2442|ARO:3000368|vanC | B8: 0 | C8: 0 | D8: 0 | E8: 0 | F8: 0 | G8: 0 | H8: 0 | I8: 0 | J8: 0 | K8: 0 | L8: 0 | M8: 0 | N8: 0 | O8: 0 | P8: 0 | Q8: 0 | R8: 0 | S8: 0 | T8: 0 | U8: 0 | V8: 0 | W8: 0 | X8: 0 | Y8: 0 | Z8: 0 | AA8: 0 | AB8: 0 | AC8: gb|AF162694|+|1410-2442|ARO:3000368|vanC | AD8: 0 | AE8: 0 | AF8: 0 | AG8: 0 | AH8: 0 | AI8: 0 | AJ8: 0 | AK8: 0 | AL8: 0 | AM8: 0 | AN8: 0 | AO8: 0 | AP8: 0 | AQ8: 0 | AR8: 0 | AS8: gb|AF162694|+|1410-2442|ARO:3000368|vanC | AT8: 0 | AU8: 0 | AV8: 0 | AW8: 1 | AX8: 1 | AY8: 2
A9: gb|AF028811|+|0-462|ARO:3002875|dfrE | B9: 1 | C9: 1 | D9: 1 | E9: 1 | F9: 1 | G9: 5 | H9: 1 | I9: 1 | J9: 1 | K9: 1 | L9: 1 | M9: 1 | N9: 6 | O9: 1 | P9: 1 | Q9: 1 | R9: 1 | S9: 1 | T9: 1 | U9: 6 | V9: 1 | W9: 1 | X9: 1 | Y9: 1 | Z9: 1 | AA9: 1 | AB9: 6 | AC9: gb|AF028811|+|0-462|ARO:3002875|dfrE | AD9: 0 | AE9: 0 | AF9: 0 | AG9: 0 | AH9: 0 | AI9: 0 | AJ9: 0 | AK9: 0 | AL9: 0 | AM9: 0 | AN9: 0 | AO9: 0 | AP9: 0 | AQ9: 0 | AR9: 0 | AS9: gb|AF028811|+|0-462|ARO:3002875|dfrE | AT9: 0 | AU9: 0 | AV9: 0 | AW9: 0 | AX9: 0 | AY9: 0
A10: gb|AB091338|+|173-1355|ARO:3003551|emeA | B10: 2 | C10: 2 | D10: 2 | E10: 2 | F10: 2 | G10: 5 | H10: 2 | I10: 2 | J10: 2 | K10: 2 | L10: 2 | M10: 2 | N10: 6 | O10: 2 | P10: 2 | Q10: 2 | R10: 2 | S10: 2 | T10: 2 | U10: 6 | V10: 2 | W10: 2 | X10: 2 | Y10: 2 | Z10: 2 | AA10: 2 | AB10: 6 | AC10: gb|AB091338|+|173-1355|ARO:3003551|emeA | AD10: 0 | AE10: 0 | AF10: 0 | AG10: 0 | AH10: 0 | AI10: 0 | AJ10: 0 | AK10: 0 | AL10: 0 | AM10: 0 | AN10: 0 | AO10: 0 | AP10: 0 | AQ10: 0 | AR10: 0 | AS10: gb|AB091338|+|173-1355|ARO:3003551|emeA | AT10: 0 | AU10: 0 | AV10: 0 | AW10: 0 | AX10: 0 | AY10: 0
A11: gb|AY587982|+|309-1806|ARO:3000300|lsaA | B11: 1 | C11: 1 | D11: 1 | E11: 1 | F11: 1 | G11: 5 | H11: 1 | I11: 1 | J11: 1 | K11: 1 | L11: 1 | M11: 1 | N11: 6 | O11: 1 | P11: 1 | Q11: 1 | R11: 1 | S11: 1 | T11: 1 | U11: 6 | V11: 1 | W11: 1 | X11: 1 | Y11: 1 | Z11: 1 | AA11: 1 | AB11: 6 | AC11: gb|AY587982|+|309-1806|ARO:3000300|lsaA | AD11: 0 | AE11: 0 | AF11: 0 | AG11: 0 | AH11: 0 | AI11: 0 | AJ11: 0 | AK11: 0 | AL11: 0 | AM11: 0 | AN11: 0 | AO11: 0 | AP11: 0 | AQ11: 0 | AR11: 0 | AS11: gb|AY587982|+|309-1806|ARO:3000300|lsaA | AT11: 0 | AU11: 0 | AV11: 0 | AW11: 0 | AX11: 0 | AY11: 0
A12: gb|DQ212986|+|2258-2966|ARO:3002926|vanRG | B12: 0 | C12: 1 | D12: 1 | E12: 1 | F12: 0 | G12: 3 | H12: 0 | I12: 0 | J12: 1 | K12: 0 | L12: 0 | M12: 0 | N12: 1 | O12: 0 | P12: 0 | Q12: 0 | R12: 0 | S12: 0 | T12: 1 | U12: 1 | V12: 1 | W12: 1 | X12: 0 | Y12: 0 | Z12: 1 | AA12: 0 | AB12: 3 | AC12: gb|DQ212986|+|2258-2966|ARO:3002926|vanRG | AD12: 0 | AE12: 0 | AF12: 0 | AG12: 0 | AH12: 0 | AI12: 0 | AJ12: 0 | AK12: 0 | AL12: 0 | AM12: 0 | AN12: 0 | AO12: 0 | AP12: 0 | AQ12: 0 | AR12: 0 | AS12: gb|DQ212986|+|2258-2966|ARO:3002926|vanRG | AT12: 0 | AU12: 0 | AV12: 0 | AW12: 0 | AX12: 0 | AY12: 0
A13: gb|HG970100.1|+|0-1457|ARO:3003948|efrA | B13: 1 | C13: 1 | D13: 2 | E13: 1 | F13: 1 | G13: 5 | H13: 1 | I13: 1 | J13: 1 | K13: 1 | L13: 1 | M13: 1 | N13: 6 | O13: 1 | P13: 1 | Q13: 1 | R13: 1 | S13: 1 | T13: 1 | U13: 6 | V13: 1 | W13: 1 | X13: 1 | Y13: 1 | Z13: 1 | AA13: 1 | AB13: 6 | AC13: gb|HG970100.1|+|0-1457|ARO:3003948|efrA | AD13: 0 | AE13: 0 | AF13: 0 | AG13: 0 | AH13: 0 | AI13: 0 | AJ13: 0 | AK13: 0 | AL13: 0 | AM13: 0 | AN13: 0 | AO13: 0 | AP13: 0 | AQ13: 0 | AR13: 0 | AS13: gb|HG970100.1|+|0-1457|ARO:3003948|efrA | AT13: 0 | AU13: 0 | AV13: 0 | AW13: 0 | AX13: 0 | AY13: 0
A14: gb|HG970103.1|+|0-1086|ARO:3003949|efrB | B14: 1 | C14: 1 | D14: 1 | E14: 1 | F14: 1 | G14: 5 | H14: 1 | I14: 1 | J14: 1 | K14: 1 | L14: 1 | M14: 1 | N14: 6 | O14: 1 | P14: 1 | Q14: 1 | R14: 1 | S14: 1 | T14: 1 | U14: 6 | V14: 1 | W14: 1 | X14: 1 | Y14: 1 | Z14: 1 | AA14: 1 | AB14: 6 | AC14: gb|HG970103.1|+|0-1086|ARO:3003949|efrB | AD14: 0 | AE14: 0 | AF14: 0 | AG14: 0 | AH14: 0 | AI14: 0 | AJ14: 0 | AK14: 0 | AL14: 0 | AM14: 0 | AN14: 0 | AO14: 0 | AP14: 0 | AQ14: 0 | AR14: 0 | AS14: gb|HG970103.1|+|0-1086|ARO:3003949|efrB | AT14: 0 | AU14: 0 | AV14: 0 | AW14: 0 | AX14: 0 | AY14: 0
A15: gb|AM180355|+|600033-601953|ARO:3000186|tetM | B15: 1 | C15: 1 | D15: 1 | E15: 0 | F15: 1 | G15: 4 | H15: 1 | I15: 0 | J15: 1 | K15: 0 | L15: 1 | M15: 1 | N15: 4 | O15: 0 | P15: 1 | Q15: 0 | R15: 1 | S15: 1 | T15: 1 | U15: 4 | V15: 1 | W15: 0 | X15: 1 | Y15: 0 | Z15: 1 | AA15: 1 | AB15: 4 | AC15: gb|AM180355|+|600033-601953|ARO:3000186|tetM | AD15: 1 | AE15: 1 | AF15: 1 | AG15: 1 | AH15: 4 | AI15: 1 | AJ15: 1 | AK15: 2 | AL15: 1 | AM15: 1 | AN15: 1 | AO15: 3 | AP15: 0 | AQ15: 0 | AR15: 0 | AS15: gb|AM180355|+|600033-601953|ARO:3000186|tetM | AT15: 0 | AU15: 0 | AV15: 0 | AW15: 0 | AX15: 0 | AY15: 0
A16: gb|L09756|+|0-1926|ARO:3000192|tetS | B16: 1 | C16: 1 | D16: 1 | E16: 0 | F16: 1 | G16: 4 | H16: 1 | I16: 0 | J16: 1 | K16: 0 | L16: 1 | M16: 1 | N16: 4 | O16: 0 | P16: 1 | Q16: 0 | R16: 1 | S16: 1 | T16: 1 | U16: 4 | V16: 1 | W16: 0 | X16: 1 | Y16: 0 | Z16: 1 | AA16: 1 | AB16: 4 | AC16: gb|L09756|+|0-1926|ARO:3000192|tetS | AD16: 1 | AE16: 1 | AF16: 1 | AG16: 1 | AH16: 4 | AI16: 1 | AJ16: 1 | AK16: 2 | AL16: 1 | AM16: 1 | AN16: 1 | AO16: 3 | AP16: 0 | AQ16: 0 | AR16: 0 | AS16: gb|L09756|+|0-1926|ARO:3000192|tetS | AT16: 0 | AU16: 0 | AV16: 0 | AW16: 0 | AX16: 0 | AY16: 0
A17: gb|M11036|+|0-1377|ARO:3000179|tet(L) | B17: 0 | C17: 0 | D17: 0 | E17: 0 | F17: 0 | G17: 0 | H17: 0 | I17: 0 | J17: 0 | K17: 0 | L17: 0 | M17: 0 | N17: 0 | O17: 0 | P17: 1 | Q17: 0 | R17: 0 | S17: 0 | T17: 1 | U17: 2 | V17: 0 | W17: 0 | X17: 0 | Y17: 0 | Z17: 0 | AA17: 1 | AB17: 1 | AC17: gb|M11036|+|0-1377|ARO:3000179|tet(L) | AD17: 0 | AE17: 0 | AF17: 0 | AG17: 0 | AH17: 0 | AI17: 0 | AJ17: 1 | AK17: 1 | AL17: 0 | AM17: 0 | AN17: 0 | AO17: 0 | AP17: 0 | AQ17: 0 | AR17: 0 | AS17: gb|M11036|+|0-1377|ARO:3000179|tet(L) | AT17: 0 | AU17: 0 | AV17: 0 | AW17: 0 | AX17: 0 | AY17: 0
A18: gb|JX560992|+|8592-9321|ARO:3002630|ANT(9)-Ia | B18: 0 | C18: 0 | D18: 0 | E18: 0 | F18: 0 | G18: 0 | H18: 0 | I18: 0 | J18: 0 | K18: 0 | L18: 0 | M18: 1 | N18: 1 | O18: 0 | P18: 0 | Q18: 0 | R18: 0 | S18: 0 | T18: 0 | U18: 0 | V18: 0 | W18: 0 | X18: 0 | Y18: 0 | Z18: 0 | AA18: 1 | AB18: 1 | AC18: gb|JX560992|+|8592-9321|ARO:3002630|ANT(9)-Ia | AD18: 0 | AE18: 0 | AF18: 0 | AG18: 0 | AH18: 0 | AI18: 0 | AJ18: 0 | AK18: 0 | AL18: 0 | AM18: 0 | AN18: 0 | AO18: 0 | AP18: 0 | AQ18: 0 | AR18: 0 | AS18: gb|JX560992|+|8592-9321|ARO:3002630|ANT(9)-Ia | AT18: 0 | AU18: 0 | AV18: 0 | AW18: 0 | AX18: 0 | AY18: 0
A19: gb|AB467372.1|+|284-1571|ARO:3003954|efmA | B19: 0 | C19: 0 | D19: 0 | E19: 0 | F19: 0 | G19: 0 | H19: 0 | I19: 0 | J19: 0 | K19: 0 | L19: 0 | M19: 0 | N19: 0 | O19: 0 | P19: 0 | Q19: 0 | R19: 0 | S19: 0 | T19: 0 | U19: 0 | V19: 0 | W19: 0 | X19: 0 | Y19: 0 | Z19: 0 | AA19: 0 | AB19: 0 | AC19: gb|AB467372.1|+|284-1571|ARO:3003954|efmA | AD19: 1 | AE19: 1 | AF19: 1 | AG19: 1 | AH19: 4 | AI19: 1 | AJ19: 1 | AK19: 2 | AL19: 1 | AM19: 1 | AN19: 1 | AO19: 3 | AP19: 1 | AQ19: 1 | AR19: 2 | AS19: gb|AB467372.1|+|284-1571|ARO:3003954|efmA | AT19: 0 | AU19: 0 | AV19: 0 | AW19: 0 | AX19: 0 | AY19: 0
A20: gb|AB205645|+|1012-1510|ARO:3002868|dfrG | B20: 1 | C20: 0 | D20: 0 | E20: 0 | F20: 1 | G20: 2 | H20: 0 | I20: 0 | J20: 0 | K20: 0 | L20: 0 | M20: 0 | N20: 0 | O20: 0 | P20: 1 | Q20: 0 | R20: 1 | S20: 1 | T20: 0 | U20: 3 | V20: 0 | W20: 0 | X20: 0 | Y20: 0 | Z20: 0 | AA20: 0 | AB20: 0 | AC20: gb|AB205645|+|1012-1510|ARO:3002868|dfrG | AD20: 1 | AE20: 1 | AF20: 1 | AG20: 1 | AH20: 0 | AI20: 1 | AJ20: 0 | AK20: 1 | AL20: 1 | AM20: 1 | AN20: 1 | AO20: 3 | AP20: 0 | AQ20: 0 | AR20: 0 | AS20: gb|AB205645|+|1012-1510|ARO:3002868|dfrG | AT20: 0 | AU20: 0 | AV20: 0 | AW20: 0 | AX20: 0 | AY20: 0
A21: gb|L12710|+|0-549|ARO:3002556|AAC(6')-Ii | B21: 0 | C21: 0 | D21: 0 | E21: 0 | F21: 0 | G21: 0 | H21: 0 | I21: 0 | J21: 0 | K21: 0 | L21: 0 | M21: 0 | N21: 0 | O21: 0 | P21: 0 | Q21: 0 | R21: 0 | S21: 0 | T21: 0 | U21: 0 | V21: 0 | W21: 0 | X21: 0 | Y21: 0 | Z21: 0 | AA21: 0 | AB21: 0 | AC21: gb|L12710|+|0-549|ARO:3002556|AAC(6')-Ii | AD21: 1 | AE21: 1 | AF21: 1 | AG21: 1 | AH21: 4 | AI21: 1 | AJ21: 1 | AK21: 2 | AL21: 1 | AM21: 1 | AN21: 1 | AO21: 3 | AP21: 1 | AQ21: 1 | AR21: 2 | AS21: gb|L12710|+|0-549|ARO:3002556|AAC(6')-Ii | AT21: 0 | AU21: 0 | AV21: 0 | AW21: 0 | AX21: 0 | AY21: 0
A22: gb|AF313494|+|0-1479|ARO:3002819|msrC | B22: 0 | C22: 0 | D22: 0 | E22: 0 | F22: 0 | G22: 0 | H22: 0 | I22: 0 | J22: 0 | K22: 0 | L22: 0 | M22: 0 | N22: 0 | O22: 0 | P22: 0 | Q22: 0 | R22: 0 | S22: 0 | T22: 0 | U22: 0 | V22: 0 | W22: 0 | X22: 0 | Y22: 0 | Z22: 0 | AA22: 0 | AB22: 0 | AC22: gb|AF313494|+|0-1479|ARO:3002819|msrC | AD22: 1 | AE22: 1 | AF22: 1 | AG22: 1 | AH22: 4 | AI22: 1 | AJ22: 1 | AK22: 2 | AL22: 1 | AM22: 1 | AN22: 1 | AO22: 3 | AP22: 1 | AQ22: 1 | AR22: 2 | AS22: gb|AF313494|+|0-1479|ARO:3002819|msrC | AT22: 0 | AU22: 0 | AV22: 0 | AW22: 0 | AX22: 0 | AY22: 0
A23: gb|AY712687|+|0-831|ARO:3002628|aad(6) | B23: 0 | C23: 0 | D23: 0 | E23: 0 | F23: 0 | G23: 0 | H23: 0 | I23: 0 | J23: 0 | K23: 0 | L23: 2 | M23: 2 | N23: 2 | O23: 0 | P23: 1 | Q23: 0 | R23: 3 | S23: 2 | T23: 0 | U23: 3 | V23: 0 | W23: 0 | X23: 0 | Y23: 0 | Z23: 0 | AA23: 0 | AB23: 0 | AC23: gb|AY712687|+|0-831|ARO:3002628|aad(6) | AD23: 1 | AE23: 1 | AF23: 1 | AG23: 1 | AH23: 4 | AI23: 1 | AJ23: 0 | AK23: 1 | AL23: 1 | AM23: 1 | AN23: 0 | AO23: 2 | AP23: 0 | AQ23: 0 | AR23: 0 | AS23: gb|AY712687|+|0-831|ARO:3002628|aad(6) | AT23: 0 | AU23: 0 | AV23: 0 | AW23: 0 | AX23: 0 | AY23: 0
A24: gb|CP004067|+|52914-53709|ARO:3002647|APH(3')-IIIa | B24: 0 | C24: 0 | D24: 0 | E24: 0 | F24: 0 | G24: 0 | H24: 0 | I24: 0 | J24: 0 | K24: 0 | L24: 1 | M24: 1 | N24: 2 | O24: 0 | P24: 1 | Q24: 0 | R24: 1 | S24: 1 | T24: 0 | U24: 3 | V24: 0 | W24: 0 | X24: 0 | Y24: 0 | Z24: 0 | AA24: 0 | AB24: 0 | AC24: gb|CP004067|+|52914-53709|ARO:3002647|APH(3')-IIIa | AD24: 1 | AE24: 1 | AF24: 1 | AG24: 1 | AH24: 4 | AI24: 1 | AJ24: 0 | AK24: 1 | AL24: 1 | AM24: 1 | AN24: 0 | AO24: 2 | AP24: 0 | AQ24: 0 | AR24: 0 | AS24: gb|CP004067|+|52914-53709|ARO:3002647|APH(3')-IIIa | AT24: 0 | AU24: 0 | AV24: 0 | AW24: 0 | AX24: 0 | AY24: 0
A25: gb|U01945|+|373-916|ARO:3002897|SAT-4 | B25: 0 | C25: 0 | D25: 0 | E25: 0 | F25: 0 | G25: 0 | H25: 1 | I25: 0 | J25: 0 | K25: 0 | L25: 1 | M25: 1 | N25: 3 | O25: 0 | P25: 1 | Q25: 0 | R25: 1 | S25: 1 | T25: 0 | U25: 3 | V25: 0 | W25: 0 | X25: 0 | Y25: 0 | Z25: 0 | AA25: 0 | AB25: 0 | AC25: gb|U01945|+|373-916|ARO:3002897|SAT-4 | AD25: 1 | AE25: 1 | AF25: 1 | AG25: 1 | AH25: 4 | AI25: 1 | AJ25: 0 | AK25: 1 | AL25: 1 | AM25: 1 | AN25: 0 | AO25: 2 | AP25: 0 | AQ25: 0 | AR25: 0 | AS25: gb|U01945|+|373-916|ARO:3002897|SAT-4 | AT25: 0 | AU25: 0 | AV25: 0 | AW25: 0 | AX25: 0 | AY25: 0
A26: gb|AF242872|+|2131-2878|ARO:3000375|ErmB | B26: 1 | C26: 0 | D26: 0 | E26: 0 | F26: 1 | G26: 2 | H26: 0 | I26: 0 | J26: 0 | K26: 0 | L26: 1 | M26: 1 | N26: 2 | O26: 0 | P26: 1 | Q26: 0 | R26: 1 | S26: 1 | T26: 0 | U26: 3 | V26: 0 | W26: 0 | X26: 0 | Y26: 0 | Z26: 0 | AA26: 0 | AB26: 0 | AC26: gb|AF242872|+|2131-2878|ARO:3000375|ErmB | AD26: 1 | AE26: 1 | AF26: 1 | AG26: 1 | AH26: 4 | AI26: 1 | AJ26: 0 | AK26: 1 | AL26: 1 | AM26: 1 | AN26: 0 | AO26: 2 | AP26: 0 | AQ26: 0 | AR26: 0 | AS26: gb|AF242872|+|2131-2878|ARO:3000375|ErmB | AT26: 0 | AU26: 0 | AV26: 0 | AW26: 0 | AX26: 0 | AY26: 0
A27: gb|NC_023287|-|60996-61860|ARO:3002626|ANT(6)-Ia | B27: 0 | C27: 0 | D27: 0 | E27: 0 | F27: 0 | G27: 0 | H27: 0 | I27: 0 | J27: 0 | K27: 0 | L27: 2 | M27: 3 | N27: 2 | O27: 0 | P27: 1 | Q27: 0 | R27: 3 | S27: 2 | T27: 0 | U27: 3 | V27: 0 | W27: 0 | X27: 0 | Y27: 0 | Z27: 0 | AA27: 0 | AB27: 0 | AC27: gb|NC_023287|-|60996-61860|ARO:3002626|ANT(6)-Ia | AD27: 1 | AE27: 1 | AF27: 1 | AG27: 1 | AH27: 4 | AI27: 1 | AJ27: 0 | AK27: 1 | AL27: 1 | AM27: 1 | AN27: 0 | AO27: 2 | AP27: 0 | AQ27: 0 | AR27: 0 | AS27: gb|NC_023287|-|60996-61860|ARO:3002626|ANT(6)-Ia | AT27: 0 | AU27: 0 | AV27: 0 | AW27: 0 | AX27: 0 | AY27: 0
A28: gb|AF028812|+|392-887|ARO:3002867|dfrF | B28: 0 | C28: 0 | D28: 0 | E28: 0 | F28: 0 | G28: 0 | H28: 0 | I28: 0 | J28: 0 | K28: 0 | L28: 0 | M28: 0 | N28: 0 | O28: 0 | P28: 0 | Q28: 0 | R28: 0 | S28: 0 | T28: 0 | U28: 0 | V28: 0 | W28: 0 | X28: 0 | Y28: 0 | Z28: 0 | AA28: 0 | AB28: 0 | AC28: gb|AF028812|+|392-887|ARO:3002867|dfrF | AD28: 1 | AE28: 1 | AF28: 1 | AG28: 1 | AH28: 4 | AI28: 1 | AJ28: 0 | AK28: 1 | AL28: 1 | AM28: 1 | AN28: 1 | AO28: 3 | AP28: 0 | AQ28: 0 | AR28: 0 | AS28: gb|AF028812|+|392-887|ARO:3002867|dfrF | AT28: 0 | AU28: 0 | AV28: 0 | AW28: 0 | AX28: 0 | AY28: 0
A29: gb|M97297|+|10116-10601|ARO:3002962|vanZA | B29: 0 | C29: 0 | D29: 0 | E29: 0 | F29: 0 | G29: 0 | H29: 0 | I29: 0 | J29: 0 | K29: 0 | L29: 0 | M29: 0 | N29: 0 | O29: 0 | P29: 0 | Q29: 0 | R29: 0 | S29: 0 | T29: 0 | U29: 0 | V29: 0 | W29: 0 | X29: 0 | Y29: 0 | Z29: 0 | AA29: 0 | AB29: 0 | AC29: gb|M97297|+|10116-10601|ARO:3002962|vanZA | AD29: 1 | AE29: 1 | AF29: 1 | AG29: 1 | AH29: 4 | AI29: 1 | AJ29: 0 | AK29: 1 | AL29: 1 | AM29: 1 | AN29: 1 | AO29: 3 | AP29: 0 | AQ29: 0 | AR29: 0 | AS29: gb|M97297|+|10116-10601|ARO:3002962|vanZA | AT29: 0 | AU29: 0 | AV29: 0 | AW29: 0 | AX29: 0 | AY29: 0
A30: gb|M97297|+|6018-6986|ARO:3002942|vanHA | B30: 0 | C30: 0 | D30: 0 | E30: 0 | F30: 0 | G30: 0 | H30: 0 | I30: 0 | J30: 0 | K30: 0 | L30: 0 | M30: 0 | N30: 0 | O30: 0 | P30: 0 | Q30: 0 | R30: 0 | S30: 0 | T30: 0 | U30: 0 | V30: 0 | W30: 0 | X30: 0 | Y30: 0 | Z30: 0 | AA30: 0 | AB30: 0 | AC30: gb|M97297|+|6018-6986|ARO:3002942|vanHA | AD30: 1 | AE30: 1 | AF30: 1 | AG30: 1 | AH30: 4 | AI30: 1 | AJ30: 0 | AK30: 1 | AL30: 1 | AM30: 1 | AN30: 1 | AO30: 3 | AP30: 0 | AQ30: 0 | AR30: 0 | AS30: gb|M97297|+|6018-6986|ARO:3002942|vanHA | AT30: 0 | AU30: 0 | AV30: 0 | AW30: 0 | AX30: 0 | AY30: 0
A31: gb|M97297|+|6979-8010|ARO:3000010|vanA | B31: 0 | C31: 0 | D31: 0 | E31: 0 | F31: 0 | G31: 0 | H31: 0 | I31: 0 | J31: 0 | K31: 0 | L31: 0 | M31: 0 | N31: 0 | O31: 0 | P31: 0 | Q31: 0 | R31: 0 | S31: 0 | T31: 0 | U31: 0 | V31: 0 | W31: 0 | X31: 0 | Y31: 0 | Z31: 0 | AA31: 0 | AB31: 0 | AC31: gb|M97297|+|6979-8010|ARO:3000010|vanA | AD31: 1 | AE31: 1 | AF31: 1 | AG31: 1 | AH31: 4 | AI31: 1 | AJ31: 0 | AK31: 1 | AL31: 1 | AM31: 1 | AN31: 1 | AO31: 3 | AP31: 0 | AQ31: 0 | AR31: 0 | AS31: gb|M97297|+|6979-8010|ARO:3000010|vanA | AT31: 0 | AU31: 0 | AV31: 0 | AW31: 0 | AX31: 0 | AY31: 0
A32: gb|M97297|+|9052-9963|ARO:3002955|vanYA | B32: 0 | C32: 0 | D32: 0 | E32: 0 | F32: 0 | G32: 0 | H32: 0 | I32: 0 | J32: 0 | K32: 0 | L32: 0 | M32: 0 | N32: 0 | O32: 0 | P32: 0 | Q32: 0 | R32: 0 | S32: 0 | T32: 0 | U32: 0 | V32: 0 | W32: 0 | X32: 0 | Y32: 0 | Z32: 0 | AA32: 0 | AB32: 0 | AC32: gb|M97297|+|9052-9963|ARO:3002955|vanYA | AD32: 1 | AE32: 1 | AF32: 1 | AG32: 1 | AH32: 4 | AI32: 1 | AJ32: 0 | AK32: 1 | AL32: 1 | AM32: 1 | AN32: 1 | AO32: 3 | AP32: 0 | AQ32: 0 | AR32: 0 | AS32: gb|M97297|+|9052-9963|ARO:3002955|vanYA | AT32: 0 | AU32: 0 | AV32: 0 | AW32: 0 | AX32: 0 | AY32: 0
A33: gb|M97297|+|8016-8624|ARO:3002949|vanXA | B33: 0 | C33: 0 | D33: 0 | E33: 0 | F33: 0 | G33: 0 | H33: 0 | I33: 0 | J33: 0 | K33: 0 | L33: 0 | M33: 0 | N33: 0 | O33: 0 | P33: 0 | Q33: 0 | R33: 0 | S33: 0 | T33: 0 | U33: 0 | V33: 0 | W33: 0 | X33: 0 | Y33: 0 | Z33: 0 | AA33: 0 | AB33: 0 | AC33: gb|M97297|+|8016-8624|ARO:3002949|vanXA | AD33: 1 | AE33: 1 | AF33: 1 | AG33: 1 | AH33: 4 | AI33: 1 | AJ33: 0 | AK33: 1 | AL33: 1 | AM33: 1 | AN33: 1 | AO33: 3 | AP33: 0 | AQ33: 0 | AR33: 0 | AS33: gb|M97297|+|8016-8624|ARO:3002949|vanXA | AT33: 0 | AU33: 0 | AV33: 0 | AW33: 0 | AX33: 0 | AY33: 0
